Workbook

Sheet Úvod
A3: Nástroj pro posuzování projektů sálavého vytápění
B5: Nástroj slouží k vypočítání povrchových teplot konstrukcí a vytvoření teplotní mapy v prostorech vytápěných závěsnými sálavými panely
B9: Uživatel vyplňuje pouze pole označená
B10: S listy "Data", "Data_ksi", "Výpočet", "Tabulky" uživatel nijak nemanipuluje
B11: Ve všech listech není doporučeno přidávat sloupce ani měnit obsahy buněk neoznačených k úpravě
B13: Více informací ohledně fungování výpočetního nástroje lze nalézt v diplomové práci
B21: Tato výpočetní pomůcka vznikla na základě vypracování diplomové práce s názvem: Nástroj pro posuzování projektů sálavého vytápění.
G24: vypracoval:
H25: Jan Víša
G26: rok:
H27: 2015-2016

Sheet Skladby konstrukcí
B2: l (W/mK) | C2: d (mm) | D2: Ri (m2K/W) | E2: ∑Ri (m2K/W) | G2: Označení | H2: R (m2K/W) | I2: ε [-]
A3: Venkovní obvodová konstrukce - do výšky 2,4 m nad podlahu | G3: os1 | H3: =E4 -> 2.5 | I3: 0.9
A4: Skladba konstrukce neznámá, tepelný odpor převzat z výpočtu tepelné ztráty pro stavební povolení | B4: 999 | C4: 0 | D4: =C4/1000/B4 -> 0 | E4: 2.5
B5: 999 | C5: 0 | D5: =C5/1000/B5 -> 0
B6: 999 | C6: 0 | D6: 0
B7: 999 | C7: 0 | D7: 0
A8: Vnitřní svislá konstrukce - od výšky 2,4 m nad podlahou | G8: os2 | H8: =E9 -> 3.4 | I8: 0.9
A9: Skladba konstrukce neznámá, tepelný odpor převzat z výpočtu tepelné ztráty pro stavební povolení | B9: 999 | C9: 0 | D9: =C9/1000/B9 -> 0 | E9: 3.4
B10: 999 | C10: 0 | D10: =C10/1000/B10 -> 0
B11: 999 | C11: 0 | D11: 0
B12: 999 | C12: 0 | D12: 0
A13: Vnitřní svislá konstrukce | G13: ns1 | H13: =E14 -> 1.5 | I13: 0.9
A14: Tepelně izolační panel Balextherm PLUS 60 | B14: 0.04 | C14: 60 | D14: =C14/1000/B14 -> 1.5 | E14: =SUM(D14:D17) -> 1.5
B15: 999 | C15: 0 | D15: =C15/1000/B15 -> 0
B16: 999 | C16: 0 | D16: 0
B17: 999 | C17: 0 | D17: 0
A18: Fiktivní konstrukce dělící horní a dolní část prostoru | G18: ns2 | H18: =E19 -> 0 | I18: 0.9
B19: 999 | C19: 0 | D19: =C19/1000/B19 -> 0 | E19: =SUM(D19:D22) -> 0
B20: 999 | C20: 0 | D20: =C20/1000/B20 -> 0
B21: 999 | C21: 0 | D21: 0
B22: 999 | C22: 0 | D22: 0
A23: Střešní plášť | G23: ostrech1 | H23: =E24 -> 4 | I23: 0.9
A24: Skladba konstrukce neznámá, tepelný odpor převzat z výpočtu tepelné ztráty pro stavební povolení | B24: 999 | C24: 0 | D24: =C24/1000/B24 -> 0 | E24: 4
B25: 999 | C25: 0 | D25: =C25/1000/B25 -> 0
B26: 999 | C26: 0 | D26: 0
B27: 999 | C27: 0 | D27: 0
A28: Podlaha se zeminou | G28: npdl1 | H28: =E29 -> 1.08 | I28: 0.9
A29: Skladba konstrukce neznámá, tepelný odpor převzat z výpočtu tepelné ztráty pro stavební povolení | B29: 0.04 | C29: 60 | D29: =C29/1000/B29 -> 1.5 | E29: 1.08
B30: 999 | C30: 0 | D30: =C30/1000/B30 -> 0
B31: 999 | C31: 0 | D31: 0
B32: 999 | C32: 0 | D32: 0
A33: Okna a světlíky | G33: ooz1 | H33: =E34 -> 0.4 | I33: 0.9
A34: Parametry konstrukcí neznámé, tepelně-technické vlastnosti převzaty z výpočtu tepelné ztráty pro stavební povolení | B34: 999 | C34: 0 | D34: =C34/1000/B34 -> 0 | E34: 0.4
B35: 999 | C35: 0 | D35: =C35/1000/B35 -> 0
B36: 999 | C36: 0 | D36: 0
B37: 999 | C37: 0 | D37: 0
A38: Sekční vrata | G38: ooz2 | H38: =E39 -> 0.8 | I38: 0.9
A39: Parametry konstrukcí neznámé, tepelně-technické vlastnosti odhadnuty na základě fotodokumentace a parametrů obdobných výrobků | B39: 999 | C39: 0 | D39: =C39/1000/B39 -> 0 | E39: 0.8
B40: 999 | C40: 0 | D40: =C40/1000/B40 -> 0
B41: 999 | C41: 0 | D41: 0
B42: 999 | C42: 0 | D42: 0
A43: Dveře do venovního prostředí | G43: ooz3 | H43: =E44 -> 0.4 | I43: 0.9
A44: Parametry konstrukcí neznámé, tepelně-technické vlastnosti převzaty z výpočtu tepelné ztráty pro stavební povolení | B44: 999 | C44: 0 | D44: =C44/1000/B44 -> 0 | E44: 0.4
B45: 999 | C45: 0 | D45: =C45/1000/B45 -> 0
B46: 999 | C46: 0 | D46: 0
B47: 999 | C47: 0 | D47: 0

Sheet Konstrukce
C1: ti [°C] | D1: 18.7701754 | F1: te [°C] | G1: -12 | I1: Mv [kg/h] | J1: =M2*M1 -> 33600 | L1: ρv [kg/m3] | M1: 1.2 | O1: tp,vz [°C] | P1: 18
C2: ti' [°C] | D2: 19.93422959 | F2: tz [°C] | G2: 5 | I2: cv [J/kgK] | J2: 1010 | L2: Vv [m3/h] | M2: 28000 | O2: w [m/s] | P2: 0.2
A5: 1 | B5: 2 | C5: 3 | D5: 4 | E5: 5 | F5: 6 | G5: 7 | H5: 8 | I5: 9 | J5: 10 | K5: 11 | L5: 12 | M5: 13 | N5: 14 | O5: 15 | P5: 16 | Q5: 17 | R5: 18 | S5: 19 | T5: 20 | U5: 21 | V5: 22 | W5: 23 | X5: 24 | Y5: 25 | Z5: 26 | AA5: 27 | AB5: 28 | AC5: 29 | AD5: 30 | AE5: 31 | AF5: 32 | AG5: 33 | AH5: 34 | AI5: 35 | AJ5: 36 | AK5: 37 | AL5: 38 | AM5: 39 | AN5: 40 | AO5: 41 | AP5: 42 | AQ5: 43 | AR5: 44 | AS5: 45 | AT5: 46 | AU5: 47 | AV5: 48 | AW5: 49 | AX5: 50 | AY5: 51 | AZ5: 52 | BA5: 53 | BB5: 54 | BC5: 55 | BD5: 56 | BE5: 57 | BF5: 58 | BG5: 59 | BH5: 60 | BI5: 61 | BJ5: 62 | BK5: 63 | BL5: 64 | BM5: 65 | BN5: 66 | BO5: 67 | BP5: 68 | BQ5: 69 | BR5: 70 | BS5: 71 | BT5: 72 | BU5: 73 | BV5: 74 | BW5: 75 | BX5: 76 | BY5: 77 | BZ5: 78 | CA5: 79 | CB5: 80
E6: rozměry | AH6: součinitel přestupu tepla konvekcí na vnitřní straně | AT6: součinitel přestupu tepla konvekcí na vnější straně
E7: bod1 | H7: bod2 | K7: bod3 | N7: bod4 | AI7: vlastnosti vzduchu | BQ7: součinitel přestupu tepla konvekcí na horní straně - ASHRAE
A8: index | B8: skladba | C8: te' [°C] | D8: orientace | E8: x | F8: y | G8: z | H8: x | I8: y | J8: z | K8: x | L8: y | M8: z | N8: x | O8: y | P8: z | Q8: X [m] | R8: Y [m] | S8: Z [m] | T8: S [m2] | U8: S-SO [m2] | V8: R [m2K/W] | W8: tp [°C] | X8: ε [-] | Y8: Λ [W/m2K] | Z8: αki [W/m2K] | AA8: αke [W/m2K] | AB8: obdelník | AF8: g [m/s2] | AG8: L | AH8: ts [°C] | AI8: β [1/K] | AJ8: νvz [m2/s] | AK8: λvz [W/mK] | AL8: Pr [-] | AM8: Δt [°C] | AN8: Gr [-] | AO8: index | AP8: K | AQ8: n | AR8: Nu [-] | AS8: αk [W/m2K] | AT8: ts [°C] | AU8: β [1/K] | AV8: νvz [m2/s] | AW8: λvz [W/mK] | AX8: Pr [-] | AY8: Δt [°C] | AZ8: Gr [-] | BA8: index | BB8: K | BC8: n | BD8: Nu [-] | BE8: αk [W/m2K] | BG8: plocha s/h? | BH8: fiktivni plocha/panel? | BI8: index navazujici plochy | BJ8: orientace | BK8: otvor | BL8: L [m] | BM8: Re [-] | BN8: Nu [-] | BO8: αk [W/m2K] | BP8: index | BQ8: K | BR8: n
A9: 1 | B9: os1 | D9: s1 | E9: 0 | F9: 0 | G9: 0 | H9: 0 | I9: 14.9 | J9: 0 | K9: 0 | L9: 0 | M9: 2.4 | N9: 0 | O9: 14.9 | P9: 2.4 | Q9: =IF(OR(MID($D9,2,1)="1",MID($D9,2,1)="2"),0,ABS(E9-H9)) -> 0 | R9: =IF(OR(MID($D9,2,1)="3",MID($D9,2,1)="4"),0,ABS(F9-O9)) -> 14.9 | S9: =IF(OR(MID($D9,2,1)="5",MID($D9,2,1)="6"),0,ABS(G9-P9)) -> 2.4 | T9: =IF(OR(MID($D9,2,1)="1",MID($D9,2,1)="2"),R9*S9,IF(OR(MID($D9,2,1)="3",MID($D9,2,1)="4"),Q9*S9,Q9*R9)) -> 35.76 | U9: =IF(MID($B9,1,2)="oo",T9,IF(MID($B10,1,2)="oo",IF(MID($B11,1,2)="oo",T9-U10-U11,T9-U10),T9)) -> 33.96 | V9: =VLOOKUP(B9,tabulka_konstrukce,2,FALSE) -> 2.5 | W9: 20.88793795 | X9: =IF(MID(D9,3,1)="f",1,VLOOKUP(B9,tabulka_konstrukce,3,FALSE)) -> 0.9 | Y9: =1/(V9+(1/AA9)) -> 0.3931623932 | Z9: =IF(P2<=0.2,AS9,MAX(AS9,BO9)) -> 2.005902563 | AA9: =IF(ISBLANK($C9),23,IF(MID($C9,1,1)="z",10^15,BE9)) -> 23 | AB9: 1 | AC9: =IF(BH9="f",VLOOKUP(VALUE(BI9),tabulka_kce_def,23,FALSE),W9) -> 20.88793795 | AF9: 9.81 | AG9: =IF(OR(MID($D9,2,1)="1",MID($D9,2,1)="2",MID($D9,2,1)="3",MID($D9,2,1)="4"),$S9,(($Q9*$R9)/(2*($Q9+$R9)))) -> 2.4 | AH9: =IF(($W9+$D$1)/2<0,0,($W9+$D$1)/2) -> 19.82905668 | AI9: =1/(273.15+(AH9)) -> 0.003413213256 | AJ9: =VLOOKUP(ROUND(AH9,0),tabulka_FyzVl_vzduch,6,TRUE)*10^-6 -> 1.5688e-05 | AK9: =VLOOKUP(ROUND(AH9,0),tabulka_FyzVl_vzduch,4,TRUE) -> 0.0251 | AL9: =VLOOKUP(ROUND(AH9,0),tabulka_FyzVl_vzduch,8,TRUE) -> 0.72 | AM9: =ABS($D$1-$W9) -> 2.117762547 | AN9: =$AF9*AI9*AM9*($AG9^3)/(AJ9^2) -> 3982981216 | AO9: =IF(AN9*AL9>2*10^7,4,IF(AN9*AL9>5*10^2,3,IF(AN9*AL9>10^-3,2,1))) -> 4 | AP9: =VLOOKUP($AO9,tabulka_exponenty_Michejev,4,FALSE) -> 0.135 | AQ9: =VLOOKUP($AO9,tabulka_exponenty_Michejev,5,FALSE) -> 0.3333333333 | AR9: =IF(OR(MID($D9,2,1)="1",MID($D9,2,1)="2",MID($D9,2,1)="3",MID($D9,2,1)="4"),AP9*((AN9*AL9)^AQ9),IF(MID($D9,2,1)="5",BQ9*((AN9*AL9)^BR9),0.27*(AN9*AL9)^(1/4))) -> 191.7994482 | AS9: =AR9*AK9/$AG9 -> 2.005902563 | AT9: =IF(($W9+$C9)/2<0,0,($W9+$C9)/2) -> 10.44396898 | AU9: =1/(273.15+(AT9)) -> 0.003526168076 | AV9: =VLOOKUP(ROUND(AT9,0),tabulka_FyzVl_vzduch,6,TRUE)*10^-6 -> 1.4805e-05 | AW9: =VLOOKUP(ROUND(AT9,0),tabulka_FyzVl_vzduch,4,TRUE) -> 0.0244 | AX9: =VLOOKUP(ROUND(AT9,0),tabulka_FyzVl_vzduch,8,TRUE) -> 0.72 | AY9: =ABS($C9-$W9) -> 20.88793795 | AZ9: =$AF9*AU9*AY9*($AG9^3)/(AV9^2) -> 4.557057275e+10 | BA9: =IF(AZ9*AX9>2*10^7,4,IF(AZ9*AX9>5*10^2,3,IF(AZ9*AX9>10^-3,2,1))) -> 4 | BB9: =VLOOKUP($BA9,tabulka_exponenty_Michejev,4,FALSE) -> 0.135 | BC9: =VLOOKUP($BA9,tabulka_exponenty_Michejev,5,FALSE) -> 0.3333333333 | BD9: =IF(OR(MID($D9,2,1)="1",MID($D9,2,1)="2",MID($D9,2,1)="3",MID($D9,2,1)="4"),BB9*((AZ9*AX9)^BC9),0.137*((AZ9*AX9)^(1/3))) -> 432.1880585 | BE9: =BD9*AW9/$AG9 -> 4.393911928 | BG9: =MID($D9,1,1) -> s | BH9: =MID($D9,3,1) ->  | BI9: =MID($D9,4,2) ->  | BJ9: =MID($D9,2,1) -> 1 | BK9: =IF(MID($B9,1,2)="oo",0,IF(AND(MID($B10,1,2)="oo",BJ9=BJ10),IF(AND(MID($B11,1,2)="oo",BJ9=BJ11),2,1),0)) -> 1 | BL9: =IF(OR(MID($D9,2,1)="1",MID($D9,2,1)="2",MID($D9,2,1)="3",MID($D9,2,1)="4"),$S9,0.5*($Q9+$R9)) -> 2.4 | BM9: =$P$2*BL9/AJ9 -> 30596.63437 | BN9: =IF(BM9<=4*10^5,0.664*(BM9^0.5)*(AL9^(1/3)),0.054*(BM9^0.78)*(AL9^0.78)) -> 104.099603 | BO9: =BN9*AK9/BL9 -> 1.088708348 | BP9: =IF(AN9*AL9>8*10^6,4,IF(AN9*AL9>10^4,3,IF(AN9*AL9>200,2,1))) -> 4 | BQ9: =VLOOKUP($BP9,tabulka_exponenty_ASHRAE,4,FALSE) -> 0.15 | BR9: =VLOOKUP($BP9,tabulka_exponenty_ASHRAE,5,FALSE) -> 0.3333333333
A10: =IF(ISNUMBER(A9),A9+1,"=") -> 2 | B10: ooz3 | D10: s1 | E10: 0 | F10: 6.95 | G10: 0 | H10: 0 | I10: 7.85 | J10: 0 | K10: 0 | L10: 6.95 | M10: 2 | N10: 0 | O10: 7.85 | P10: 2 | Q10: =IF(OR(MID($D10,2,1)="1",MID($D10,2,1)="2"),0,ABS(E10-H10)) -> 0 | R10: =IF(OR(MID($D10,2,1)="3",MID($D10,2,1)="4"),0,ABS(F10-O10)) -> 0.9 | S10: =IF(OR(MID($D10,2,1)="5",MID($D10,2,1)="6"),0,ABS(G10-P10)) -> 2 | T10: =IF(OR(MID($D10,2,1)="1",MID($D10,2,1)="2"),R10*S10,IF(OR(MID($D10,2,1)="3",MID($D10,2,1)="4"),Q10*S10,Q10*R10)) -> 1.8 | U10: =IF(MID($B10,1,2)="oo",T10,IF(MID($B11,1,2)="oo",IF(MID($B12,1,2)="oo",T10-U11-U12,T10-U11),T10)) -> 1.8 | V10: 0.4 | W10: 14.30453104 | X10: 0.9 | Y10: =1/(V10+(1/AA10)) -> 2.254901961 | Z10: =MAX(AS10,BO10) -> 2.589592688 | AA10: 23 | AB10: 1 | AC10: 14.30453104 | AF10: =AF9 -> 9.81 | AG10: =IF(OR(MID($D10,2,1)="1",MID($D10,2,1)="2",MID($D10,2,1)="3",MID($D10,2,1)="4"),$S10,(($Q10*$R10)/(2*($Q10+$R10)))) -> 2 | AH10: =IF(($W10+$D$1)/2<0,0,($W10+$D$1)/2) -> 16.53735322 | AI10: =1/(273.15+(AH10)) -> 0.003451997434 | AJ10: 1.5423e-05 | AK10: 0.02489 | AL10: 0.72 | AM10: =ABS($D$1-$W10) -> 4.465644368 | AN10: 5085994375 | AO10: =IF(AN10*AL10>2*10^7,4,IF(AN10*AL10>5*10^2,3,IF(AN10*AL10>10^-3,2,1))) -> 4 | AP10: =VLOOKUP($AO10,tabulka_exponenty_Michejev,4,FALSE) -> 0.135 | AQ10: 0.3333333333 | AR10: =IF(OR(MID($D10,2,1)="1",MID($D10,2,1)="2",MID($D10,2,1)="3",MID($D10,2,1)="4"),AP10*((AN10*AL10)^AQ10),IF(MID($D10,2,1)="5",BQ10*((AN10*AL10)^BR10),0.27*(AN10*AL10)^(1/4))) -> 208.0829801 | AS10: 2.589592688 | AT10: =IF(($W10+$C10)/2<0,0,($W10+$C10)/2) -> 7.152265518 | AU10: =1/(273.15+(AT10)) -> 0.003567577301 | AV10: 1.454e-05 | AW10: 0.02419 | AX10: 0.72 | AY10: =ABS($C10-$W10) -> 14.30453104 | AZ10: 1.894424047e+10 | BA10: =IF(AZ10*AX10>2*10^7,4,IF(AZ10*AX10>5*10^2,3,IF(AZ10*AX10>10^-3,2,1))) -> 4 | BB10: 0.135 | BC10: 0.3333333333 | BD10: 322.5549169 | BE10: =BD10*AW10/$AG10 -> 3.90130172 | BG10: =MID($D10,1,1) -> s | BH10: =MID($D10,3,1) ->  | BI10: =MID($D10,4,2) ->  | BJ10: =MID($D10,2,1) -> 1 | BK10: 0 | BL10: =IF(OR(MID($D10,2,1)="1",MID($D10,2,1)="2",MID($D10,2,1)="3",MID($D10,2,1)="4"),$S10,0.5*($Q10+$R10)) -> 2 | BM10: =$P$2*BL10/AJ10 -> 25935.29145 | BN10: =IF(BM10<=4*10^5,0.664*(BM10^0.5)*(AL10^(1/3)),0.054*(BM10^0.78)*(AL10^0.78)) -> 95.84242887 | BO10: =BN10*AK10/BL10 -> 1.192759027 | BP10: =IF(AN10*AL10>8*10^6,4,IF(AN10*AL10>10^4,3,IF(AN10*AL10>200,2,1))) -> 4 | BQ10: 0.15 | BR10: 0.3333333333
A11: 3 | B11: os2 | D11: s1 | E11: 0 | F11: 0 | G11: 2.4 | H11: 0 | I11: 14.9 | J11: 2.4 | K11: 0 | L11: 0 | M11: 5.95 | N11: 0 | O11: 14.9 | P11: 5.95 | Q11: 0 | R11: 14.9 | S11: 3.55 | T11: 52.895 | U11: 52.895 | V11: 3.4 | W11: 21.38432753 | X11: 0.9 | Y11: 0.2904040404 | Z11: 2.151155375 | AA11: 23 | AB11: 1 | AC11: 21.38432753 | AF11: =AF10 -> 9.81 | AG11: 3.55 | AH11: 20.07725147 | AI11: 0.003410324228 | AJ11: 1.5688e-05 | AK11: 0.0251 | AL11: 0.72 | AM11: 2.614152126 | AN11: 1.589810762e+10 | AO11: 4 | AP11: 0.135 | AQ11: 0.3333333333 | AR11: 304.2470749 | AS11: 2.151155375 | AT11: 10.69216377 | AU11: 0.003523084755 | AV11: 1.4893e-05 | AW11: 0.02447 | AX11: 0.72 | AY11: 21.38432753 | AZ11: 1.490762214e+11 | BA11: 4 | BB11: 0.135 | BC11: 0.3333333333 | BD11: 641.5749411 | BE11: 4.42234896 | BG11: s | BJ11: 1 | BK11: =IF(MID($B11,1,2)="oo",0,IF(AND(MID($B12,1,2)="oo",BJ11=BJ12),IF(AND(MID($B13,1,2)="oo",BJ11=BJ13),2,1),0)) -> 0 | BL11: 3.55 | BM11: 45257.52167 | BN11: 126.606974 | BO11: 0.8951648019 | BP11: =IF(AN11*AL11>8*10^6,4,IF(AN11*AL11>10^4,3,IF(AN11*AL11>200,2,1))) -> 4 | BQ11: 0.15 | BR11: 0.3333333333
A12: 4 | B12: os1 | D12: s4 | E12: 0 | F12: 14.9 | G12: 0 | H12: 1.74 | I12: 14.9 | J12: 0 | K12: 0 | L12: 14.9 | M12: 2.4 | N12: 1.74 | O12: 14.9 | P12: 2.4 | Q12: 1.74 | R12: 0 | S12: 2.4 | T12: 4.176 | U12: 4.176 | V12: 2.5 | W12: 17.48407539 | X12: 0.9 | Y12: 0.3931623932 | Z12: 1.70525674 | AA12: 23 | AB12: 1 | AC12: 17.48407539 | AF12: 9.81 | AG12: 2.4 | AH12: 18.1271254 | AI12: 0.00343315665 | AJ12: 1.5512e-05 | AK12: 0.02496 | AL12: 0.72 | AM12: 1.286100018 | AN12: 2488487736 | AO12: 4 | AP12: 0.135 | AQ12: 0.3333333333 | AR12: 163.9669943 | AS12: 1.70525674 | AT12: 8.742037693 | AU12: 0.003547457417 | AV12: 1.4716e-05 | AW12: 0.02433 | AX12: 0.72 | AY12: 17.48407539 | AZ12: 3.884034113e+10 | BA12: 4 | BB12: 0.135 | BC12: 0.3333333333 | BD12: 409.7688546 | BE12: 4.154031764 | BG12: s | BJ12: 4 | BK12: =IF(MID($B12,1,2)="oo",0,IF(AND(MID($B13,1,2)="oo",BJ12=BJ13),IF(AND(MID($B14,1,2)="oo",BJ12=BJ14),2,1),0)) -> 0 | BL12: 2.4 | BM12: 30943.78546 | BN12: 104.6884972 | BO12: 1.088760371 | BP12: 4 | BQ12: 0.15 | BR12: 0.3333333333
A13: 5 | B13: os2 | D13: s4 | E13: 0 | F13: 14.9 | G13: 2.4 | H13: 1.74 | I13: 14.9 | J13: 2.4 | K13: 0 | L13: 14.9 | M13: 5.95 | N13: 1.74 | O13: 14.9 | P13: 5.95 | Q13: 1.74 | R13: 0 | S13: 3.55 | T13: 6.177 | U13: 6.177 | V13: 3.4 | W13: 17.74382035 | X13: 0.9 | Y13: 0.2904040404 | Z13: 1.581489098 | AA13: 23 | AB13: 1 | AC13: 17.74382035 | AF13: 9.81 | AG13: 3.55 | AH13: 18.25699788 | AI13: 0.003431626582 | AJ13: 1.5512e-05 | AK13: 0.02496 | AL13: 0.72 | AM13: 1.02635505 | AN13: 6424156632 | AO13: 4 | AP13: 0.135 | AQ13: 0.3333333333 | AR13: 224.931342 | AS13: 1.581489098 | AT13: 8.871910177 | AU13: 0.003545823796 | AV13: 1.4716e-05 | AW13: 0.02433 | AX13: 0.72 | AY13: 17.74382035 | AZ13: 1.275083983e+11 | BA13: 4 | BB13: 0.135 | BC13: 0.3333333333 | BD13: 609.0096824 | BE13: 4.173860725 | BG13: s | BJ13: 4 | BK13: 0 | BL13: 3.55 | BM13: 45771.01599 | BN13: 127.323193 | BO13: 0.8952075765 | BP13: 4 | BQ13: 0.15 | BR13: 0.3333333333
A14: 6 | B14: os1 | C14: 10 | D14: s4 | E14: 1.74 | F14: 14.9 | G14: 0 | H14: 36 | I14: 14.9 | J14: 0 | K14: 1.74 | L14: 14.9 | M14: 2.4 | N14: 36 | O14: 14.9 | P14: 2.4 | Q14: 34.26 | R14: 0 | S14: 2.4 | T14: 82.224 | U14: 82.224 | V14: 2.5 | W14: 22.07867997 | X14: 0.9 | Y14: 0.3601371243 | Z14: 2.32595215 | AA14: 3.613759599 | AB14: 1 | AC14: 22.07867997 | AF14: 9.81 | AG14: 2.4 | AH14: 20.42442769 | AI14: 0.003406291235 | AJ14: 1.5688e-05 | AK14: 0.0251 | AL14: 0.72 | AM14: 3.308504568 | AN14: 6209849671 | AO14: 4 | AP14: 0.135 | AQ14: 0.3333333333 | AR14: 222.4017992 | AS14: 2.32595215 | AT14: 16.03933999 | AU14: 0.003457942122 | AV14: 1.5335e-05 | AW14: 0.02482 | AX14: 0.72 | AY14: 12.07867997 | AZ14: 2.408642618e+10 | BA14: 4 | BB14: 0.135 | BC14: 0.3333333333 | BD14: =IF(OR(MID($D14,2,1)="1",MID($D14,2,1)="2",MID($D14,2,1)="3",MID($D14,2,1)="4"),BB14*((AZ14*AX14)^BC14),0.137*((AZ14*AX14)^(1/3))) -> 349.4368669 | BE14: =BD14*AW14/$AG14 -> 3.613759599 | BG14: s | BJ14: 4 | BK14: 0 | BL14: 2.4 | BM14: 30596.63437 | BN14: 104.099603 | BO14: 1.088708348 | BP14: 4 | BQ14: 0.15 | BR14: 0.3333333333
A15: 7 | B15: os2 | C15: 10 | D15: s4 | E15: 1.74 | F15: 14.9 | G15: 2.4 | H15: 36 | I15: 14.9 | J15: 2.4 | K15: 1.74 | L15: 14.9 | M15: 5.95 | N15: 36 | O15: 14.9 | P15: 5.95 | Q15: 34.26 | R15: 0 | S15: 3.55 | T15: 121.623 | U15: 121.623 | V15: 3.4 | W15: 22.44900591 | X15: 0.9 | Y15: 0.2721823878 | Z15: 2.406904146 | AA15: 3.6495417 | AB15: 1 | AC15: 22.44900591 | AF15: 9.81 | AG15: 3.55 | AH15: 20.60959066 | AI15: 0.003404144177 | AJ15: 1.5776e-05 | AK15: 0.02517 | AL15: 0.72 | AM15: 3.678830502 | AN15: 2.208401308e+10 | AO15: 4 | AP15: 0.135 | AQ15: 0.3333333333 | AR15: 339.4719793 | AS15: 2.406904146 | AT15: 16.22450295 | AU15: 0.003455729478 | AV15: 1.5335e-05 | AW15: 0.02482 | AX15: 0.72 | AY15: 12.44900591 | AZ15: 8.028989991e+10 | BA15: 4 | BB15: 0.135 | BC15: 0.3333333333 | BD15: 521.9932729 | BE15: 3.6495417 | BG15: s | BJ15: 4 | BK15: 0 | BL15: 3.55 | BM15: 45005.07099 | BN15: 126.2533674 | BO15: 0.8951541572 | BP15: 4 | BQ15: 0.15 | BR15: 0.3333333333
A16: 8 | B16: ns1 | C16: 18 | D16: s2 | E16: 36 | F16: 8.7 | G16: 0 | H16: 36 | I16: 14.9 | J16: 0 | K16: 36 | L16: 8.7 | M16: 5.95 | N16: 36 | O16: 14.9 | P16: 5.95 | Q16: 0 | R16: 6.2 | S16: 5.95 | T16: 36.89 | U16: 32.89 | V16: 1.5 | W16: 22.05525538 | X16: 0.9 | Y16: 0.5258863577 | Z16: 2.320480666 | AA16: 2.490340501 | AB16: 1 | AC16: 22.05525538 | AF16: 9.81 | AG16: 5.95 | AH16: 20.41271539 | AI16: 0.003406427137 | AJ16: 1.5688e-05 | AK16: 0.0251 | AL16: 0.72 | AM16: 3.285079973 | AN16: 9.395714111e+10 | AO16: 4 | AP16: 0.135 | AQ16: 0.3333333333 | AR16: 550.0741021 | AS16: 2.320480666 | AT16: 20.02762769 | AU16: 0.003410901466 | AV16: 1.5688e-05 | AW16: 0.0251 | AX16: 0.72 | AY16: 4.055255377 | AZ16: 1.161374071e+11 | BA16: 4 | BB16: 0.135 | BC16: 0.3333333333 | BD16: 590.3396805 | BE16: 2.490340501 | BG16: s | BJ16: 2 | BK16: 2 | BL16: 5.95 | BM16: 75854.15604 | BN16: 163.9086734 | BO16: 0.6914466725 | BP16: 4 | BQ16: 0.15 | BR16: 0.3333333333
A17: 9 | B17: ooz1 | C17: 18 | D17: s2 | E17: 36 | F17: 9.2 | G17: 1 | H17: 36 | I17: 11.2 | J17: 1 | K17: 36 | L17: 9.2 | M17: 2 | N17: 36 | O17: 11.2 | P17: 2 | Q17: 0 | R17: 2 | S17: 1 | T17: 2 | U17: 2 | V17: 0.4 | W17: 19.68525647 | X17: 0.9 | Y17: 1.067401642 | Z17: 1.686653194 | AA17: 1.862702194 | AB17: 1 | AC17: 19.68525647 | AF17: 9.81 | AG17: 1 | AH17: 19.22771594 | AI17: 0.003420233299 | AJ17: 1.56e-05 | AK17: 0.02503 | AL17: 0.72 | AM17: 0.9150810687 | AN17: 126163902 | AO17: 4 | AP17: 0.135 | AQ17: 0.3333333333 | AR17: 60.68615725 | AS17: 1.518974516 | AT17: 18.84262824 | AU17: 0.003424743995 | AV17: 1.56e-05 | AW17: 0.02503 | AX17: 0.72 | AY17: 1.685256473 | AZ17: 232655823.3 | BA17: 4 | BB17: 0.135 | BC17: 0.3333333333 | BD17: 74.4187852 | BE17: 1.862702194 | BG17: s | BJ17: 2 | BK17: 0 | BL17: 1 | BM17: 12820.51282 | BN17: 67.38526545 | BO17: 1.686653194 | BP17: 4 | BQ17: 0.15 | BR17: 0.3333333333
A18: 10 | B18: ooz1 | C18: 18 | D18: s2 | E18: 36 | F18: 11.65 | G18: 1 | H18: 36 | I18: 13.65 | J18: 1 | K18: 36 | L18: 11.65 | M18: 2 | N18: 36 | O18: 13.65 | P18: 2 | Q18: 0 | R18: 2 | S18: 1 | T18: 2 | U18: 2 | V18: 0.4 | W18: 19.78116834 | X18: 0.9 | Y18: 1.078668523 | Z18: 1.686653194 | AA18: 1.897285292 | AB18: 1 | AC18: 19.78116834 | AF18: 9.81 | AG18: 1 | AH18: 19.27567187 | AI18: 0.003419672403 | AJ18: 1.56e-05 | AK18: 0.02503 | AL18: 0.72 | AM18: 1.010992935 | AN18: 139364587.9 | AO18: 4 | AP18: 0.135 | AQ18: 0.3333333333 | AR18: 62.73290691 | AS18: 1.57020466 | AT18: 18.89058417 | AU18: 0.003424181618 | AV18: 1.56e-05 | AW18: 0.02503 | AX18: 0.72 | AY18: 1.781168339 | AZ18: 245856428.8 | BA18: 4 | BB18: 0.135 | BC18: 0.3333333333 | BD18: 75.80045112 | BE18: 1.897285292 | BG18: s | BJ18: 2 | BK18: 0 | BL18: 1 | BM18: 12820.51282 | BN18: 67.38526545 | BO18: 1.686653194 | BP18: 4 | BQ18: 0.15 | BR18: 0.3333333333
A19: 11 | B19: ns1 | C19: 18 | D19: s2 | E19: 36 | F19: 0 | G19: 0 | H19: 36 | I19: 8.7 | J19: 0 | K19: 36 | L19: 0 | M19: 5.95 | N19: 36 | O19: 8.7 | P19: 5.95 | Q19: 0 | R19: 8.7 | S19: 5.95 | T19: 51.765 | U19: 40.765 | V19: 1.5 | W19: 22.47818164 | X19: 0.9 | Y19: 0.5294973405 | Z19: 2.413210273 | AA19: 2.57344872 | AB19: 1 | AC19: 22.47818164 | AF19: 9.81 | AG19: 5.95 | AH19: 20.62417852 | AI19: 0.003403975138 | AJ19: 1.5776e-05 | AK19: 0.02517 | AL19: 0.72 | AM19: 3.708006236 | AN19: 1.04797988e+11 | AO19: 4 | AP19: 0.135 | AQ19: 0.3333333333 | AR19: 570.4648837 | AS19: 2.413210273 | AT19: 20.23909082 | AU19: 0.003408443024 | AV19: 1.5688e-05 | AW19: 0.0251 | AX19: 0.72 | AY19: 4.478181641 | AZ19: 1.281570456e+11 | BA19: 4 | BB19: 0.135 | BC19: 0.3333333333 | BD19: 610.0406329 | BE19: 2.57344872 | BG19: s | BJ19: 2 | BK19: 2 | BL19: 5.95 | BM19: 75431.03448 | BN19: 163.4508851 | BO19: 0.6914384502 | BP19: 4 | BQ19: 0.15 | BR19: 0.3333333333
A20: 12 | B20: ooz1 | C20: 18 | D20: s2 | E20: 36 | F20: 6.7 | G20: 1 | H20: 36 | I20: 8.7 | J20: 1 | K20: 36 | L20: 6.7 | M20: 2 | N20: 36 | O20: 8.7 | P20: 2 | Q20: 0 | R20: 2 | S20: 1 | T20: 2 | U20: 2 | V20: 0.4 | W20: 19.53712114 | X20: 0.9 | Y20: 1.048737523 | Z20: 1.686653194 | AA20: 1.806595187 | AB20: 1 | AC20: 19.53712114 | AF20: 9.81 | AG20: 1 | AH20: 19.15364827 | AI20: 0.003421099962 | AJ20: 1.56e-05 | AK20: 0.02503 | AL20: 0.72 | AM20: 0.7669457314 | AN20: 105767005.7 | AO20: 4 | AP20: 0.135 | AQ20: 0.3333333333 | AR20: 57.22177655 | AS20: 1.432261067 | AT20: 18.76856057 | AU20: 0.003425612945 | AV20: 1.56e-05 | AW20: 0.02503 | AX20: 0.72 | AY20: 1.537121135 | AZ20: 212259040.1 | BA20: 4 | BB20: 0.135 | BC20: 0.3333333333 | BD20: 72.17719485 | BE20: 1.806595187 | BG20: =MID($D20,1,1) -> s | BJ20: 2 | BK20: 0 | BL20: 1 | BM20: 12820.51282 | BN20: 67.38526545 | BO20: 1.686653194 | BP20: 4 | BQ20: 0.15 | BR20: 0.3333333333
A21: 13 | B21: ooz2 | C21: 18 | D21: s2 | E21: 36 | F21: 3.1 | G21: 0 | H21: 36 | I21: 6.1 | J21: 0 | K21: 36 | L21: 3.1 | M21: 3 | N21: 36 | O21: 6.1 | P21: 3 | Q21: 0 | R21: 3 | S21: 3 | T21: 9 | U21: 9 | V21: 0.8 | W21: 20.20886173 | X21: 0.9 | Y21: 0.7747715163 | Z21: 1.765725142 | AA21: 2.037892148 | AB21: 1 | AC21: 20.20886173 | AF21: 9.81 | AG21: 3 | AH21: 19.48951857 | AI21: 0.003417173473 | AJ21: 1.56e-05 | AK21: 0.02503 | AL21: 0.72 | AM21: 1.438686324 | AN21: 5350775334 | AO21: 4 | AP21: 0.135 | AQ21: 0.3333333333 | AR21: 211.6330574 | AS21: 1.765725142 | AT21: 19.10443086 | AU21: 0.003421676096 | AV21: 1.56e-05 | AW21: 0.02503 | AX21: 0.72 | AY21: 2.208861728 | AZ21: 8226043486 | BA21: 4 | BB21: 0.135 | BC21: 0.3333333333 | BD21: 244.253953 | BE21: 2.037892148 | BG21: s | BJ21: 2 | BK21: 0 | BL21: 3 | BM21: 38461.53846 | BN21: 116.7147034 | BO21: 0.9737896757 | BP21: 4 | BQ21: 0.15 | BR21: 0.3333333333
A22: 14 | B22: ns1 | C22: 18 | D22: s3 | E22: 6.1 | F22: 0 | G22: 0 | H22: 36 | I22: 0 | J22: 0 | K22: 6.1 | L22: 0 | M22: 5.95 | N22: 36 | O22: 0 | P22: 5.95 | Q22: 29.9 | R22: 0 | S22: 5.95 | T22: 177.905 | U22: 168.905 | V22: 1.5 | W22: 20.71521362 | X22: 0.9 | Y22: 0.5106701557 | Z22: 1.950006852 | AA22: 2.182399903 | AB22: 1 | AC22: 20.71521362 | AF22: 9.81 | AG22: 5.95 | AH22: 19.74269451 | AI22: 0.003414219674 | AJ22: 1.5688e-05 | AK22: 0.0251 | AL22: 0.72 | AM22: 1.945038219 | AN22: 5.575763484e+10 | AO22: 4 | AP22: 0.135 | AQ22: 0.3333333333 | AR22: 462.2526204 | AS22: 1.950006852 | AT22: 19.35760681 | AU22: 0.003418714511 | AV22: 1.56e-05 | AW22: 0.02503 | AX22: 0.72 | AY22: 2.715213623 | AZ22: 7.882020267e+10 | BA22: 4 | BB22: 0.135 | BC22: 0.3333333333 | BD22: 518.7886305 | BE22: 2.182399903 | BG22: s | BJ22: 3 | BK22: 1 | BL22: 5.95 | BM22: 75854.15604 | BN22: 163.9086734 | BO22: 0.6914466725 | BP22: 4 | BQ22: 0.15 | BR22: 0.3333333333
A23: 15 | B23: ooz2 | C23: 18 | D23: s3 | E23: 19.6 | F23: 0 | G23: 0 | H23: 22.6 | I23: 0 | J23: 0 | K23: 19.6 | L23: 0 | M23: 3 | N23: 22.6 | O23: 0 | P23: 3 | Q23: 3 | R23: 0 | S23: 3 | T23: 9 | U23: 9 | V23: 0.8 | W23: 20.41481072 | X23: 0.9 | Y23: 0.7834580449 | Z23: 1.844268798 | AA23: 2.099109298 | AB23: 1 | AC23: 20.41481072 | AF23: 9.81 | AG23: 3 | AH23: 19.59249306 | AI23: 0.003415971455 | AJ23: 1.5688e-05 | AK23: 0.0251 | AL23: 0.72 | AM23: 1.644635314 | AN23: 6046185318 | AO23: 4 | AP23: 0.135 | AQ23: 0.3333333333 | AR23: 220.4305337 | AS23: 1.844268798 | AT23: 19.20740536 | AU23: 0.003420470909 | AV23: 1.56e-05 | AW23: 0.02503 | AX23: 0.72 | AY23: 2.414810718 | AZ23: 8989852593 | BA23: 4 | BB23: 0.135 | BC23: 0.3333333333 | BD23: 251.5912063 | BE23: 2.099109298 | BG23: s | BJ23: 3 | BK23: 0 | BL23: 3 | BM23: 38245.79296 | BN23: 116.3868944 | BO23: 0.9737703494 | BP23: 4 | BQ23: 0.15 | BR23: 0.3333333333
A24: 16 | B24: ns1 | C24: 5 | D24: s3 | E24: 0 | F24: 0 | G24: 0 | H24: 6.1 | I24: 0 | J24: 0 | K24: 0 | L24: 0 | M24: 5.95 | N24: 6.1 | O24: 0 | P24: 5.95 | Q24: 6.1 | R24: 0 | S24: 5.95 | T24: 36.295 | U24: 36.295 | V24: 1.5 | W24: 20.60873806 | X24: 0.9 | Y24: 0.5706743714 | Z24: 1.913870515 | AA24: 3.963334557 | AB24: 1 | AC24: 20.60873806 | AF24: 9.81 | AG24: 5.95 | AH24: 19.68945673 | AI24: 0.003414840374 | AJ24: 1.5688e-05 | AK24: 0.0251 | AL24: 0.72 | AM24: 1.838562659 | AN24: 5.271492416e+10 | AO24: 4 | AP24: 0.135 | AQ24: 0.3333333333 | AR24: 453.6864368 | AS24: 1.913870515 | AT24: 12.80436903 | AU24: 0.003497061449 | AV24: 1.507e-05 | AW24: 0.02461 | AX24: 0.72 | AY24: 15.60873806 | AZ24: 4.96666029e+11 | BA24: 4 | BB24: 0.135 | BC24: 0.3333333333 | BD24: 958.221886 | BE24: 3.963334557 | BG24: s | BJ24: 3 | BK24: 0 | BL24: 5.95 | BM24: 75854.15604 | BN24: 163.9086734 | BO24: 0.6914466725 | BP24: 4 | BQ24: 0.15 | BR24: 0.3333333333
A25: 17 | B25: npdl1 | C25: z | D25: s5 | E25: 0 | F25: 0 | G25: 0 | H25: 36 | I25: 0 | J25: 0 | K25: 0 | L25: 14.9 | M25: 0 | N25: 36 | O25: 14.9 | P25: 0 | Q25: 36 | R25: 14.9 | S25: 0 | T25: 536.4 | U25: 536.4 | V25: 1.08 | W25: 21.58954254 | X25: 0.9 | Y25: 0.9259259259 | Z25: 2.450862129 | AA25: 1000000000000000 | AB25: 1 | AC25: 21.58954254 | AF25: 9.81 | AG25: 5.269155206 | AH25: 20.17985897 | AI25: 0.003409131288 | AJ25: 1.5688e-05 | AK25: 0.0251 | AL25: 0.72 | AM25: 2.819367132 | AN25: 5.604697513e+10 | AO25: 4 | AP25: 0.135 | AQ25: 0.3333333333 | AR25: 514.5009141 | AS25: 2.450862129 | BG25: s | BJ25: 5 | BK25: 0 | BL25: 25.45 | BM25: 324451.8103 | BN25: 338.9903581 | BO25: 0.3343284081 | BP25: 4 | BQ25: 0.15 | BR25: 0.3333333333
A26: 18 | B26: ns2 | D26: s6f28 | E26: =E25 -> 0 | F26: =F25 -> 0 | G26: 5.95 | H26: =H25 -> 36 | I26: =I25 -> 0 | J26: 5.95 | K26: =K25 -> 0 | L26: =L25 -> 14.9 | M26: 5.95 | N26: =N25 -> 36 | O26: =O25 -> 14.9 | P26: 5.95 | Q26: 36 | R26: 14.9 | S26: 0 | T26: 536.4 | U26: =T26-U27 -> 446.85 | V26: 0 | W26: 21.14127937 | X26: 1 | Y26: 23 | Z26: 0.5521415074 | AA26: 23 | AB26: 0 | AC26: 21.14127937 | AF26: 9.81 | AG26: 5.269155206 | AH26: 19.95572739 | AI26: 0.003411738177 | AJ26: 1.5688e-05 | AK26: 0.0251 | AL26: 0.72 | AM26: 2.371103968 | AN26: 4.717187207e+10 | AO26: 4 | AP26: 0.135 | AQ26: 0.3333333333 | AR26: 115.9091354 | AS26: 0.5521415074 | AT26: 10.57063969 | AU26: 0.003524593773 | AV26: 1.4893e-05 | AW26: 0.02447 | AX26: 0.72 | AY26: 21.14127937 | AZ26: 4.821341975e+11 | BA26: 4 | BB26: 0.135 | BC26: 0.3333333333 | BD26: 962.8398242 | BE26: 4.471436041 | BG26: s | BH26: f | BI26: 28 | BJ26: 6 | BK26: 0 | BL26: 25.45 | BM26: 324451.8103 | BN26: 338.9903581 | BO26: 0.3343284081 | BP26: 4 | BQ26: 0.15 | BR26: 0.3333333333
A27: 19 | B27: ns2 | D27: s6f29 | E27: =E37 -> 6.15 | F27: =F37 -> 5.9 | G27: 5.95 | H27: =H37 -> 36 | I27: =I37 -> 5.9 | J27: 5.95 | K27: =K37 -> 6.15 | L27: =L37 -> 8.9 | M27: 5.95 | N27: =N37 -> 36 | O27: =O37 -> 8.9 | P27: 5.95 | Q27: 29.85 | R27: 3 | S27: 0 | T27: 89.55 | U27: 89.55 | V27: 0 | W27: 12.23382597 | X27: 1 | Y27: 23 | Z27: 1.001588073 | AA27: 23 | AB27: 1 | AC27: 12.23382597 | AF27: 9.81 | AG27: 1.363013699 | AH27: 15.50200069 | AI27: 0.003464379244 | AJ27: 1.5335e-05 | AK27: 0.02482 | AL27: 0.72 | AM27: 6.536349432 | AN27: 2392008938 | AO27: 4 | AP27: 0.135 | AQ27: 0.3333333333 | AR27: 55.00315326 | AS27: 1.001588073 | AT27: 6.116912986 | AU27: 0.003580803717 | AV27: 1.4452e-05 | AW27: 0.02412 | AX27: 0.72 | AY27: 12.23382597 | AZ27: 5210226187 | BA27: 4 | BB27: 0.135 | BC27: 0.3333333333 | BD27: 212.8712082 | BE27: 3.766986016 | BG27: s | BH27: f | BI27: 29 | BJ27: 6 | BK27: 0 | BL27: 16.425 | BM27: 214215.8461 | BN27: 275.4469968 | BO27: 0.4162310174 | BP27: 4 | BQ27: 0.15 | BR27: 0.3333333333
A28: 20 | B28: ns2 | D28: h5f17 | E28: =E26 -> 0 | F28: =F26 -> 0 | G28: 5.95 | H28: =H26 -> 36 | I28: =I26 -> 0 | J28: 5.95 | K28: =K26 -> 0 | L28: =L26 -> 14.9 | M28: 5.95 | N28: =N26 -> 36 | O28: =O26 -> 14.9 | P28: 5.95 | Q28: 36 | R28: 14.9 | S28: 0 | T28: 536.4 | U28: 536.4 | V28: 0 | W28: 21.58954254 | X28: 1 | Y28: 23 | Z28: 2.450862129 | AA28: 23 | AB28: 1 | AC28: 21.58954254 | AF28: 9.81 | AG28: =IF(OR(MID($D28,2,1)="1",MID($D28,2,1)="2",MID($D28,2,1)="3",MID($D28,2,1)="4"),$S28,(($Q28*$R28)/(2*($Q28+$R28)))) -> 5.269155206 | AH28: 20.17985897 | AI28: 0.003409131288 | AJ28: 1.5688e-05 | AK28: 0.0251 | AL28: 0.72 | AM28: 2.819367132 | AN28: 5.604697513e+10 | AO28: 4 | AP28: 0.135 | AQ28: 0.3333333333 | AR28: 514.5009141 | AS28: 2.450862129 | AT28: 10.79477127 | AU28: 0.003521811638 | AV28: 1.4893e-05 | AW28: 0.02447 | AX28: 0.72 | AY28: 21.58954254 | AZ28: 4.919683526e+11 | BA28: 4 | BB28: 0.135 | BC28: 0.3333333333 | BD28: 969.3422031 | BE28: 4.501633142 | BG28: h | BH28: f | BI28: 17 | BJ28: 5 | BK28: 0 | BL28: 25.45 | BM28: 324451.8103 | BN28: 338.9903581 | BO28: 0.3343284081 | BP28: 4 | BQ28: 0.15 | BR28: 0.3333333333
A29: 21 | B29: ns2 | D29: h5f17 | E29: =E27 -> 6.15 | F29: =F27 -> 5.9 | G29: 5.95 | H29: =H27 -> 36 | I29: =I27 -> 5.9 | J29: 5.95 | K29: =K27 -> 6.15 | L29: =L27 -> 8.9 | M29: 5.95 | N29: =N27 -> 36 | O29: =O27 -> 8.9 | P29: 5.95 | Q29: =IF(OR(MID($D29,2,1)="1",MID($D29,2,1)="2"),0,ABS(E29-H29)) -> 29.85 | R29: =IF(OR(MID($D29,2,1)="3",MID($D29,2,1)="4"),0,ABS(F29-O29)) -> 3 | S29: =IF(OR(MID($D29,2,1)="5",MID($D29,2,1)="6"),0,ABS(G29-P29)) -> 0 | T29: =IF(OR(MID($D29,2,1)="1",MID($D29,2,1)="2"),R29*S29,IF(OR(MID($D29,2,1)="3",MID($D29,2,1)="4"),Q29*S29,Q29*R29)) -> 89.55 | U29: 89.55 | V29: =VLOOKUP(B29,tabulka_konstrukce,2,FALSE) -> 0 | W29: 21.58954254 | X29: 1 | Y29: =1/(V29+(1/AA29)) -> 23 | Z29: 2.450862129 | AA29: =IF(ISBLANK($C29),23,IF(MID($C29,1,1)="z",10^15,BE29)) -> 23 | AB29: 1 | AC29: 21.58954254 | AF29: 9.81 | AG29: 1.363013699 | AH29: 20.17985897 | AI29: =1/(273.15+(AH29)) -> 0.003409131288 | AJ29: 1.5688e-05 | AK29: 0.0251 | AL29: 0.72 | AM29: 2.819367132 | AN29: =$AF29*AI29*AM29*($AG29^3)/(AJ29^2) -> 970129848.4 | AO29: =IF(AN29*AL29>2*10^7,4,IF(AN29*AL29>5*10^2,3,IF(AN29*AL29>10^-3,2,1))) -> 4 | AP29: 0.135 | AQ29: 0.3333333333 | AR29: 133.0899862 | AS29: =AR29*AK29/$AG29 -> 2.450862129 | AT29: 10.79477127 | AU29: =1/(273.15+(AT29)) -> 0.003521811638 | AV29: 1.4893e-05 | AW29: 0.02447 | AX29: 0.72 | AY29: 21.58954254 | AZ29: =$AF29*AU29*AY29*($AG29^3)/(AV29^2) -> 8515592183 | BA29: =IF(AZ29*AX29>2*10^7,4,IF(AZ29*AX29>5*10^2,3,IF(AZ29*AX29>10^-3,2,1))) -> 4 | BB29: 0.135 | BC29: 0.3333333333 | BD29: =IF(OR(MID($D29,2,1)="1",MID($D29,2,1)="2",MID($D29,2,1)="3",MID($D29,2,1)="4"),BB29*((AZ29*AX29)^BC29),0.137*((AZ29*AX29)^(1/3))) -> 250.7473494 | BE29: =BD29*AW29/$AG29 -> 4.501633142 | BG29: h | BH29: f | BI29: 17 | BJ29: 5 | BK29: =IF(MID($B29,1,2)="oo",0,IF(AND(MID($B30,1,2)="oo",BJ29=BJ30),IF(AND(MID($B31,1,2)="oo",BJ29=BJ31),2,1),0)) -> 0 | BL29: 16.425 | BM29: 209395.7165 | BN29: 272.330411 | BO29: 0.4161639766 | BP29: 4 | BQ29: 0.15 | BR29: 0.3333333333
A30: 22 | B30: os2 | D30: h1 | E30: 0 | F30: 0 | G30: 5.95 | H30: 0 | I30: 14.9 | J30: 5.95 | K30: 0 | L30: 0 | M30: 6.9 | N30: 0 | O30: 14.9 | P30: 6.9 | Q30: 0 | R30: 14.9 | S30: 0.95 | T30: 14.155 | U30: 14.155 | V30: 3.4 | W30: 18.08596673 | X30: 0.9 | Y30: 0.2904040404 | Z30: 1.730518008 | AA30: 23 | AB30: 1 | AC30: 18.08596673 | AF30: 9.81 | AG30: 0.95 | AH30: 18.42807107 | AI30: 0.003429613195 | AJ30: 1.5512e-05 | AK30: 0.02496 | AL30: 0.72 | AM30: 0.6842086755 | AN30: 82023434.3 | AO30: 4 | AP30: 0.135 | AQ30: 0.3333333333 | AR30: 52.57233303 | AS30: 1.381268876 | AT30: 9.042983364 | AU30: 0.003543674219 | AV30: 1.4716e-05 | AW30: 0.02433 | AX30: 0.72 | AY30: 18.08596673 | AZ30: 2489177012 | BA30: 4 | BB30: 0.135 | BC30: 0.3333333333 | BD30: 163.9821317 | BE30: 4.1996687 | BG30: h | BJ30: 1 | BK30: 0 | BL30: 0.95 | BM30: 12248.58174 | BN30: 65.86506842 | BO30: 1.730518008 | BP30: 4 | BQ30: 0.15 | BR30: 0.3333333333
A31: 23 | B31: os2 | D31: h4 | E31: 0 | F31: 14.9 | G31: 5.95 | H31: 1.74 | I31: 14.9 | J31: 5.95 | K31: 0 | L31: 14.9 | M31: 6.9 | N31: 1.74 | O31: 14.9 | P31: 6.9 | Q31: 1.74 | R31: 0 | S31: 0.95 | T31: 1.653 | U31: =IF(MID($B31,1,2)="oo",T31,IF(MID($B32,1,2)="oo",IF(MID($B33,1,2)="oo",T31-U32-U33,T31-U32),T31)) -> 1.653 | V31: 3.4 | W31: 16.27507241 | X31: 0.9 | Y31: 0.2904040404 | Z31: 2.128278392 | AA31: 23 | AB31: 1 | AC31: 16.27507241 | AF31: 9.81 | AG31: 0.95 | AH31: 17.52262391 | AI31: 0.003440296463 | AJ31: 1.5512e-05 | AK31: 0.02496 | AL31: 0.72 | AM31: 2.495102997 | AN31: 300046508.9 | AO31: 4 | AP31: 0.135 | AQ31: 0.3333333333 | AR31: 81.00418558 | AS31: 2.128278392 | AT31: 8.137536203 | AU31: 0.003555081087 | AV31: 1.4628e-05 | AW31: 0.02426 | AX31: 0.72 | AY31: 16.27507241 | AZ31: 2274271768 | BA31: 4 | BB31: 0.135 | BC31: 0.3333333333 | BD31: 159.1202262 | BE31: 4.063428091 | BG31: h | BJ31: 4 | BK31: 0 | BL31: 0.95 | BM31: 12248.58174 | BN31: 65.86506842 | BO31: 1.730518008 | BP31: 4 | BQ31: 0.15 | BR31: 0.3333333333
A32: 24 | B32: os2 | C32: 10 | D32: h4 | E32: 1.74 | F32: 14.9 | G32: 5.95 | H32: 36 | I32: 14.9 | J32: 5.95 | K32: 1.74 | L32: 14.9 | M32: 6.9 | N32: 36 | O32: 14.9 | P32: 6.9 | Q32: 34.26 | R32: 0 | S32: 0.95 | T32: 32.547 | U32: 32.547 | V32: 3.4 | W32: 19.25185869 | X32: 0.9 | Y32: 0.2701505438 | Z32: 1.730469665 | AA32: 3.315212578 | AB32: 1 | AC32: 19.25185869 | AF32: 9.81 | AG32: 0.95 | AH32: 19.01101705 | AI32: 0.003422770122 | AJ32: 1.56e-05 | AK32: 0.02503 | AL32: 0.72 | AM32: 0.4816832851 | AN32: 56980982.71 | AO32: 4 | AP32: 0.135 | AQ32: 0.3333333333 | AR32: 46.56088705 | AS32: 1.226756845 | AT32: 14.62592934 | AU32: 0.003474925795 | AV32: 1.5247e-05 | AW32: 0.02475 | AX32: 0.72 | AY32: 9.251858689 | AZ32: 1163176310 | BA32: 4 | BB32: 0.135 | BC32: 0.3333333333 | BD32: 127.2505838 | BE32: 3.315212578 | BG32: h | BJ32: 4 | BK32: 0 | BL32: 0.95 | BM32: 12179.48718 | BN32: 65.67903242 | BO32: 1.730469665 | BP32: 4 | BQ32: 0.15 | BR32: 0.3333333333
A33: 25 | B33: ns1 | C33: 18 | D33: h2 | E33: 36 | F33: 0 | G33: 5.95 | H33: 36 | I33: 14.9 | J33: 5.95 | K33: 36 | L33: 0 | M33: 6.9 | N33: 36 | O33: 14.9 | P33: 6.9 | Q33: 0 | R33: 14.9 | S33: 0.95 | T33: 14.155 | U33: 14.155 | V33: 1.5 | W33: 19.64017604 | X33: 0.9 | Y33: 0.489784408 | Z33: 1.730469665 | AA33: 1.845990329 | AB33: 1 | AC33: 19.64017604 | AF33: 9.81 | AG33: 0.95 | AH33: 19.20517572 | AI33: 0.003420496995 | AJ33: 1.56e-05 | AK33: 0.02503 | AL33: 0.72 | AM33: 0.8700006361 | AN33: 102848842.9 | AO33: 4 | AP33: 0.135 | AQ33: 0.3333333333 | AR33: 56.69060224 | AS33: 1.493648183 | AT33: 18.82008802 | AU33: 0.003425008386 | AV33: 1.56e-05 | AW33: 0.02503 | AX33: 0.72 | AY33: 1.64017604 | AZ33: 194152384.7 | BA33: 4 | BB33: 0.135 | BC33: 0.3333333333 | BD33: 70.06355622 | BE33: 1.845990329 | BG33: h | BJ33: 2 | BK33: 0 | BL33: 0.95 | BM33: 12179.48718 | BN33: 65.67903242 | BO33: 1.730469665 | BP33: 4 | BQ33: 0.15 | BR33: 0.3333333333
A34: 26 | B34: ns1 | C34: 18 | D34: h3 | E34: 6.1 | F34: 0 | G34: 5.95 | H34: 36 | I34: 0 | J34: 5.95 | K34: 6.1 | L34: 0 | M34: 6.9 | N34: 36 | O34: 0 | P34: 6.9 | Q34: 29.9 | R34: 0 | S34: 0.95 | T34: 28.405 | U34: 28.405 | V34: 1.5 | W34: 19.84750192 | X34: 0.9 | Y34: 0.4948771577 | Z34: 1.730469665 | AA34: 1.920478771 | AB34: 1 | AC34: 19.84750192 | AF34: 9.81 | AG34: 0.95 | AH34: 19.30883866 | AI34: 0.003419284589 | AJ34: 1.56e-05 | AK34: 0.02503 | AL34: 0.72 | AM34: 1.077326519 | AN34: 127313138.9 | AO34: 4 | AP34: 0.135 | AQ34: 0.3333333333 | AR34: 60.86986557 | AS34: 1.603760774 | AT34: 18.92375096 | AU34: 0.003423792781 | AV34: 1.56e-05 | AW34: 0.02503 | AX34: 0.72 | AY34: 1.847501923 | AZ34: 218616530.5 | BA34: 4 | BB34: 0.135 | BC34: 0.3333333333 | BD34: 72.89072443 | BE34: 1.920478771 | BG34: h | BJ34: 3 | BK34: 0 | BL34: 0.95 | BM34: 12179.48718 | BN34: 65.67903242 | BO34: 1.730469665 | BP34: 4 | BQ34: 0.15 | BR34: 0.3333333333
A35: 27 | B35: ns1 | C35: 5 | D35: h3 | E35: 0 | F35: 0 | G35: 5.95 | H35: 6.1 | I35: 0 | J35: 5.95 | K35: 0 | L35: 0 | M35: 6.9 | N35: 6.1 | O35: 0 | P35: 6.9 | Q35: 6.1 | R35: 0 | S35: 0.95 | T35: 5.795 | U35: 5.795 | V35: 1.5 | W35: 17.05489961 | X35: 0.9 | Y35: 0.5637490362 | Z35: 1.87751264 | AA35: 3.651781419 | AB35: 1 | AC35: 17.05489961 | AF35: 9.81 | AG35: 0.95 | AH35: 17.91253751 | AI35: 0.003435687769 | AJ35: 1.5512e-05 | AK35: 0.02496 | AL35: 0.72 | AM35: 1.715275797 | AN35: 205992723.5 | AO35: 4 | AP35: 0.135 | AQ35: 0.3333333333 | AR35: 71.45981604 | AS35: 1.87751264 | AT35: 11.0274498 | AU35: 0.003518928052 | AV35: 1.4893e-05 | AW35: 0.02447 | AX35: 0.72 | AY35: 12.05489961 | AZ35: 1608605057 | BA35: 4 | BB35: 0.135 | BC35: 0.3333333333 | BD35: 141.7732876 | BE35: 3.651781419 | BG35: h | BJ35: 3 | BK35: 0 | BL35: 0.95 | BM35: 12248.58174 | BN35: 65.86506842 | BO35: 1.730518008 | BP35: 4 | BQ35: 0.15 | BR35: 0.3333333333
A36: 28 | B36: ostrech1 | D36: h6 | E36: 0 | F36: 0 | G36: 6.9 | H36: 36 | I36: 0 | J36: 6.9 | K36: 0 | L36: 14.9 | M36: 6.9 | N36: 36 | O36: 14.9 | P36: 6.9 | Q36: 36 | R36: 14.9 | S36: 0 | T36: 536.4 | U36: 446.85 | V36: 4 | W36: 21.14127937 | X36: 0.9 | Y36: 0.247311828 | Z36: 0.5521415074 | AA36: 23 | AB36: 1 | AC36: 21.14127937 | AF36: 9.81 | AG36: 5.269155206 | AH36: 19.95572739 | AI36: 0.003411738177 | AJ36: 1.5688e-05 | AK36: 0.0251 | AL36: 0.72 | AM36: 2.371103968 | AN36: 4.717187207e+10 | AO36: 4 | AP36: 0.135 | AQ36: 0.3333333333 | AR36: 115.9091354 | AS36: 0.5521415074 | AT36: 10.57063969 | AU36: 0.003524593773 | AV36: 1.4893e-05 | AW36: 0.02447 | AX36: 0.72 | AY36: 21.14127937 | AZ36: 4.821341975e+11 | BA36: 4 | BB36: 0.135 | BC36: 0.3333333333 | BD36: 962.8398242 | BE36: 4.471436041 | BG36: h | BJ36: 6 | BK36: 1 | BL36: 25.45 | BM36: 324451.8103 | BN36: 338.9903581 | BO36: 0.3343284081 | BP36: 4 | BQ36: 0.15 | BR36: 0.3333333333
A37: 29 | B37: ooz1 | D37: h6 | E37: 6.15 | F37: 5.9 | G37: 6.9 | H37: 36 | I37: 5.9 | J37: 6.9 | K37: 6.15 | L37: 8.9 | M37: 6.9 | N37: 36 | O37: 8.9 | P37: 6.9 | Q37: 29.85 | R37: 3 | S37: 0 | T37: 89.55 | U37: 89.55 | V37: 0.4 | W37: 12.23382597 | X37: 0.9 | Y37: 2.254901961 | Z37: 1.001588073 | AA37: 23 | AB37: 1 | AC37: 12.23382597 | AF37: 9.81 | AG37: 1.363013699 | AH37: 15.50200069 | AI37: 0.003464379244 | AJ37: 1.5335e-05 | AK37: 0.02482 | AL37: 0.72 | AM37: 6.536349432 | AN37: 2392008938 | AO37: 4 | AP37: 0.135 | AQ37: 0.3333333333 | AR37: 55.00315326 | AS37: 1.001588073 | AT37: 6.116912986 | AU37: 0.003580803717 | AV37: 1.4452e-05 | AW37: 0.02412 | AX37: 0.72 | AY37: 12.23382597 | AZ37: 5210226187 | BA37: 4 | BB37: 0.135 | BC37: 0.3333333333 | BD37: 212.8712082 | BE37: 3.766986016 | BG37: h | BJ37: 6 | BK37: 0 | BL37: 16.425 | BM37: 214215.8461 | BN37: 275.4469968 | BO37: 0.4162310174 | BP37: 4 | BQ37: 0.15 | BR37: 0.3333333333
A38: =

Sheet Panely
C1: ti [°C] | D1: =Konstrukce!D1 -> 18.7701754 | F1: te [°C] | G1: =Konstrukce!G1 -> -12
C2: ti' [°C] | D2: =Konstrukce!D2 -> 19.93422959 | F2: tz [°C] | G2: =Konstrukce!G2 -> 5
A5: 1 | B5: 2 | C5: 3 | D5: 4 | E5: 5 | F5: 6 | G5: 7 | H5: 8 | I5: 9 | J5: 10 | K5: 11 | L5: 12 | M5: 13 | N5: 14 | O5: 15 | P5: 16 | Q5: 17 | R5: 18 | S5: 19 | T5: 20 | U5: 21 | V5: 22 | W5: 23 | X5: 24 | Y5: 25 | Z5: 26 | AA5: 27 | AB5: 28 | AC5: 29 | AD5: 30 | AE5: 31 | AF5: 32 | AG5: 33 | AH5: 34 | AI5: 35 | AJ5: 36 | AK5: 37 | AL5: 38 | AM5: 39 | AN5: 40 | AO5: 41 | AP5: 42 | AQ5: 43 | AR5: 44 | AS5: 45 | AT5: 46 | AU5: 47 | AV5: 48 | AW5: 49 | AX5: 50 | AY5: 51 | AZ5: 52 | BA5: 53 | BB5: 54 | BC5: 55 | BD5: 56 | BE5: 57 | BF5: 58 | BG5: 59 | BH5: 60 | BI5: 61 | BJ5: 62 | BK5: 63 | BL5: 64 | BM5: 65 | BN5: 66 | BO5: 67 | BP5: 68 | BQ5: 69 | BR5: 70 | BS5: 71 | BT5: 72 | BU5: 73
G6: rozměry
G7: bod1 | J7: bod2 | M7: bod3 | P7: bod4 | AL7: součinitel přestupu tepla konvekcí na spodní straně | AX7: součinitel přestupu tepla konvekcí na horní straně | BE7: Michejev | BO7: součinitel přestupu tepla konvekcí na horní straně - ASHRAE
A8: index | B8: ID panelu | C8: Typ panelu | D8: orientace | E8: tw1 [°C] | F8: tw2 [°C] | G8: x | H8: y | I8: z | J8: x | K8: y | L8: z | M8: x | N8: y | O8: z | P8: x | Q8: y | R8: z | S8: X [m] | T8: Y [m] | U8: Z [m] | V8: S [m2] | W8: l [m] | X8: tp [°C] | Y8: tp' [°C] | Z8: m [-] | AA8: aL [m] | AB8: λL [W/mK] | AC8: R2 [m2K/W] | AD8: Λ2 [W/m2K] | AE8: αks [W/m2K] | AF8: αkh [W/m2K] | AG8: ε [-] | AJ8: g [m/s2] | AK8: L | AL8: ts [°C] | AM8: β [1/K] | AN8: νvz [m2/s] | AO8: λvz [W/mK] | AP8: Pr [-] | AQ8: Δt [°C] | AR8: Gr [-] | AS8: index | AT8: K | AU8: n | AV8: Nu [-] | AW8: αk [W/m2K] | AX8: ts [°C] | AY8: β [1/K] | AZ8: νvz [m2/s] | BA8: λvz [W/mK] | BB8: Pr [-] | BC8: Δt [°C] | BD8: Gr [-] | BE8: index | BF8: K | BG8: n | BH8: Nu [-] | BI8: αk [W/m2K] | BJ8: =MID(D9,4,2) ->  | BK8: plocha s/h? | BL8: fiktivni plocha/panel? | BM8: orientace | BN8: index | BO8: K | BP8: n
A9: =MAX(Konstrukce!A9:A38)+1 -> 30 | B9: 6 | C9: =VLOOKUP(B9,tabulka_panely,2,FALSE) -> KZ/1050 | D9: s6p | E9: 90 | F9: 80 | G9: 2.1 | H9: 10.5 | I9: 5.95 | J9: 34.1 | K9: 10.5 | L9: 5.95 | M9: 2.1 | N9: 11.55 | O9: 5.95 | P9: 34.1 | Q9: 11.55 | R9: 5.95 | S9: =IF(OR(MID($D9,2,1)="1",MID($D9,2,1)="2"),0,ABS(G9-J9)) -> 32 | T9: =IF(OR(MID($D9,2,1)="3",MID($D9,2,1)="4"),0,ABS(H9-Q9)) -> 1.05 | U9: =IF(OR(MID($D9,2,1)="5",MID($D9,2,1)="6"),0,ABS(I9-R9)) -> 0 | V9: =IF(OR(MID($D9,2,1)="1",MID($D9,2,1)="2"),T9*U9,IF(OR(MID($D9,2,1)="3",MID($D9,2,1)="4"),S9*U9,S9*T9)) -> 33.6 | W9: =VLOOKUP(B9,tabulka_panely,4,FALSE) -> 0.15 | X9: 83.11924417 | Y9: 31.93624327 | Z9: =SQRT((AE9+AD9)/(AB9*AA9)) -> 3.959718593 | AA9: =VLOOKUP($B9,tabulka_panely,5,FALSE) -> 0.0008 | AB9: =VLOOKUP($B9,tabulka_panely,6,FALSE) -> 237 | AC9: =VLOOKUP($B9,tabulka_panely,9,FALSE) -> 1.052631579 | AD9: =1/(AC9+(1/AF9)) -> 0.7696419977 | AE9: =AW9 -> 2.203166808 | AF9: =BI9 -> 4.053936552 | AG9: =VLOOKUP(B9,tabulka_panely,10) -> 0.9 | AJ9: 9.81 | AK9: =IF(OR(MID($D9,2,1)="1",MID($D9,2,1)="2",MID($D9,2,1)="3",MID($D9,2,1)="4"),U9,((S9*T9)/(2*(S9+T9)))) -> 0.5083207262 | AL9: =($X9+$D$1)/2 -> 50.94470979 | AM9: =1/(273.15+(AL9)) -> 0.003085517813 | AN9: =VLOOKUP(ROUND(AL9,0),tabulka_FyzVl_vzduch,6,TRUE)*10^-6 -> 1.8456e-05 | AO9: =VLOOKUP(ROUND(AL9,0),tabulka_FyzVl_vzduch,4,TRUE) -> 0.0272 | AP9: =VLOOKUP(ROUND(AL9,0),tabulka_FyzVl_vzduch,8,TRUE) -> 0.72 | AQ9: =ABS($X9-$D$1) -> 64.34906877 | AR9: =$AJ9*AM9*AQ9*($AK9^3)/(AN9^2) -> 751065169.9 | AS9: =IF(AR9*AP9>2*10^7,4,IF(AR9*AP9>5*10^2,3,IF(AR9*AP9>10^-3,2,1))) -> 4 | AT9: =VLOOKUP($AS9,tabulka_exponenty_Michejev,4,FALSE) -> 0.135 | AU9: =VLOOKUP($AS9,tabulka_exponenty_Michejev,5,FALSE) -> 0.3333333333 | AV9: =IF(OR(MID($D9,2,1)="1",MID($D9,2,1)="2",MID($D9,2,1)="3",MID($D9,2,1)="4"),AT9*((AR9*AP9)^AU9),0.27*((AR9*AP9)^(1/4))) -> 41.17335851 | AW9: =AV9*AO9/$AK9 -> 2.203166808 | AX9: =IF(($Y9+$D$1)/2<0,0,($Y9+$D$1)/2) -> 25.35320934 | AY9: =1/(273.15+(AX9)) -> 0.003350047734 | AZ9: =VLOOKUP(ROUND(AX9,0),tabulka_FyzVl_vzduch,6,TRUE)*10^-6 -> 1.6129e-05 | BA9: =VLOOKUP(ROUND(AX9,0),tabulka_FyzVl_vzduch,4,TRUE) -> 0.02545 | BB9: =VLOOKUP(ROUND(AX9,0),tabulka_FyzVl_vzduch,8,TRUE) -> 0.72 | BC9: =ABS($Y9-$D$1) -> 13.16606787 | BD9: =$AJ9*AY9*BC9*($AK9^3)/(AZ9^2) -> 218461374.5 | BE9: =IF(BD9*BB9>2*10^7,4,IF(BD9*BB9>5*10^2,3,IF(BD9*BB9>10^-3,2,1))) -> 4 | BF9: =VLOOKUP($BE9,tabulka_exponenty_Michejev,4,FALSE) -> 0.135 | BG9: =VLOOKUP($BE9,tabulka_exponenty_Michejev,5,FALSE) -> 0.3333333333 | BH9: =IF(OR(MID($D9,2,1)="1",MID($D9,2,1)="2",MID($D9,2,1)="3",MID($D9,2,1)="4"),BF9*((BD9*BB9)^BG9),BO9*((BD9*BB9)^BP9)) -> 80.97052935 | BI9: =BH9*BA9/$AK9 -> 4.053936552 | BK9: =MID($D9,1,1) -> s | BL9: =MID($D9,3,1) -> p | BM9: =MID($D9,2,1) -> 6 | BN9: =IF(BD9*BB9>8*10^6,4,IF(BD9*BB9>10^4,3,IF(BD9*BB9>200,2,1))) -> 4 | BO9: =VLOOKUP($AS9,tabulka_exponenty_ASHRAE,4,FALSE) -> 0.15 | BP9: =VLOOKUP($AS9,tabulka_exponenty_ASHRAE,5,FALSE) -> 0.3333333333
A10: =IF(ISNUMBER(A9),A9+1,"=") -> 31 | B10: 6 | C10: KZ/1050 | D10: s6p | E10: 80 | F10: 70 | G10: 2.1 | H10: 3.3 | I10: 5.95 | J10: 34.1 | K10: 3.3 | L10: 5.95 | M10: 2.1 | N10: 4.35 | O10: 5.95 | P10: 34.1 | Q10: 4.35 | R10: 5.95 | S10: =IF(OR(MID($D10,2,1)="1",MID($D10,2,1)="2"),0,ABS(G10-J10)) -> 32 | T10: =IF(OR(MID($D10,2,1)="3",MID($D10,2,1)="4"),0,ABS(H10-Q10)) -> 1.05 | U10: =IF(OR(MID($D10,2,1)="5",MID($D10,2,1)="6"),0,ABS(I10-R10)) -> 0 | V10: =IF(OR(MID($D10,2,1)="1",MID($D10,2,1)="2"),T10*U10,IF(OR(MID($D10,2,1)="3",MID($D10,2,1)="4"),S10*U10,S10*T10)) -> 33.6 | W10: 0.15 | X10: 73.44738618 | Y10: 30.43038508 | Z10: =SQRT((AE10+AD10)/(AB10*AA10)) -> 3.902668516 | AA10: 0.0008 | AB10: 237 | AC10: 1.052631579 | AD10: =1/(AC10+(1/AF10)) -> 0.7637778446 | AE10: =AW10 -> 2.12398592 | AF10: =BI10 -> 3.896362122 | AG10: 0.9 | AJ10: 9.81 | AK10: =IF(OR(MID($D10,2,1)="1",MID($D10,2,1)="2",MID($D10,2,1)="3",MID($D10,2,1)="4"),U10,((S10*T10)/(2*(S10+T10)))) -> 0.5083207262 | AL10: =($X10+$D$1)/2 -> 46.10878079 | AM10: =1/(273.15+(AL10)) -> 0.003132255274 | AN10: 1.8065e-05 | AO10: 0.02692 | AP10: 0.72 | AQ10: 54.67721078 | AR10: =$AJ10*AM10*AQ10*($AK10^3)/(AN10^2) -> 676192003.4 | AS10: =IF(AR10*AP10>2*10^7,4,IF(AR10*AP10>5*10^2,3,IF(AR10*AP10>10^-3,2,1))) -> 4 | AT10: 0.135 | AU10: 0.3333333333 | AV10: =IF(OR(MID($D10,2,1)="1",MID($D10,2,1)="2",MID($D10,2,1)="3",MID($D10,2,1)="4"),AT10*((AR10*AP10)^AU10),0.27*((AR10*AP10)^(1/4))) -> 40.10646603 | AW10: 2.12398592 | AX10: =IF(($Y10+$D$1)/2<0,0,($Y10+$D$1)/2) -> 24.60028024 | AY10: =1/(273.15+(AX10)) -> 0.003358519089 | AZ10: 1.6129e-05 | BA10: 0.02545 | BB10: 0.72 | BC10: 11.66020967 | BD10: =$AJ10*AY10*BC10*($AK10^3)/(AZ10^2) -> 193964279.8 | BE10: =IF(BD10*BB10>2*10^7,4,IF(BD10*BB10>5*10^2,3,IF(BD10*BB10>10^-3,2,1))) -> 4 | BF10: 0.135 | BG10: 0.3333333333 | BH10: =IF(OR(MID($D10,2,1)="1",MID($D10,2,1)="2",MID($D10,2,1)="3",MID($D10,2,1)="4"),BF10*((BD10*BB10)^BG10),BO10*((BD10*BB10)^BP10)) -> 77.82324649 | BI10: =BH10*BA10/$AK10 -> 3.896362122 | BK10: =MID($D10,1,1) -> s | BL10: =MID($D10,3,1) -> p | BM10: =MID($D10,2,1) -> 6 | BN10: =IF(BD10*BB10>8*10^6,4,IF(BD10*BB10>10^4,3,IF(BD10*BB10>200,2,1))) -> 4 | BO10: 0.15 | BP10: 0.3333333333
A11: = | S11: 0 | T11: 0 | U11: 0 | V11: 0 | X11: =($E11+$F11)/2 -> 0 | Y11: 0 | AJ11: 9.81 | AK11: =IF(OR(MID($D11,2,1)="1",MID($D11,2,1)="2",MID($D11,2,1)="3",MID($D11,2,1)="4"),U11,((S11*T11)/(2*(S11+T11)))) ->  | AL11: 9.385087702 | AM11: 0.003539383402 | AN11: 1.4716e-05 | AO11: 0.02433 | AP11: 0.72 | AQ11: 18.7701754 | AR11: =$AJ11*AM11*AQ11*($AK11^3)/(AN11^2) ->  | AX11: 9.385087702 | AY11: 0.003539383402 | AZ11: 1.4716e-05 | BA11: 0.02433 | BB11: 0.72 | BC11: 18.7701754 | BD11: =$AJ11*AY11*BC11*($AK11^3)/(AZ11^2) ->  | BH11: =IF(OR(MID($D11,2,1)="1",MID($D11,2,1)="2",MID($D11,2,1)="3",MID($D11,2,1)="4"),BF11*((BD11*BB11)^BG11),BO11*((BD11*BB11)^BP11)) ->  | BI11: =BH11*BA11/$AK11 -> 
A12: = | S12: 0 | T12: 0 | U12: 0 | V12: 0 | X12: 0 | Y12: 0 | AJ12: 9.81 | AL12: 9.385087702 | AM12: 0.003539383402 | AN12: 1.4716e-05 | AO12: 0.02433 | AP12: 0.72 | AQ12: 18.7701754 | AR12: =$AJ12*AM12*AQ12*($AK12^3)/(AN12^2) ->  | AX12: 9.385087702 | AY12: 0.003539383402 | AZ12: 1.4716e-05 | BA12: 0.02433 | BB12: 0.72 | BC12: 18.7701754 | BH12: =IF(OR(MID($D12,2,1)="1",MID($D12,2,1)="2",MID($D12,2,1)="3",MID($D12,2,1)="4"),BF12*((BD12*BB12)^BG12),BO12*((BD12*BB12)^BP12)) ->  | BI12: =BH12*BA12/$AK12 -> 
A13: = | S13: 0 | T13: 0 | U13: 0 | V13: 0 | X13: 0 | Y13: 0 | AJ13: 9.81 | AL13: 9.385087702 | AM13: 0.003539383402 | AN13: 1.4716e-05 | AO13: 0.02433 | AP13: 0.72 | AQ13: 18.7701754 | AR13: =$AJ13*AM13*AQ13*($AK13^3)/(AN13^2) ->  | AX13: 9.385087702 | AY13: 0.003539383402 | AZ13: 1.4716e-05 | BA13: 0.02433 | BB13: 0.72 | BC13: 18.7701754
A14: = | S14: 0 | T14: 0 | U14: 0 | V14: 0 | X14: 0 | Y14: 0 | AJ14: 9.81 | AL14: 9.385087702 | AM14: 0.003539383402 | AN14: 1.4716e-05 | AO14: 0.02433 | AP14: 0.72 | AQ14: 18.7701754 | AX14: 9.385087702 | AY14: 0.003539383402 | AZ14: 1.4716e-05 | BA14: 0.02433 | BB14: 0.72 | BC14: 18.7701754
A15: = | S15: 0 | T15: 0 | U15: 0 | V15: 0 | X15: 0 | Y15: 0 | AJ15: 9.81 | AL15: 9.385087702 | AM15: 0.003539383402 | AN15: 1.4716e-05 | AO15: 0.02433 | AP15: 0.72 | AQ15: 18.7701754 | AX15: 9.385087702 | AY15: 0.003539383402 | AZ15: 1.4716e-05 | BA15: 0.02433 | BB15: 0.72 | BC15: 18.7701754
A16: = | S16: 0 | T16: 0 | U16: 0 | V16: 0 | X16: 0 | Y16: 0 | AJ16: 9.81 | AL16: 9.385087702 | AM16: 0.003539383402 | AN16: 1.4716e-05 | AO16: 0.02433 | AP16: 0.72 | AQ16: 18.7701754 | AX16: 9.385087702 | AY16: 0.003539383402 | AZ16: 1.4716e-05 | BA16: 0.02433 | BB16: 0.72 | BC16: 18.7701754
A17: = | S17: 0 | T17: 0 | U17: 0 | V17: 0 | X17: 0 | Y17: 0 | AJ17: 9.81 | AL17: 9.385087702 | AM17: 0.003539383402 | AN17: 1.4716e-05 | AO17: 0.02433 | AP17: 0.72 | AQ17: 18.7701754 | AX17: 9.385087702 | AY17: 0.003539383402 | AZ17: 1.4716e-05 | BA17: 0.02433 | BB17: 0.72 | BC17: 18.7701754
A18: = | S18: 0 | T18: 0 | U18: 0 | V18: 0 | X18: 0 | Y18: 0 | AJ18: 9.81 | AL18: 9.385087702 | AM18: 0.003539383402 | AN18: 1.4716e-05 | AO18: 0.02433 | AP18: 0.72 | AQ18: 18.7701754 | AX18: 9.385087702 | AY18: 0.003539383402 | AZ18: 1.4716e-05 | BA18: 0.02433 | BB18: 0.72 | BC18: 18.7701754
A19: = | S19: 0 | T19: 0 | U19: 0 | V19: 0 | X19: 0 | Y19: 0 | AJ19: 9.81 | AL19: 9.385087702 | AM19: 0.003539383402 | AN19: 1.4716e-05 | AO19: 0.02433 | AP19: 0.72 | AQ19: 18.7701754 | AX19: 9.385087702 | AY19: 0.003539383402 | AZ19: 1.4716e-05 | BA19: 0.02433 | BB19: 0.72 | BC19: 18.7701754
A20: = | S20: 0 | T20: 0 | U20: 0 | V20: 0 | X20: 0 | Y20: 0 | AJ20: 9.81 | AL20: 9.385087702 | AM20: 0.003539383402 | AN20: 1.4716e-05 | AO20: 0.02433 | AP20: 0.72 | AQ20: 18.7701754 | AX20: 9.385087702 | AY20: 0.003539383402 | AZ20: 1.4716e-05 | BA20: 0.02433 | BB20: 0.72 | BC20: 18.7701754
A21: = | S21: 0 | T21: 0 | U21: 0 | V21: 0 | X21: 0 | Y21: 0 | AJ21: 9.81 | AL21: 9.385087702 | AM21: 0.003539383402 | AN21: 1.4716e-05 | AO21: 0.02433 | AP21: 0.72 | AQ21: 18.7701754 | AX21: 9.385087702 | AY21: 0.003539383402 | AZ21: 1.4716e-05 | BA21: 0.02433 | BB21: 0.72 | BC21: 18.7701754
A22: = | S22: 0 | T22: 0 | U22: 0 | V22: 0 | X22: 0 | Y22: 0 | AJ22: 9.81 | AL22: 9.385087702 | AM22: 0.003539383402 | AN22: 1.4716e-05 | AO22: 0.02433 | AP22: 0.72 | AQ22: 18.7701754 | AX22: 9.385087702 | AY22: 0.003539383402 | AZ22: 1.4716e-05 | BA22: 0.02433 | BB22: 0.72 | BC22: 18.7701754
A23: = | S23: 0 | T23: 0 | U23: 0 | V23: 0 | X23: 0 | Y23: 0 | AJ23: 9.81 | AL23: 9.385087702 | AM23: 0.003539383402 | AN23: 1.4716e-05 | AO23: 0.02433 | AP23: 0.72 | AQ23: 18.7701754 | AX23: 9.385087702 | AY23: 0.003539383402 | AZ23: 1.4716e-05 | BA23: 0.02433 | BB23: 0.72 | BC23: 18.7701754
A24: = | S24: 0 | T24: 0 | U24: 0 | V24: 0 | X24: 0 | Y24: 0 | AJ24: 9.81 | AL24: 9.385087702 | AM24: 0.003539383402 | AN24: 1.4716e-05 | AO24: 0.02433 | AP24: 0.72 | AQ24: 18.7701754 | AX24: 9.385087702 | AY24: 0.003539383402 | AZ24: 1.4716e-05 | BA24: 0.02433 | BB24: 0.72 | BC24: 18.7701754
A25: = | S25: 0 | T25: 0 | U25: 0 | V25: 0 | X25: 0 | Y25: 0 | AJ25: 9.81 | AL25: 9.385087702 | AM25: 0.003539383402 | AN25: 1.4716e-05 | AO25: 0.02433 | AP25: 0.72 | AQ25: 18.7701754 | AX25: 9.385087702 | AY25: 0.003539383402 | AZ25: 1.4716e-05 | BA25: 0.02433 | BB25: 0.72 | BC25: 18.7701754
A26: = | S26: 0 | T26: 0 | U26: 0 | V26: 0 | X26: 0 | Y26: 0 | AJ26: 9.81 | AL26: 9.385087702 | AM26: 0.003539383402 | AN26: 1.4716e-05 | AO26: 0.02433 | AP26: 0.72 | AQ26: 18.7701754 | AX26: 9.385087702 | AY26: 0.003539383402 | AZ26: 1.4716e-05 | BA26: 0.02433 | BB26: 0.72 | BC26: 18.7701754
A27: = | S27: 0 | T27: 0 | U27: 0 | V27: 0 | X27: 0 | Y27: 0 | AJ27: 9.81 | AL27: 9.385087702 | AM27: 0.003539383402 | AN27: 1.4716e-05 | AO27: 0.02433 | AP27: 0.72 | AQ27: 18.7701754 | AX27: 9.385087702 | AY27: 0.003539383402 | AZ27: 1.4716e-05 | BA27: 0.02433 | BB27: 0.72 | BC27: 18.7701754
A28: = | S28: 0 | T28: 0 | U28: 0 | V28: 0 | X28: 0 | Y28: 0 | AJ28: 9.81 | AL28: 9.385087702 | AM28: 0.003539383402 | AN28: 1.4716e-05 | AO28: 0.02433 | AP28: 0.72 | AQ28: 18.7701754 | AS28: =IF(AR28*AP28>2*10^7,4,IF(AR28*AP28>5*10^2,3,IF(AR28*AP28>10^-3,2,1))) ->  | AX28: 9.385087702 | AY28: 0.003539383402 | AZ28: 1.4716e-05 | BA28: 0.02433 | BB28: 0.72 | BC28: 18.7701754
A29: =

Sheet Data_fi
C1: 1 | D1: 2 | E1: 3 | F1: 4 | G1: 5 | H1: 6 | I1: 7 | J1: 8 | K1: 9 | L1: 10 | M1: 11 | N1: 12 | O1: 13 | P1: 14 | Q1: 15 | R1: 16 | S1: 17 | T1: 18 | U1: 19 | V1: 20 | W1: 21 | X1: 22 | Y1: 23 | Z1: 24 | AA1: 25 | AB1: 26 | AC1: 27 | AD1: 28 | AE1: 29 | AF1: 30 | AG1: 31 | AH1: 32 | AI1: 33 | AJ1: 34 | AK1: 35 | AL1: 36 | AM1: 37 | AN1: 38 | AO1: 39 | AP1: 40
A2: index | B2: Sp [m2] | C2: =B3 -> 33.96 | D2: =B4 -> 1.8 | E2: =B5 -> 52.895 | F2: =B6 -> 4.176 | G2: =B7 -> 6.177 | H2: =B8 -> 82.224 | I2: =B9 -> 121.623 | J2: =B10 -> 32.89 | K2: =B11 -> 2 | L2: =B12 -> 2 | M2: =B13 -> 40.765 | N2: =B14 -> 2 | O2: =B15 -> 9 | P2: =B16 -> 168.905 | Q2: =B17 -> 9 | R2: =B18 -> 36.295 | S2: =B19 -> 536.4 | T2: 446.85 | U2: =B21 -> 89.55 | V2: =B22 -> 536.4 | W2: =B23 -> 89.55 | X2: =B24 -> 14.155 | Y2: =B25 -> 1.653 | Z2: =B26 -> 32.547 | AA2: =B27 -> 14.155 | AB2: =B28 -> 28.405 | AC2: =B29 -> 5.795 | AD2: =B30 -> 446.85 | AE2: =B31 -> 89.55 | AF2: =B32 -> 33.6 | AG2: =B33 -> 33.6 | AH2: =B34 -> = | AI2: =B35 -> = | AJ2: =B36 -> = | AK2: =B37 -> = | AL2: =B38 -> = | AM2: =B39 -> = | AN2: =B40 -> = | AO2: =B41 -> = | AP2: =B42 -> =
A3: 1 | B3: 33.96 | C3: 0 | D3: 0 | E3: 0 | F3: 0.03058478484 | G3: 0.006112662912 | H3: 0.05015798211 | I3: 0.05454964272 | J3: 0.007784909497 | K3: 0.007956324429 | L3: 0.00774515259 | M3: 0.005490191713 | N3: 0.008037989492 | O3: 0.007936148648 | P3: 0.003757574238 | Q3: 0.003757545379 | R3: 0.01430256823 | S3: 0.02580338502 | T3: 0.0487546253 | U3: 0.01029114115 | V3: 0 | W3: 0 | X3: 0 | Y3: 0 | Z3: 0 | AA3: 0 | AB3: 0 | AC3: 0 | AD3: 0 | AE3: 0 | AF3: 0.01977975136 | AG3: 0.01968706752
A4: 2 | B4: 1.8 | C4: =D$3*$B4/$B$3 -> 0 | D4: =$C$3 -> 0 | E4: 0 | F4: 0.002548263539 | G4: 0.002785377578 | H4: 0.0009979935179 | I4: 0.0008506965373 | J4: 0.0004622211422 | K4: 0.0004846183928 | L4: 0.0004702407309 | M4: 0.000457263022 | N4: 0.0004903315702 | O4: 0.0004837453283 | P4: 1.055644946e-05 | Q4: 1.055648757e-05 | R4: 4.018127149e-05 | S4: 0.001699877555 | T4: 0.002975433903 | U4: 0.0007882320707 | V4: 0 | W4: 0 | X4: 0 | Y4: 0 | Z4: 0 | AA4: 0 | AB4: 0 | AC4: 0 | AD4: 0 | AE4: 0 | AF4: 6.733584712e-05 | AG4: 6.745636054e-05
A5: 3 | B5: 52.895 | C5: =E$3*$B5/$B$3 -> 0 | D5: =E$4*$B5/$B$4 -> 0 | E5: =$C$3 -> 0 | F5: 0.006015576669 | G5: 0.03779985423 | H5: 0.03687863169 | I5: 0.07065519732 | J5: 0.01215441039 | K5: 0.01234316456 | L5: 0.01201503618 | M5: 0.01224052973 | N5: 0.0124702658 | O5: 0.01231296928 | P5: 0.009175378351 | Q5: 0.009115873574 | R5: 0.03469827687 | S5: 0.02873696701 | T5: 0.0697845337 | U5: 0.00812913525 | V5: 0 | W5: 0 | X5: 0 | Y5: 0 | Z5: 0 | AA5: 0 | AB5: 0 | AC5: 0 | AD5: 0 | AE5: 0 | AF5: 0.03444896553 | AG5: 0.03430363092
A6: 4 | B6: 4.176 | C6: =F$3*$B6/$B$3 -> 0.003760955874 | D6: =F$4*$B6/$B$4 -> 0.00591197141 | E6: =F$5*$B6/$B$5 -> 0.000474922926 | F6: =$C$3 -> 0 | G6: 0 | H6: 0 | I6: 0 | J6: 1.039529554e-05 | K6: 0.0001434810535 | L6: 0.0002928080755 | M6: 2.137055246e-05 | N6: 0.00042637817 | O6: 0.001231937598 | P6: 0.002456862606 | Q6: 0.0001875209838 | R6: 0.0004987325673 | S6: 0.002618617243 | T6: 6.273110188e-05 | U6: 0.0006535177231 | V6: 0 | W6: 0 | X6: 0 | Y6: 0 | Z6: 0 | AA6: 0 | AB6: 0 | AC6: 0 | AD6: 0 | AE6: 0 | AF6: 0.00024382876 | AG6: 0.000103632425
A7: 5 | B7: 6.177 | C7: =G$3*$B7/$B$3 -> 0.001111835065 | D7: =G$4*$B7/$B$4 -> 0.009558487388 | E7: =G$5*$B7/$B$5 -> 0.004414211166 | F7: =G$6*$B7/$B$6 -> 0 | G7: =$C$3 -> 0 | H7: 0 | I7: 0 | J7: 2.273914195e-05 | K7: 0.0003094876675 | L7: 0.0006316899987 | M7: 4.674052105e-05 | N7: 0.0009201006755 | O7: 0.0005684625989 | P7: 0.003346796772 | Q7: 0.0001945589552 | R7: 0.0007765380828 | S7: 0.002460860316 | T7: 0.0001372515124 | U7: 0.000457137113 | V7: 0 | W7: 0 | X7: 0 | Y7: 0 | Z7: 0 | AA7: 0 | AB7: 0 | AC7: 0 | AD7: 0 | AE7: 0 | AF7: 0.0004436967575 | AG7: 0.0001017062717
A8: 6 | B8: 82.224 | C8: =H$3*$B8/$B$3 -> 0.1214425772 | D8: =H$4*$B8/$B$4 -> 0.0455883439 | E8: =H$5*$B8/$B$5 -> 0.05732694229 | F8: =H$6*$B8/$B$6 -> 0 | G8: =H$7*$B8/$B$7 -> 0 | H8: =$C$3 -> 0 | I8: 0 | J8: 0.1069752124 | K8: 0.003851348045 | L8: 0.001903209922 | M8: 0.04083602877 | N8: 0.001227889293 | O8: 0.003701553436 | P8: 0.04764427371 | Q8: 0.002545678558 | R8: 0.00945644621 | S8: 0.06753371276 | T8: 0.02431975171 | U8: 0.05273489608 | V8: 0 | W8: 0 | X8: 0 | Y8: 0 | Z8: 0 | AA8: 0 | AB8: 0 | AC8: 0 | AD8: 0 | AE8: 0 | AF8: 0.05366949464 | AG8: 0.06984749706
A9: 7 | B9: 121.623 | C9: =I$3*$B9/$B$3 -> 0.1953619316 | D9: =I$4*$B9/$B$4 -> 0.0574801472 | E9: =I$5*$B9/$B$5 -> 0.1624595342 | F9: =I$6*$B9/$B$6 -> 0 | G9: =I$7*$B9/$B$7 -> 0 | H9: =I$8*$B9/$B$8 -> 0 | I9: =$C$3 -> 0 | J9: 0.1650399539 | K9: 0.001843764005 | L9: 0.00145150156 | M9: 0.06163485591 | N9: 0.001071766543 | O9: 0.00344275694 | P9: 0.06734536057 | Q9: 0.003876908259 | R9: 0.01456762225 | S9: 0.0736496848 | T9: 0.05321001231 | U9: 0.0439039867 | V9: 0 | W9: 0 | X9: 0 | Y9: 0 | Z9: 0 | AA9: 0 | AB9: 0 | AC9: 0 | AD9: 0 | AE9: 0 | AF9: 0.1125673498 | AG9: 0.07023368762
A10: 8 | B10: 32.89 | C10: =J$3*$B10/$B$3 -> 0.007539625246 | D10: =J$4*$B10/$B$4 -> 0.008445807426 | E10: =J$5*$B10/$B$5 -> 0.007557586874 | F10: =J$6*$B10/$B$6 -> 8.187290959e-05 | G10: =J$7*$B10/$B$7 -> 0.0001210766357 | H10: =J$8*$B10/$B$8 -> 0.04279060539 | I10: =J$9*$B10/$B$9 -> 0.04463106553 | J10: =$C$3 -> 0 | K10: 0 | L10: 0 | M10: 0 | N10: 0 | O10: 0 | P10: 0.04874538379 | Q10: 0.002876341221 | R10: 0.00978968021 | S10: 0.01987328469 | T10: 0.003687452269 | U10: 0.01928639404 | V10: 0 | W10: 0 | X10: 0 | Y10: 0 | Z10: 0 | AA10: 0 | AB10: 0 | AC10: 0 | AD10: 0 | AE10: 0 | AF10: 0.03089031385 | AG10: 0.007232007469
A11: 9 | B11: 2 | C11: =K$3*$B11/$B$3 -> 0.0004685703433 | D11: =K$4*$B11/$B$4 -> 0.0005384648808 | E11: =K$5*$B11/$B$5 -> 0.0004667043979 | F11: =K$6*$B11/$B$6 -> 6.871697963e-05 | G11: =K$7*$B11/$B$7 -> 0.0001002064651 | H11: =K$8*$B11/$B$8 -> 9.367941343e-05 | I11: =K$9*$B11/$B$9 -> 3.031933114e-05 | J11: =K$10*$B11/$B$10 -> 0 | K11: =$C$3 -> 0 | L11: 0 | M11: 0 | N11: 0 | O11: 0 | P11: 0.002785438455 | Q11: 0.0001784533068 | R11: 0.0005786375013 | S11: 0.001582895159 | T11: 1.378964537e-05 | U11: 0.001675192963 | V11: 0 | W11: 0 | X11: 0 | Y11: 0 | Z11: 0 | AA11: 0 | AB11: 0 | AC11: 0 | AD11: 0 | AE11: 0 | AF11: 0.000105604775 | AG11: 3.928213718e-05
A12: 10 | B12: 2 | C12: =L$3*$B12/$B$3 -> 0.0004561338393 | D12: =L$4*$B12/$B$4 -> 0.000522489701 | E12: =L$5*$B12/$B$5 -> 0.0004542976152 | F12: =L$6*$B12/$B$6 -> 0.0001402337526 | G12: =L$7*$B12/$B$7 -> 0.0002045297066 | H12: =L$8*$B12/$B$8 -> 4.629329447e-05 | I12: =L$9*$B12/$B$9 -> 2.386886625e-05 | J12: =L$10*$B12/$B$10 -> 0 | K12: =L$11*$B12/$B$11 -> 0 | L12: =$C$3 -> 0 | M12: 0 | N12: 0 | O12: 0 | P12: 0.002778645685 | Q12: 0.0001484530682 | R12: 0.0005654337501 | S12: 0.001425865035 | T12: 1.398785097e-05 | U12: 0.0009791026737 | V12: 0 | W12: 0 | X12: 0 | Y12: 0 | Z12: 0 | AA12: 0 | AB12: 0 | AC12: 0 | AD12: 0 | AE12: 0 | AF12: 9.756008107e-05 | AG12: 2.398847632e-05
A13: 11 | B13: 40.765 | C13: =M$3*$B13/$B$3 -> 0.006590331719 | D13: =M$4*$B13/$B$4 -> 0.01035573727 | E13: =M$5*$B13/$B$5 -> 0.009433504008 | F13: =M$6*$B13/$B$6 -> 0.0002086136424 | G13: =M$7*$B13/$B$7 -> 0.000308463225 | H13: =M$8*$B13/$B$8 -> 0.02024567903 | I13: =M$9*$B13/$B$9 -> 0.02065846839 | J13: =M$10*$B13/$B$10 -> 0 | K13: =M$11*$B13/$B$11 -> 0 | L13: =M$12*$B13/$B$12 -> 0 | M13: =$C$3 -> 0 | N13: 0 | O13: 0 | P13: 0.0548768314 | Q13: 0.002812345356 | R13: 0.01546772484 | S13: 0.0246230859 | T13: 0.00555349375 | U13: 0.04310762888 | V13: 0 | W13: 0 | X13: 0 | Y13: 0 | Z13: 0 | AA13: 0 | AB13: 0 | AC13: 0 | AD13: 0 | AE13: 0 | AF13: 0.02068593422 | AG13: 0.05245235199
A14: 12 | B14: 2 | C14: =N$3*$B14/$B$3 -> 0.0004733798287 | D14: =N$4*$B14/$B$4 -> 0.0005448128558 | E14: =N$5*$B14/$B$5 -> 0.0004715101918 | F14: =N$6*$B14/$B$6 -> 0.0002042041044 | G14: =N$7*$B14/$B$7 -> 0.0002979118263 | H14: =N$8*$B14/$B$8 -> 2.986693163e-05 | I14: =N$9*$B14/$B$9 -> 1.762440562e-05 | J14: =N$10*$B14/$B$10 -> 0 | K14: =N$11*$B14/$B$11 -> 0 | L14: =N$12*$B14/$B$12 -> 0 | M14: =N$13*$B14/$B$13 -> 0 | N14: =$C$3 -> 0 | O14: 0 | P14: 0.002651355472 | Q14: 0.0001415436825 | R14: 0.0005786453375 | S14: 0.001617151905 | T14: 1.456367097e-05 | U14: 0.002227471125 | V14: 0 | W14: 0 | X14: 0 | Y14: 0 | Z14: 0 | AA14: 0 | AB14: 0 | AC14: 0 | AD14: 0 | AE14: 0 | AF14: 7.475961203e-05 | AG14: 6.634116172e-05
A15: 13 | B15: 9 | C15: =O$3*$B15/$B$3 -> 0.002103219606 | D15: =O$4*$B15/$B$4 -> 0.002418726641 | E15: =O$5*$B15/$B$5 -> 0.002095032111 | F15: =O$6*$B15/$B$6 -> 0.002655037927 | G15: =O$7*$B15/$B$7 -> 0.0008282602218 | H15: =O$8*$B15/$B$8 -> 0.000405161278 | I15: =O$9*$B15/$B$9 -> 0.0002547611262 | J15: =O$10*$B15/$B$10 -> 0 | K15: =O$11*$B15/$B$11 -> 0 | L15: =O$12*$B15/$B$12 -> 0 | M15: =O$13*$B15/$B$13 -> 0 | N15: =O$14*$B15/$B$14 -> 0 | O15: =$C$3 -> 0 | P15: 0.0114865138 | Q15: 0.0006453787881 | R15: 0.002598454519 | S15: 0.007117946904 | T15: 0.0002797541837 | U15: 0.007523439415 | V15: 0 | W15: 0 | X15: 0 | Y15: 0 | Z15: 0 | AA15: 0 | AB15: 0 | AC15: 0 | AD15: 0 | AE15: 0 | AF15: 0.0007851367609 | AG15: 0.002119365105
A16: 14 | B16: 168.905 | C16: =P$3*$B16/$B$3 -> 0.01868884207 | D16: =P$4*$B16/$B$4 -> 0.0009905761642 | E16: =P$5*$B16/$B$5 -> 0.02929893715 | F16: =P$6*$B16/$B$6 -> 0.09937173815 | G16: =P$7*$B16/$B$7 -> 0.09151541343 | H16: =P$8*$B16/$B$8 -> 0.09787113313 | I16: =P$9*$B16/$B$9 -> 0.09352645575 | J16: =P$10*$B16/$B$10 -> 0.2503295545 | K16: =P$11*$B16/$B$11 -> 0.2352372411 | L16: =P$12*$B16/$B$12 -> 0.2346635747 | M16: =P$13*$B16/$B$13 -> 0.2273757196 | N16: =P$14*$B16/$B$14 -> 0.223913598 | O16: =P$15*$B16/$B$15 -> 0.2155699571 | P16: =$C$3 -> 0 | Q16: 0 | R16: 0 | S16: 0.1170347145 | T16: 0.1026235297 | U16: 0.08599589079 | V16: 0 | W16: 0 | X16: 0 | Y16: 0 | Z16: 0 | AA16: 0 | AB16: 0 | AC16: 0 | AD16: 0 | AE16: 0 | AF16: 0.02235398805 | AG16: 0.02636057623
A17: 15 | B17: 9 | C17: =Q$3*$B17/$B$3 -> 0.0009958159131 | D17: =Q$4*$B17/$B$4 -> 5.278243784e-05 | E17: =Q$5*$B17/$B$5 -> 0.001551051369 | F17: =Q$6*$B17/$B$6 -> 0.0004041400512 | G17: =Q$7*$B17/$B$7 -> 0.0002834758939 | H17: =Q$8*$B17/$B$8 -> 0.0002786425742 | I17: =Q$9*$B17/$B$9 -> 0.0002868879598 | J17: =Q$10*$B17/$B$10 -> 0.0007870802976 | K17: =Q$11*$B17/$B$11 -> 0.0008030398807 | L17: =Q$12*$B17/$B$12 -> 0.0006680388071 | M17: =Q$13*$B17/$B$13 -> 0.0006209029365 | N17: =Q$14*$B17/$B$14 -> 0.0006369465712 | O17: =Q$15*$B17/$B$15 -> 0.0006453787881 | P17: =Q$16*$B17/$B$16 -> 0 | Q17: =$C$3 -> 0 | R17: 0 | S17: 0.007471265828 | T17: 0.000291371423 | U17: 0.007150112103 | V17: 0 | W17: 0 | X17: 0 | Y17: 0 | Z17: 0 | AA17: 0 | AB17: 0 | AC17: 0 | AD17: 0 | AE17: 0 | AF17: 0.0009607831641 | AG17: 0.003082072637
A18: 16 | B18: 36.295 | C18: =R$3*$B18/$B$3 -> 0.01528597509 | D18: =R$4*$B18/$B$4 -> 0.0008102106937 | E18: =R$5*$B18/$B$5 -> 0.02380894147 | F18: =R$6*$B18/$B$6 -> 0.004334650031 | G18: =R$7*$B18/$B$7 -> 0.004562805523 | H18: =R$8*$B18/$B$8 -> 0.004174227904 | I18: =R$9*$B18/$B$9 -> 0.004347301494 | J18: =R$10*$B18/$B$10 -> 0.01080317553 | K18: =R$11*$B18/$B$11 -> 0.01050082406 | L18: =R$12*$B18/$B$12 -> 0.01026120898 | M18: =R$13*$B18/$B$13 -> 0.01377164413 | N18: =R$14*$B18/$B$14 -> 0.01050096626 | O18: =R$15*$B18/$B$15 -> 0.01047898964 | P18: =R$16*$B18/$B$16 -> 0 | Q18: =R$17*$B18/$B$17 -> 0 | R18: =$C$3 -> 0 | S18: 0.02175689481 | T18: 0.004738659874 | U18: 0.006629408736 | V18: 0 | W18: 0 | X18: 0 | Y18: 0 | Z18: 0 | AA18: 0 | AB18: 0 | AC18: 0 | AD18: 0 | AE18: 0 | AF18: 0.006694115037 | AG18: 0.02838374793
A19: 17 | B19: 536.4 | C19: =S$3*$B19/$B$3 -> 0.4075658341 | D19: =S$4*$B19/$B$4 -> 0.5065635113 | E19: =S$5*$B19/$B$5 -> 0.2914171302 | F19: =S$6*$B19/$B$6 -> 0.33635687 | G19: =S$7*$B19/$B$7 -> 0.2136968551 | H19: =S$8*$B19/$B$8 -> 0.4405658144 | I19: =S$9*$B19/$B$9 -> 0.3248208885 | J19: =S$10*$B19/$B$10 -> 0.3241115812 | K19: =S$11*$B19/$B$11 -> 0.4245324816 | L19: =S$12*$B19/$B$12 -> 0.3824170023 | M19: =S$13*$B19/$B$13 -> 0.3239990991 | N19: =S$14*$B19/$B$14 -> 0.4337201409 | O19: =S$15*$B19/$B$15 -> 0.4242296355 | P19: =S$16*$B19/$B$16 -> 0.3716729573 | Q19: =S$17*$B19/$B$17 -> 0.4452874434 | R19: =S$18*$B19/$B$18 -> 0.3215428676 | S19: =$C$3 -> 0 | T19: 0.4743065059 | U19: 0.7084671854 | V19: 0 | W19: 0 | X19: 0 | Y19: 0 | Z19: 0 | AA19: 0 | AB19: 0 | AC19: 0 | AD19: 0 | AE19: 0 | AF19: 0.6530122642 | AG19: 0.6495824899
A20: 18 | B20: 446.85 | C20: =T$3*$B20/$B$3 -> 0.6415195617 | D20: =T$4*$B20/$B$4 -> 0.7386514665 | E20: =T$5*$B20/$B$5 -> 0.5895305584 | F20: =T$6*$B20/$B$6 -> 0.006712498294 | G20: =T$7*$B20/$B$7 -> 0.009928903727 | H20: =T$8*$B20/$B$8 -> 0.1321667768 | I20: =T$9*$B20/$B$9 -> 0.1954966906 | J20: =T$10*$B20/$B$10 -> 0.05009845079 | K20: =T$11*$B20/$B$11 -> 0.003080951516 | L20: =T$12*$B20/$B$12 -> 0.003125235604 | M20: =T$13*$B20/$B$13 -> 0.06087522831 | N20: =T$14*$B20/$B$14 -> 0.003253888187 | O20: =T$15*$B20/$B$15 -> 0.01388979522 | P20: =T$16*$B20/$B$16 -> 0.2714977309 | Q20: =T$17*$B20/$B$17 -> 0.01446659115 | R20: =T$18*$B20/$B$18 -> 0.05834054731 | S20: =T$19*$B20/$B$19 -> 0.3951227855 | T20: =$C$3 -> 0 | U20: 0 | V20: 0 | W20: 0 | X20: 0 | Y20: 0 | Z20: 0 | AA20: 0 | AB20: 0 | AC20: 0 | AD20: 0 | AE20: 0 | AF20: 0 | AG20: 0
A21: 19 | B21: 89.55 | C21: =U$3*$B21/$B$3 -> 0.02713697555 | D21: =U$4*$B21/$B$4 -> 0.03921454552 | E21: =U$5*$B21/$B$5 -> 0.01376243618 | F21: =U$6*$B21/$B$6 -> 0.01401401152 | G21: =U$7*$B21/$B$7 -> 0.006627267034 | H21: =U$8*$B21/$B$8 -> 0.05743347373 | I21: =U$9*$B21/$B$9 -> 0.03232613905 | J21: =U$10*$B21/$B$10 -> 0.05251129784 | K21: =U$11*$B21/$B$11 -> 0.07500676493 | L21: =U$12*$B21/$B$12 -> 0.04383932222 | M21: =U$13*$B21/$B$13 -> 0.09469614047 | N21: =U$14*$B21/$B$14 -> 0.09973501962 | O21: =U$15*$B21/$B$15 -> 0.07485822217 | P21: =U$16*$B21/$B$16 -> 0.04559327445 | Q21: =U$17*$B21/$B$17 -> 0.07114361543 | R21: =U$18*$B21/$B$18 -> 0.01635662081 | S21: =U$19*$B21/$B$19 -> 0.1182759815 | T21: =U$20*$B21/$B$20 -> 0 | U21: =$C$3 -> 0 | V21: 0 | W21: 0 | X21: 0 | Y21: 0 | Z21: 0 | AA21: 0 | AB21: 0 | AC21: 0 | AD21: 0 | AE21: 0 | AF21: 0 | AG21: 0
A22: 20 | B22: 536.4 | C22: =V$3*$B22/$B$3 -> 0 | D22: =V$4*$B22/$B$4 -> 0 | E22: =V$5*$B22/$B$5 -> 0 | F22: =V$6*$B22/$B$6 -> 0 | G22: =V$7*$B22/$B$7 -> 0 | H22: =V$8*$B22/$B$8 -> 0 | I22: =V$9*$B22/$B$9 -> 0 | J22: =V$10*$B22/$B$10 -> 0 | K22: =V$11*$B22/$B$11 -> 0 | L22: =V$12*$B22/$B$12 -> 0 | M22: =V$13*$B22/$B$13 -> 0 | N22: =V$14*$B22/$B$14 -> 0 | O22: =V$15*$B22/$B$15 -> 0 | P22: =V$16*$B22/$B$16 -> 0 | Q22: =V$17*$B22/$B$17 -> 0 | R22: =V$18*$B22/$B$18 -> 0 | S22: =V$19*$B22/$B$19 -> 0 | T22: =V$20*$B22/$B$20 -> 0 | U22: =V$21*$B22/$B$21 -> 0 | V22: =$C$3 -> 0 | W22: 0 | X22: 0.006429840718 | Y22: 0.0008932903502 | Z22: 0.01362888418 | AA22: 0.03963587233 | AB22: 0.009686048283 | AC22: 0.002653471565 | AD22: 0.7898675529 | AE22: 0.2374514829 | AF22: 0 | AG22: 0
A23: 21 | B23: 89.55 | C23: =W$3*$B23/$B$3 -> 0 | D23: =W$4*$B23/$B$4 -> 0 | E23: =W$5*$B23/$B$5 -> 0 | F23: =W$6*$B23/$B$6 -> 0 | G23: =W$7*$B23/$B$7 -> 0 | H23: =W$8*$B23/$B$8 -> 0 | I23: =W$9*$B23/$B$9 -> 0 | J23: =W$10*$B23/$B$10 -> 0 | K23: =W$11*$B23/$B$11 -> 0 | L23: =W$12*$B23/$B$12 -> 0 | M23: =W$13*$B23/$B$13 -> 0 | N23: =W$14*$B23/$B$14 -> 0 | O23: =W$15*$B23/$B$15 -> 0 | P23: =W$16*$B23/$B$16 -> 0 | Q23: =W$17*$B23/$B$17 -> 0 | R23: =W$18*$B23/$B$18 -> 0 | S23: =W$19*$B23/$B$19 -> 0 | T23: =W$20*$B23/$B$20 -> 0 | U23: =W$21*$B23/$B$21 -> 0 | V23: =W$22*$B23/$B$22 -> 0 | W23: =$C$3 -> 0 | X23: 0.000653392002 | Y23: 3.674319739e-05 | Z23: 0.0009524352445 | AA23: 0.01528252203 | AB23: 0.00120155239 | AC23: 0.0002340492687 | AD23: 0.05255020908 | AE23: 0.7143394436 | AF23: 0 | AG23: 0
A24: 22 | B24: 14.155 | C24: =X$3*$B24/$B$3 -> 0 | D24: =X$4*$B24/$B$4 -> 0 | E24: =X$5*$B24/$B$5 -> 0 | F24: =X$6*$B24/$B$6 -> 0 | G24: =X$7*$B24/$B$7 -> 0 | H24: =X$8*$B24/$B$8 -> 0 | I24: =X$9*$B24/$B$9 -> 0 | J24: =X$10*$B24/$B$10 -> 0 | K24: =X$11*$B24/$B$11 -> 0 | L24: =X$12*$B24/$B$12 -> 0 | M24: =X$13*$B24/$B$13 -> 0 | N24: =X$14*$B24/$B$14 -> 0 | O24: =X$15*$B24/$B$15 -> 0 | P24: =X$16*$B24/$B$16 -> 0 | Q24: =X$17*$B24/$B$17 -> 0 | R24: =X$18*$B24/$B$18 -> 0 | S24: =X$19*$B24/$B$19 -> 0 | T24: =X$20*$B24/$B$20 -> 0 | U24: =X$21*$B24/$B$21 -> 0 | V24: =X$22*$B24/$B$22 -> 0.0001696763523 | W24: =X$23*$B24/$B$23 -> 0.0001032804443 | X24: =$C$3 -> 0 | Y24: 0.0215315338 | Z24: 0.02082294786 | AA24: 0.003295537226 | AB24: 0.009028994277 | AC24: 0.1992945973 | AD24: 0.01137973463 | AE24: 0.0001032804443 | AF24: 0.001045016676 | AG24: 0.001041298963
A25: 23 | B25: 1.653 | C25: =Y$3*$B25/$B$3 -> 0 | D25: =Y$4*$B25/$B$4 -> 0 | E25: =Y$5*$B25/$B$5 -> 0 | F25: =Y$6*$B25/$B$6 -> 0 | G25: =Y$7*$B25/$B$7 -> 0 | H25: =Y$8*$B25/$B$8 -> 0 | I25: =Y$9*$B25/$B$9 -> 0 | J25: =Y$10*$B25/$B$10 -> 0 | K25: =Y$11*$B25/$B$11 -> 0 | L25: =Y$12*$B25/$B$12 -> 0 | M25: =Y$13*$B25/$B$13 -> 0 | N25: =Y$14*$B25/$B$14 -> 0 | O25: =Y$15*$B25/$B$15 -> 0 | P25: =Y$16*$B25/$B$16 -> 0 | Q25: =Y$17*$B25/$B$17 -> 0 | R25: =Y$18*$B25/$B$18 -> 0 | S25: =Y$19*$B25/$B$19 -> 0 | T25: =Y$20*$B25/$B$20 -> 0 | U25: =Y$21*$B25/$B$21 -> 0 | V25: =Y$22*$B25/$B$22 -> 2.752813104e-06 | W25: =Y$23*$B25/$B$23 -> 6.782412651e-07 | X25: =Y$24*$B25/$B$24 -> 0.002514420725 | Y25: =$C$3 -> 0 | Z25: 0 | AA25: 9.180874322e-06 | AB25: 0.0005193012242 | AC25: 0.002211999578 | AD25: 4.41412653e-06 | AE25: 6.782412651e-07 | AF25: 1.262679978e-05 | AG25: 2.130116476e-06
A26: 24 | B26: 32.547 | C26: =Z$3*$B26/$B$3 -> 0 | D26: =Z$4*$B26/$B$4 -> 0 | E26: =Z$5*$B26/$B$5 -> 0 | F26: =Z$6*$B26/$B$6 -> 0 | G26: =Z$7*$B26/$B$7 -> 0 | H26: =Z$8*$B26/$B$8 -> 0 | I26: =Z$9*$B26/$B$9 -> 0 | J26: =Z$10*$B26/$B$10 -> 0 | K26: =Z$11*$B26/$B$11 -> 0 | L26: =Z$12*$B26/$B$12 -> 0 | M26: =Z$13*$B26/$B$13 -> 0 | N26: =Z$14*$B26/$B$14 -> 0 | O26: =Z$15*$B26/$B$15 -> 0 | P26: =Z$16*$B26/$B$16 -> 0 | Q26: =Z$17*$B26/$B$17 -> 0 | R26: =Z$18*$B26/$B$18 -> 0 | S26: =Z$19*$B26/$B$19 -> 0 | T26: =Z$20*$B26/$B$20 -> 0 | U26: =Z$21*$B26/$B$21 -> 0 | V26: =Z$22*$B26/$B$22 -> 0.0008269561771 | W26: =Z$23*$B26/$B$23 -> 0.000346163148 | X26: =Z$24*$B26/$B$24 -> 0.04787880494 | Y26: =Z$25*$B26/$B$25 -> 0 | Z26: =$C$3 -> 0 | AA26: 0.09676287559 | AB26: 0.02429381513 | AC26: 0.01714344104 | AD26: 0.002026108397 | AE26: 0.000346163148 | AF26: 0.01321913587 | AG26: 0.001447118703
A27: 25 | B27: 14.155 | C27: =AA$3*$B27/$B$3 -> 0 | D27: =AA$4*$B27/$B$4 -> 0 | E27: =AA$5*$B27/$B$5 -> 0 | F27: =AA$6*$B27/$B$6 -> 0 | G27: =AA$7*$B27/$B$7 -> 0 | H27: =AA$8*$B27/$B$8 -> 0 | I27: =AA$9*$B27/$B$9 -> 0 | J27: =AA$10*$B27/$B$10 -> 0 | K27: =AA$11*$B27/$B$11 -> 0 | L27: =AA$12*$B27/$B$12 -> 0 | M27: =AA$13*$B27/$B$13 -> 0 | N27: =AA$14*$B27/$B$14 -> 0 | O27: =AA$15*$B27/$B$15 -> 0 | P27: =AA$16*$B27/$B$16 -> 0 | Q27: =AA$17*$B27/$B$17 -> 0 | R27: =AA$18*$B27/$B$18 -> 0 | S27: =AA$19*$B27/$B$19 -> 0 | T27: =AA$20*$B27/$B$20 -> 0 | U27: =AA$21*$B27/$B$21 -> 0 | V27: =AA$22*$B27/$B$22 -> 0.001045946631 | W27: =AA$23*$B27/$B$23 -> 0.002415679502 | X27: =AA$24*$B27/$B$24 -> 0.003295537226 | Y27: =AA$25*$B27/$B$25 -> 7.861783184e-05 | Z27: =AA$26*$B27/$B$26 -> 0.04208309534 | AA27: =$C$3 -> 0 | AB27: 0.04203156099 | AC27: 0.0013446328 | AD27: 0.0003185488092 | AE27: 0.002415679502 | AF27: 0.001045016676 | AG27: 0.001154090639
A28: 26 | B28: 28.405 | C28: =AB$3*$B28/$B$3 -> 0 | D28: =AB$4*$B28/$B$4 -> 0 | E28: =AB$5*$B28/$B$5 -> 0 | F28: =AB$6*$B28/$B$6 -> 0 | G28: =AB$7*$B28/$B$7 -> 0 | H28: =AB$8*$B28/$B$8 -> 0 | I28: =AB$9*$B28/$B$9 -> 0 | J28: =AB$10*$B28/$B$10 -> 0 | K28: =AB$11*$B28/$B$11 -> 0 | L28: =AB$12*$B28/$B$12 -> 0 | M28: =AB$13*$B28/$B$13 -> 0 | N28: =AB$14*$B28/$B$14 -> 0 | O28: =AB$15*$B28/$B$15 -> 0 | P28: =AB$16*$B28/$B$16 -> 0 | Q28: =AB$17*$B28/$B$17 -> 0 | R28: =AB$18*$B28/$B$18 -> 0 | S28: =AB$19*$B28/$B$19 -> 0 | T28: =AB$20*$B28/$B$20 -> 0 | U28: =AB$21*$B28/$B$21 -> 0 | V28: =AB$22*$B28/$B$22 -> 0.0005129235673 | W28: =AB$23*$B28/$B$23 -> 0.0003811289295 | X28: =AB$24*$B28/$B$24 -> 0.01811858583 | Y28: =AB$25*$B28/$B$25 -> 0.008923624485 | Z28: =AB$26*$B28/$B$26 -> 0.02120213288 | AA28: =AB$27*$B28/$B$27 -> 0.084345213 | AB28: =$C$3 -> 0 | AC28: 0 | AD28: 0.001522104034 | AE28: 0.0003811289295 | AF28: 0.001161188574 | AG28: 0.01089307527
A29: 27 | B29: 5.795 | C29: =AC$3*$B29/$B$3 -> 0 | D29: =AC$4*$B29/$B$4 -> 0 | E29: =AC$5*$B29/$B$5 -> 0 | F29: =AC$6*$B29/$B$6 -> 0 | G29: =AC$7*$B29/$B$7 -> 0 | H29: =AC$8*$B29/$B$8 -> 0 | I29: =AC$9*$B29/$B$9 -> 0 | J29: =AC$10*$B29/$B$10 -> 0 | K29: =AC$11*$B29/$B$11 -> 0 | L29: =AC$12*$B29/$B$12 -> 0 | M29: =AC$13*$B29/$B$13 -> 0 | N29: =AC$14*$B29/$B$14 -> 0 | O29: =AC$15*$B29/$B$15 -> 0 | P29: =AC$16*$B29/$B$16 -> 0 | Q29: =AC$17*$B29/$B$17 -> 0 | R29: =AC$18*$B29/$B$18 -> 0 | S29: =AC$19*$B29/$B$19 -> 0 | T29: =AC$20*$B29/$B$20 -> 0 | U29: =AC$21*$B29/$B$21 -> 0 | V29: =AC$22*$B29/$B$22 -> 2.866679292e-05 | W29: =AC$23*$B29/$B$23 -> 1.514590187e-05 | X29: =AC$24*$B29/$B$24 -> 0.08159040561 | Y29: =AC$25*$B29/$B$25 -> 0.007754711165 | Z29: =AC$26*$B29/$B$26 -> 0.003052393181 | AA29: =AC$27*$B29/$B$27 -> 0.0005504872535 | AB29: =AC$28*$B29/$B$28 -> 0 | AC29: =$C$3 -> 0 | AD29: 5.990297211e-05 | AE29: 1.514590187e-05 | AF29: 3.322406268e-05 | AG29: 0.000305791171
A30: 28 | B30: 446.85 | C30: =AD$3*$B30/$B$3 -> 0 | D30: =AD$4*$B30/$B$4 -> 0 | E30: =AD$5*$B30/$B$5 -> 0 | F30: =AD$6*$B30/$B$6 -> 0 | G30: =AD$7*$B30/$B$7 -> 0 | H30: =AD$8*$B30/$B$8 -> 0 | I30: =AD$9*$B30/$B$9 -> 0 | J30: =AD$10*$B30/$B$10 -> 0 | K30: =AD$11*$B30/$B$11 -> 0 | L30: =AD$12*$B30/$B$12 -> 0 | M30: =AD$13*$B30/$B$13 -> 0 | N30: =AD$14*$B30/$B$14 -> 0 | O30: =AD$15*$B30/$B$15 -> 0 | P30: =AD$16*$B30/$B$16 -> 0 | Q30: =AD$17*$B30/$B$17 -> 0 | R30: =AD$18*$B30/$B$18 -> 0 | S30: =AD$19*$B30/$B$19 -> 0 | T30: =AD$20*$B30/$B$20 -> 0 | U30: =AD$21*$B30/$B$21 -> 0 | V30: =AD$22*$B30/$B$22 -> 0.6580020805 | W30: =AD$23*$B30/$B$23 -> 0.2622229026 | X30: =AD$24*$B30/$B$24 -> 0.3592394504 | Y30: =AD$25*$B30/$B$25 -> 0.001193256165 | Z30: =AD$26*$B30/$B$26 -> 0.02781720395 | AA30: =AD$27*$B30/$B$27 -> 0.01005606043 | AB30: =AD$28*$B30/$B$28 -> 0.02394480505 | AC30: =AD$29*$B30/$B$29 -> 0.004619092854 | AD30: =$C$3 -> 0 | AE30: 0 | AF30: 0.9461284016 | AG30: 0.9459545239
A31: 29 | B31: 89.55 | C31: =AE$3*$B31/$B$3 -> 0 | D31: =AE$4*$B31/$B$4 -> 0 | E31: =AE$5*$B31/$B$5 -> 0 | F31: =AE$6*$B31/$B$6 -> 0 | G31: =AE$7*$B31/$B$7 -> 0 | H31: =AE$8*$B31/$B$8 -> 0 | I31: =AE$9*$B31/$B$9 -> 0 | J31: =AE$10*$B31/$B$10 -> 0 | K31: =AE$11*$B31/$B$11 -> 0 | L31: =AE$12*$B31/$B$12 -> 0 | M31: =AE$13*$B31/$B$13 -> 0 | N31: =AE$14*$B31/$B$14 -> 0 | O31: =AE$15*$B31/$B$15 -> 0 | P31: =AE$16*$B31/$B$16 -> 0 | Q31: =AE$17*$B31/$B$17 -> 0 | R31: =AE$18*$B31/$B$18 -> 0 | S31: =AE$19*$B31/$B$19 -> 0 | T31: =AE$20*$B31/$B$20 -> 0 | U31: =AE$21*$B31/$B$21 -> 0 | V31: =AE$22*$B31/$B$22 -> 0.03964164857 | W31: =AE$23*$B31/$B$23 -> 0.7143394436 | X31: =AE$24*$B31/$B$24 -> 0.000653392002 | Y31: =AE$25*$B31/$B$25 -> 3.674319739e-05 | Z31: =AE$26*$B31/$B$26 -> 0.0009524352445 | AA31: =AE$27*$B31/$B$27 -> 0.01528252203 | AB31: =AE$28*$B31/$B$28 -> 0.00120155239 | AC31: =AE$29*$B31/$B$29 -> 0.0002340492687 | AD31: =AE$30*$B31/$B$30 -> 0 | AE31: =$C$3 -> 0 | AF31: 0.03333510613 | AG31: 0.03268515083
A32: 30 | B32: 33.6 | C32: =AF$3*$B32/$B$3 -> 0.01957007202 | D32: =AF$4*$B32/$B$4 -> 0.001256935813 | E32: =AF$5*$B32/$B$5 -> 0.0218826967 | F32: =AF$6*$B32/$B$6 -> 0.001961840598 | G32: =AF$7*$B32/$B$7 -> 0.002413503489 | H32: =AF$8*$B32/$B$8 -> 0.02193149226 | I32: =AF$9*$B32/$B$9 -> 0.03109825405 | J32: =AF$10*$B32/$B$10 -> 0.0315571464 | K32: =AF$11*$B32/$B$11 -> 0.00177416022 | L32: =AF$12*$B32/$B$12 -> 0.001639009362 | M32: =AF$13*$B32/$B$13 -> 0.01705010156 | N32: =AF$14*$B32/$B$14 -> 0.001255961482 | O32: =AF$15*$B32/$B$15 -> 0.002931177241 | P32: =AF$16*$B32/$B$16 -> 0.004446842891 | Q32: =AF$17*$B32/$B$17 -> 0.003586923813 | R32: =AF$18*$B32/$B$18 -> 0.006197059244 | S32: =AF$19*$B32/$B$19 -> 0.04090457136 | T32: =AF$20*$B32/$B$20 -> 0 | U32: =AF$21*$B32/$B$21 -> 0 | V32: =AF$22*$B32/$B$22 -> 0 | W32: =AF$23*$B32/$B$23 -> 0 | X32: =AF$24*$B32/$B$24 -> 0.002480576496 | Y32: =AF$25*$B32/$B$25 -> 0.0002566609031 | Z32: =AF$26*$B32/$B$26 -> 0.01364681738 | AA32: =AF$27*$B32/$B$27 -> 0.002480576496 | AB32: =AF$28*$B32/$B$28 -> 0.001373558742 | AC32: =AF$29*$B32/$B$29 -> 0.000192636498 | AD32: =AF$30*$B32/$B$30 -> 0.07114224973 | AE32: =AF$31*$B32/$B$31 -> 0.01250764451 | AF32: =$C$3 -> 0 | AG32: 0
A33: 31 | B33: 33.6 | C33: =AG$3*$B33/$B$3 -> 0.01947837069 | D33: =AG$4*$B33/$B$4 -> 0.001259185397 | E33: =AG$5*$B33/$B$5 -> 0.02179037714 | F33: =AG$6*$B33/$B$6 -> 0.0008338241091 | G33: =AG$7*$B33/$B$7 -> 0.0005532346978 | H33: =AG$8*$B33/$B$8 -> 0.02854246815 | I33: =AG$9*$B33/$B$9 -> 0.01940300687 | J33: =AG$10*$B33/$B$10 -> 0.0073881256 | K33: =AG$11*$B33/$B$11 -> 0.0006599399046 | L33: =AG$12*$B33/$B$12 -> 0.0004030064022 | M33: =AG$13*$B33/$B$13 -> 0.04323314183 | N33: =AG$14*$B33/$B$14 -> 0.001114531517 | O33: =AG$15*$B33/$B$15 -> 0.007912296393 | P33: =AG$16*$B33/$B$16 -> 0.005243867033 | Q33: =AG$17*$B33/$B$17 -> 0.01150640451 | R33: =AG$18*$B33/$B$18 -> 0.02627617937 | S33: =AG$19*$B33/$B$19 -> 0.04068973091 | T33: =AG$20*$B33/$B$20 -> 0 | U33: =AG$21*$B33/$B$21 -> 0 | V33: =AG$22*$B33/$B$22 -> 0 | W33: =AG$23*$B33/$B$23 -> 0 | X33: =AG$24*$B33/$B$24 -> 0.00247175169 | Y33: =AG$25*$B33/$B$25 -> 4.329819335e-05 | Z33: =AG$26*$B33/$B$26 -> 0.001493937642 | AA33: =AG$27*$B33/$B$27 -> 0.002739487494 | AB33: =AG$28*$B33/$B$28 -> 0.01288531347 | AC33: =AG$29*$B33/$B$29 -> 0.001773008343 | AD33: =AG$30*$B33/$B$30 -> 0.07112917534 | AE33: =AG$31*$B33/$B$31 -> 0.01226377519 | AF33: =AG$32*$B33/$B$32 -> 0 | AG33: =$C$3 -> 0
A34: 32 | B34: = | C34: =AH$3*$B34/$B$3 ->  | D34: =AH$4*$B34/$B$4 ->  | E34: =AH$5*$B34/$B$5 ->  | F34: =AH$6*$B34/$B$6 ->  | G34: =AH$7*$B34/$B$7 ->  | H34: =AH$8*$B34/$B$8 ->  | I34: =AH$9*$B34/$B$9 ->  | J34: =AH$10*$B34/$B$10 ->  | K34: =AH$11*$B34/$B$11 ->  | L34: =AH$12*$B34/$B$12 ->  | M34: =AH$13*$B34/$B$13 ->  | N34: =AH$14*$B34/$B$14 ->  | O34: =AH$15*$B34/$B$15 ->  | P34: =AH$16*$B34/$B$16 ->  | Q34: =AH$17*$B34/$B$17 ->  | R34: =AH$18*$B34/$B$18 ->  | S34: =AH$19*$B34/$B$19 ->  | T34: =AH$20*$B34/$B$20 ->  | U34: =AH$21*$B34/$B$21 ->  | V34: =AH$22*$B34/$B$22 ->  | W34: =AH$23*$B34/$B$23 ->  | X34: =AH$24*$B34/$B$24 ->  | Y34: =AH$25*$B34/$B$25 ->  | Z34: =AH$26*$B34/$B$26 ->  | AA34: =AH$27*$B34/$B$27 ->  | AB34: =AH$28*$B34/$B$28 ->  | AC34: =AH$29*$B34/$B$29 ->  | AD34: =AH$30*$B34/$B$30 ->  | AE34: =AH$31*$B34/$B$31 ->  | AF34: =AH$32*$B34/$B$32 ->  | AG34: =AH$33*$B34/$B$33 ->  | AH34: =$C$3 -> 0
A35: 33 | B35: = | C35: =AI$3*$B35/$B$3 ->  | D35: =AI$4*$B35/$B$4 ->  | E35: =AI$5*$B35/$B$5 ->  | F35: =AI$6*$B35/$B$6 ->  | G35: =AI$7*$B35/$B$7 ->  | H35: =AI$8*$B35/$B$8 ->  | I35: =AI$9*$B35/$B$9 ->  | J35: =AI$10*$B35/$B$10 ->  | K35: =AI$11*$B35/$B$11 ->  | L35: =AI$12*$B35/$B$12 ->  | M35: =AI$13*$B35/$B$13 ->  | N35: =AI$14*$B35/$B$14 ->  | O35: =AI$15*$B35/$B$15 ->  | P35: =AI$16*$B35/$B$16 ->  | Q35: =AI$17*$B35/$B$17 ->  | R35: =AI$18*$B35/$B$18 ->  | S35: =AI$19*$B35/$B$19 ->  | T35: =AI$20*$B35/$B$20 ->  | U35: =AI$21*$B35/$B$21 ->  | V35: =AI$22*$B35/$B$22 ->  | W35: =AI$23*$B35/$B$23 ->  | X35: =AI$24*$B35/$B$24 ->  | Y35: =AI$25*$B35/$B$25 ->  | Z35: =AI$26*$B35/$B$26 ->  | AA35: =AI$27*$B35/$B$27 ->  | AB35: =AI$28*$B35/$B$28 ->  | AC35: =AI$29*$B35/$B$29 ->  | AD35: =AI$30*$B35/$B$30 ->  | AE35: =AI$31*$B35/$B$31 ->  | AF35: =AI$32*$B35/$B$32 ->  | AG35: =AI$33*$B35/$B$33 ->  | AH35: =AI$34*$B35/$B$34 ->  | AI35: =$C$3 -> 0
A36: 34 | B36: = | C36: =AJ$3*$B36/$B$3 ->  | D36: =AJ$4*$B36/$B$4 ->  | E36: =AJ$5*$B36/$B$5 ->  | F36: =AJ$6*$B36/$B$6 ->  | G36: =AJ$7*$B36/$B$7 ->  | H36: =AJ$8*$B36/$B$8 ->  | I36: =AJ$9*$B36/$B$9 ->  | J36: =AJ$10*$B36/$B$10 ->  | K36: =AJ$11*$B36/$B$11 ->  | L36: =AJ$12*$B36/$B$12 ->  | M36: =AJ$13*$B36/$B$13 ->  | N36: =AJ$14*$B36/$B$14 ->  | O36: =AJ$15*$B36/$B$15 ->  | P36: =AJ$16*$B36/$B$16 ->  | Q36: =AJ$17*$B36/$B$17 ->  | R36: =AJ$18*$B36/$B$18 ->  | S36: =AJ$19*$B36/$B$19 ->  | T36: =AJ$20*$B36/$B$20 ->  | U36: =AJ$21*$B36/$B$21 ->  | V36: =AJ$22*$B36/$B$22 ->  | W36: =AJ$23*$B36/$B$23 ->  | X36: =AJ$24*$B36/$B$24 ->  | Y36: =AJ$25*$B36/$B$25 ->  | Z36: =AJ$26*$B36/$B$26 ->  | AA36: =AJ$27*$B36/$B$27 ->  | AB36: =AJ$28*$B36/$B$28 ->  | AC36: =AJ$29*$B36/$B$29 ->  | AD36: =AJ$30*$B36/$B$30 ->  | AE36: =AJ$31*$B36/$B$31 ->  | AF36: =AJ$32*$B36/$B$32 ->  | AG36: =AJ$33*$B36/$B$33 ->  | AH36: =AJ$34*$B36/$B$34 ->  | AI36: =AJ$35*$B36/$B$35 ->  | AJ36: =$C$3 -> 0
A37: 35 | B37: = | C37: =AK$3*$B37/$B$3 ->  | D37: =AK$4*$B37/$B$4 ->  | E37: =AK$5*$B37/$B$5 ->  | F37: =AK$6*$B37/$B$6 ->  | G37: =AK$7*$B37/$B$7 ->  | H37: =AK$8*$B37/$B$8 ->  | I37: =AK$9*$B37/$B$9 ->  | J37: =AK$10*$B37/$B$10 ->  | K37: =AK$11*$B37/$B$11 ->  | L37: =AK$12*$B37/$B$12 ->  | M37: =AK$13*$B37/$B$13 ->  | N37: =AK$14*$B37/$B$14 ->  | O37: =AK$15*$B37/$B$15 ->  | P37: =AK$16*$B37/$B$16 ->  | Q37: =AK$17*$B37/$B$17 ->  | R37: =AK$18*$B37/$B$18 ->  | S37: =AK$19*$B37/$B$19 ->  | T37: =AK$20*$B37/$B$20 ->  | U37: =AK$21*$B37/$B$21 ->  | V37: =AK$22*$B37/$B$22 ->  | W37: =AK$23*$B37/$B$23 ->  | X37: =AK$24*$B37/$B$24 ->  | Y37: =AK$25*$B37/$B$25 ->  | Z37: =AK$26*$B37/$B$26 ->  | AA37: =AK$27*$B37/$B$27 ->  | AB37: =AK$28*$B37/$B$28 ->  | AC37: =AK$29*$B37/$B$29 ->  | AD37: =AK$30*$B37/$B$30 ->  | AE37: =AK$31*$B37/$B$31 ->  | AF37: =AK$32*$B37/$B$32 ->  | AG37: =AK$33*$B37/$B$33 ->  | AH37: =AK$34*$B37/$B$34 ->  | AI37: =AK$35*$B37/$B$35 ->  | AJ37: =AK$36*$B37/$B$36 ->  | AK37: =$C$3 -> 0
A38: 36 | B38: = | C38: =AL$3*$B38/$B$3 ->  | D38: =AL$4*$B38/$B$4 ->  | E38: =AL$5*$B38/$B$5 ->  | F38: =AL$6*$B38/$B$6 ->  | G38: =AL$7*$B38/$B$7 ->  | H38: =AL$8*$B38/$B$8 ->  | I38: =AL$9*$B38/$B$9 ->  | J38: =AL$10*$B38/$B$10 ->  | K38: =AL$11*$B38/$B$11 ->  | L38: =AL$12*$B38/$B$12 ->  | M38: =AL$13*$B38/$B$13 ->  | N38: =AL$14*$B38/$B$14 ->  | O38: =AL$15*$B38/$B$15 ->  | P38: =AL$16*$B38/$B$16 ->  | Q38: =AL$17*$B38/$B$17 ->  | R38: =AL$18*$B38/$B$18 ->  | S38: =AL$19*$B38/$B$19 ->  | T38: =AL$20*$B38/$B$20 ->  | U38: =AL$21*$B38/$B$21 ->  | V38: =AL$22*$B38/$B$22 ->  | W38: =AL$23*$B38/$B$23 ->  | X38: =AL$24*$B38/$B$24 ->  | Y38: =AL$25*$B38/$B$25 ->  | Z38: =AL$26*$B38/$B$26 ->  | AA38: =AL$27*$B38/$B$27 ->  | AB38: =AL$28*$B38/$B$28 ->  | AC38: =AL$29*$B38/$B$29 ->  | AD38: =AL$30*$B38/$B$30 ->  | AE38: =AL$31*$B38/$B$31 ->  | AF38: =AL$32*$B38/$B$32 ->  | AG38: =AL$33*$B38/$B$33 ->  | AH38: =AL$34*$B38/$B$34 ->  | AI38: =AL$35*$B38/$B$35 ->  | AJ38: =AL$36*$B38/$B$36 ->  | AK38: =AL$37*$B38/$B$37 ->  | AL38: =$C$3 -> 0
A39: 37 | B39: = | C39: =AM$3*$B39/$B$3 ->  | D39: =AM$4*$B39/$B$4 ->  | E39: =AM$5*$B39/$B$5 ->  | F39: =AM$6*$B39/$B$6 ->  | G39: =AM$7*$B39/$B$7 ->  | H39: =AM$8*$B39/$B$8 ->  | I39: =AM$9*$B39/$B$9 ->  | J39: =AM$10*$B39/$B$10 ->  | K39: =AM$11*$B39/$B$11 ->  | L39: =AM$12*$B39/$B$12 ->  | M39: =AM$13*$B39/$B$13 ->  | N39: =AM$14*$B39/$B$14 ->  | O39: =AM$15*$B39/$B$15 ->  | P39: =AM$16*$B39/$B$16 ->  | Q39: =AM$17*$B39/$B$17 ->  | R39: =AM$18*$B39/$B$18 ->  | S39: =AM$19*$B39/$B$19 ->  | T39: =AM$20*$B39/$B$20 ->  | U39: =AM$21*$B39/$B$21 ->  | V39: =AM$22*$B39/$B$22 ->  | W39: =AM$23*$B39/$B$23 ->  | X39: =AM$24*$B39/$B$24 ->  | Y39: =AM$25*$B39/$B$25 ->  | Z39: =AM$26*$B39/$B$26 ->  | AA39: =AM$27*$B39/$B$27 ->  | AB39: =AM$28*$B39/$B$28 ->  | AC39: =AM$29*$B39/$B$29 ->  | AD39: =AM$30*$B39/$B$30 ->  | AE39: =AM$31*$B39/$B$31 ->  | AF39: =AM$32*$B39/$B$32 ->  | AG39: =AM$33*$B39/$B$33 ->  | AH39: =AM$34*$B39/$B$34 ->  | AI39: =AM$35*$B39/$B$35 ->  | AJ39: =AM$36*$B39/$B$36 ->  | AK39: =AM$37*$B39/$B$37 ->  | AL39: =AM$38*$B39/$B$38 ->  | AM39: =$C$3 -> 0
A40: 38 | B40: = | C40: =AN$3*$B40/$B$3 ->  | D40: =AN$4*$B40/$B$4 ->  | E40: =AN$5*$B40/$B$5 ->  | F40: =AN$6*$B40/$B$6 ->  | G40: =AN$7*$B40/$B$7 ->  | H40: =AN$8*$B40/$B$8 ->  | I40: =AN$9*$B40/$B$9 ->  | J40: =AN$10*$B40/$B$10 ->  | K40: =AN$11*$B40/$B$11 ->  | L40: =AN$12*$B40/$B$12 ->  | M40: =AN$13*$B40/$B$13 ->  | N40: =AN$14*$B40/$B$14 ->  | O40: =AN$15*$B40/$B$15 ->  | P40: =AN$16*$B40/$B$16 ->  | Q40: =AN$17*$B40/$B$17 ->  | R40: =AN$18*$B40/$B$18 ->  | S40: =AN$19*$B40/$B$19 ->  | T40: =AN$20*$B40/$B$20 ->  | U40: =AN$21*$B40/$B$21 ->  | V40: =AN$22*$B40/$B$22 ->  | W40: =AN$23*$B40/$B$23 ->  | X40: =AN$24*$B40/$B$24 ->  | Y40: =AN$25*$B40/$B$25 ->  | Z40: =AN$26*$B40/$B$26 ->  | AA40: =AN$27*$B40/$B$27 ->  | AB40: =AN$28*$B40/$B$28 ->  | AC40: =AN$29*$B40/$B$29 ->  | AD40: =AN$30*$B40/$B$30 ->  | AE40: =AN$31*$B40/$B$31 ->  | AF40: =AN$32*$B40/$B$32 ->  | AG40: =AN$33*$B40/$B$33 ->  | AH40: =AN$34*$B40/$B$34 ->  | AI40: =AN$35*$B40/$B$35 ->  | AJ40: =AN$36*$B40/$B$36 ->  | AK40: =AN$37*$B40/$B$37 ->  | AL40: =AN$38*$B40/$B$38 ->  | AM40: =AN$39*$B40/$B$39 ->  | AN40: =$C$3 -> 0
A41: 39 | B41: = | C41: =AO$3*$B41/$B$3 ->  | D41: =AO$4*$B41/$B$4 ->  | E41: =AO$5*$B41/$B$5 ->  | F41: =AO$6*$B41/$B$6 ->  | G41: =AO$7*$B41/$B$7 ->  | H41: =AO$8*$B41/$B$8 ->  | I41: =AO$9*$B41/$B$9 ->  | J41: =AO$10*$B41/$B$10 ->  | K41: =AO$11*$B41/$B$11 ->  | L41: =AO$12*$B41/$B$12 ->  | M41: =AO$13*$B41/$B$13 ->  | N41: =AO$14*$B41/$B$14 ->  | O41: =AO$15*$B41/$B$15 ->  | P41: =AO$16*$B41/$B$16 ->  | Q41: =AO$17*$B41/$B$17 ->  | R41: =AO$18*$B41/$B$18 ->  | S41: =AO$19*$B41/$B$19 ->  | T41: =AO$20*$B41/$B$20 ->  | U41: =AO$21*$B41/$B$21 ->  | V41: =AO$22*$B41/$B$22 ->  | W41: =AO$23*$B41/$B$23 ->  | X41: =AO$24*$B41/$B$24 ->  | Y41: =AO$25*$B41/$B$25 ->  | Z41: =AO$26*$B41/$B$26 ->  | AA41: =AO$27*$B41/$B$27 ->  | AB41: =AO$28*$B41/$B$28 ->  | AC41: =AO$29*$B41/$B$29 ->  | AD41: =AO$30*$B41/$B$30 ->  | AE41: =AO$31*$B41/$B$31 ->  | AF41: =AO$32*$B41/$B$32 ->  | AG41: =AO$33*$B41/$B$33 ->  | AH41: =AO$34*$B41/$B$34 ->  | AI41: =AO$35*$B41/$B$35 ->  | AJ41: =AO$36*$B41/$B$36 ->  | AK41: =AO$37*$B41/$B$37 ->  | AL41: =AO$38*$B41/$B$38 ->  | AM41: =AO$39*$B41/$B$39 ->  | AN41: =AO$40*$B41/$B$40 ->  | AO41: =$C$3 -> 0
A42: 40 | B42: = | C42: =AP$3*$B42/$B$3 ->  | D42: =AP$4*$B42/$B$4 ->  | E42: =AP$5*$B42/$B$5 ->  | F42: =AP$6*$B42/$B$6 ->  | G42: =AP$7*$B42/$B$7 ->  | H42: =AP$8*$B42/$B$8 ->  | I42: =AP$9*$B42/$B$9 ->  | J42: =AP$10*$B42/$B$10 ->  | K42: =AP$11*$B42/$B$11 ->  | L42: =AP$12*$B42/$B$12 ->  | M42: =AP$13*$B42/$B$13 ->  | N42: =AP$14*$B42/$B$14 ->  | O42: =AP$15*$B42/$B$15 ->  | P42: =AP$16*$B42/$B$16 ->  | Q42: =AP$17*$B42/$B$17 ->  | R42: =AP$18*$B42/$B$18 ->  | S42: =AP$19*$B42/$B$19 ->  | T42: =AP$20*$B42/$B$20 ->  | U42: =AP$21*$B42/$B$21 ->  | V42: =AP$22*$B42/$B$22 ->  | W42: =AP$23*$B42/$B$23 ->  | X42: =AP$24*$B42/$B$24 ->  | Y42: =AP$25*$B42/$B$25 ->  | Z42: =AP$26*$B42/$B$26 ->  | AA42: =AP$27*$B42/$B$27 ->  | AB42: =AP$28*$B42/$B$28 ->  | AC42: =AP$29*$B42/$B$29 ->  | AD42: =AP$30*$B42/$B$30 ->  | AE42: =AP$31*$B42/$B$31 ->  | AF42: =AP$32*$B42/$B$32 ->  | AG42: =AP$33*$B42/$B$33 ->  | AH42: =AP$34*$B42/$B$34 ->  | AI42: =AP$35*$B42/$B$35 ->  | AJ42: =AP$36*$B42/$B$36 ->  | AK42: =AP$37*$B42/$B$37 ->  | AL42: =AP$38*$B42/$B$38 ->  | AM42: =AP$39*$B42/$B$39 ->  | AN42: =AP$40*$B42/$B$40 ->  | AO42: =AP$41*$B42/$B$41 ->  | AP42: =$C$3 -> 0
B43: =
A45: Vloží plochy jednotlivých konstrukcí předtím, než bude poprvé spuštěn výpočet
A46: Slouží k usnadnění práce uživateli, aby mohl kontrolovat poměry osálání dopočítané pravidlem reciprocity

Sheet Výpočetní pomůcky_fi
B1: Případ poměru osálání | C1: Vzorec | D1: Řešení | E1: Vstupní hodnoty
D2: ϕ2,1 | E2: a [m] | F2: b [m] | G2: c [m]
D3: =(1/(E3*F3*PI()))*(E3*F3*ATAN(E3/F3)-E3*SQRT(F3^2+G3^2)*ATAN(E3/(SQRT(F3^2+G3^2)))+E3*G3*ATAN(E3/G3)+((F3^2)/4)*LN(((E3^2+F3^2+G3^2)*F3^2)/((E3^2+F3^2)*(F3^2+G3^2)))+((G3^2)/4)*LN(((E3^2+F3^2+G3^2)*G3^2)/((E3^2+G3^2)*(F3^2+G3^2)))-((E3^2)/4)*LN(((E3^2+F3^2+G3^2)*E3^2)/((E3^2+F3^2)*(E3^2+G3^2)))) -> 
D13: ϕD,A | E13: AA [m2] | F13: AB [m2] | G13: AAB [m2] | H13: ϕ(CD),(AB) | I13: ϕC,A | J13: ϕD,B
D14: =(1/(2*E14))*(H14*G14-E14*I14-F14*J14) -> 
D24: ϕD,A | E24: AA [m2] | F24: AB [m2] | G24: AAB [m2] | H24: ϕ(CD),(AB) | I24: ϕC,A | J24: ϕD,B
D25: =(1/(2*E25))*(H25*G25-E25*I25-F25*J25) -> 
D35: ϕD,A | E35: AA [m2] | F35: AB [m2] | G35: AAB [m2] | H35: ϕ(CD),(AB) | I35: ϕ(CD),B | J35: ϕC,(AB) | K35: ϕC,B
D36: =(1/E36)*(G36*H36-F36*I36-G36*J36+F36*K36) -> 
D46: ϕC,A | E46: AA [m2] | F46: AB [m2] | G46: AAB [m2] | H46: ϕC,(AB) | I46: ϕC,B
D47: =(1/E47)*(G47*H47-F47*I47) -> 
D57: ϕ2,1 | E57: K1 | F57: K2 | G57: a [m] | H57: b [m] | I57: L [m]
D58: =(2/PI())*((((1+F58^2)^0.5)/F58)*ATAN(E58/((1+F58^2)^0.5))+(((1+E58^2)^0.5)/E58)*ATAN(F58/((1+E58^2)^0.5))-(1/F58)*ATAN(E58)-(1/E58)*ATAN(F58)+(1/(2*E58*F58))*LN(((1+E58^2)*(1+F58^2))/(1+E58^2+F58^2))) ->  | E58: =G58/I58 ->  | F58: =H58/I58 -> 
D68: ϕB',A | E68: AA [m2] | F68: AB [m2] | G68: AAB [m2] | H68: ϕ(A'B'),(AB) | I68: ϕA',A | J68: ϕB',B
D69: =(1/(2*E69))*(G69*H69-E69*I69-F69*J69) -> 
D79: ϕD',A | E79: AA [m2] | F79: AB [m2] | G79: AC [m2] | H79: AD [m2] | I79: AS [m2]
D80: =(1/(4*E80))*(E82*I80-(F82+G82+H82)*E80-(F84+G84+H84)*F80-(F86+G86+H86)*G80-(F88+G88+H88)*H80) -> 
E81: ϕS',S | F81: ϕA',A | G81: ϕB',A | H81: ϕC',A
F83: ϕA',B | G83: ϕB',B | H83: ϕD',B
F85: ϕA',C | G85: ϕC',C | H85: ϕD',C
F87: ϕB',D | G87: ϕC',D | H87: ϕD',D
D90: ϕ1,2 | E90: A1
D91: =SUM(AE98:AE113)/((F92-F91)*(F94-F93)) ->  | E91: x1
D92: ϕ2,1 | E92: x2
D93: =(D91*(F92-F91)*(F94-F93))/((F97-F96)*(F99-F98)) ->  | E93: y1
E94: y2
E95: A2
E96: ξ1 | N96: rovnobezne | Z96: kolme
E97: ξ2 | N97: i | O97: j | P97: k | Q97: l | R97: (-1)i+j+k+l | S97: z | T97: h | U97: x | V97: x | W97: y | X97: G | Y97: iG | Z97: h | AA97: x | AB97: x | AC97: y | AD97: G | AE97: iG
E98: η1 | N98: 1 | O98: 1 | P98: 1 | Q98: 1 | R98: =(-1)^(N98+O98+P98+Q98) -> 1 | S98: =$F$113 -> 0 | T98: =$F$111 -> 0 | U98: =$F$109 -> 0 | V98: =$F$104 -> 0 | W98: =$F$106 -> 0 | X98: =1/2/PI()*((W98-T98)*((V98-U98)^2+S98^2)^0.5*ATAN((W98-T98)/((V98-U98)^2+S98^2)^0.5)+(V98-U98)*((W98-T98)^2+S98^2)^0.5*ATAN((V98-U98)/((W98-T98)^2+S98^2)^0.5)-S98^2/2*LN((V98-U98)^2+(W98-T98)^2+S98^2)) ->  | Y98: =X98*R98 ->  | Z98: =$F$98 -> 0 | AA98: =$F$96 -> 0 | AB98: =$F$91 -> 0 | AC98: =$F$93 -> 0 | AD98: =1/2/PI()*((AC98-Z98)*(AB98^2+AA98^2)^0.5*ATAN((AC98-Z98)/(AB98^2+AA98^2)^0.5)-1/4*(AB98^2+AA98^2-(AC98-Z98)^2)*LN(AB98^2+(AC98-Z98)^2+AA98^2)) ->  | AE98: =AD98*R98 -> 
E99: η2 | N99: 1 | O99: 1 | P99: 1 | Q99: 2 | R99: =(-1)^(N99+O99+P99+Q99) -> -1 | S99: =$F$113 -> 0 | T99: =$F$111 -> 0 | U99: 0 | V99: =$F$104 -> 0 | W99: =$F$107 -> 0 | X99: =1/2/PI()*((W99-T99)*((V99-U99)^2+S99^2)^0.5*ATAN((W99-T99)/((V99-U99)^2+S99^2)^0.5)+(V99-U99)*((W99-T99)^2+S99^2)^0.5*ATAN((V99-U99)/((W99-T99)^2+S99^2)^0.5)-S99^2/2*LN((V99-U99)^2+(W99-T99)^2+S99^2)) ->  | Y99: =X99*R99 ->  | Z99: =Z98 -> 0 | AA99: =AA98 -> 0 | AB99: =AB98 -> 0 | AC99: =$F$94 -> 0 | AD99: =1/2/PI()*((AC99-Z99)*(AB99^2+AA99^2)^0.5*ATAN((AC99-Z99)/(AB99^2+AA99^2)^0.5)-1/4*(AB99^2+AA99^2-(AC99-Z99)^2)*LN(AB99^2+(AC99-Z99)^2+AA99^2)) -> 
N100: 1 | O100: 1 | P100: 2 | Q100: 1 | R100: =(-1)^(N100+O100+P100+Q100) -> -1 | S100: 0 | T100: 0 | U100: 0 | V100: =$F$105 -> 0 | W100: =$F$106 -> 0 | X100: =1/2/PI()*((W100-T100)*((V100-U100)^2+S100^2)^0.5*ATAN((W100-T100)/((V100-U100)^2+S100^2)^0.5)+(V100-U100)*((W100-T100)^2+S100^2)^0.5*ATAN((V100-U100)/((W100-T100)^2+S100^2)^0.5)-S100^2/2*LN((V100-U100)^2+(W100-T100)^2+S100^2)) ->  | Z100: =Z99 -> 0 | AA100: =AA99 -> 0 | AB100: =$F$92 -> 0 | AC100: =$F$93 -> 0
N101: 1 | O101: 1 | P101: 2 | Q101: 2 | R101: =(-1)^(N101+O101+P101+Q101) -> 1 | S101: 0 | T101: 0 | U101: =$F$109 -> 0 | V101: =$F$105 -> 0 | W101: =$F$107 -> 0 | X101: =1/2/PI()*((W101-T101)*((V101-U101)^2+S101^2)^0.5*ATAN((W101-T101)/((V101-U101)^2+S101^2)^0.5)+(V101-U101)*((W101-T101)^2+S101^2)^0.5*ATAN((V101-U101)/((W101-T101)^2+S101^2)^0.5)-S101^2/2*LN((V101-U101)^2+(W101-T101)^2+S101^2)) ->  | Z101: 0 | AA101: 0 | AB101: =$F$92 -> 0 | AC101: =$F$94 -> 0
B102: Převzato z [7] | N102: 1 | O102: 2 | P102: 1 | Q102: 1 | R102: =(-1)^(N102+O102+P102+Q102) -> -1 | S102: 0 | T102: 0 | U102: =$F$110 -> 0 | V102: =$F$104 -> 0 | W102: =$F$106 -> 0 | Z102: 0 | AA102: =$F$97 -> 0 | AB102: =$F$91 -> 0 | AC102: =$F$93 -> 0
D103: ϕ1,2 | E103: A1 | N103: 1 | O103: 2 | P103: 1 | Q103: 2 | R103: 1 | S103: 0 | T103: 0 | U103: =$F$110 -> 0 | V103: =$F$104 -> 0 | W103: =$F$107 -> 0 | Z103: 0 | AA103: =AA102 -> 0 | AB103: =AB102 -> 0 | AC103: =$F$94 -> 0
D104: =SUM(Y98:Y113)/((F105-F104)*(F107-F106)) ->  | E104: x1 | N104: 1 | O104: 2 | P104: 2 | Q104: 1 | R104: 1 | S104: 0 | T104: 0 | U104: =$F$110 -> 0 | V104: =$F$105 -> 0 | W104: =$F$106 -> 0 | Z104: 0 | AA104: =AA103 -> 0 | AB104: =$F$92 -> 0 | AC104: =$F$93 -> 0
D105: ϕ2,1 | E105: x2 | N105: 1 | O105: 2 | P105: 2 | Q105: 2 | R105: -1 | S105: 0 | T105: 0 | U105: =$F$110 -> 0 | V105: =$F$105 -> 0 | W105: =$F$107 -> 0 | Z105: 0 | AA105: =AA104 -> 0 | AB105: =$F$92 -> 0 | AC105: =$F$94 -> 0
D106: =(D104*(F105-F104)*(F107-F106))/((F110-F109)*(F112-F111)) ->  | E106: y1 | N106: 2 | O106: 1 | P106: 1 | Q106: 1 | R106: -1 | S106: 0 | T106: =$F$112 -> 0 | U106: =$F$109 -> 0 | V106: =$F$104 -> 0 | W106: =$F$106 -> 0 | Z106: =$F$99 -> 0 | AA106: =AA98 -> 0 | AB106: =$F$91 -> 0 | AC106: =$F$93 -> 0
E107: y2 | N107: 2 | O107: 1 | P107: 1 | Q107: 2 | R107: 1 | S107: 0 | T107: =$F$112 -> 0 | U107: 0 | V107: =$F$104 -> 0 | W107: =$F$107 -> 0 | Z107: =Z106 -> 0 | AA107: =AA99 -> 0 | AB107: =AB106 -> 0 | AC107: =$F$94 -> 0
E108: A2 | N108: 2 | O108: 1 | P108: 2 | Q108: 1 | R108: 1 | S108: 0 | T108: 0 | U108: 0 | V108: =$F$105 -> 0 | W108: =$F$106 -> 0 | Z108: =Z107 -> 0 | AA108: =AA100 -> 0 | AB108: =$F$92 -> 0 | AC108: =$F$93 -> 0
E109: ξ1 | N109: 2 | O109: 1 | P109: 2 | Q109: 2 | R109: -1 | S109: 0 | T109: 0 | U109: 0 | V109: =$F$105 -> 0 | W109: =$F$107 -> 0 | Z109: 0 | AA109: =AA101 -> 0 | AB109: =$F$92 -> 0 | AC109: =$F$94 -> 0
E110: ξ2 | N110: 2 | O110: 2 | P110: 1 | Q110: 1 | R110: 1 | S110: 0 | T110: 0 | U110: =$F$110 -> 0 | V110: =$F$104 -> 0 | W110: =$F$106 -> 0 | Z110: 0 | AA110: =AA102 -> 0 | AB110: =$F$91 -> 0 | AC110: =$F$93 -> 0
E111: η1 | N111: 2 | O111: 2 | P111: 1 | Q111: 2 | R111: -1 | S111: 0 | T111: 0 | U111: =$F$110 -> 0 | V111: =$F$104 -> 0 | W111: =$F$107 -> 0 | Z111: 0 | AA111: =AA103 -> 0 | AB111: =AB110 -> 0 | AC111: =$F$94 -> 0
E112: η2 | N112: 2 | O112: 2 | P112: 2 | Q112: 1 | R112: -1 | S112: 0 | T112: 0 | U112: =$F$110 -> 0 | V112: =$F$105 -> 0 | W112: =$F$106 -> 0 | Z112: 0 | AA112: 0 | AB112: =$F$92 -> 0 | AC112: =$F$93 -> 0
E113: z | N113: 2 | O113: 2 | P113: 2 | Q113: 2 | R113: 1 | S113: 0 | T113: 0 | U113: =$F$110 -> 0 | V113: =$F$105 -> 0 | W113: =$F$107 -> 0 | Z113: 0 | AA113: =AA105 -> 0 | AB113: =$F$92 -> 0 | AC113: =$F$94 -> 0
B115: Převzato z [7]

Sheet Výsledek
B1: -12 | C1: -8 | D1: -3 | E1: 3 | F1: 8 | G1: 12
A2: DP - MEVA - ver_5_1_2016_2.xlsm - 9.1.2016 - 20:18:15 - rovina YZ - X = 21 m
A3: Požadovaná operativní teplota - to = 18 °C
A4: Krok výpočtu -> 0,1 m
A6: Legenda:
I7: Barevné označení: | U7: ∆ = tg,vyp - tg,pož
U8: ( -∞ ; -12 )
U9: < -12 ; -8 )
U10: < -8 ; -3 )
U11: < -3 ; 3 >
U12: ( 3 ; 8 >
U13: ( 8 ; 12 >
U14: ( 12 ; ∞ )
BY16: Y [m]
D17: 0 | I17: 0,5 | N17: 1 | S17: 1,5 | X17: 2 | AC17: 2,5 | AH17: 3 | AM17: 3,5 | AR17: 4 | AW17: 4,5 | BB17: 5 | BG17: 5,5 | BL17: 6 | BQ17: 6,5 | BV17: 7 | CA17: 7,5 | CF17: 8 | CK17: 8,5 | CP17: 9 | CU17: 9,5 | CZ17: 10 | DE17: 10,5 | DJ17: 11 | DO17: 11,5 | DT17: 12 | DY17: 12,5 | ED17: 13 | EI17: 13,5 | EN17: 14 | ES17: 14,5 | EW17: 14,9
B18: 5,95
D19: 1.980034547 | E19: 1.975242359 | F19: 1.976487003 | G19: 1.977733868 | H19: 1.978983139 | I19: 1.980234964 | J19: 1.98148944 | K19: 1.982746607 | L19: 1.984006442 | M19: 1.985268857 | N19: 1.986533693 | O19: 1.987800725 | P19: 1.989069666 | Q19: 1.990340169 | R19: 1.991611832 | S19: 1.992884212 | T19: 1.994156825 | U19: 1.995429159 | V19: 1.996700681 | W19: 1.997970843 | X19: 1.999239094 | Y19: 2.000504883 | Z19: 2.001767668 | AA19: 2.003026919 | AB19: 2.004282127 | AC19: 2.005532803 | AD19: 2.006778485 | AE19: 2.008018741 | AF19: 2.009253168 | AG19: 2.010481396 | AH19: 2.011703089 | AI19: 2.012917944 | AJ19: 2.014125692 | AK19: 16.65614578 | AL19: 16.65704333 | AM19: 16.65793508 | AN19: 16.65882092 | AO19: 16.65970079 | AP19: 16.66057461 | AQ19: 16.66144236 | AR19: 16.66230401 | AS19: 16.66315957 | AT19: 16.66400905 | AU19: 16.6648525 | AV19: 2.028010119 | AW19: 2.029115168 | AX19: 2.03021245 | AY19: 2.031302093 | AZ19: 2.032384237 | BA19: 2.03345904 | BB19: 2.034526673 | BC19: 2.03558732 | BD19: 2.036641178 | BE19: 2.037688453 | BF19: 2.038729365 | BG19: 2.03976414 | BH19: 2.040793014 | BI19: 2.041816233 | BJ19: 2.042834048 | BK19: 2.043846719 | BL19: -0.1266626014 | BM19: -0.125613687 | BN19: -0.1245693003 | BO19: -0.1235291457 | BP19: -0.1224929222 | BQ19: -0.1214603242 | BR19: -0.1204310414 | BS19: -0.1194047591 | BT19: -0.1183811587 | BU19: -0.1173599173 | BV19: -0.1163407087 | BW19: -0.1153232024 | BX19: -0.114307065 | BY19: -0.113291959 | BZ19: -0.1122775438 | CA19: -0.1112634753 | CB19: -0.110249406 | CC19: -0.1092349849 | CD19: -0.1082198577 | CE19: -0.1072036665 | CF19: -0.1061860502 | CG19: -0.1051666437 | CH19: -0.1041450788 | CI19: -0.1031209832 | CJ19: -0.1020939811 | CK19: -0.1010636928 | CL19: -0.1000297348 | CM19: -0.09899171954 | CN19: -0.09794925541 | CO19: -0.09690194675 | CP19: 2.074324909 | CQ19: 2.075337014 | CR19: 2.076354914 | CS19: 2.077379002 | CT19: 2.078409679 | CU19: 2.079447346 | CV19: 2.080492412 | CW19: 2.081545286 | CX19: 2.082606384 | CY19: 2.083676125 | CZ19: 2.084754931 | DA19: 2.085843228 | DB19: 2.086941445 | DC19: 2.088050014 | DD19: 2.089169369 | DE19: 2.090299946 | DF19: 19.72036258 | DG19: 19.72118489 | DH19: 19.72201613 | DI19: 19.72285663 | DJ19: 19.72370668 | DK19: 19.72456661 | DL19: 19.7254367 | DM19: 19.72631728 | DN19: 19.72720862 | DO19: 19.72811102 | DP19: 2.103601463 | DQ19: 2.104900341 | DR19: 2.106215872 | DS19: 2.1075484 | DT19: 2.108898248 | DU19: 2.110265714 | DV19: 2.111651065 | DW19: 2.113054537 | DX19: 2.114476326 | DY19: 2.115916588 | DZ19: 2.117375432 | EA19: 2.118852914 | EB19: 2.120349034 | EC19: 2.12186373 | ED19: 2.12339687 | EE19: 2.124948252 | EF19: 2.126517593 | EG19: 2.128104529 | EH19: 2.129708607 | EI19: 2.131329283 | EJ19: 2.132965914 | EK19: 2.134617765 | EL19: 2.136283995 | EM19: 2.137963667 | EN19: 2.139655744 | EO19: 2.14135909 | EP19: 2.143072477 | EQ19: 2.144794589 | ER19: 2.146524026 | ES19: 2.148259316 | ET19: 2.149998925 | EU19: 2.151741264 | EV19: 2.153484704 | EW19: 2.155227587
D20: 1.960740437 | E20: 1.990789414 | F20: 2.005310073 | G20: 2.013948734 | H20: 2.02061874 | I20: 2.026567458 | J20: 2.032298988 | K20: 2.038068876 | L20: 2.04403634 | M20: 2.050321253 | N20: 2.057029572 | O20: 2.064266962 | P20: 2.072147839 | Q20: 2.080802921 | R20: 2.090386952 | S20: 2.101087752 | T20: 2.113137755 | U20: 2.126829466 | V20: 2.142536882 | W20: 2.160745998 | X20: 2.182099351 | Y20: 2.207462821 | Z20: 2.238028749 | AA20: 2.275480409 | AB20: 2.322264545 | AC20: 2.38206368 | AD20: 2.46065995 | AE20: 2.567622419 | AF20: 2.719884681 | AG20: 2.950166703 | AH20: 3.329682867 | AI20: 4.040922767 | AJ20: 5.648293172 | AK20: 9.408888299 | AL20: 12.90598093 | AM20: 14.2394865 | AN20: 14.77502719 | AO20: 15.01347719 | AP20: 15.09910654 | AQ20: 15.07178904 | AR20: 14.91931408 | AS20: 14.56254384 | AT20: 13.73670554 | AU20: 11.50810041 | AV20: 7.221488872 | AW20: 4.666304805 | AX20: 3.623876664 | AY20: 3.113141784 | AZ20: 2.819294885 | BA20: 2.630762775 | BB20: 2.499774933 | BC20: 2.402597442 | BD20: 2.325856229 | BE20: 2.260909101 | BF20: 2.200949325 | BG20: 2.138700512 | BH20: 2.062755087 | BI20: 1.947289731 | BJ20: 1.712975403 | BK20: 1.16237687 | BL20: 0.6079468927 | BM20: 0.3746315841 | BN20: 0.2681720828 | BO20: 0.2086776895 | BP20: 0.1708838967 | BQ20: 0.1449525717 | BR20: 0.1263266581 | BS20: 0.1126146821 | BT20: 0.1024435696 | BU20: 0.09497250826 | BV20: 0.08966367532 | BW20: 0.08616493554 | BX20: 0.08424615111 | BY20: 0.08376336766 | BZ20: 0.08463874776 | CA20: 0.08685035259 | CB20: 0.09042905012 | CC20: 0.09546175668 | CD20: 0.1021018074 | CE20: 0.1105891793 | CF20: 0.1212864651 | CG20: 0.1347427204 | CH20: 0.1518109 | CI20: 0.1738771872 | CJ20: 0.2033469624 | CK20: 0.2447911545 | CL20: 0.3080587896 | CM20: 0.4184115058 | CN20: 0.6556789826 | CO20: 1.213916322 | CP20: 1.768507046 | CQ20: 2.007420448 | CR20: 2.127967846 | CS20: 2.20946161 | CT20: 2.27776603 | CU20: 2.344342286 | CV20: 2.416503129 | CW20: 2.50102022 | CX20: 2.606296986 | CY20: 2.744914127 | CZ20: 2.938249707 | DA20: 3.226930802 | DB20: 3.698694408 | DC20: 4.577100415 | DD20: 6.547970099 | DE20: 11.10450978 | DF20: 15.28505628 | DG20: 16.86723877 | DH20: 17.50158536 | DI20: 17.78442673 | DJ20: 17.88681831 | DK20: 17.85599017 | DL20: 17.67754141 | DM20: 17.25782506 | DN20: 16.28262214 | DO20: 13.63544275 | DP20: 8.484331884 | DQ20: 5.37438703 | DR20: 4.098331759 | DS20: 3.473622645 | DT20: 3.116393893 | DU20: 2.89010489 | DV20: 2.736414348 | DW20: 2.626688306 | DX20: 2.545374316 | DY20: 2.4833574 | DZ20: 2.434971534 | EA20: 2.396525956 | EB20: 2.365523474 | EC20: 2.340220591 | ED20: 2.319367628 | EE20: 2.302048801 | EF20: 2.287580396 | EG20: 2.275444016 | EH20: 2.265241799 | EI20: 2.25666583 | EJ20: 2.249477069 | EK20: 2.243490942 | EL20: 2.238567934 | EM20: 2.234608401 | EN20: 2.231551665 | EO20: 2.229380635 | EP20: 2.228135383 | EQ20: 2.22794405 | ER20: 2.229092444 | ES20: 2.232192391 | ET20: 2.23864395 | EU20: 2.25214967 | EV20: 2.284605237 | EW20: 2.365419885
D21: 2.000537978 | E21: 2.021841863 | F21: 2.038707557 | G21: 2.05177756 | H21: 2.062841823 | I21: 2.07303722 | J21: 2.083002066 | K21: 2.093123821 | L21: 2.1036717 | M21: 2.114862384 | N21: 2.126894861 | O21: 2.139971509 | P21: 2.154313381 | Q21: 2.170173742 | R21: 2.187852312 | S21: 2.207712125 | T21: 2.230201033 | U21: 2.255880362 | V21: 2.285464327 | W21: 2.319875608 | X21: 2.360325573 | Y21: 2.408432823 | Z21: 2.466402951 | AA21: 2.537308885 | AB21: 2.625542254 | AC21: 2.73756665 | AD21: 2.883226726 | AE21: 3.078128296 | AF21: 3.348178162 | AG21: 3.73862828 | AH21: 4.332317054 | AI21: 5.281808301 | AJ21: 6.817728978 | AK21: 8.968364469 | AL21: 11.01781031 | AM21: 12.34892471 | AN21: 13.08375242 | AO21: 13.45806423 | AP21: 13.59940007 | AQ21: 13.55279568 | AR21: 13.30384041 | AS21: 12.77083288 | AT21: 11.77071113 | AU21: 10.05983187 | AV21: 7.834255181 | AW21: 5.950645327 | AX21: 4.733715398 | AY21: 3.982146643 | AZ21: 3.497723259 | BA21: 3.167008411 | BB21: 2.928460956 | BC21: 2.747179708 | BD21: 2.601847453 | BE21: 2.478030346 | BF21: 2.364289769 | BG21: 2.249167192 | BH21: 2.117565808 | BI21: 1.945157318 | BJ21: 1.694666425 | BK21: 1.351440802 | BL21: 1.010523886 | BM21: 0.7697252508 | BN21: 0.6177040042 | BO21: 0.5190288296 | BP21: 0.4514205659 | BQ21: 0.4029496806 | BR21: 0.3670929418 | BS21: 0.3400829698 | BT21: 0.3196238551 | BU21: 0.3042536091 | BV21: 0.2930119028 | BW21: 0.285258308 | BX21: 0.2805689211 | BY21: 0.2786763101 | BZ21: 0.27943511 | CA21: 0.2828042587 | CB21: 0.2888415906 | CC21: 0.2977095225 | CD21: 0.3096930989 | CE21: 0.3252346836 | CF21: 0.3449942973 | CG21: 0.3699532637 | CH21: 0.4015961768 | CI21: 0.4422432082 | CJ21: 0.4956872935 | CK21: 0.5684771529 | CL21: 0.6725640178 | CM21: 0.8302364894 | CN21: 1.076913712 | CO21: 1.423950257 | CP21: 1.773728093 | CQ21: 2.031452739 | CR21: 2.21188927 | CS21: 2.352392529 | CT21: 2.477394457 | CU21: 2.602111036 | CV21: 2.738104581 | CW21: 2.896835767 | CX21: 3.092526412 | CY21: 3.345689227 | CZ21: 3.688983064 | DA21: 4.178365581 | DB21: 4.915175892 | DC21: 6.084305906 | DD21: 7.960961391 | DE21: 10.56643048 | DF21: 13.02935664 | DG21: 14.62042823 | DH21: 15.49696981 | DI21: 15.94405884 | DJ21: 16.11456829 | DK21: 16.06236283 | DL21: 15.77035655 | DM21: 15.14104206 | DN21: 13.95468922 | DO21: 11.91386476 | DP21: 9.239878851 | DQ21: 6.960674245 | DR21: 5.482169003 | DS21: 4.569428325 | DT21: 3.984405191 | DU21: 3.589900329 | DV21: 3.311551693 | DW21: 3.107706035 | DX21: 2.953838674 | DY21: 2.834795749 | DZ21: 2.740806379 | EA21: 2.665335675 | EB21: 2.603874095 | EC21: 2.553225214 | ED21: 2.511070639 | EE21: 2.475695297 | EF21: 2.445808889 | EG21: 2.420426953 | EH21: 2.398789969 | EI21: 2.3803075 | EJ21: 2.364519314 | EK21: 2.351068528 | EL21: 2.339683802 | EM21: 2.330169088 | EN21: 2.322400827 | EO21: 2.316334208 | EP21: 2.312023014 | EQ21: 2.309663353 | ER21: 2.309684159 | ES21: 2.312935797 | ET21: 2.321086102 | EU21: 2.337369644 | EV21: 2.367045937 | EW21: 2.411857792
D22: 2.039970722 | E22: 2.058587862 | F22: 2.075872052 | G22: 2.091438309 | H22: 2.105814701 | I22: 2.119652568 | J22: 2.133475328 | K22: 2.147680349 | L22: 2.162586524 | M22: 2.178474721 | N22: 2.195616633 | O22: 2.214296117 | P22: 2.234826984 | Q22: 2.257570167 | R22: 2.282952569 | S22: 2.311489691 | T22: 2.34381447 | U22: 2.380715408 | V22: 2.423188384 | W22: 2.472508575 | X22: 2.530332304 | Y22: 2.598844089 | Z22: 2.680973253 | AA22: 2.780719739 | AB22: 2.903654795 | AC22: 3.057706832 | AD22: 3.25441782 | AE22: 3.510972383 | AF22: 3.853435178 | AG22: 4.321540181 | AH22: 4.973846031 | AI22: 5.884621834 | AJ22: 7.102613187 | AK22: 8.53928183 | AL22: 9.916007041 | AM22: 10.98006667 | AN22: 11.68151129 | AO22: 12.08103699 | AP22: 12.23995795 | AQ22: 12.18618448 | AR22: 11.91031191 | AS22: 11.36627306 | AT22: 10.4846987 | AU22: 9.241554437 | AV22: 7.789639816 | AW22: 6.432205359 | AX22: 5.362000764 | AY22: 4.581842275 | AZ22: 4.02036634 | BA22: 3.608875676 | BB22: 3.297936211 | BC22: 3.054231571 | BD22: 2.85503307 | BE22: 2.683908213 | BF22: 2.527676537 | BG22: 2.374080189 | BH22: 2.209880908 | BI22: 2.020189123 | BJ22: 1.793050242 | BK22: 1.535131082 | BL22: 1.282595035 | BM22: 1.072685158 | BN22: 0.9143211999 | BO22: 0.7980600341 | BP22: 0.7120793335 | BQ22: 0.6474226027 | BR22: 0.5980758792 | BS22: 0.560088986 | BT22: 0.5308430267 | BU22: 0.5085724286 | BV22: 0.4920706991 | BW22: 0.4805107152 | BX22: 0.4733344462 | BY22: 0.4701854051 | BZ22: 0.4708685286 | CA22: 0.4753289953 | CB22: 0.4836457248 | CC22: 0.4960382677 | CD22: 0.5128883789 | CE22: 0.5347805331 | CF22: 0.5625698658 | CG22: 0.5974928206 | CH22: 0.6413471608 | CI22: 0.6967863485 | CJ22: 0.7677972908 | CK22: 0.8604320052 | CL22: 0.9836847472 | CM22: 1.14941438 | CN22: 1.367107273 | CO22: 1.627926917 | CP22: 1.894791657 | CQ22: 2.131741976 | CR22: 2.332295258 | CS22: 2.508576896 | CT22: 2.675661615 | CU22: 2.846995445 | CV22: 3.035055296 | CW22: 3.253218584 | CX22: 3.518024331 | CY22: 3.852102581 | CZ22: 4.288361236 | DA22: 4.875868246 | DB22: 5.685910465 | DC22: 6.807560651 | DD22: 8.296696621 | DE22: 10.04146477 | DF22: 11.70390531 | DG22: 12.98378536 | DH22: 13.82626927 | DI22: 14.30709655 | DJ22: 14.50092098 | DK22: 14.44159632 | DL22: 14.11794868 | DM22: 13.47445233 | DN22: 12.4265184 | DO22: 10.94173603 | DP22: 9.199053116 | DQ22: 7.562848072 | DR22: 6.270106789 | DS22: 5.328946702 | DT22: 4.655641815 | DU22: 4.168296259 | DV22: 3.807964482 | DW22: 3.535432555 | DX22: 3.324897253 | DY22: 3.1591633 | DZ22: 3.026533834 | EA22: 2.918872606 | EB22: 2.830396156 | EC22: 2.756910077 | ED22: 2.695316629 | EE22: 2.643290673 | EF22: 2.599062085 | EG22: 2.561266966 | EH22: 2.528844258 | EI22: 2.500963063 | EJ22: 2.476971245 | EK22: 2.456359326 | EL22: 2.438735955 | EM22: 2.423812915 | EN22: 2.411399061 | EO22: 2.40140418 | EP22: 2.39385587 | EQ22: 2.388935573 | ER22: 2.387043896 | ES22: 2.388906071 | ET22: 2.395702454 | EU22: 2.409060594 | EV22: 2.430272486 | EW22: 2.45786713
B23: 5,5 | D23: 2.07888024 | E23: 2.096959385 | F23: 2.11486309 | G23: 2.132253551 | H23: 2.149257263 | I23: 2.166213123 | J23: 2.18349768 | K23: 2.201464888 | L23: 2.220442772 | M23: 2.24074806 | N23: 2.262704083 | O23: 2.286658339 | P23: 2.312999907 | Q23: 2.342178009 | R23: 2.374723312 | S23: 2.411273908 | T23: 2.452608298 | U23: 2.499688544 | V23: 2.553717891 | W23: 2.616219064 | X23: 2.68914224 | Y23: 2.775015953 | Z23: 2.877160605 | AA23: 2.999993634 | AB23: 3.149468435 | AC23: 3.333704797 | AD23: 3.563878868 | AE23: 3.855414245 | AF23: 4.229351329 | AG23: 4.713184043 | AH23: 5.338806741 | AI23: 6.131938781 | AJ23: 7.085846175 | AK23: 8.127773685 | AL23: 9.123822723 | AM23: 9.948234572 | AN23: 10.54266495 | AO23: 10.90608802 | AP23: 11.05616334 | AQ23: 11.0039972 | AR23: 10.74557026 | AS23: 10.26437917 | AT23: 9.547502084 | AU23: 8.619837922 | AV23: 7.576217592 | AW23: 6.556870177 | AX23: 5.670048087 | AY23: 4.951935361 | AZ23: 4.388246748 | BA23: 3.947376814 | BB23: 3.598173476 | BC23: 3.31522074 | BD23: 3.078855779 | BE23: 2.873727866 | BF23: 2.687253846 | BG23: 2.508381831 | BH23: 2.326972674 | BI23: 2.13452206 | BJ23: 1.927345088 | BK23: 1.711499912 | BL23: 1.503111833 | BM23: 1.318974022 | BN23: 1.166906715 | BO23: 1.0457815 | BP23: 0.9505273853 | BQ23: 0.8757100837 | BR23: 0.8168361062 | BS23: 0.7705163475 | BT23: 0.7342796418 | BU23: 0.7063448454 | BV23: 0.6854355749 | BW23: 0.670646692 | BX23: 0.661352938 | BY23: 0.6571486588 | BZ23: 0.6578101774 | CA23: 0.6632753189 | CB23: 0.6736370645 | CC23: 0.6891503781 | CD23: 0.7102531674 | CE23: 0.7376044008 | CF23: 0.7721448764 | CG23: 0.8151890691 | CH23: 0.8685590908 | CI23: 0.9347703182 | CJ23: 1.017259559 | CK23: 1.120571713 | CL23: 1.250196914 | CM23: 1.411269628 | CN23: 1.604998945 | CO23: 1.823680187 | CP23: 2.050683785 | CQ23: 2.270085911 | CR23: 2.476047509 | CS23: 2.672487739 | CT23: 2.868173235 | CU23: 3.073547411 | CV23: 3.300019364 | CW23: 3.560595577 | CX23: 3.871148758 | CY23: 4.252069114 | CZ23: 4.730054499 | DA23: 5.339139391 | DB23: 6.118075417 | DC23: 7.097271511 | DD23: 8.266920182 | DE23: 9.537247405 | DF23: 10.7462447 | DG23: 11.74409172 | DH23: 12.4631764 | DI23: 12.90432484 | DJ23: 13.08994118 | DK23: 13.03391462 | DL23: 12.73152227 | DM23: 12.16256178 | DN23: 11.31041768 | DO23: 10.20317383 | DP23: 8.95317897 | DQ23: 7.729262874 | DR23: 6.663901847 | DS23: 5.803347639 | DT23: 5.132413318 | DU23: 4.614368105 | DV23: 4.212780494 | DW23: 3.898285897 | DX23: 3.648919513 | DY23: 3.448664871 | DZ23: 3.285889399 | EA23: 3.152095018 | EB23: 3.041009755 | EC23: 2.947949183 | ED23: 2.869371662 | EE23: 2.802567979 | EF23: 2.745443229 | EG23: 2.696362127 | EH23: 2.6540383 | EI23: 2.617454486 | EJ23: 2.585804843 | EK23: 2.558453504 | EL23: 2.534905516 | EM23: 2.514787841 | EN23: 2.497839236 | EO23: 2.483908869 | EP23: 2.472964313 | EQ23: 2.46510969 | ER23: 2.460612179 | ES23: 2.459924102 | ET23: 2.463654058 | EU23: 2.472366856 | EV23: 2.486035711 | EW23: 2.503262935
D24: 2.117115597 | E24: 2.13556984 | F24: 2.154413563 | G24: 2.173447248 | H24: 2.192706467 | I24: 2.212390011 | J24: 2.232775808 | K24: 2.25417154 | L24: 2.276897526 | M24: 2.301287794 | N24: 2.327699481 | O24: 2.356526049 | P24: 2.38821294 | Q24: 2.423275843 | R24: 2.462322538 | S24: 2.506079797 | T24: 2.555427357 | U24: 2.611441656 | V24: 2.675452975 | W24: 2.749120917 | X24: 2.834534966 | Y24: 2.934349134 | Z24: 3.051962478 | AA24: 3.191759746 | AB24: 3.35942664 | AC24: 3.562346308 | AD24: 3.810053325 | AE24: 4.11463508 | AF24: 4.490759615 | AG24: 4.954567569 | AH24: 5.519966229 | AI24: 6.190480291 | AJ24: 6.94692745 | AK24: 7.738382079 | AL24: 8.490115262 | AM24: 9.130107887 | AN24: 9.612410851 | AO24: 9.919275915 | AP24: 10.04875464 | AQ24: 10.00232945 | AR24: 9.779218829 | AS24: 9.378269035 | AT24: 8.807289716 | AU24: 8.096865565 | AV24: 7.307439372 | AW24: 6.515903481 | AX24: 5.787214898 | AY24: 5.155686085 | AZ24: 4.627043349 | BA24: 4.190599025 | BB24: 3.829800743 | BC24: 3.527903874 | BD24: 3.270077005 | BE24: 3.043732084 | BF24: 2.838208279 | BG24: 2.644414288 | BH24: 2.454827343 | BI24: 2.264198723 | BJ24: 2.071039052 | BK24: 1.878953856 | BL24: 1.695792562 | BM24: 1.529925047 | BN24: 1.386454381 | BO24: 1.266284867 | BP24: 1.167517526 | BQ24: 1.087165595 | BR24: 1.022217635 | BS24: 0.9700778687 | BT24: 0.9286643447 | BU24: 0.8963687832 | BV24: 0.8719788012 | BW24: 0.854602442 | BX24: 0.843607327 | BY24: 0.8385761583 | BZ24: 0.8392770441 | CA24: 0.8456467108 | CB24: 0.8577852487 | CC24: 0.8759619237 | CD24: 0.9006325283 | CE24: 0.9324696319 | CF24: 0.9724076685 | CG24: 1.02170439 | CH24: 1.082016963 | CI24: 1.155480407 | CJ24: 1.24474853 | CK24: 1.352896914 | CL24: 1.48298473 | CM24: 1.636995968 | CN24: 1.814131738 | CO24: 2.009425034 | CP24: 2.214679922 | CQ24: 2.422257911 | CR24: 2.628796944 | CS24: 2.836064132 | CT24: 3.049631273 | CU24: 3.277408006 | CV24: 3.528963242 | CW24: 3.815571203 | CX24: 4.150656837 | CY24: 4.550296956 | CZ24: 5.033280367 | DA24: 5.619755727 | DB24: 6.326691453 | DC24: 7.157976386 | DD24: 8.089656275 | DE24: 9.059513726 | DF24: 9.977355087 | DG24: 10.75727536 | DH24: 11.34537104 | DI24: 11.72164352 | DJ24: 11.88471804 | DK24: 11.83691456 | DL24: 11.57743782 | DM24: 11.10465573 | DN24: 10.42732704 | DO24: 9.581388338 | DP24: 8.638985697 | DQ24: 7.69294169 | DR24: 6.822677649 | DS24: 6.071169488 | DT24: 5.44689067 | DU24: 4.938310863 | DV24: 4.526724912 | DW24: 4.193293918 | DX24: 3.921777752 | DY24: 3.69908885 | DZ24: 3.514993461 | EA24: 3.361583596 | EB24: 3.232762306 | EC24: 3.12381564 | ED24: 3.031079033 | EE24: 2.951684803 | EF24: 2.883373392 | EG24: 2.824352875 | EH24: 2.773194411 | EI24: 2.7287544 | EJ24: 2.690116574 | EK24: 2.656549191 | EL24: 2.627473916 | EM24: 2.602444066 | EN24: 2.581130652 | EO24: 2.563315071 | EP24: 2.548887192 | EQ24: 2.537846241 | ER24: 2.530297927 | ES24: 2.526432144 | ET24: 2.526449742 | EU24: 2.530394358 | EV24: 2.537881545 | EW24: 2.547868873
D25: 2.154535303 | E25: 2.173792768 | F25: 2.193778717 | G25: 2.214401442 | H25: 2.23569798 | I25: 2.257817879 | J25: 2.280988148 | K25: 2.305484531 | L25: 2.331616807 | M25: 2.359725973 | N25: 2.390189242 | O25: 2.423430001 | P25: 2.459931379 | Q25: 2.50025319 | R25: 2.545052786 | S25: 2.595110822 | T25: 2.651363451 | U25: 2.71494292 | V25: 2.787229142 | W25: 2.869915422 | X25: 2.965092182 | Y25: 3.075352916 | Z25: 3.203926121 | AA25: 3.354834343 | AB25: 3.533073718 | AC25: 3.744788813 | AD25: 3.997377249 | AE25: 4.299379021 | AF25: 4.659867285 | AG25: 5.086870086 | AH25: 5.584248713 | AI25: 6.146852264 | AJ25: 6.755283465 | AK25: 7.373978674 | AL25: 7.956597026 | AM25: 8.457670644 | AN25: 8.843131963 | AO25: 9.09341686 | AP25: 9.199995345 | AQ25: 9.160305938 | AR25: 8.974978846 | AS25: 8.648791054 | AT25: 8.194902889 | AU25: 7.639757725 | AV25: 7.023778608 | AW25: 6.39417913 | AX25: 5.792771604 | AY25: 5.246809379 | AZ25: 4.767535414 | BA25: 4.354311283 | BB25: 3.999938793 | BC25: 3.694651838 | BD25: 3.428374423 | BE25: 3.191740946 | BF25: 2.976465845 | BG25: 2.775502758 | BH25: 2.583288491 | BI25: 2.396223061 | BJ25: 2.213284478 | BK25: 2.036294664 | BL25: 1.869206742 | BM25: 1.716407541 | BN25: 1.581003616 | BO25: 1.464092189 | BP25: 1.365066535 | BQ25: 1.282343733 | BR25: 1.214004027 | BS25: 1.158179722 | BT25: 1.113234401 | BU25: 1.077817407 | BV25: 1.050858673 | BW25: 1.031541405 | BX25: 1.019271057 | BY25: 1.013648533 | BZ25: 1.014450548 | CA25: 1.021617926 | CB25: 1.035251913 | CC25: 1.055618482 | CD25: 1.08316066 | CE25: 1.118518823 | CF25: 1.162558164 | CG25: 1.216400449 | CH25: 1.281452135 | CI25: 1.359410483 | CJ25: 1.452210274 | CK25: 1.561846341 | CL25: 1.689987385 | CM25: 1.837340911 | CN25: 2.00293159 | CO25: 2.183802894 | CP25: 2.375751851 | CQ25: 2.575046006 | CR25: 2.780123153 | CS25: 2.992309786 | CT25: 3.215567575 | CU25: 3.455899463 | CV25: 3.720902526 | CW25: 4.019577651 | CX25: 4.362261734 | CY25: 4.76041426 | CZ25: 5.2258468 | DA25: 5.768790946 | DB25: 6.394108822 | DC25: 7.095465105 | DD25: 7.849139131 | DE25: 8.611977548 | DF25: 9.328198638 | DG25: 9.943560389 | DH25: 10.41788969 | DI25: 10.72853053 | DJ25: 10.8659436 | DK25: 10.82751226 | DL25: 10.61418343 | DM25: 10.23163373 | DN25: 9.695429223 | DO25: 9.037079443 | DP25: 8.305138867 | DQ25: 7.556796977 | DR25: 6.84323858 | DS25: 6.198428721 | DT25: 5.637130641 | DU25: 5.159761381 | DV25: 4.758817687 | DW25: 4.423769046 | DX25: 4.143867795 | DY25: 3.909428736 | DZ25: 3.712237118 | EA25: 3.545539491 | EB25: 3.403870209 | EC25: 3.282836409 | ED25: 3.178914003 | EE25: 3.089272908 | EF25: 3.011634542 | EG25: 2.944158598 | EH25: 2.885354375 | EI25: 2.834011933 | EJ25: 2.789149012 | EK25: 2.749970391 | EL25: 2.715837132 | EM25: 2.686243698 | EN25: 2.660801273 | EO25: 2.639225685 | EP25: 2.621327816 | EQ25: 2.607002993 | ER25: 2.596213116 | ES25: 2.588951045 | ET25: 2.585173595 | EU25: 2.584695706 | EV25: 2.587068744 | EW25: 2.59151947
D26: 2.191008985 | E26: 2.211269468 | F26: 2.232492006 | G26: 2.254659443 | H26: 2.277832834 | I26: 2.302151809 | J26: 2.327822028 | K26: 2.355101287 | L26: 2.384290734 | M26: 2.41573262 | N26: 2.449813768 | O26: 2.486973499 | P26: 2.527715246 | Q26: 2.572621617 | R26: 2.622373154 | S26: 2.677771416 | T26: 2.739767334 | U26: 2.809496016 | V26: 2.88831938 | W26: 2.977878027 | X26: 3.080153477 | Y26: 3.197540863 | Z26: 3.332929781 | AA26: 3.489785801 | AB26: 3.672214961 | AC26: 3.884974738 | AD26: 4.133362847 | AE26: 4.422866227 | AF26: 4.758393394 | AG26: 5.14288129 | AH26: 5.575162089 | AI26: 6.047354633 | AJ26: 6.542766012 | AK26: 7.035923528 | AL26: 7.495890437 | AM26: 7.89199746 | AN26: 8.199161458 | AO26: 8.400342629 | AP26: 8.486045278 | AQ26: 8.45259713 | AR26: 8.301040969 | AS26: 8.037524582 | AT26: 7.674891421 | AU26: 7.234047464 | AV26: 6.743120735 | AW26: 6.233390751 | AX26: 5.733354237 | AY26: 5.263919598 | AZ26: 4.836759594 | BA26: 4.455536552 | BB26: 4.118413728 | BC26: 3.820487662 | BD26: 3.555556545 | BE26: 3.317209502 | BF26: 3.099447834 | BG26: 2.897070674 | BH26: 2.705996351 | BI26: 2.523588178 | BJ26: 2.348912363 | BK26: 2.182724282 | BL26: 2.026996501 | BM26: 1.884060968 | BN26: 1.755745621 | BO26: 1.642895728 | BP26: 1.545369223 | BQ26: 1.462320087 | BR26: 1.392539109 | BS26: 1.334721583 | BT26: 1.287632726 | BU26: 1.250190929 | BV26: 1.221499096 | BW26: 1.200848324 | BX26: 1.187709528 | BY26: 1.181721851 | BZ26: 1.182682465 | CA26: 1.190539957 | CB26: 1.205392261 | CC26: 1.227489394 | CD26: 1.257240735 | CE26: 1.295225938 | CF26: 1.342207269 | CG26: 1.399138807 | CH26: 1.467163707 | CI26: 1.547583998 | CJ26: 1.641778796 | CK26: 1.751040884 | CL26: 1.87631183 | CM26: 2.017845111 | CN26: 2.174927675 | CO26: 2.345890072 | CP26: 2.52859025 | CQ26: 2.72128144 | CR26: 2.923474918 | CS26: 3.136419604 | CT26: 3.363128404 | CU26: 3.608140094 | CV26: 3.877223533 | CW26: 4.177101293 | CX26: 4.515130402 | CY26: 4.898772619 | CZ26: 5.334609172 | DA26: 5.826627993 | DB26: 6.373643314 | DC26: 6.966182281 | DD26: 7.584047103 | DE26: 8.196500897 | DF26: 8.766409972 | DG26: 9.257211 | DH26: 9.639257634 | DI26: 9.89264558 | DJ26: 10.0064832 | DK26: 9.976742344 | DL26: 9.80489861 | DM26: 9.498416929 | DN26: 9.072725184 | DO26: 8.552967363 | DP26: 7.973131088 | DQ26: 7.371259236 | DR26: 6.782325931 | DS26: 6.232375533 | DT26: 5.736432049 | DU26: 5.299902954 | DV26: 4.921588178 | DW26: 4.59662995 | DX26: 4.318664312 | DY26: 4.081120954 | DZ26: 3.87788888 | EA26: 3.703588357 | EB26: 3.553627685 | EC26: 3.424156208 | ED26: 3.311976015 | EE26: 3.214444392 | EF26: 3.129381949 | EG26: 3.05499221 | EH26: 2.989794038 | EI26: 2.93256618 | EJ26: 2.882302486 | EK26: 2.838176153 | EL26: 2.799511409 | EM26: 2.765761185 | EN26: 2.736489321 | EO26: 2.711355733 | EP26: 2.690102439 | EQ26: 2.672537477 | ER26: 2.658512488 | ES26: 2.647888783 | ET26: 2.640488188 | EU26: 2.636032279 | EV26: 2.634089075 | EW26: 2.634062018
D27: 2.226418754 | E27: 2.247759372 | F27: 2.270236359 | G27: 2.293883431 | H27: 2.318787162 | I27: 2.345091795 | J27: 2.372996434 | K27: 2.402749736 | L27: 2.434646077 | M27: 2.46902507 | N27: 2.506274794 | O27: 2.546838494 | P27: 2.591224434 | Q27: 2.64001877 | R27: 2.693901554 | S27: 2.753666135 | T27: 2.820242411 | U27: 2.894724349 | V27: 2.978402108 | W27: 3.072798675 | X27: 3.179710053 | Y27: 3.301246308 | Z27: 3.439867667 | AA27: 3.598404333 | AB27: 3.780039705 | AC27: 3.988222715 | AD27: 4.226455869 | AE27: 4.497884278 | AF27: 4.804599891 | AG27: 5.146602614 | AH27: 5.520471626 | AI27: 5.918029878 | AJ27: 6.325574252 | AK27: 6.724357838 | AL27: 7.092640387 | AM27: 7.408790925 | AN27: 7.654249962 | AO27: 7.815308202 | AP27: 7.883516132 | AQ27: 7.85532777 | AR27: 7.731766806 | AS27: 7.518547311 | AT27: 7.226499563 | AU27: 6.871642372 | AV27: 6.474122417 | AW27: 6.055753446 | AX27: 5.636813426 | AY27: 5.233336977 | AZ27: 4.855830988 | BA27: 4.509484796 | BB27: 4.195304236 | BC27: 3.911501502 | BD27: 3.654717091 | BE27: 3.420930278 | BF27: 3.206086871 | BG27: 3.00653451 | BH27: 2.819346174 | BI27: 2.642563467 | BJ27: 2.475327125 | BK27: 2.317820093 | BL27: 2.170976814 | BM27: 2.036019458 | BN27: 1.913988809 | BO27: 1.805439815 | BP27: 1.710364493 | BQ27: 1.628287986 | BR27: 1.558438262 | BS27: 1.499911251 | BT27: 1.451795385 | BU27: 1.413250741 | BV27: 1.38355216 | BW27: 1.362108616 | BX27: 1.348468994 | BY27: 1.342321361 | BZ27: 1.34349016 | CA27: 1.351933818 | CB27: 1.367744057 | CC27: 1.391147278 | CD27: 1.42250765 | CE27: 1.462330667 | CF27: 1.511264672 | CG27: 1.570095963 | CH27: 1.639730462 | CI27: 1.721151828 | CJ27: 1.815343881 | CK27: 1.923168099 | CL27: 2.045201137 | CM27: 2.181568542 | CN27: 2.331852774 | CO27: 2.495174819 | CP27: 2.67050327 | CQ27: 2.857128179 | CR27: 3.055130374 | CS27: 3.265679719 | CT27: 3.491103011 | CU27: 3.734769273 | CV27: 4.000868417 | CW27: 4.294116857 | CX27: 4.619357494 | CY27: 4.980966056 | CZ27: 5.381950988 | DA27: 5.822668317 | DB27: 6.299214142 | DC27: 6.801840064 | DD27: 7.314084071 | DE27: 7.813433171 | DF27: 8.273868417 | DG27: 8.669634644 | DH27: 8.978782998 | DI27: 9.185247651 | DJ27: 9.279267836 | DK27: 9.256908508 | DL27: 9.119638901 | DM27: 8.874489878 | DN27: 8.534608671 | DO27: 8.119413125 | DP27: 7.653390853 | DQ27: 7.163193332 | DR27: 6.673792397 | DS27: 6.205188033 | DT27: 5.770809209 | DU27: 5.377722395 | DV27: 5.027973261 | DW27: 4.720250433 | DX27: 4.451342974 | DY27: 4.217196923 | DZ27: 4.013584294 | EA27: 3.836477668 | EB27: 3.682229761 | EC27: 3.547635866 | ED27: 3.429932023 | EE27: 3.326761685 | EF27: 3.236129824 | EG27: 3.156354756 | EH27: 3.086022802 | EI27: 3.023947986 | EJ27: 2.969137387 | EK27: 2.92076196 | EL27: 2.878132205 | EM27: 2.840677855 | EN27: 2.807930573 | EO27: 2.779508388 | EP27: 2.755100287 | EQ27: 2.734448928 | ER27: 2.717329183 | ES27: 2.703520606 | ET27: 2.692774079 | EU27: 2.68477764 | EV27: 2.679133034 | EW27: 2.675358138
B28: 5 | D28: 2.260660223 | E28: 2.283085697 | F28: 2.306782618 | G28: 2.331819537 | H28: 2.358304231 | I28: 2.386389194 | J28: 2.416272828 | K28: 2.448198626 | L28: 2.482454551 | M28: 2.519374074 | N28: 2.559339519 | O28: 2.602787853 | P28: 2.650218904 | Q28: 2.70220592 | R28: 2.759408475 | S28: 2.822587724 | T28: 2.892624028 | U28: 2.970536769 | V28: 3.057505885 | W28: 3.154893995 | X28: 3.264266857 | Y28: 3.387408069 | Z28: 3.52632093 | AA28: 3.68320589 | AB28: 3.860395626 | AC28: 4.060221613 | AD28: 4.284777629 | AE28: 4.535541416 | AF28: 4.812825085 | AG28: 5.115062596 | AH28: 5.438022725 | AI28: 5.774153174 | AJ28: 6.112363206 | AK28: 6.438535082 | AL28: 6.736834559 | AM28: 6.99153221 | AN28: 7.18879027 | AO28: 7.317931574 | AP28: 7.372043274 | AQ28: 7.348110071 | AR28: 7.246992229 | AS28: 7.073436036 | AT28: 6.836050732 | AU28: 6.546975109 | AV28: 6.220944242 | AW28: 5.873714481 | AX28: 5.520181561 | AY28: 5.172750985 | AZ28: 4.840409037 | BA28: 4.528600365 | BB28: 4.23970859 | BC28: 3.973822773 | BD28: 3.729530468 | BE28: 3.504598691 | BF28: 3.296505254 | BG28: 3.102836424 | BH28: 2.921578198 | BI28: 2.751313061 | BJ28: 2.591310551 | BK28: 2.441489181 | BL28: 2.302246501 | BM28: 2.174199496 | BN28: 2.057917506 | BO28: 1.953729489 | BP28: 1.861644792 | BQ28: 1.78137456 | BR28: 1.712411679 | BS28: 1.654126902 | BT28: 1.605854076 | BU28: 1.566953752 | BV28: 1.536855024 | BW28: 1.515080166 | BX28: 1.501257534 | BY28: 1.495127391 | BZ28: 1.496544043 | CA28: 1.505476469 | CB28: 1.522008635 | CC28: 1.546339881 | CD28: 1.57878501 | CE28: 1.619772905 | CF28: 1.669841521 | CG28: 1.7296259 | CH28: 1.799834585 | CI28: 1.881209038 | CJ28: 1.974461572 | CK28: 2.08019205 | CL28: 2.198794153 | CM28: 2.330378347 | CN28: 2.474753855 | CO28: 2.631511609 | CP28: 2.800220955 | CQ28: 2.980700984 | CR28: 3.173285054 | CS28: 3.378996903 | CT28: 3.599596802 | CU28: 3.837501402 | CV28: 4.095599567 | CW28: 4.376974497 | CX28: 4.684516107 | CY28: 5.02038675 | CZ28: 5.385305646 | DA28: 5.777660256 | DB28: 6.192550336 | DC28: 6.621012314 | DD28: 7.049791806 | DE28: 7.462004721 | DF28: 7.838755448 | DG28: 8.161348252 | DH28: 8.41342816 | DI28: 8.582476234 | DJ28: 8.660497725 | DK28: 8.644152646 | DL28: 8.534717064 | DM28: 8.338103786 | DN28: 8.064861515 | DO28: 7.729813572 | DP28: 7.350976655 | DQ28: 6.947694957 | DR28: 6.538381953 | DS28: 6.138542663 | DT28: 5.759626055 | DU28: 5.408847469 | DV28: 5.089742391 | DW28: 4.803067177 | DX28: 4.547725423 | DY28: 4.321541414 | DZ28: 4.121825414 | EA28: 3.945746757 | EB28: 3.790557869 | EC28: 3.653714419 | ED28: 3.53292857 | EE28: 3.426182018 | EF28: 3.331716647 | EG28: 3.248014034 | EH28: 3.173770541 | EI28: 3.107871793 | EJ28: 3.049368541 | EK28: 2.997454773 | EL28: 2.95144827 | EM28: 2.910773374 | EN28: 2.87494544 | EO28: 2.843556158 | EP28: 2.816258762 | EQ28: 2.79275197 | ER28: 2.772761651 | ES28: 2.756019935 | ET28: 2.742243071 | EU28: 2.731111905 | EV28: 2.722261296 | EW28: 2.715284964
D29: 2.2936432 | E29: 2.317112734 | F29: 2.341959261 | G29: 2.368275114 | H29: 2.396183868 | I29: 2.425845378 | J29: 2.457458443 | K29: 2.491262107 | L29: 2.527536823 | M29: 2.56660641 | N29: 2.608841387 | O29: 2.654663938 | P29: 2.70455453 | Q29: 2.759060165 | R29: 2.818804128 | S29: 2.884497058 | T29: 2.956949029 | U29: 3.037082059 | V29: 3.125942055 | W29: 3.224708479 | X29: 3.334698936 | Y29: 3.457364245 | Z29: 3.594267243 | AA29: 3.747035436 | AB29: 3.917273956 | AC29: 4.106421605 | AD29: 4.315531069 | AE29: 4.544958033 | AF29: 4.793958213 | AG29: 5.060222021 | AH29: 5.339424767 | AI29: 5.624924343 | AJ29: 5.907767255 | AK29: 6.177126382 | AL29: 6.421171999 | AM29: 6.628214702 | AN29: 6.787851932 | AO29: 6.891874987 | AP29: 6.934831996 | AQ29: 6.914293484 | AR29: 6.830934676 | AS29: 6.688508428 | AT29: 6.493682489 | AU29: 6.255635355 | AV29: 5.985316267 | AW29: 5.694392459 | AX29: 5.394066349 | AY29: 5.094036757 | AZ29: 4.801833359 | BA29: 4.522606228 | BB29: 4.2593006 | BC29: 4.013066889 | BD29: 3.783756649 | BE29: 3.57040141 | BF29: 3.37162345 | BG29: 3.18596365 | BH29: 3.01212702 | BI29: 2.849146775 | BJ29: 2.696462842 | BK29: 2.553910863 | BL29: 2.42162967 | BM29: 2.299915384 | BN29: 2.189066273 | BO29: 2.089261359 | BP29: 2.00049718 | BQ29: 1.92258248 | BR29: 1.855173601 | BS29: 1.797828645 | BT29: 1.750063018 | BU29: 1.711396545 | BV29: 1.681388783 | BW29: 1.659663165 | BX29: 1.645922255 | BY29: 1.639956727 | BZ29: 1.641650299 | CA29: 1.650982198 | CB29: 1.668028115 | CC29: 1.692959943 | CD29: 1.726044015 | CE29: 1.767636929 | CF29: 1.818177367 | CG29: 1.878171737 | CH29: 1.948171064 | CI29: 2.028736867 | CJ29: 2.120395493 | CK29: 2.223584296 | CL29: 2.338599534 | CM29: 2.465563405 | CN29: 2.604432075 | CO29: 2.755061891 | CP29: 2.917333922 | CQ29: 3.091312457 | CR29: 3.277394575 | CS29: 3.476406866 | CT29: 3.689621185 | CU29: 3.918681226 | CV29: 4.165442832 | CW29: 4.431729847 | CX29: 4.719000094 | CY29: 5.027912966 | CZ29: 5.357801632 | DA29: 5.706086761 | DB29: 6.067725535 | DC29: 6.434853784 | DD29: 6.796811777 | DE29: 7.140695848 | DF29: 7.452428672 | DG29: 7.718145562 | DH29: 7.925570165 | DI29: 8.065089869 | DJ29: 8.130412762 | DK29: 8.118870546 | DL29: 8.031510646 | DM29: 7.87306879 | DN29: 7.651789356 | DO29: 7.378962107 | DP29: 7.068054869 | DQ29: 6.733462407 | DR29: 6.389086125 | DS29: 6.047074024 | DT29: 5.717000847 | DU29: 5.405592248 | DV29: 5.116911889 | DW29: 4.852829862 | DX29: 4.613588433 | DY29: 4.398335656 | DZ29: 4.205562073 | EA29: 4.033424311 | EB29: 3.879966503 | EC29: 3.743260883 | ED29: 3.621489761 | EE29: 3.512987617 | EF29: 3.416257544 | EG29: 3.329972083 | EH29: 3.252965218 | EI29: 3.184219856 | EJ29: 3.122853463 | EK29: 3.068103369 | EL29: 3.019312515 | EM29: 2.975915877 | EN29: 2.937427497 | EO29: 2.903427734 | EP29: 2.873550288 | EQ29: 2.847468464 | ER29: 2.824880448 | ES29: 2.805493891 | ET29: 2.78901116 | EU29: 2.775117777 | EV29: 2.763477377 | EW29: 2.753735953
D30: 2.325292034 | E30: 2.349735119 | F30: 2.375636517 | G30: 2.403104477 | H30: 2.432273299 | I30: 2.463307633 | J30: 2.49640547 | K30: 2.531800292 | L30: 2.569763027 | M30: 2.610604369 | N30: 2.654677879 | O30: 2.70238406 | P30: 2.754175452 | Q30: 2.810562652 | R30: 2.872121071 | S30: 2.939498098 | T30: 3.013420154 | U30: 3.094698826 | V30: 3.184234827 | W30: 3.283017887 | X30: 3.392119743 | Y30: 3.512676182 | Z30: 3.645852489 | AA30: 3.792784883 | AB30: 3.954488873 | AC30: 4.131724687 | AD30: 4.324811553 | AE30: 4.533388546 | AF30: 4.756132547 | AG30: 4.990464637 | AH30: 5.232302649 | AI30: 5.47594031 | AJ30: 5.714136786 | AK30: 5.938468999 | AL30: 6.1399322 | AM30: 6.309696005 | AN30: 6.439874366 | AO30: 6.52417731 | AP30: 6.558371472 | AQ30: 6.540545133 | AR30: 6.471210792 | AS30: 6.353270427 | AT30: 6.191834351 | AU30: 5.993859522 | AV30: 5.767587374 | AW30: 5.521818056 | AX30: 5.265127955 | AY30: 5.005175548 | AZ30: 4.748219675 | BA30: 4.498906114 | BB30: 4.260301477 | BC30: 4.034103029 | BD30: 3.82094026 | BE30: 3.620698582 | BF30: 3.432820144 | BG30: 3.256558294 | BH30: 3.091175376 | BI30: 2.936079077 | BJ30: 2.790894857 | BK30: 2.655475629 | BL30: 2.52985749 | BM30: 2.414180084 | BN30: 2.308596957 | BO30: 2.213200305 | BP30: 2.127975627 | BQ30: 2.052789553 | BR30: 1.987404299 | BS30: 1.931507814 | BT30: 1.884749213 | BU30: 1.846772262 | BV30: 1.817243172 | BW30: 1.795871678 | BX30: 1.782425911 | BY30: 1.776742273 | BZ30: 1.778731547 | CA30: 1.788382267 | CB30: 1.805761993 | CC30: 1.831016699 | CD30: 1.864368092 | CE30: 1.90610821 | CF30: 1.956590323 | CG30: 2.016214906 | CH30: 2.085409519 | CI30: 2.164602109 | CJ30: 2.254188799 | CK30: 2.354499942 | CL30: 2.465771678 | CM30: 2.588133408 | CN30: 2.721622069 | CO30: 2.86622971 | CP30: 3.021981013 | CQ30: 3.189025216 | CR30: 3.367717992 | CS30: 3.558667822 | CT30: 3.762728034 | CU30: 3.980925059 | CV30: 4.214320438 | CW30: 4.463806791 | CX30: 4.729838827 | CY30: 5.012104434 | CZ30: 5.309153039 | DA30: 5.618021013 | DB30: 5.933924081 | DC30: 6.25011266 | DD30: 6.557988499 | DE30: 6.847541523 | DF30: 7.1080842 | DG30: 7.329167291 | DH30: 7.501504617 | DI30: 7.617749089 | DJ30: 7.673035962 | DK30: 7.665292684 | DL30: 7.595358551 | DM30: 7.466946005 | DN30: 7.286431965 | DO30: 7.062435496 | DP30: 6.805153812 | DQ30: 6.525496832 | DR30: 6.234146065 | DS30: 5.940711801 | DT30: 5.653139544 | DU30: 5.377435198 | DV30: 5.11768513 | DW30: 4.87628487 | DX30: 4.65427336 | DY30: 4.451687083 | DZ30: 4.267879594 | EA30: 4.10178133 | EB30: 3.952095172 | EC30: 3.817434501 | ED30: 3.696414957 | EE30: 3.587711476 | EF30: 3.490090666 | EG30: 3.402426427 | EH30: 3.323704688 | EI30: 3.253021375 | EJ30: 3.189576403 | EK30: 3.132665493 | EL30: 3.081670911 | EM30: 3.036051702 | EN30: 2.995333662 | EO30: 2.959099068 | EP30: 2.926976045 | EQ30: 2.8986275 | ER30: 2.87373974 | ES30: 2.85201127 | ET30: 2.833142829 | EU30: 2.816830238 | EV30: 2.802761785 | EW30: 2.790621308
D31: 2.355545647 | E31: 2.3808721 | F31: 2.407717302 | G31: 2.43619966 | H31: 2.466459849 | I31: 2.498664324 | J31: 2.533008136 | K31: 2.569717249 | L31: 2.609050681 | M31: 2.651302781 | N31: 2.696805895 | O31: 2.745933526 | P31: 2.799103963 | Q31: 2.856784271 | R31: 2.919494356 | S31: 2.987810709 | T31: 3.062369205 | U31: 3.143866061 | V31: 3.233055648 | W31: 3.330743351 | X31: 3.437770956 | Y31: 3.554991236 | Z31: 3.683227486 | AA31: 3.823212992 | AB31: 3.97550504 | AC31: 4.140368855 | AD31: 4.317629567 | AE31: 4.506496048 | AF31: 4.705369965 | AG31: 4.911666263 | AH31: 5.121684744 | AI31: 5.330580772 | AJ31: 5.532478868 | AK31: 5.720750904 | AL31: 5.888443227 | AM31: 6.028797268 | AN31: 6.135783911 | AO31: 6.204574527 | AP31: 6.231897577 | AQ31: 6.216262108 | AR31: 6.158050801 | AS31: 6.059488321 | AT31: 5.924482779 | AU31: 5.758334122 | AV31: 5.567315358 | AW31: 5.358161217 | AX31: 5.137530618 | AY31: 4.911525287 | AZ31: 4.685335688 | BA31: 4.463051433 | BB31: 4.247632768 | BC31: 4.041008968 | BD31: 3.84425629 | BE31: 3.657810417 | BF31: 3.481678866 | BG31: 3.315630799 | BH31: 3.159351085 | BI31: 3.012551581 | BJ31: 2.875036955 | BK31: 2.74672659 | BL31: 2.627639378 | BM31: 2.517853456 | BN31: 2.417456174 | BO31: 2.326498955 | BP31: 2.244967163 | BQ31: 2.172768738 | BR31: 2.109739627 | BS31: 2.055660782 | BT31: 2.010280797 | BU31: 1.973339329 | BV31: 1.944588206 | BW31: 1.923808746 | BX31: 1.910824962 | BY31: 1.905513012 | BZ31: 1.907807447 | CA31: 1.917704833 | CB31: 1.935265118 | CC31: 1.960610889 | CD31: 1.993924389 | CE31: 2.035441931 | CF31: 2.085445165 | CG31: 2.144248638 | CH31: 2.212183338 | CI31: 2.289576544 | CJ31: 2.376729482 | CK31: 2.473895908 | CL31: 2.581266456 | CM31: 2.698964658 | CN31: 2.827059837 | CO31: 2.965598737 | CP31: 3.114652089 | CQ31: 3.274365858 | CR31: 3.445002374 | CS31: 3.62695583 | CT31: 3.82072966 | CU31: 4.026868266 | CV31: 4.245840334 | CW31: 4.477874606 | CX31: 4.722752589 | CY31: 4.97956837 | CZ31: 5.246475349 | DA31: 5.520453541 | DB31: 5.797145897 | DC31: 6.070820918 | DD31: 6.334512608 | DE31: 6.580361243 | DF31: 6.800133122 | DG31: 6.985850043 | DH31: 7.130431353 | DI31: 7.22825639 | DJ31: 7.2755877 | DK31: 7.27083501 | DL31: 7.214665079 | DM31: 7.109965288 | DN31: 6.96165791 | DO31: 6.776356014 | DP31: 6.561865778 | DQ31: 6.32657445 | DR31: 6.078802146 | DS31: 5.826216031 | DT31: 5.575393072 | DU31: 5.331577029 | DV31: 5.098626303 | DW31: 4.879111544 | DX31: 4.674505636 | DY31: 4.485411606 | DZ31: 4.311787912 | EA31: 4.153147003 | EB31: 4.008716855 | EC31: 3.877564487 | ED31: 3.758685547 | EE31: 3.65106614 | EF31: 3.55372324 | EG31: 3.465729328 | EH31: 3.386225836 | EI31: 3.314428898 | EJ31: 3.249629978 | EK31: 3.191193167 | EL31: 3.138550367 | EM31: 3.091195136 | EN31: 3.04867564 | EO31: 3.010586976 | EP31: 2.976563018 | EQ31: 2.946267937 | ER31: 2.919387699 | ES31: 2.895622018 | ET31: 2.87467756 | EU31: 2.856263343 | EV31: 2.840089237 | EW31: 2.825868047
D32: 2.384357279 | E32: 2.410464001 | F32: 2.438131472 | G32: 2.467483995 | H32: 2.498665041 | I32: 2.531840029 | J32: 2.567198736 | K32: 2.604957431 | L32: 2.645360867 | M32: 2.688684272 | N32: 2.735235463 | O32: 2.78535709 | P32: 2.839428945 | Q32: 2.897870156 | R32: 2.961140966 | S32: 3.029743645 | T32: 3.104221917 | U32: 3.18515799 | V32: 3.273166017 | W32: 3.3688804 | X32: 3.472936881 | Y32: 3.58594393 | Z32: 3.708441503 | AA32: 3.840844104 | AB32: 3.983365471 | AC32: 4.135923541 | AD32: 4.298027071 | AE32: 4.468649925 | AF32: 4.646105441 | AG32: 4.827940752 | AH32: 5.010877361 | AI32: 5.190826417 | AJ32: 5.363001593 | AK32: 5.522137805 | AL32: 5.66280257 | AM32: 5.779765439 | AN32: 5.868377782 | AO32: 5.924915259 | AP32: 5.946847012 | AQ32: 5.933011687 | AR32: 5.883693203 | AS32: 5.800595082 | AT32: 5.686713673 | AU32: 5.546113714 | AV32: 5.383619063 | AW32: 5.204446702 | AX32: 5.013827165 | AY32: 4.816661115 | AZ32: 4.617255129 | BA32: 4.419161643 | BB32: 4.225125554 | BC32: 4.037121206 | BD32: 3.856453022 | BE32: 3.683891144 | BF32: 3.519817291 | BG32: 3.364362322 | BH32: 3.217523094 | BI32: 3.079251327 | BJ32: 2.949511339 | BK32: 2.828307373 | BL32: 2.715684968 | BM32: 2.611714028 | BN32: 2.516463055 | BO32: 2.42997366 | BP32: 2.352242127 | BQ32: 2.283211303 | BR32: 2.22277276 | BS32: 2.170776906 | BT32: 2.127047793 | BU32: 2.091399564 | BV32: 2.063652261 | BW32: 2.043645601 | BX32: 2.031250108 | BY32: 2.026375507 | BZ32: 2.028976532 | CA32: 2.039056402 | CB32: 2.056668136 | CC32: 2.081913804 | CD32: 2.114941635 | CE32: 2.155940809 | CF32: 2.205133698 | CG32: 2.262765411 | CH32: 2.329090753 | CI32: 2.404359225 | CJ32: 2.488799448 | CK32: 2.582605297 | CL32: 2.685926793 | CM32: 2.798868957 | CN32: 2.921500896 | CO32: 3.053875114 | CP32: 3.196053638 | CQ32: 3.348134075 | CR32: 3.510266261 | CS32: 3.682649778 | CT32: 3.865504205 | CU32: 4.059007006 | CV32: 4.263197362 | CW32: 4.477847798 | CX32: 4.702309396 | CY32: 4.935341544 | CZ32: 5.174944 | DA32: 5.418216972 | DB32: 5.661281601 | DC32: 5.899294899 | DD32: 6.126585724 | DE32: 6.336920128 | DF32: 6.523878427 | DG32: 6.681300934 | DH32: 6.803744184 | DI32: 6.886890525 | DJ32: 6.927868705 | DK32: 6.925462821 | DL32: 6.88020215 | DM32: 6.794330919 | DN32: 6.671658148 | DO32: 6.517290738 | DP32: 6.337263853 | DQ32: 6.13810102 | DR32: 5.926354801 | DS32: 5.708187457 | DT32: 5.489043532 | DU32: 5.273444812 | DV32: 5.064911063 | DW32: 4.865987241 | DX32: 4.678345179 | DY32: 4.502925822 | DZ32: 4.340093517 | EA32: 4.189782554 | EB32: 4.051624776 | EC32: 3.925053807 | ED32: 3.809385955 | EE32: 3.703880283 | EF32: 3.607781359 | EG32: 3.52034834 | EH32: 3.440873655 | EI32: 3.368694014 | EJ32: 3.303195918 | EK32: 3.243817264 | EL32: 3.190046247 | EM32: 3.141418374 | EN32: 3.097512175 | EO32: 3.057943996 | EP32: 3.022362182 | EQ32: 2.990440932 | ER32: 2.961874174 | ES32: 2.936369911 | ET32: 2.913645583 | EU32: 2.893425052 | EV32: 2.875437689 | EW32: 2.859419752
B33: 4,5 | D33: 2.411693985 | E33: 2.438469665 | F33: 2.466831731 | G33: 2.496907234 | H33: 2.528839622 | I33: 2.562790821 | J33: 2.598943168 | K33: 2.637501199 | L33: 2.678693324 | M33: 2.722773431 | N33: 2.770022414 | O33: 2.820749573 | P33: 2.87529377 | Q33: 2.934024123 | R33: 2.997339929 | S33: 3.065669379 | T33: 3.139466459 | U33: 3.219205247 | V33: 3.305370592 | W33: 3.398443879 | X33: 3.498882367 | Y33: 3.607090336 | Z33: 3.723380231 | AA33: 3.8479222 | AB33: 3.980681106 | AC33: 4.121341493 | AD33: 4.269223321 | AE33: 4.4231946 | AF33: 4.581591179 | AG33: 4.742158008 | AH33: 4.902029005 | AI33: 5.057762295 | AJ33: 5.205442765 | AK33: 5.340854202 | AL33: 5.459710664 | AM33: 5.55792458 | AN33: 5.631881509 | AO33: 5.678690706 | AP33: 5.696386055 | AQ33: 5.684060416 | AR33: 5.641924495 | AS33: 5.571287113 | AT33: 5.474457933 | AU33: 5.354578513 | AV33: 5.215394497 | AW33: 5.060990457 | AX33: 4.895516351 | AY33: 4.722937191 | AZ33: 4.54683328 | BA33: 4.370268077 | BB33: 4.195727819 | BC33: 4.025125347 | BD33: 3.859852976 | BE33: 3.700866361 | BF33: 3.54878218 | BG33: 3.403975503 | BH33: 3.26666652 | BI33: 3.136989967 | BJ33: 3.015044012 | BK33: 2.900918412 | BL33: 2.794704515 | BM33: 2.696491814 | BN33: 2.606356939 | BO33: 2.52435088 | BP33: 2.450489012 | BQ33: 2.38474653 | BR33: 2.327059948 | BS33: 2.277333764 | BT33: 2.235450617 | BU33: 2.201283076 | BV33: 2.17470549 | BW33: 2.155604802 | BX33: 2.143889664 | BY33: 2.139497577 | BZ33: 2.142399995 | CA33: 2.152605448 | CB33: 2.170160733 | CC33: 2.195150227 | CD33: 2.227693277 | CE33: 2.267939618 | CF33: 2.316062782 | CG33: 2.372251555 | CH33: 2.436699773 | CI33: 2.50959511 | CJ33: 2.591107954 | CK33: 2.681381942 | CL33: 2.780527964 | CM33: 2.888623296 | CN33: 3.005716671 | CO33: 3.13183857 | CP33: 3.267014001 | CQ33: 3.411273042 | CR33: 3.564653153 | CS33: 3.727187087 | CT33: 3.898871294 | CU33: 4.07961171 | CV33: 4.269146436 | CW33: 4.466947764 | CX33: 4.672109413 | CY33: 4.883228823 | CZ33: 5.098298857 | DA33: 5.314627549 | DB33: 5.528807171 | DC33: 5.736752843 | DD33: 5.933824525 | DE33: 6.115034216 | DF33: 6.275324862 | DG33: 6.409893033 | DH33: 6.514518719 | DI33: 6.585865157 | DJ33: 6.621718517 | DK33: 6.621147723 | DL33: 6.584574209 | DM33: 6.513748111 | DN33: 6.411631971 | DO33: 6.282198401 | DP33: 6.130156309 | DQ33: 5.960630706 | DR33: 5.77883029 | DS33: 5.58974051 | DT33: 5.397874994 | DU33: 5.207106121 | DV33: 5.020579976 | DW33: 4.840706966 | DX33: 4.669210303 | DY33: 4.507211371 | DZ33: 4.355332574 | EA33: 4.213802558 | EB33: 4.082553781 | EC33: 3.961306994 | ED33: 3.849640644 | EE33: 3.747045491 | EF33: 3.652965973 | EG33: 3.566830406 | EH33: 3.488072178 | EI33: 3.416143887 | EJ33: 3.35052612 | EK33: 3.290732217 | EL33: 3.236310078 | EM33: 3.186841807 | EN33: 3.141941798 | EO33: 3.101253717 | EP33: 3.064446751 | EQ33: 3.031211469 | ER33: 3.001255635 | ES33: 2.974300373 | ET33: 2.950077075 | EU33: 2.928325458 | EV33: 2.908793027 | EW33: 2.891236017
D34: 2.437535908 | E34: 2.464864336 | F34: 2.493790345 | G34: 2.524441511 | H34: 2.55695914 | I34: 2.591499703 | J34: 2.628236264 | K34: 2.667359888 | L34: 2.709080963 | M34: 2.753630404 | N34: 2.801260642 | O34: 2.852246304 | P34: 2.906884413 | Q34: 2.965493897 | R34: 3.028414086 | S34: 3.096001819 | T34: 3.168626604 | U34: 3.246663202 | V34: 3.330480784 | W34: 3.420427728 | X34: 3.51681096 | Y34: 3.619868735 | Z34: 3.729735878 | AA34: 3.846400857 | AB34: 3.969654834 | AC34: 4.099034065 | AD34: 4.233758798 | AE34: 4.372674114 | AF34: 4.514200647 | AG34: 4.656305217 | AH34: 4.796502419 | AI34: 4.931897017 | AJ34: 5.059273228 | AK34: 5.175230603 | AL34: 5.276358528 | AM34: 5.359434139 | AN34: 5.42162389 | AO34: 5.460668091 | AP34: 5.475030363 | AQ34: 5.46399876 | AR34: 5.427730549 | AS34: 5.367237459 | AT34: 5.284312523 | AU34: 5.181404153 | AV34: 5.061448179 | AW34: 4.927673805 | AX34: 4.783403398 | AY34: 4.631866972 | AZ34: 4.476049488 | BA34: 4.318582898 | BB34: 4.161687125 | BC34: 4.007156738 | BD34: 3.856384737 | BE34: 3.710412122 | BF34: 3.569991551 | BG34: 3.43565479 | BH34: 3.307775798 | BI34: 3.186623889 | BJ34: 3.072403835 | BK34: 2.965282166 | BL34: 2.865400893 | BM34: 2.772881425 | BN34: 2.687822308 | BO34: 2.610294495 | BP34: 2.540337204 | BQ34: 2.477956372 | BR34: 2.423126502 | BS34: 2.375795711 | BT34: 2.33589316 | BU34: 2.303337786 | BV34: 2.278047321 | BW34: 2.259946755 | BX34: 2.248975703 | BY34: 2.245094325 | BZ34: 2.248287668 | CA34: 2.258568354 | CB34: 2.275977624 | CC34: 2.300584723 | CD34: 2.332484653 | CE34: 2.371794275 | CF34: 2.418646838 | CG34: 2.473185083 | CH34: 2.535553246 | CI34: 2.605888527 | CJ34: 2.68431283 | CK34: 2.770925778 | CL34: 2.865800056 | CM34: 2.968979859 | CN34: 3.08048255 | CO34: 3.200302671 | CP34: 3.32841618 | CQ34: 3.464781695 | CR34: 3.609334871 | CS34: 3.761972019 | CT34: 3.922519891 | CU34: 4.090690007 | CV34: 4.266017863 | CW34: 4.447789686 | CX34: 4.634962038 | CY34: 4.826082407 | CZ34: 5.019221725 | DA34: 5.211931954 | DB34: 5.401242556 | DC34: 5.583707892 | DD34: 5.755512581 | DE34: 5.912634006 | DF34: 6.05105174 | DG34: 6.166985105 | DH34: 6.257134761 | DI34: 6.318903421 | DJ34: 6.350574158 | DK34: 6.351430668 | DL34: 6.321810104 | DM34: 6.263084748 | DN34: 6.177573699 | DO34: 6.068391006 | DP34: 5.939242633 | DQ34: 5.794190943 | DR34: 5.63741022 | DS34: 5.472958138 | DT34: 5.30458493 | DU34: 5.135594766 | DV34: 4.968764632 | DW34: 4.80631719 | DX34: 4.649937797 | DY34: 4.50082276 | DZ34: 4.359745859 | EA34: 4.227132057 | EB34: 4.103130197 | EC34: 3.987679436 | ED34: 3.880566652 | EE34: 3.781473902 | EF34: 3.690016225 | EG34: 3.605770768 | EH34: 3.52829848 | EI34: 3.45715971 | EJ34: 3.391924906 | EK34: 3.332181497 | EL34: 3.277537812 | EM34: 3.227624777 | EN34: 3.18209593 | EO34: 3.140626234 | EP34: 3.102910066 | EQ34: 3.068658734 | ER34: 3.03759785 | ES34: 3.009464896 | ET34: 2.984007286 | EU34: 2.960981197 | EV34: 2.940151336 | EW34: 2.921291666
D35: 2.461875395 | E35: 2.489637692 | F35: 2.518996235 | G35: 2.550077713 | H35: 2.583019844 | I35: 2.617972176 | J35: 2.655097061 | K35: 2.694570702 | L35: 2.73658419 | M35: 2.781344367 | N35: 2.829074399 | O35: 2.880013885 | P35: 2.934418323 | Q35: 2.992557724 | R35: 3.054714096 | S35: 3.121177451 | T35: 3.192239901 | U35: 3.26818733 | V35: 3.349288011 | W35: 3.435777522 | X35: 3.527839228 | Y35: 3.625579749 | Z35: 3.728998971 | AA35: 3.83795464 | AB35: 3.952122198 | AC35: 4.070951579 | AD35: 4.19362392 | AE35: 4.319012669 | AF35: 4.445655017 | AG35: 4.571740565 | AH35: 4.695124281 | AI35: 4.813369512 | AJ35: 4.923823948 | AK35: 5.023727269 | AL35: 5.110344286 | AM35: 5.181113036 | AN35: 5.233794365 | AO35: 5.266608777 | AP35: 5.278347736 | AQ35: 5.2684494 | AR35: 5.237032422 | AS35: 5.18488509 | AT35: 5.113410798 | AU35: 5.024534487 | AV35: 4.920578403 | AW35: 4.804118851 | AX35: 4.677837813 | AY35: 4.544383676 | AZ35: 4.406253427 | BA35: 4.265704874 | BB35: 4.124702598 | BC35: 3.984896554 | BD35: 3.847628514 | BE35: 3.713959246 | BF35: 3.584708604 | BG35: 3.460501149 | BH35: 3.341811174 | BI35: 3.229002604 | BJ35: 3.122361028 | BK35: 3.022116787 | BL35: 2.928459514 | BM35: 2.841545643 | BN35: 2.761501066 | BO35: 2.688421293 | BP35: 2.622371145 | BQ35: 2.563385466 | BR35: 2.511471583 | BS35: 2.466613631 | BT35: 2.428778381 | BU35: 2.397921989 | BV35: 2.373996997 | BW35: 2.356959022 | BX35: 2.346772674 | BY35: 2.343416419 | BZ35: 2.346886185 | CA35: 2.357197628 | CB35: 2.374387012 | CC35: 2.398510684 | CD35: 2.429643172 | CE35: 2.467873931 | CF35: 2.513302846 | CG35: 2.566034665 | CH35: 2.626172661 | CI35: 2.69381196 | CJ35: 2.769033089 | CK35: 2.851896391 | CL35: 2.942437844 | CM35: 3.040666612 | CN35: 3.146564147 | CO35: 3.260084019 | CP35: 3.381150906 | CQ35: 3.509656565 | CR35: 3.645450285 | CS35: 3.78832144 | CT35: 3.937972403 | CU35: 4.093981175 | CV35: 4.255754552 | CW35: 4.422474416 | CX35: 4.59304163 | CY35: 4.766023949 | CZ35: 4.939616023 | DA35: 5.111620581 | DB35: 5.279459731 | DC35: 5.440223496 | DD35: 5.590759009 | DE35: 5.727798546 | DF35: 5.84811867 | DG35: 5.94871745 | DH35: 6.026993378 | DI35: 6.080908821 | DJ35: 6.109122621 | DK35: 6.111079982 | DL35: 6.087052012 | DM35: 6.038121718 | DN35: 5.96611748 | DO35: 5.873499365 | DP35: 5.763208007 | DQ35: 5.638489754 | DR35: 5.502714536 | DS35: 5.359203441 | DT35: 5.211080854 | DU35: 5.061161585 | DV35: 4.911877667 | DW35: 4.765243892 | DX35: 4.622856746 | DY35: 4.485918844 | DZ35: 4.35528028 | EA35: 4.231488954 | EB35: 4.114843526 | EC35: 4.005444399 | ED35: 3.903239893 | EE35: 3.808066143 | EF35: 3.719680294 | EG35: 3.637787222 | EH35: 3.562060403 | EI35: 3.492157723 | EJ35: 3.427733047 | EK35: 3.368444328 | EL35: 3.313958953 | EM35: 3.263956914 | EN35: 3.218132312 | EO35: 3.176193617 | EP35: 3.137863057 | EQ35: 3.102875462 | ER35: 3.070976872 | ES35: 3.041923184 | ET35: 3.015479095 | EU35: 2.991417537 | EV35: 2.969519715 | EW35: 2.949575769
D36: 2.484715985 | E36: 2.512791914 | F36: 2.542452199 | G36: 2.573822027 | H36: 2.607034715 | I36: 2.642231902 | J36: 2.679564128 | K36: 2.719191647 | L36: 2.761285296 | M36: 2.806027185 | N36: 2.853610991 | O36: 2.904241677 | P36: 2.958134442 | Q36: 3.015512714 | R36: 3.076604957 | S36: 3.141640018 | T36: 3.210840678 | U36: 3.284415027 | V36: 3.36254524 | W36: 3.445373305 | X36: 3.532983312 | Y36: 3.625380049 | Z36: 3.722463843 | AA36: 3.824002039 | AB36: 3.929598017 | AC36: 4.038659461 | AD36: 4.150368434 | AE36: 4.263656791 | AF36: 4.37719125 | AG36: 4.489372833 | AH36: 4.598355149 | AI36: 4.702084833 | AJ36: 4.798365348 | AK36: 4.884942553 | AL36: 4.959607272 | AM36: 5.020307331 | AN36: 5.065259678 | AO36: 5.093052619 | AP36: 5.102729001 | AQ36: 5.093842985 | AR36: 5.066485528 | AS36: 5.02127647 | AT36: 4.959324004 | AU36: 4.882155108 | AV36: 4.791623221 | AW36: 4.689801626 | AX36: 4.578872337 | AY36: 4.46102042 | AZ36: 4.338342409 | BA36: 4.212775054 | BB36: 4.086047523 | BC36: 3.959657045 | BD36: 3.834865344 | BE36: 3.712711454 | BF36: 3.594035717 | BG36: 3.479509769 | BH36: 3.369667979 | BI36: 3.264936834 | BJ36: 3.165659897 | BK36: 3.072117219 | BL36: 2.984539085 | BM36: 2.903114838 | BN36: 2.827998032 | BO36: 2.759309367 | BP36: 2.697138753 | BQ36: 2.641547538 | BR36: 2.592571514 | BS36: 2.550224913 | BT36: 2.514505275 | BU36: 2.485398873 | BV36: 2.4628863 | BW36: 2.446947818 | BX36: 2.437568144 | BY36: 2.434740408 | BZ36: 2.438469136 | CA36: 2.448772122 | CB36: 2.465681155 | CC36: 2.489241574 | CD36: 2.519510674 | CE36: 2.556555004 | CF36: 2.600446673 | CG36: 2.651258817 | CH36: 2.709060479 | CI36: 2.773911224 | CJ36: 2.84585585 | CK36: 2.924919587 | CL36: 3.01110405 | CM36: 3.104384027 | CN36: 3.20470483 | CO36: 3.311979517 | CP36: 3.426084875 | CQ36: 3.546854702 | CR36: 3.674068804 | CS36: 3.807436334 | CT36: 3.946572565 | CU36: 4.090969067 | CV36: 4.239958323 | CW36: 4.392675111 | CX36: 4.548018282 | CY36: 4.70461785 | CZ36: 4.860813208 | DA36: 5.01464871 | DB36: 5.163892338 | DC36: 5.306081632 | DD36: 5.438598346 | DE36: 5.558769782 | DF36: 5.663990903 | DG36: 5.751857982 | DH36: 5.820302352 | DI36: 5.867712223 | DJ36: 5.893031542 | DK36: 5.895827068 | DL36: 5.876317833 | DM36: 5.835364438 | DN36: 5.774418991 | DO36: 5.695439884 | DP36: 5.600778715 | DQ36: 5.493049358 | DR36: 5.374990818 | DS36: 5.249335719 | DT36: 5.118694873 | DU36: 4.985465549 | DV36: 4.851767399 | DW36: 4.719406339 | DX36: 4.5898636 | DY36: 4.464305169 | DZ36: 4.343605964 | EA36: 4.228383181 | EB36: 4.119033994 | EC36: 4.015773872 | ED36: 3.918672878 | EE36: 3.827688362 | EF36: 3.742693238 | EG36: 3.663499652 | EH36: 3.589878197 | EI36: 3.521573096 | EJ36: 3.458313851 | EK36: 3.399823892 | EL36: 3.345826746 | EM36: 3.296050192 | EN36: 3.250228829 | EO36: 3.208105418 | EP36: 3.169431346 | EQ36: 3.133966494 | ER36: 3.101478799 | ES36: 3.07174373 | ET36: 3.044543914 | EU36: 3.019669048 | EV36: 2.996916198 | EW36: 2.976090506
D37: 2.506071304 | E37: 2.534339684 | F37: 2.564172099 | G37: 2.595692467 | H37: 2.629029524 | I37: 2.664316411 | J37: 2.701690987 | K37: 2.741296624 | L37: 2.78328314 | M37: 2.827807519 | N37: 2.875034128 | O37: 2.925134222 | P37: 2.97828457 | Q37: 3.034665057 | R37: 3.094455082 | S37: 3.157828584 | T37: 3.224947432 | U37: 3.295952948 | V37: 3.370955272 | W37: 3.45002033 | X37: 3.533154221 | Y37: 3.620285 | Z37: 3.711242034 | AA37: 3.805733474 | AB37: 3.903322816 | AC37: 4.00340608 | AD37: 4.105191725 | AE37: 4.207685999 | AF37: 4.309686826 | AG37: 4.409789401 | AH37: 4.506406321 | AI37: 4.597804073 | AJ37: 4.682156222 | AK37: 4.757611658 | AL37: 4.822374258 | AM37: 4.874788446 | AN37: 4.913423996 | AO37: 4.937152977 | AP37: 4.945212275 | AQ37: 4.9372463 | AR37: 4.913326271 | AS37: 4.873944487 | AT37: 4.819984176 | AU37: 4.75266761 | AV37: 4.673487113 | AW37: 4.584125089 | AX37: 4.48637006 | AY37: 4.382035745 | AZ37: 4.272889381 | BA37: 4.16059389 | BB37: 4.046666475 | BC37: 3.932454097 | BD37: 3.819124478 | BE37: 3.707669899 | BF37: 3.598920366 | BG37: 3.493562549 | BH37: 3.392161182 | BI37: 3.295180231 | BJ37: 3.203001919 | BK37: 3.115942491 | BL37: 3.034264383 | BM37: 2.958185036 | BN37: 2.88788304 | BO37: 2.823502462 | BP37: 2.765156227 | BQ37: 2.712929248 | BR37: 2.666881794 | BS37: 2.627053288 | BT37: 2.593466554 | BU37: 2.566132337 | BV37: 2.545053875 | BW37: 2.530231252 | BX37: 2.521665288 | BY37: 2.519360785 | BZ37: 2.523328964 | CA37: 2.533589015 | CB37: 2.550168682 | CC37: 2.573103884 | CD37: 2.602437377 | CE37: 2.638216506 | CF37: 2.680490144 | CG37: 2.729304962 | CH37: 2.784701195 | CI37: 2.846708159 | CJ37: 2.915339733 | CK37: 2.99059004 | CL37: 3.072429438 | CM37: 3.160800792 | CN37: 3.255615753 | CO37: 3.35675052 | CP37: 3.4640403 | CQ37: 3.57727153 | CR37: 3.696170894 | CS37: 3.820390384 | CT37: 3.94948805 | CU37: 4.082904728 | CV37: 4.21993783 | CW37: 4.359714173 | CX37: 4.501164735 | CY37: 4.643005 | CZ37: 4.783725045 | DA37: 4.921593595 | DB37: 5.05467969 | DC37: 5.180894344 | DD37: 5.298052642 | DE37: 5.403954274 | DF37: 5.496478021 | DG37: 5.573683475 | DH37: 5.633911877 | DI37: 5.67587751 | DJ37: 5.698741706 | DK37: 5.702162989 | DL37: 5.686319015 | DM37: 5.651898337 | DN37: 5.600062642 | DO37: 5.532382595 | DP37: 5.450752709 | DQ37: 5.357292493 | DR37: 5.254242214 | DS37: 5.143861675 | DT37: 5.028339517 | DU37: 4.909718684 | DV37: 4.789841349 | DW37: 4.670314109 | DX37: 4.552492133 | DY37: 4.437479407 | DZ37: 4.326141397 | EA37: 4.219126249 | EB37: 4.116890977 | EC37: 4.01972967 | ED37: 3.92780148 | EE37: 3.841156844 | EF37: 3.759761016 | EG37: 3.683514452 | EH37: 3.612269958 | EI37: 3.545846714 | EJ37: 3.484041458 | EK37: 3.42663716 | EL37: 3.373409537 | EM37: 3.324131775 | EN37: 3.278577786 | EO37: 3.23652431 | EP37: 3.19775215 | EQ37: 3.1620468 | ER37: 3.129198707 | ES37: 3.099003379 | ET37: 3.071261524 | EU37: 3.045779349 | EV37: 3.022369114 | EW37: 3.000849935
B38: 4 | D38: 2.525963921 | E38: 2.554302024 | F38: 2.584177821 | G38: 2.615715199 | H38: 2.64903876 | I38: 2.684272811 | J38: 2.721541672 | K38: 2.760970822 | L38: 2.802688258 | M38: 2.846825533 | N38: 2.893518102 | O38: 2.942904779 | P38: 2.995126189 | Q38: 3.050322134 | R38: 3.108627796 | S38: 3.170168655 | T38: 3.235054003 | U38: 3.303368876 | V38: 3.375164283 | W38: 3.450445597 | X38: 3.529159097 | Y38: 3.61117677 | Z38: 3.69627967 | AA38: 3.784140442 | AB38: 3.874305911 | AC38: 3.966181054 | AD38: 4.059016047 | AE38: 4.151898409 | AF38: 4.243752431 | AG38: 4.333348037 | AH38: 4.419320795 | AI38: 4.500204066 | AJ38: 4.574473131 | AK38: 4.640599836 | AL38: 4.697114879 | AM38: 4.742673717 | AN38: 4.77612124 | AO38: 4.796550124 | AP38: 4.803348132 | AQ38: 4.796230423 | AR38: 4.775254234 | AS38: 4.740814755 | AT38: 4.693622636 | AU38: 4.634665108 | AV38: 4.565154115 | AW38: 4.486465871 | AX38: 4.400076891 | AY38: 4.307501533 | AZ38: 4.210235555 | BA38: 4.109709134 | BB38: 4.007251446 | BC38: 3.904067458 | BD38: 3.801226303 | BE38: 3.699659597 | BF38: 3.600167445 | BG38: 3.503429674 | BH38: 3.410019895 | BI38: 3.320420394 | BJ38: 3.235036279 | BK38: 3.154207936 | BL38: 3.078221314 | BM38: 3.007316019 | BN38: 2.94169155 | BO38: 2.881512128 | BP38: 2.826910672 | BQ38: 2.777992365 | BR38: 2.734838168 | BS38: 2.697508443 | BT38: 2.666046739 | BU38: 2.64048367 | BV38: 2.62084073 | BW38: 2.607133893 | BX38: 2.599376818 | BY38: 2.59758351 | BZ38: 2.601770328 | CA38: 2.611957251 | CB38: 2.62816835 | CC38: 2.650431455 | CD38: 2.678777023 | CE38: 2.713236257 | CF38: 2.753838544 | CG38: 2.800608324 | CH38: 2.85356153 | CI38: 2.912701744 | CJ38: 2.978016235 | CK38: 3.049471978 | CL38: 3.127011708 | CM38: 3.210549935 | CN38: 3.299968687 | CO38: 3.395112595 | CP38: 3.495782813 | CQ38: 3.601729168 | CR38: 3.712640008 | CS38: 3.828129379 | CT38: 3.947721508 | CU38: 4.070833031 | CV38: 4.196753984 | CW38: 4.324629208 | CX38: 4.45344238 | CY38: 4.582005393 | CZ38: 4.708956003 | DA38: 4.832766577 | DB38: 4.951766258 | DC38: 5.064177812 | DD38: 5.168169091 | DE38: 5.261917313 | DF38: 5.34368269 | DG38: 5.411886493 | DH38: 5.465187678 | DI38: 5.50255191 | DJ38: 5.523307264 | DK38: 5.527181851 | DL38: 5.514320172 | DM38: 5.485276746 | DN38: 5.440987473 | DO38: 5.382721069 | DP38: 5.31201453 | DQ38: 5.23059792 | DR38: 5.140314461 | DS38: 5.043042016 | DT38: 4.940621396 | DU38: 4.834795772 | DV38: 4.727163847 | DW38: 4.619147805 | DX38: 4.511975538 | DY38: 4.406675491 | DZ38: 4.304081738 | EA38: 4.204846637 | EB38: 4.109458472 | EC38: 4.018261772 | ED38: 3.931478498 | EE38: 3.849228691 | EF38: 3.771549672 | EG38: 3.698413227 | EH38: 3.629740523 | EI38: 3.565414705 | EJ38: 3.505291263 | EK38: 3.449206362 | EL38: 3.396983351 | EM38: 3.348437714 | EN38: 3.303380709 | EO38: 3.261621942 | EP38: 3.222971115 | EQ38: 3.187239169 | ER38: 3.15423904 | ES38: 3.123786209 | ET38: 3.095699221 | EU38: 3.069800292 | EV38: 3.045916088 | EW38: 3.023878693
D39: 2.544424186 | E39: 2.572705839 | F39: 2.602495772 | G39: 2.6339204 | H39: 2.667101244 | I39: 2.702153414 | J39: 2.73918645 | K39: 2.77830648 | L39: 2.819618556 | M39: 2.863228364 | N39: 2.909242909 | O39: 2.957770025 | P39: 3.008916724 | Q39: 3.062786418 | R39: 3.119475029 | S39: 3.179065958 | T39: 3.241623863 | U39: 3.307187175 | V39: 3.37575929 | W39: 3.447298439 | X39: 3.521706282 | Y39: 3.598815428 | Z39: 3.678376246 | AA39: 3.760043511 | AB39: 3.843363737 | AC39: 3.927764238 | AD39: 4.012545274 | AE39: 4.096876739 | AF39: 4.179800964 | AG39: 4.260243026 | AH39: 4.337029621 | AI39: 4.408916948 | AJ39: 4.474627245 | AK39: 4.532892687 | AL39: 4.582504417 | AM39: 4.62236369 | AN39: 4.651531592 | AO39: 4.66927364 | AP39: 4.675095812 | AQ39: 4.668769167 | AR39: 4.650341101 | AS39: 4.620132391 | AT39: 4.578720348 | AU39: 4.526909526 | AV39: 4.465692466 | AW39: 4.396203686 | AX39: 4.319670561 | AY39: 4.237364772 | AZ39: 4.150557603 | BA39: 4.060481724 | BB39: 3.968301124 | BC39: 3.875089917 | BD39: 3.781819791 | BE39: 3.689355153 | BF39: 3.598454508 | BG39: 3.50977639 | BH39: 3.423888147 | BI39: 3.341276067 | BJ39: 3.262355652 | BK39: 3.18748118 | BL39: 3.116954099 | BM39: 3.05103008 | BN39: 2.989924817 | BO39: 2.933818827 | BP39: 2.882861536 | BQ39: 2.83717494 | BR39: 2.796857086 | BS39: 2.76198549 | BT39: 2.73262054 | BU39: 2.708808872 | BV39: 2.690586616 | BW39: 2.677982408 | BX39: 2.671020059 | BY39: 2.669720754 | BZ39: 2.674104709 | CA39: 2.684192206 | CB39: 2.700003967 | CC39: 2.721560857 | CD39: 2.748882917 | CE39: 2.78198777 | CF39: 2.820888446 | CG39: 2.865590725 | CH39: 2.916090077 | CI39: 2.972368317 | CJ39: 3.034390053 | CK39: 3.102099014 | CL39: 3.175414223 | CM39: 3.254225983 | CN39: 3.338391468 | CO39: 3.427729673 | CP39: 3.522015393 | CQ39: 3.620971881 | CR39: 3.724261912 | CS39: 3.831477141 | CT39: 3.942125901 | CU39: 4.055619926 | CV39: 4.171260923 | CW39: 4.288228292 | CX39: 4.405569718 | CY39: 4.522196593 | CZ39: 4.636886319 | DA39: 4.748293385 | DB39: 4.854970626 | DC39: 4.955401323 | DD39: 5.048041771 | DE39: 5.131372793 | DF39: 5.203957497 | DG39: 5.264501633 | DH39: 5.311912257 | DI39: 5.345350225 | DJ39: 5.364272355 | DK39: 5.368459803 | DL39: 5.358030292 | DM39: 5.33343313 | DN39: 5.295427362 | DO39: 5.24504475 | DP39: 5.183540517 | DQ39: 5.112335662 | DR39: 5.032955239 | DS39: 4.946966993 | DT39: 4.855924409 | DU39: 4.761317376 | DV39: 4.66453265 | DW39: 4.566825134 | DX39: 4.469299918 | DY39: 4.372904166 | DZ39: 4.278427336 | EA39: 4.186507912 | EB39: 4.097644782 | EC39: 4.012211536 | ED39: 3.930472185 | EE39: 3.852597159 | EF39: 3.7786787 | EG39: 3.708745096 | EH39: 3.642773396 | EI39: 3.580700467 | EJ39: 3.522432358 | EK39: 3.467852043 | EL39: 3.416825679 | EM39: 3.369207527 | EN39: 3.324843725 | EO39: 3.283575099 | EP39: 3.245239196 | EQ39: 3.209671735 | ER39: 3.176707663 | ES39: 3.146181981 | ET39: 3.117930517 | EU39: 3.091790756 | EV39: 3.06760283 | EW39: 3.04521068
D40: 2.561489088 | E40: 2.589580873 | F40: 2.619152464 | G40: 2.650337247 | H40: 2.683255188 | I40: 2.718011219 | J40: 2.75469778 | K40: 2.793399179 | L40: 2.834195714 | M40: 2.877166459 | N40: 2.922390393 | O40: 2.969945943 | P40: 3.019909204 | Q40: 3.072350997 | R40: 3.127332917 | S40: 3.184902413 | T40: 3.245086908 | U40: 3.307886955 | V40: 3.373268429 | W40: 3.4411538 | X40: 3.51141261 | Y40: 3.583851368 | Z40: 3.658203234 | AA40: 3.734118 | AB40: 3.811153067 | AC40: 3.888766288 | AD40: 3.966311682 | AE40: 4.043039112 | AF40: 4.118098997 | AG40: 4.190552991 | AH40: 4.259391214 | AI40: 4.323556206 | AJ40: 4.381973152 | AK40: 4.433585275 | AL40: 4.47739266 | AM40: 4.512492229 | AN40: 4.538116255 | AO40: 4.553666708 | AP40: 4.558742906 | AQ40: 4.553160415 | AR40: 4.536959751 | AS40: 4.510404274 | AT40: 4.473967507 | AU40: 4.428310934 | AV40: 4.37425409 | AW40: 4.312739289 | AX40: 4.244793631 | AY40: 4.171490995 | AZ40: 4.093916464 | BA40: 4.013135159 | BB40: 3.930166851 | BC40: 3.845967026 | BD40: 3.761414408 | BE40: 3.677304435 | BF40: 3.594347732 | BG40: 3.513172463 | BH40: 3.434329361 | BI40: 3.358298309 | BJ40: 3.285495562 | BK40: 3.216280896 | BL40: 3.150964244 | BM40: 3.089811598 | BN40: 3.033050132 | BO40: 2.980872642 | BP40: 2.933441448 | BQ40: 2.890891926 | BR40: 2.853335813 | BS40: 2.820864372 | BT40: 2.793551454 | BU40: 2.771456458 | BV40: 2.754627115 | BW40: 2.743102043 | BX40: 2.736912984 | BY40: 2.736086637 | BZ40: 2.740646025 | CA40: 2.750611346 | CB40: 2.766000266 | CC40: 2.786827645 | CD40: 2.813104703 | CE40: 2.844837649 | CF40: 2.882025822 | CG40: 2.924659396 | CH40: 2.972716725 | CI40: 3.026161387 | CJ40: 3.084938996 | CK40: 3.148973806 | CL40: 3.218165096 | CM40: 3.29238329 | CN40: 3.371465667 | CO40: 3.455211516 | CP40: 3.543376532 | CQ40: 3.635666275 | CR40: 3.731728592 | CS40: 3.831145024 | CT40: 3.933421439 | CU40: 4.037978368 | CV40: 4.144141815 | CW40: 4.2511356 | CX40: 4.358076498 | CY40: 4.463973622 | CZ40: 4.567733452 | DA40: 4.66817176 | DB40: 4.764033269 | DC40: 4.854019328 | DD40: 4.936823113 | DE40: 5.011171068 | DF40: 5.075868497 | DG40: 5.129846552 | DH40: 5.17220747 | DI40: 5.20226477 | DJ40: 5.219575369 | DK40: 5.2239611 | DL40: 5.215517893 | DM40: 5.194611842 | DN40: 5.161862409 | DO40: 5.118114018 | DP40: 5.064398168 | DQ40: 5.001888875 | DR40: 4.931854629 | DS40: 4.855610141 | DT40: 4.774470852 | DU40: 4.689712698 | DV40: 4.602538864 | DW40: 4.514054483 | DX40: 4.425249468 | DY40: 4.336989003 | DZ40: 4.250010755 | EA40: 4.164927585 | EB40: 4.082234415 | EC40: 4.002317961 | ED40: 3.925468176 | EE40: 3.851890424 | EF40: 3.781717641 | EG40: 3.715021931 | EH40: 3.65182524 | EI40: 3.59210887 | EJ40: 3.535821772 | EK40: 3.482887573 | EL40: 3.433210406 | EM40: 3.386679625 | EN40: 3.343173527 | EO40: 3.302562203 | EP40: 3.26470967 | EQ40: 3.229475447 | ER40: 3.196715725 | ES40: 3.166284315 | ET40: 3.138033539 | EU40: 3.111815206 | EV40: 3.087481775 | EW40: 3.064887748
D41: 2.577201143 | E41: 2.60495551 | F41: 2.634168353 | G41: 2.664987324 | H41: 2.697532322 | I41: 2.731895207 | J41: 2.76814666 | K41: 2.806344869 | L41: 2.846542523 | M41: 2.888790935 | N41: 2.933141465 | O41: 2.979644875 | P41: 3.028349203 | Q41: 3.07929655 | R41: 3.13251902 | S41: 3.188033904 | T41: 3.245838163 | U41: 3.305902227 | V41: 3.368163146 | W41: 3.432517156 | X41: 3.498811816 | Y41: 3.566837933 | Z41: 3.636321602 | AA41: 3.706916827 | AB41: 3.778199279 | AC41: 3.849661892 | AD41: 3.920713044 | AE41: 3.990678129 | AF41: 4.05880524 | AG41: 4.124275556 | AH41: 4.18621878 | AI41: 4.243733579 | AJ41: 4.295912591 | AK41: 4.341871068 | AL41: 4.380777792 | AM41: 4.411886536 | AN41: 4.434566111 | AO41: 4.448327015 | AP41: 4.452842821 | AQ41: 4.447964793 | AR41: 4.43372867 | AS41: 4.410353183 | AT41: 4.37823045 | AU41: 4.337909045 | AV41: 4.290071061 | AW41: 4.23550486 | AX41: 4.175075502 | AY41: 4.10969479 | AZ41: 4.040292816 | BA41: 3.967792488 | BB41: 3.893088154 | BC41: 3.817028923 | BD41: 3.740406836 | BE41: 3.663949607 | BF41: 3.588317369 | BG41: 3.51410267 | BH41: 3.441832859 | BI41: 3.371974071 | BJ41: 3.30493609 | BK41: 3.241077523 | BL41: 3.180710894 | BM41: 3.124107422 | BN41: 3.071501362 | BO41: 3.023093927 | BP41: 2.979056838 | BQ41: 2.939535574 | BR41: 2.90465241 | BS41: 2.874509298 | BT41: 2.849190597 | BU41: 2.828765668 | BV41: 2.813291279 | BW41: 2.802813785 | BX41: 2.79737101 | BY41: 2.796993785 | BZ41: 2.801707085 | CA41: 2.811530722 | CB41: 2.826479571 | CC41: 2.846563318 | CD41: 2.871785726 | CE41: 2.902143453 | CF41: 2.937624437 | CG41: 2.978205902 | CH41: 3.02385203 | CI41: 3.074511345 | CJ41: 3.130113839 | CK41: 3.190567875 | CL41: 3.255756837 | CM41: 3.3255355 | CN41: 3.399726042 | CO41: 3.478113597 | CP41: 3.560441263 | CQ41: 3.646404478 | CR41: 3.735644782 | CS41: 3.82774306 | CT41: 3.922212529 | CU41: 4.018491922 | CV41: 4.115939493 | CW41: 4.213828671 | CX41: 4.311346323 | CY41: 4.407594631 | CZ41: 4.501597584 | DA41: 4.592312856 | DB41: 4.678649581 | DC41: 4.759492042 | DD41: 4.833728801 | DE41: 4.900286167 | DF41: 4.95816439 | DG41: 5.006474491 | DH41: 5.044473384 | DI41: 5.071594864 | DJ41: 5.087474239 | DK41: 5.091964737 | DL41: 5.085144429 | DM41: 5.067313098 | DN41: 5.038979229 | DO41: 5.000838042 | DP41: 4.953742149 | DQ41: 4.898666869 | DR41: 4.83667259 | DS41: 4.768866564 | DT41: 4.696366412 | DU41: 4.62026723 | DV41: 4.541613695 | DW41: 4.461378036 | DX41: 4.380444147 | DY41: 4.299597661 | DZ41: 4.219521412 | EA41: 4.140795472 | EB41: 4.063900821 | EC41: 3.989225686 | ED41: 3.917073661 | EE41: 3.847672811 | EF41: 3.781185139 | EG41: 3.717715907 | EH41: 3.657322457 | EI41: 3.600022296 | EJ41: 3.545800302 | EK41: 3.494614988 | EL41: 3.446403814 | EM41: 3.401087577 | EN41: 3.358573946 | EO41: 3.318760207 | EP41: 3.281535342 | EQ41: 3.246781556 | ER41: 3.214375397 | ES41: 3.184188652 | ET41: 3.15608921 | EU41: 3.12994207 | EV41: 3.105610647 | EW41: 3.082958432
D42: 2.591607343 | E42: 2.618850141 | F42: 2.647548234 | G42: 2.67787526 | H42: 2.709950707 | I42: 2.743845639 | J42: 2.779599776 | K42: 2.81723804 | L42: 2.85678142 | M42: 2.898252091 | N42: 2.941674451 | O42: 2.987073688 | P42: 3.034472926 | Q42: 3.08388953 | R42: 3.135330836 | S42: 3.188789418 | T42: 3.244237912 | U42: 3.301623436 | V42: 3.360861616 | W42: 3.42183033 | X42: 3.484363273 | Y42: 3.548243576 | Z42: 3.613197765 | AA42: 3.678890436 | AB42: 3.744920114 | AC42: 3.810816826 | AD42: 3.876041953 | AE42: 3.939990935 | AF42: 4.001999316 | AG42: 4.061352505 | AH42: 4.117299405 | AI42: 4.169069792 | AJ42: 4.215895029 | AK42: 4.257031331 | AL42: 4.291784518 | AM42: 4.319534929 | AN42: 4.339761044 | AO42: 4.352060299 | AP42: 4.356165765 | AQ42: 4.351957531 | AR42: 4.339468049 | AS42: 4.318881085 | AT42: 4.290524419 | AU42: 4.254856842 | AV42: 4.212450438 | AW42: 4.163969409 | AX42: 4.110146875 | AY42: 4.051761149 | AZ42: 3.989612844 | BA42: 3.92450401 | BB42: 3.857220155 | BC42: 3.788515707 | BD42: 3.719103097 | BE42: 3.649645374 | BF42: 3.580752001 | BG42: 3.512977343 | BH42: 3.446821242 | BI42: 3.382731115 | BJ42: 3.321105026 | BK42: 3.262295282 | BL42: 3.206612213 | BM42: 3.154327922 | BN42: 3.105679844 | BO42: 3.060874089 | BP42: 3.020088542 | BQ42: 2.983475765 | BR42: 2.951165707 | BS42: 2.923268274 | BT42: 2.899875744 | BU42: 2.881065027 | BV42: 2.866899745 | BW42: 2.85743209 | BX42: 2.852704425 | BY42: 2.852750568 | BZ42: 2.857596744 | CA42: 2.867262145 | CB42: 2.881759105 | CC42: 2.901092861 | CD42: 2.925260905 | CE42: 2.954251951 | CF42: 2.988044527 | CG42: 3.026605233 | CH42: 3.069886695 | CI42: 3.117825236 | CJ42: 3.17033832 | CK42: 3.22732174 | CL42: 3.288646588 | CM42: 3.354155952 | CN42: 3.423661323 | CO42: 3.496938652 | CP42: 3.57372405 | CQ42: 3.653709089 | CR42: 3.736535807 | CS42: 3.821791529 | CT42: 3.909003779 | CU42: 3.997635667 | CV42: 4.087082269 | CW42: 4.176668627 | CX42: 4.265650089 | CY42: 4.353215699 | CZ42: 4.438495316 | DA42: 4.520570946 | DB42: 4.598492557 | DC42: 4.671298285 | DD42: 4.738038554 | DE42: 4.797803218 | DF42: 4.849750453 | DG42: 4.893135809 | DH42: 4.92733966 | DI42: 4.951891262 | DJ42: 4.966487759 | DK42: 4.971006776 | DL42: 4.965511666 | DM42: 4.950248991 | DN42: 4.925638361 | DO42: 4.892255333 | DP42: 4.850808505 | DQ42: 4.802112335 | DR42: 4.74705745 | DS42: 4.686580223 | DT42: 4.621633349 | DU42: 4.553158887 | DV42: 4.482064886 | DW42: 4.409206339 | DX42: 4.335370796 | DY42: 4.261268612 | DZ42: 4.187527493 | EA42: 4.114690823 | EB42: 4.0432191 | EC42: 3.973493791 | ED42: 3.9058229 | EE42: 3.840447657 | EF42: 3.777549767 | EG42: 3.717258812 | EH42: 3.659659455 | EI42: 3.604798221 | EJ42: 3.552689688 | EK42: 3.503321984 | EL42: 3.45666155 | EM42: 3.412657145 | EN42: 3.371243103 | EO42: 3.332341881 | EP42: 3.295865956 | EQ42: 3.261719151 | ER42: 3.229797531 | ES42: 3.199990054 | ET42: 3.172179215 | EU42: 3.146241933 | EV42: 3.122050937 | EW42: 3.099476737
B43: 3,5 | D43: 2.604758183 | E43: 2.631265078 | F43: 2.659264656 | G43: 2.688974623 | H43: 2.720506036 | I43: 2.753890098 | J43: 2.789118359 | K43: 2.826171712 | L43: 2.865034609 | M43: 2.905699238 | N43: 2.948164536 | O43: 2.992432938 | P43: 3.03850627 | Q43: 3.086381331 | R43: 3.136045335 | S43: 3.187471225 | T43: 3.240612836 | U43: 3.295399891 | V43: 3.351732848 | W43: 3.409477661 | X43: 3.468460577 | Y43: 3.528463163 | Z43: 3.58921779 | AA43: 3.650403908 | AB43: 3.711645461 | AC43: 3.772509866 | AD43: 3.832508961 | AE43: 3.891102327 | AF43: 3.947703327 | AG43: 4.001688052 | AH43: 4.052407256 | AI43: 4.099201102 | AJ43: 4.141416339 | AK43: 4.178425271 | AL43: 4.209645686 | AM43: 4.234560707 | AN43: 4.252737482 | AO43: 4.263843571 | AP43: 4.267660041 | AQ43: 4.264090404 | AR43: 4.253164858 | AS43: 4.235039567 | AT43: 4.209991058 | AU43: 4.178406187 | AV43: 4.14076836 | AW43: 4.097640952 | AX43: 4.049649006 | AY43: 3.997460315 | AZ43: 3.941766927 | BA43: 3.883267999 | BB43: 3.82265469 | BC43: 3.760597563 | BD43: 3.697736702 | BE43: 3.634674553 | BF43: 3.571971292 | BG43: 3.510142382 | BH43: 3.449657953 | BI43: 3.390943545 | BJ43: 3.334381839 | BK43: 3.280315016 | BL43: 3.229047451 | BM43: 3.180848557 | BN43: 3.135955616 | BO43: 3.094576537 | BP43: 3.056892489 | BQ43: 3.023060404 | BR43: 2.99321535 | BS43: 2.967472774 | BT43: 2.945930607 | BU43: 2.928671226 | BV43: 2.915763242 | BW43: 2.907263082 | BX43: 2.903216349 | BY43: 2.903658897 | BZ43: 2.908617626 | CA43: 2.918110934 | CB43: 2.932148849 | CC43: 2.950732798 | CD43: 2.973855036 | CE43: 3.001497736 | CF43: 3.033631759 | CG43: 3.070215127 | CH43: 3.11119122 | CI43: 3.156486727 | CJ43: 3.206009369 | CK43: 3.259645398 | CL43: 3.317256896 | CM43: 3.378678843 | CN43: 3.443715966 | CO43: 3.512139342 | CP43: 3.583682785 | CQ43: 3.658039037 | CR43: 3.734855861 | CS43: 3.813732195 | CT43: 3.894214601 | CU43: 3.975794337 | CV43: 4.057905475 | CW43: 4.139924532 | CX43: 4.22117215 | CY43: 4.300917321 | CZ43: 4.378384613 | DA43: 4.452764682 | DB43: 4.52322821 | DC43: 4.588943078 | DD43: 4.649094388 | DE43: 4.702906551 | DF43: 4.749666478 | DG43: 4.788746633 | DH43: 4.819626635 | DI43: 4.84191205 | DJ43: 4.855349164 | DK43: 4.859834701 | DL43: 4.855419824 | DM43: 4.842308083 | DN43: 4.820847432 | DO43: 4.791516801 | DP43: 4.754908099 | DQ43: 4.711704766 | DR43: 4.66265819 | DS43: 4.608563351 | DT43: 4.550234992 | DU43: 4.488485455 | DV43: 4.424105096 | DW43: 4.35784591 | DX43: 4.290408677 | DY43: 4.222433723 | DZ43: 4.154495109 | EA43: 4.087097909 | EB43: 4.02067813 | EC43: 3.955604763 | ED43: 3.892183442 | EE43: 3.830661229 | EF43: 3.771232086 | EG43: 3.71404268 | EH43: 3.659198208 | EI43: 3.606768029 | EJ43: 3.556790936 | EK43: 3.509279938 | EL43: 3.464226478 | EM43: 3.421604047 | EN43: 3.38137113 | EO43: 3.343473499 | EP43: 3.307845838 | EQ43: 3.274412742 | ER43: 3.243089203 | ES43: 3.213780771 | ET43: 3.186383709 | EU43: 3.160785525 | EV43: 3.136866292 | EW43: 3.114501004
A44: Z [m] | D44: 2.616706753 | E44: 2.642155032 | F44: 2.669226539 | G44: 2.698206365 | H44: 2.729162572 | I44: 2.762042491 | J44: 2.796760469 | K44: 2.83324019 | L44: 2.871426152 | M44: 2.9112819 | N44: 2.952784228 | O44: 2.995916862 | P44: 3.040664631 | Q44: 3.087008198 | R44: 3.134919225 | S44: 3.184355765 | T44: 3.235257788 | U44: 3.287542733 | V44: 3.341101105 | W44: 3.395792143 | X44: 3.451439659 | Y44: 3.507828218 | Z44: 3.564699844 | AA44: 3.621751515 | AB44: 3.678633733 | AC44: 3.73495047 | AD44: 3.79026081 | AE44: 3.844082554 | AF44: 3.895898009 | AG44: 3.945162077 | AH44: 3.991312637 | AI44: 4.033783043 | AJ44: 4.072016397 | AK44: 4.105481077 | AL44: 4.133686863 | AM44: 4.15620085 | AN44: 4.172662332 | AO44: 4.182795797 | AP44: 4.186421273 | AQ44: 4.183461413 | AR44: 4.173944878 | AS44: 4.15800585 | AT44: 4.135879719 | AU44: 4.107895275 | AV44: 4.074463925 | AW44: 4.036066632 | AX44: 3.993239377 | AY44: 3.946557989 | AZ44: 3.896623137 | BA44: 3.844046196 | BB44: 3.789436543 | BC44: 3.733390688 | BD44: 3.676483445 | BE44: 3.619261198 | BF44: 3.562237158 | BG44: 3.505888427 | BH44: 3.45065458 | BI44: 3.396937476 | BJ44: 3.345102006 | BK44: 3.295477479 | BL44: 3.248359454 | BM44: 3.204011805 | BN44: 3.162668904 | BO44: 3.124537824 | BP44: 3.089800517 | BQ44: 3.058615918 | BR44: 3.031121973 | BS44: 3.007437562 | BT44: 2.98766431 | BU44: 2.97188827 | BV44: 2.960181449 | BW44: 2.952603154 | BX44: 2.949201135 | BY44: 2.950012495 | BZ44: 2.955064338 | CA44: 2.964374144 | CB44: 2.977949854 | CC44: 2.995789658 | CD44: 3.017881478 | CE44: 3.044202176 | CF44: 3.074716472 | CG44: 3.109375606 | CH44: 3.148115763 | CI44: 3.19085627 | CJ44: 3.237497592 | CK44: 3.287919145 | CL44: 3.341976917 | CM44: 3.399500932 | CN44: 3.460292541 | CO44: 3.524121571 | CP44: 3.590723368 | CQ44: 3.65979578 | CR44: 3.730996198 | CS44: 3.803938799 | CT44: 3.878192208 | CU44: 3.953277841 | CV44: 4.028669269 | CW44: 4.103792959 | CX44: 4.178030773 | CY44: 4.250724576 | CZ44: 4.321183245 | DA44: 4.388692258 | DB44: 4.452525871 | DC44: 4.511961715 | DD44: 4.56629743 | DE44: 4.614868728 | DF44: 4.657068091 | DG44: 4.692363183 | DH44: 4.720313951 | DI44: 4.740587407 | DJ44: 4.752969175 | DK44: 4.75737105 | DL44: 4.753834053 | DM44: 4.742526759 | DN44: 4.723738963 | DO44: 4.697871074 | DP44: 4.665419866 | DQ44: 4.626961445 | DR44: 4.583132404 | DS44: 4.534610214 | DT44: 4.482093832 | DU44: 4.426285437 | DV44: 4.367874004 | DW44: 4.307521263 | DX44: 4.24585034 | DY44: 4.183437198 | DZ44: 4.120804819 | EA44: 4.058419904 | EB44: 3.996691789 | EC44: 3.93597322 | ED44: 3.876562583 | EE44: 3.818707227 | EF44: 3.762607521 | EG44: 3.708421355 | EH44: 3.656268811 | EI44: 3.606236812 | EJ44: 3.558383583 | EK44: 3.512742799 | EL44: 3.469327317 | EM44: 3.428132416 | EN44: 3.389138463 | EO44: 3.352312944 | EP44: 3.317611776 | EQ44: 3.284979888 | ER44: 3.254351098 | ES44: 3.22564748 | ET44: 3.198778613 | EU44: 3.173641332 | EV44: 3.150120716 | EW44: 3.128092858
D45: 2.627507929 | E45: 2.65136628 | F45: 2.677215779 | G45: 2.70540867 | H45: 2.735849352 | I45: 2.76831002 | J45: 2.80258943 | K45: 2.838545612 | L45: 2.876086185 | M45: 2.91515219 | N45: 2.955704538 | O45: 2.997713907 | P45: 3.041153195 | Q45: 3.085991599 | R45: 3.132189681 | S45: 3.179694979 | T45: 3.228437955 | U45: 3.278328125 | V45: 3.329250352 | W45: 3.381061316 | X45: 3.433586246 | Y45: 3.486616044 | Z45: 3.539904953 | AA45: 3.593168991 | AB45: 3.64608535 | AC45: 3.698293012 | AD45: 3.74939479 | AE45: 3.798960992 | AF45: 3.846534839 | AG45: 3.891639703 | AH45: 3.9337881 | AI45: 3.972492282 | AJ45: 4.007276124 | AK45: 4.037687891 | AL45: 4.063313341 | AM45: 4.083788565 | AN45: 4.098811912 | AO45: 4.108154362 | AP45: 4.111667763 | AQ45: 4.109290481 | AR45: 4.101050128 | AS45: 4.08706323 | AT45: 4.067531897 | AU45: 4.042737707 | AV45: 4.013033208 | AW45: 3.978831561 | AX45: 3.940594928 | AY45: 3.898822238 | AZ45: 3.854036948 | BA45: 3.806775354 | BB45: 3.757575906 | BC45: 3.706969848 | BD45: 3.655473402 | BE45: 3.603581552 | BF45: 3.551763416 | BG45: 3.50045907 | BH45: 3.450077654 | BI45: 3.400996549 | BJ45: 3.353561405 | BK45: 3.308086805 | BL45: 3.264857396 | BM45: 3.224129315 | BN45: 3.186131806 | BO45: 3.151068931 | BP45: 3.119121313 | BQ45: 3.090447866 | BR45: 3.065187489 | BS45: 3.043460682 | BT45: 3.025371081 | BU45: 3.011006885 | BV45: 3.000442146 | BW45: 2.993737902 | BX45: 2.990943142 | BY45: 2.992095559 | BZ45: 2.997222084 | CA45: 3.006339191 | CB45: 3.019452947 | CC45: 3.036558808 | CD45: 3.057641166 | CE45: 3.082672647 | CF45: 3.111613165 | CG45: 3.144408757 | CH45: 3.180990208 | CI45: 3.221271484 | CJ45: 3.265147988 | CK45: 3.312494665 | CL45: 3.363163952 | CM45: 3.416983623 | CN45: 3.473754508 | CO45: 3.533248162 | CP45: 3.595204496 | CQ45: 3.65932946 | CR45: 3.72529288 | CS45: 3.792726582 | CT45: 3.861222987 | CU45: 3.930334406 | CV45: 3.999573281 | CW45: 4.068413646 | CX45: 4.136294086 | CY45: 4.202622433 | CZ45: 4.266782383 | DA45: 4.328142117 | DB45: 4.386064902 | DC45: 4.439921489 | DD45: 4.489103966 | DE45: 4.533040581 | DF45: 4.571210906 | DG45: 4.603160618 | DH45: 4.62851512 | DI45: 4.646991249 | DJ45: 4.658406357 | DK45: 4.662684227 | DL45: 4.65985742 | DM45: 4.650065897 | DN45: 4.633551963 | DO45: 4.610651825 | DP45: 4.581784244 | DQ45: 4.547436907 | DR45: 4.508151294 | DS45: 4.464506792 | DT45: 4.417104855 | DU45: 4.366553897 | DV45: 4.313455512 | DW45: 4.258392445 | DX45: 4.201918624 | DY45: 4.144551364 | DZ45: 4.086765754 | EA45: 4.028991087 | EB45: 3.971609156 | EC45: 3.914954134 | ED45: 3.859313759 | EE45: 3.804931542 | EF45: 3.752009721 | EG45: 3.700712697 | EH45: 3.651170768 | EI45: 3.603483946 | EJ45: 3.557725738 | EK45: 3.51394675 | EL45: 3.472178013 | EM45: 3.432433927 | EN45: 3.39471472 | EO45: 3.359008272 | EP45: 3.325291173 | EQ45: 3.29352884 | ER45: 3.263674627 | ES45: 3.23566799 | ET45: 3.209432207 | EU45: 3.184872568 | EV45: 3.161876413 | EW45: 3.140316253
D46: 2.637217645 | E46: 2.65845192 | F46: 2.682759185 | G46: 2.710312221 | H46: 2.74047922 | I46: 2.772717076 | J46: 2.806691162 | K46: 2.842208419 | L46: 2.879156641 | M46: 2.917467707 | N46: 2.957096351 | O46: 2.998007381 | P46: 3.040167386 | Q46: 3.083538808 | R46: 3.128075311 | S46: 3.173717852 | T46: 3.220391161 | U46: 3.268000487 | V46: 3.31642855 | W46: 3.365532741 | X46: 3.415142604 | Y46: 3.46505774 | Z46: 3.515046238 | AA46: 3.564843811 | AB46: 3.614153802 | AC46: 3.662648228 | AD46: 3.709970035 | AE46: 3.755736676 | AF46: 3.799545099 | AG46: 3.840978176 | AH46: 3.879612472 | AI46: 3.915027232 | AJ46: 3.946814305 | AK46: 3.974588678 | AL46: 3.997999181 | AM46: 4.016738902 | AN46: 4.030554802 | AO46: 4.039256046 | AP46: 4.04272061 | AQ46: 4.040899814 | AR46: 4.033820538 | AS46: 4.021585008 | AT46: 4.004368201 | AU46: 3.982413024 | AV46: 3.956023582 | AW46: 3.925556908 | AX46: 3.89141363 | AY46: 3.854028056 | AZ46: 3.813858146 | BA46: 3.771375816 | BB46: 3.72705793 | BC46: 3.681378262 | BD46: 3.634800609 | BE46: 3.58777314 | BF46: 3.540723997 | BG46: 3.494058066 | BH46: 3.448154823 | BI46: 3.403367097 | BJ46: 3.360020588 | BK46: 3.318413995 | BL46: 3.278819596 | BM46: 3.241484161 | BN46: 3.206630083 | BO46: 3.174456662 | BP46: 3.145141455 | BQ46: 3.118841665 | BR46: 3.095695516 | BS46: 3.075823594 | BT46: 3.05933012 | BU46: 3.046304143 | BV46: 3.036820619 | BW46: 3.030941357 | BX46: 3.028715824 | BY46: 3.03018176 | BZ46: 3.035365624 | CA46: 3.044282828 | CB46: 3.056937762 | CC46: 3.073323606 | CD46: 3.093421922 | CE46: 3.117202039 | CF46: 3.144620233 | CG46: 3.175618713 | CH46: 3.210124433 | CI46: 3.248047737 | CJ46: 3.289280866 | CK46: 3.333696336 | CL46: 3.381145206 | CM46: 3.431455269 | CN46: 3.484429192 | CO46: 3.539842633 | CP46: 3.597442412 | CQ46: 3.656944781 | CR46: 3.718033924 | CS46: 3.780360772 | CT46: 3.843542323 | CU46: 3.907161622 | CV46: 3.970768601 | CW46: 4.033881992 | CX46: 4.095992497 | CY46: 4.156567378 | CZ46: 4.215056587 | DA46: 4.270900453 | DB46: 4.323538883 | DC46: 4.372421891 | DD46: 4.417021166 | DE46: 4.456842287 | DF46: 4.491437075 | DG46: 4.520415532 | DH46: 4.543456755 | DI46: 4.560318263 | DJ46: 4.570843189 | DK46: 4.574964935 | DL46: 4.572708987 | DM46: 4.564191769 | DN46: 4.549616584 | DO46: 4.529266847 | DP46: 4.503496983 | DQ46: 4.472721468 | DR46: 4.437402591 | DS46: 4.398037532 | DT46: 4.35514536 | DU46: 4.3092545 | DV46: 4.260891147 | DW46: 4.210568982 | DX46: 4.158780458 | DY46: 4.105989777 | DZ46: 4.052627606 | EA46: 3.999087458 | EB46: 3.945723614 | EC46: 3.892850409 | ED46: 3.840742662 | EE46: 3.789637044 | EF46: 3.739734168 | EG46: 3.691201193 | EH46: 3.644174782 | EI46: 3.598764247 | EJ46: 3.55505476 | EK46: 3.513110524 | EL46: 3.472977788 | EM46: 3.434687611 | EN46: 3.398258229 | EO46: 3.363696845 | EP46: 3.331000583 | EQ46: 3.300156267 | ER46: 3.271138675 | ES46: 3.243907095 | ET46: 3.218400543 | EU46: 3.194532964 | EV46: 3.172190922 | EW46: 3.151236623
D47: 2.645892254 | E47: 2.662006385 | F47: 2.684936647 | G47: 2.712599705 | H47: 2.743027331 | I47: 2.775354265 | J47: 2.809199468 | K47: 2.844379319 | L47: 2.880796545 | M47: 2.918393689 | N47: 2.957131198 | O47: 2.996975748 | P47: 3.03789315 | Q47: 3.079843451 | R47: 3.122777149 | S47: 3.166631999 | T47: 3.211330163 | U47: 3.256775602 | V47: 3.302851676 | W47: 3.349418988 | X47: 3.396313518 | Y47: 3.443345161 | Z47: 3.490296759 | AA47: 3.536923769 | AB47: 3.582954689 | AC47: 3.628092383 | AD47: 3.672016401 | AE47: 3.71438639 | AF47: 3.754846644 | AG47: 3.793031772 | AH47: 3.828573414 | AI47: 3.861107863 | AJ47: 3.890284385 | AK47: 3.915773935 | AL47: 3.937277953 | AM47: 3.954536851 | AN47: 3.967337817 | AO47: 3.975521545 | AP47: 3.97898757 | AQ47: 3.977697929 | AR47: 3.971678974 | AS47: 3.961021239 | AT47: 3.945877408 | AU47: 3.926458493 | AV47: 3.90302846 | AW47: 3.875897591 | AX47: 3.845414941 | AY47: 3.811960251 | AZ47: 3.775935706 | BA47: 3.737757855 | BB47: 3.697850012 | BC47: 3.656635349 | BD47: 3.614530857 | BE47: 3.57194226 | BF47: 3.529259903 | BG47: 3.486855599 | BH47: 3.445080357 | BI47: 3.40426289 | BJ47: 3.364708793 | BK47: 3.32670027 | BL47: 3.290496299 | BM47: 3.256333126 | BN47: 3.224425007 | BO47: 3.194965111 | BP47: 3.168126542 | BQ47: 3.144063406 | BR47: 3.122911912 | BS47: 3.10479145 | BT47: 3.089805633 | BU47: 3.078043278 | BV47: 3.069579292 | BW47: 3.064475457 | BX47: 3.062781083 | BY47: 3.064533523 | BZ47: 3.069758521 | CA47: 3.0784704 | CB47: 3.090672062 | CC47: 3.106354812 | CD47: 3.125498 | CE47: 3.14806848 | CF47: 3.1740199 | CG47: 3.203291833 | CH47: 3.235808752 | CI47: 3.271478879 | CJ47: 3.310192918 | CK47: 3.351822687 | CL47: 3.396219682 | CM47: 3.443213592 | CN47: 3.492610804 | CO47: 3.544192937 | CP47: 3.597715463 | CQ47: 3.652906485 | CR47: 3.709465754 | CS47: 3.767064047 | CT47: 3.825343013 | CU47: 3.88391565 | CV47: 3.942367541 | CW47: 4.000259013 | CX47: 4.057128357 | CY47: 4.112496197 | CZ47: 4.165871096 | DA47: 4.216756367 | DB47: 4.264658042 | DC47: 4.309093825 | DD47: 4.349602776 | DE47: 4.385755415 | DF47: 4.417163836 | DG47: 4.443491399 | DH47: 4.464461531 | DI47: 4.479865193 | DJ47: 4.489566623 | DK47: 4.493507013 | DL47: 4.491705921 | DM47: 4.48426032 | DN47: 4.471341306 | DO47: 4.453188648 | DP47: 4.430103438 | DQ47: 4.402439226 | DR47: 4.370592072 | DS47: 4.334989975 | DT47: 4.29608216 | DU47: 4.254328646 | DV47: 4.210190487 | DW47: 4.164120979 | DX47: 4.116558063 | DY47: 4.067918055 | DZ47: 4.018590751 | EA47: 3.968935889 | EB47: 3.919280892 | EC47: 3.869919759 | ED47: 3.821112967 | EE47: 3.773088214 | EF47: 3.726041841 | EG47: 3.680140782 | EH47: 3.635524895 | EI47: 3.592309562 | EJ47: 3.550588442 | EK47: 3.510436306 | EL47: 3.471911843 | EM47: 3.435060379 | EN47: 3.39991633 | EO47: 3.366505222 | EP47: 3.334844875 | EQ47: 3.304945215 | ER47: 3.276805929 | ES47: 3.250411132 | ET47: 3.225720786 | EU47: 3.20266033 | EV47: 3.181112816 | EW47: 3.160920115
B48: 3 | D48: 2.653587976 | E48: 2.657259871 | F48: 2.682669469 | G48: 2.712258548 | H48: 2.743693303 | I48: 2.776440784 | J48: 2.81031822 | K48: 2.845246348 | L48: 2.881183609 | M48: 2.918102788 | N48: 2.955980622 | O48: 2.994792121 | P48: 3.034506808 | Q48: 3.075085839 | R48: 3.116479539 | S48: 3.158625164 | T48: 3.201444821 | U48: 3.244843522 | V48: 3.288707395 | W48: 3.332902108 | X48: 3.377271557 | Y48: 3.42163692 | Z48: 3.465796162 | AA48: 3.509524098 | AB48: 3.552573111 | AC48: 3.594674631 | AD48: 3.635541441 | AE48: 3.674870878 | AF48: 3.712348936 | AG48: 3.74765526 | AH48: 3.78046894 | AI48: 3.810475 | AJ48: 3.837371373 | AK48: 3.860876161 | AL48: 3.880734881 | AM48: 3.896727432 | AN48: 3.908674451 | AO48: 3.916442794 | AP48: 3.919949863 | AQ48: 3.919166587 | AR48: 3.91411891 | AS48: 3.90488772 | AT48: 3.891607242 | AU48: 3.874461997 | AV48: 3.853682477 | AW48: 3.829539793 | AX48: 3.802339536 | AY48: 3.772415161 | AZ48: 3.740121162 | BA48: 3.705826337 | BB48: 3.669907348 | BC48: 3.632742798 | BD48: 3.59470794 | BE48: 3.55617013 | BF48: 3.517485045 | BG48: 3.478993664 | BH48: 3.441019988 | BI48: 3.403869406 | BJ48: 3.367827651 | BK48: 3.333160246 | BL48: 3.300112352 | BM48: 3.268908938 | BN48: 3.2397552 | BO48: 3.212837155 | BP48: 3.188322366 | BQ48: 3.166360747 | BR48: 3.147085402 | BS48: 3.130613481 | BT48: 3.117047008 | BU48: 3.106473672 | BV48: 3.098967548 | BW48: 3.09458973 | BX48: 3.093388861 | BY48: 3.095401547 | BZ48: 3.100652636 | CA48: 3.109155353 | CB48: 3.120911288 | CC48: 3.135910233 | CD48: 3.154129862 | CE48: 3.175535266 | CF48: 3.200078338 | CG48: 3.227697033 | CH48: 3.258314501 | CI48: 3.291838114 | CJ48: 3.328158406 | CK48: 3.367147942 | CL48: 3.408660145 | CM48: 3.452528105 | CN48: 3.498563411 | CO48: 3.546555039 | CP48: 3.596268363 | CQ48: 3.647444339 | CR48: 3.699798953 | CS48: 3.753023016 | CT48: 3.806782406 | CU48: 3.860718885 | CV48: 3.914451577 | CW48: 3.967579246 | CX48: 4.019683444 | CY48: 4.070332605 | CZ48: 4.119087114 | DA48: 4.165505328 | DB48: 4.209150465 | DC48: 4.249598226 | DD48: 4.286444926 | DE48: 4.319315886 | DF48: 4.347873753 | DG48: 4.371826407 | DH48: 4.390934101 | DI48: 4.405015477 | DJ48: 4.413952174 | DK48: 4.417691753 | DL48: 4.416248807 | DM48: 4.409704156 | DN48: 4.398202171 | DO48: 4.381946354 | DP48: 4.361193364 | DQ48: 4.336245812 | DR48: 4.307444123 | DS48: 4.275157853 | DT48: 4.239776821 | DU48: 4.2017024 | DV48: 4.161339275 | DW48: 4.119087926 | DX48: 4.075338016 | DY48: 4.03046282 | DZ48: 3.984814747 | EA48: 3.93872197 | EB48: 3.892486102 | EC48: 3.846380857 | ED48: 3.800651581 | EE48: 3.755515536 | EF48: 3.711162812 | EG48: 3.667757756 | EH48: 3.625440807 | EI48: 3.584330644 | EJ48: 3.544526576 | EK48: 3.506111111 | EL48: 3.469152662 | EM48: 3.433708322 | EN48: 3.399826634 | EO48: 3.367550162 | EP48: 3.336917478 | EQ48: 3.307963809 | ER48: 3.280718995 | ES48: 3.25520073 | ET48: 3.231400999 | EU48: 3.20926578 | EV48: 3.188674351 | EW48: 3.169432932
D49: 2.586743366 | E49: 2.642010297 | F49: 2.677300133 | G49: 2.710194591 | H49: 2.743031222 | I49: 2.776344946 | J49: 2.81031869 | K49: 2.845028806 | L49: 2.880508989 | M49: 2.916771266 | N49: 2.953813641 | O49: 2.991622749 | P49: 3.030174381 | Q49: 3.069433015 | R49: 3.109350844 | S49: 3.149866572 | T49: 3.1909041 | U49: 3.232371217 | V49: 3.274158372 | W49: 3.316137593 | X49: 3.358161649 | Y49: 3.400063521 | Z49: 3.441656265 | AA49: 3.482733371 | AB49: 3.523069671 | AC49: 3.56242289 | AD49: 3.600535884 | AE49: 3.637139603 | AF49: 3.671956774 | AG49: 3.704706291 | AH49: 3.735108218 | AI49: 3.762889316 | AJ49: 3.787788921 | AK49: 3.809565001 | AL49: 3.828000167 | AM49: 3.842907408 | AN49: 3.854135306 | AO49: 3.861572519 | AP49: 3.865151317 | AQ49: 3.864850022 | AR49: 3.860694234 | AS49: 3.852756806 | AT49: 3.841156565 | AU49: 3.826055871 | AV49: 3.807657131 | AW49: 3.786198441 | AX49: 3.761948574 | AY49: 3.73520153 | AZ49: 3.706270878 | BA49: 3.6754841 | BB49: 3.643177138 | BC49: 3.609689301 | BD49: 3.575358643 | BE49: 3.540517916 | BF49: 3.505491118 | BG49: 3.47059066 | BH49: 3.436115133 | BI49: 3.402347628 | BJ49: 3.369554548 | BK49: 3.337984864 | BL49: 3.307869732 | BM49: 3.279422415 | BN49: 3.252838437 | BO49: 3.228295931 | BP49: 3.205956112 | BQ49: 3.185963846 | BR49: 3.168448279 | BS49: 3.153523482 | BT49: 3.141289101 | BU49: 3.131830973 | BV49: 3.125221701 | BW49: 3.121521157 | BX49: 3.120776904 | BY49: 3.123024522 | BZ49: 3.12828782 | CA49: 3.136578938 | CB49: 3.14789832 | CC49: 3.16223456 | CD49: 3.179564126 | CE49: 3.199850952 | CF49: 3.223045927 | CG49: 3.249086254 | CH49: 3.277894735 | CI49: 3.309378956 | CJ49: 3.343430416 | CK49: 3.379923607 | CL49: 3.418715078 | CM49: 3.459642502 | CN49: 3.502523789 | CO49: 3.547156287 | CP49: 3.593316102 | CQ49: 3.640757627 | CR49: 3.68921332 | CS49: 3.73839381 | CT49: 3.787988438 | CU49: 3.837666281 | CV49: 3.887077779 | CW49: 3.935857021 | CX49: 3.983624764 | CY49: 4.029992213 | CZ49: 4.074565587 | DA49: 4.116951409 | DB49: 4.156762472 | DC49: 4.193624335 | DD49: 4.22718217 | DE49: 4.25710776 | DF49: 4.283106372 | DG49: 4.304923246 | DH49: 4.322349412 | DI49: 4.335226577 | DJ49: 4.34345083 | DK49: 4.346974997 | DL49: 4.345809507 | DM49: 4.340021716 | DN49: 4.329733718 | DO49: 4.315118731 | DP49: 4.29639623 | DQ49: 4.273826041 | DR49: 4.24770166 | DS49: 4.218343087 | DT49: 4.186089453 | DU49: 4.151291722 | DV49: 4.11430572 | DW49: 4.075485698 | DX49: 4.035178583 | DY49: 3.993719049 | DZ49: 3.951425457 | EA49: 3.908596685 | EB49: 3.865509838 | EC49: 3.822418774 | ED49: 3.779553387 | EE49: 3.737119555 | EF49: 3.695299661 | EG49: 3.654253612 | EH49: 3.614120261 | EI49: 3.575019186 | EJ49: 3.537052767 | EK49: 3.500308546 | EL49: 3.464861867 | EM49: 3.430778808 | EN49: 3.398119411 | EO49: 3.366941178 | EP49: 3.33730257 | EQ49: 3.309265809 | ER49: 3.282897228 | ES49: 3.25826153 | ET49: 3.235403918 | EU49: 3.214314202 | EV49: 3.194877317 | EW49: 3.176840764
D50: 2.592655985 | E50: 2.635434823 | F50: 2.673173606 | G50: 2.707966064 | H50: 2.741786164 | I50: 2.775502648 | J50: 2.809498206 | K50: 2.843955211 | L50: 2.878964961 | M50: 2.914571861 | N50: 2.950792578 | O50: 2.987624684 | P50: 3.025050492 | Q50: 3.063038562 | R50: 3.101543999 | S50: 3.140508132 | T50: 3.179857873 | U50: 3.219504964 | V50: 3.259345213 | W50: 3.299257848 | X50: 3.339105046 | Y50: 3.378731739 | Z50: 3.417965755 | AA50: 3.456618375 | AB50: 3.494485367 | AC50: 3.53134855 | AD50: 3.566977922 | AE50: 3.601134384 | AF50: 3.633573033 | AG50: 3.664047016 | AH50: 3.692311855 | AI50: 3.718130161 | AJ50: 3.741276608 | AK50: 3.761543004 | AL50: 3.778743298 | AM50: 3.792718328 | AN50: 3.80334012 | AO50: 3.810515578 | AP50: 3.814189386 | AQ50: 3.81434602 | AR50: 3.811010762 | AS50: 3.804249707 | AT50: 3.794168739 | AU50: 3.780911562 | AV50: 3.764656863 | AW50: 3.745614758 | AX50: 3.724022671 | AY50: 3.700140824 | AZ50: 3.674247521 | BA50: 3.64663439 | BB50: 3.617601752 | BC50: 3.587454231 | BD50: 3.556496729 | BE50: 3.525030825 | BF50: 3.493351654 | BG50: 3.461745277 | BH50: 3.430486539 | BI50: 3.399837392 | BJ50: 3.37004564 | BK50: 3.341344066 | BL50: 3.313949889 | BM50: 3.28806449 | BN50: 3.263873373 | BO50: 3.241546297 | BP50: 3.221237552 | BQ50: 3.203086327 | BR50: 3.187217154 | BS50: 3.173740375 | BT50: 3.162752632 | BU50: 3.154337336 | BV50: 3.148565111 | BW50: 3.145494183 | BX50: 3.145170708 | BY50: 3.14762902 | BZ50: 3.152891792 | CA50: 3.160970105 | CB50: 3.171863405 | CC50: 3.18555937 | CD50: 3.202033661 | CE50: 3.221249585 | CF50: 3.243157648 | CG50: 3.267695037 | CH50: 3.294785013 | CI50: 3.324336254 | CJ50: 3.356242149 | CK50: 3.390380063 | CL50: 3.426610608 | CM50: 3.464776941 | CN50: 3.504704111 | CO50: 3.546198519 | CP50: 3.589047508 | CQ50: 3.633019152 | CR50: 3.67786229 | CS50: 3.723306874 | CT50: 3.769064702 | CU50: 3.81483058 | CV50: 3.860284008 | CW50: 3.905091416 | CX50: 3.948909011 | CY50: 3.991386238 | CZ50: 4.032169866 | DA50: 4.070908637 | DB50: 4.107258432 | DC50: 4.140887811 | DD50: 4.171483804 | DE50: 4.198757765 | DF50: 4.222451077 | DG50: 4.242340501 | DH50: 4.258242948 | DI50: 4.27001946 | DJ50: 4.277578219 | DK50: 4.280876447 | DL50: 4.279921084 | DM50: 4.274768225 | DN50: 4.265521311 | DO50: 4.252328169 | DP50: 4.235377012 | DQ50: 4.21489158 | DR50: 4.191125631 | DS50: 4.164356993 | DT50: 4.134881409 | DU50: 4.103006407 | DV50: 4.069045387 | DW50: 4.033312095 | DX50: 3.996115637 | DY50: 3.957756118 | DZ50: 3.918520984 | EA50: 3.878682081 | EB50: 3.838493441 | EC50: 3.798189752 | ED50: 3.75798548 | EE50: 3.718074565 | EF50: 3.67863065 | EG50: 3.639807755 | EH50: 3.601741363 | EI50: 3.564549865 | EJ50: 3.528336353 | EK50: 3.493190771 | EL50: 3.459192472 | EM50: 3.426413283 | EN50: 3.394921235 | EO50: 3.364785169 | EP50: 3.336080375 | EQ50: 3.308895146 | ER50: 3.283337011 | ES50: 3.259534258 | ET50: 3.23762133 | EU50: 3.217686274 | EV50: 3.199662162 | EW50: 3.183208308
D51: 2.597752009 | E51: 2.635334115 | F51: 2.671629807 | G51: 2.706474271 | H51: 2.740506286 | I51: 2.774274821 | J51: 2.808118997 | K51: 2.842233916 | L51: 2.876729582 | M51: 2.911665329 | N51: 2.947068303 | O51: 2.982943171 | P51: 3.019277128 | Q51: 3.056042338 | R51: 3.093196983 | S51: 3.130685527 | T51: 3.168438565 | U51: 3.206372484 | V51: 3.24438908 | W51: 3.282375232 | X51: 3.32020273 | Y51: 3.357728332 | Z51: 3.394794106 | AA51: 3.431228124 | AB51: 3.466845558 | AC51: 3.50145022 | AD51: 3.534836562 | AE51: 3.566792159 | AF51: 3.597100652 | AG51: 3.625545124 | AH51: 3.651911846 | AI51: 3.675994311 | AJ51: 3.697597448 | AK51: 3.716541892 | AL51: 3.732668169 | AM51: 3.745840645 | AN51: 3.755951092 | AO51: 3.762921739 | AP51: 3.766707667 | AQ51: 3.767298476 | AR51: 3.764719134 | AS51: 3.759029994 | AT51: 3.75032598 | AU51: 3.738734982 | AV51: 3.724415541 | AW51: 3.707553926 | AX51: 3.688360734 | AY51: 3.66706714 | AZ51: 3.643920946 | BA51: 3.61918257 | BB51: 3.593121096 | BC51: 3.566010491 | BD51: 3.538126095 | BE51: 3.509741428 | BF51: 3.481125379 | BG51: 3.452539787 | BH51: 3.424237412 | BI51: 3.396460305 | BJ51: 3.369438529 | BK51: 3.343389214 | BL51: 3.318515894 | BM51: 3.295008105 | BN51: 3.27304118 | BO51: 3.252776226 | BP51: 3.234360227 | BQ51: 3.217926253 | BR51: 3.203593741 | BS51: 3.191468817 | BT51: 3.181644639 | BU51: 3.174201751 | BV51: 3.169208403 | BW51: 3.166720845 | BX51: 3.166783575 | BY51: 3.169429519 | BZ51: 3.174680149 | CA51: 3.182545518 | CB51: 3.193024218 | CC51: 3.206103251 | CD51: 3.221757821 | CE51: 3.239951041 | CF51: 3.260633567 | CG51: 3.283743168 | CH51: 3.309204234 | CI51: 3.336927246 | CJ51: 3.366808217 | CK51: 3.398728124 | CL51: 3.432552358 | CM51: 3.468130211 | CN51: 3.505294435 | CO51: 3.543860907 | CP51: 3.583628436 | CQ51: 3.624378758 | CR51: 3.66587677 | CS51: 3.707871047 | CT51: 3.750094696 | CU51: 3.792266601 | CV51: 3.834093109 | CW51: 3.875270172 | CX51: 3.915486005 | CY51: 3.954424233 | CZ51: 3.991767531 | DA51: 4.027201717 | DB51: 4.060420211 | DC51: 4.091128787 | DD51: 4.119050476 | DE51: 4.143930484 | DF51: 4.165540946 | DG51: 4.183685365 | DH51: 4.198202537 | DI51: 4.208969819 | DJ51: 4.215905585 | DK51: 4.218970762 | DL51: 4.21816938 | DM51: 4.21354808 | DN51: 4.20519463 | DO51: 4.193235476 | DP51: 4.17783244 | DQ51: 4.159178711 | DR51: 4.137494267 | DS51: 4.113020923 | DT51: 4.086017175 | DU51: 4.056753032 | DV51: 4.025504979 | DW51: 3.99255124 | DX51: 3.958167437 | DY51: 3.922622747 | DZ51: 3.886176614 | EA51: 3.849076045 | EB51: 3.811553495 | EC51: 3.773825341 | ED51: 3.73609089 | EE51: 3.698531906 | EF51: 3.66131259 | EG51: 3.62457998 | EH51: 3.588464734 | EI51: 3.553082264 | EJ51: 3.518534234 | EK51: 3.48491045 | EL51: 3.45229124 | EM51: 3.420750492 | EN51: 3.390359671 | EO51: 3.361193322 | EP51: 3.333336868 | EQ51: 3.306897851 | ER51: 3.282021722 | ES51: 3.258911167 | ET51: 3.237837643 | EU51: 3.219100618 | EV51: 3.202830735 | EW51: 3.188598863
D52: 2.602083211 | E52: 2.636930175 | F52: 2.671582493 | G52: 2.70569727 | H52: 2.739379455 | I52: 2.772866093 | J52: 2.806367076 | K52: 2.840031307 | L52: 2.873954601 | M52: 2.908193541 | N52: 2.942776267 | O52: 2.977709488 | P52: 3.012982661 | Q52: 3.048570331 | R52: 3.084433326 | S52: 3.12051926 | T52: 3.156762658 | U52: 3.193084883 | V52: 3.229394 | W52: 3.265584702 | X52: 3.301538347 | Y52: 3.337123189 | Z52: 3.372194866 | AA52: 3.406597173 | AB52: 3.440163182 | AC52: 3.472716721 | AD52: 3.504074244 | AE52: 3.53404708 | AF52: 3.562444057 | AG52: 3.589074463 | AH52: 3.613751292 | AI52: 3.636294707 | AJ52: 3.656535621 | AK52: 3.674319306 | AL52: 3.689508905 | AM52: 3.701988736 | AN52: 3.711667263 | AO52: 3.718479626 | AP52: 3.722389638 | AQ52: 3.723391164 | AR52: 3.72150884 | AS52: 3.716798099 | AT52: 3.709344512 | AU52: 3.69926248 | AV52: 3.686693328 | AW52: 3.671802896 | AX52: 3.654778711 | AY52: 3.63582686 | AZ52: 3.615168666 | BA52: 3.593037291 | BB52: 3.569674362 | BC52: 3.545326705 | BD52: 3.520243279 | BE52: 3.494672355 | BF52: 3.468858987 | BG52: 3.443042799 | BH52: 3.417456093 | BI52: 3.392322285 | BJ52: 3.367854633 | BK52: 3.344255254 | BL52: 3.3217144 | BM52: 3.300409947 | BN52: 3.28050708 | BO52: 3.262158138 | BP52: 3.245502586 | BQ52: 3.230667088 | BR52: 3.217765658 | BS52: 3.206899852 | BT52: 3.198159002 | BU52: 3.191620449 | BV52: 3.187349774 | BW52: 3.185401006 | BX52: 3.185816797 | BY52: 3.188628552 | BZ52: 3.1938565 | CA52: 3.201509711 | CB52: 3.211586049 | CC52: 3.224072053 | CD52: 3.23894276 | CE52: 3.256161457 | CF52: 3.275679386 | CG52: 3.29743539 | CH52: 3.321355522 | CI52: 3.347352629 | CJ52: 3.375325921 | CK52: 3.405160548 | CL52: 3.436727197 | CM52: 3.46988175 | CN52: 3.504465007 | CO52: 3.540302528 | CP52: 3.577204605 | CQ52: 3.614966427 | CR52: 3.653368449 | CS52: 3.69217703 | CT52: 3.731145366 | CU52: 3.770014764 | CV52: 3.80851628 | CW52: 3.846372766 | CX52: 3.883301308 | CY52: 3.919016085 | CZ52: 3.953231606 | DA52: 3.9856663 | DB52: 4.016046387 | DC52: 4.044109948 | DD52: 4.069611096 | DE52: 4.092324118 | DF52: 4.112047466 | DG52: 4.128607442 | DH52: 4.141861454 | DI52: 4.15170071 | DJ52: 4.158052231 | DK52: 4.160880112 | DL52: 4.160185949 | DM52: 4.156008437 | DN52: 4.14842212 | DO52: 4.137535375 | DP52: 4.123487663 | DQ52: 4.106446206 | DR52: 4.086602166 | DS52: 4.064166508 | DT52: 4.03936566 | DU52: 4.012437138 | DV52: 3.983625255 | DW52: 3.95317704 | DX52: 3.921338462 | DY52: 3.888351043 | DZ52: 3.85444891 | EA52: 3.819856317 | EB52: 3.784785658 | EC52: 3.74943596 | ED52: 3.71399183 | EE52: 3.678622854 | EF52: 3.643483374 | EG52: 3.608712659 | EH52: 3.574435398 | EI52: 3.540762533 | EJ52: 3.507792421 | EK52: 3.475612385 | EL52: 3.444300738 | EM52: 3.413929504 | EN52: 3.384568222 | EO52: 3.356289555 | EP52: 3.329178066 | EQ52: 3.303344786 | ER52: 3.278952513 | ES52: 3.256260645 | ET52: 3.235699996 | EU52: 3.217955529 | EV52: 3.203817613 | EW52: 3.193074008
B53: 2,5 | D53: 2.605699565 | E53: 2.638807843 | F53: 2.672100301 | G53: 2.705303966 | H53: 2.738363656 | I53: 2.771345766 | J53: 2.804350056 | K53: 2.837466231 | L53: 2.87076072 | M53: 2.904276154 | N53: 2.938034409 | O53: 2.972039792 | P53: 3.006281432 | Q53: 3.040734827 | R53: 3.075362752 | S53: 3.110115712 | T53: 3.144932131 | U53: 3.179738405 | V53: 3.214448921 | W53: 3.248966131 | X53: 3.283180726 | Y53: 3.316971997 | Z53: 3.350208391 | AA53: 3.382748341 | AB53: 3.414441363 | AC53: 3.445129465 | AD53: 3.474648878 | AE53: 3.502832085 | AF53: 3.529510159 | AG53: 3.554515363 | AH53: 3.577683964 | AI53: 3.598859214 | AJ53: 3.617894406 | AK53: 3.634655933 | AL53: 3.649026253 | AM53: 3.660906657 | AN53: 3.67021976 | AO53: 3.676911618 | AP53: 3.680953384 | AQ53: 3.682342476 | AR53: 3.681103169 | AS53: 3.677286637 | AT53: 3.670970414 | AU53: 3.66225732 | AV53: 3.651273887 | AW53: 3.638168359 | AX53: 3.623108333 | AY53: 3.606278135 | AZ53: 3.587876015 | BA53: 3.56811126 | BB53: 3.547201302 | BC53: 3.525368895 | BD53: 3.502839435 | BE53: 3.479838466 | BF53: 3.456589414 | BG53: 3.43331157 | BH53: 3.410218341 | BI53: 3.387515759 | BJ53: 3.36540125 | BK53: 3.344062643 | BL53: 3.323677402 | BM53: 3.304412051 | BN53: 3.286421774 | BO53: 3.269850163 | BP53: 3.254829083 | BQ53: 3.241478642 | BR53: 3.229907225 | BS53: 3.220211591 | BT53: 3.212477 | BU53: 3.206777359 | BV53: 3.203175369 | BW53: 3.201722662 | BX53: 3.202459917 | BY53: 3.205416936 | BZ53: 3.210612691 | CA53: 3.218055322 | CB53: 3.227742076 | CC53: 3.239659211 | CD53: 3.253781841 | CE53: 3.270073731 | CF53: 3.288487062 | CG53: 3.308962142 | CH53: 3.33142711 | CI53: 3.355797616 | CJ53: 3.381976496 | CK53: 3.409853476 | CL53: 3.4393049 | CM53: 3.470193516 | CN53: 3.502368348 | CO53: 3.535664672 | CP53: 3.569904124 | CQ53: 3.60489498 | CR53: 3.640432636 | CS53: 3.67630032 | CT53: 3.712270063 | CU53: 3.748103966 | CV53: 3.783555781 | CW53: 3.818372821 | CX53: 3.852298209 | CY53: 3.885073446 | CZ53: 3.9164413 | DA53: 3.946148946 | DB53: 3.973951333 | DC53: 3.999614679 | DD53: 4.022920032 | DE53: 4.043666772 | DF53: 4.061675967 | DG53: 4.076793459 | DH53: 4.088892569 | DI53: 4.097876335 | DJ53: 4.10367917 | DK53: 4.106267898 | DL53: 4.105642098 | DM53: 4.101833759 | DN53: 4.094906245 | DO53: 4.084952601 | DP53: 4.072093278 | DQ53: 4.056473347 | DR53: 4.038259312 | DS53: 4.017635624 | DT53: 3.994801027 | DU53: 3.969964835 | DV53: 3.943343268 | DW53: 3.915155925 | DX53: 3.885622504 | DY53: 3.854959805 | DZ53: 3.823379096 | EA53: 3.791083855 | EB53: 3.758267902 | EC53: 3.725113941 | ED53: 3.69179248 | EE53: 3.658461114 | EF53: 3.625264161 | EG53: 3.592332607 | EH53: 3.55978434 | EI53: 3.527724669 | EJ53: 3.496247117 | EK53: 3.465434524 | EL53: 3.435360532 | EM53: 3.406091621 | EN53: 3.377690015 | EO53: 3.350218131 | EP53: 3.32374591 | EQ53: 3.29836405 | ER53: 3.274210123 | ES53: 3.251525533 | ET53: 3.230792816 | EU53: 3.213091278 | EV53: 3.2008645 | EW53: 3.196693338
D54: 2.60864909 | E54: 2.640509362 | F54: 2.672696241 | G54: 2.705007659 | H54: 2.737349876 | I54: 2.769710933 | J54: 2.802120101 | K54: 2.834617849 | L54: 2.867239968 | M54: 2.900011142 | N54: 2.9329432 | O54: 2.966035205 | P54: 2.999274038 | Q54: 3.032634967 | R54: 3.066082029 | S54: 3.099568265 | T54: 3.13303583 | U54: 3.16641606 | V54: 3.199629556 | W54: 3.232586326 | X54: 3.26518605 | Y54: 3.297318497 | Z54: 3.328864134 | AA54: 3.359694947 | AB54: 3.389675518 | AC54: 3.418664343 | AD54: 3.446515414 | AE54: 3.473080061 | AF54: 3.498209024 | AG54: 3.521754736 | AH54: 3.543573774 | AI54: 3.563529429 | AJ54: 3.581494321 | AK54: 3.597353004 | AL54: 3.611004473 | AM54: 3.622364507 | AN54: 3.631367756 | AO54: 3.637969519 | AP54: 3.64214714 | AQ54: 3.643900978 | AR54: 3.643254919 | AS54: 3.640256415 | AT54: 3.634976043 | AU54: 3.627506621 | AV54: 3.617961897 | AW54: 3.606474885 | AX54: 3.593195883 | AY54: 3.578290265 | AZ54: 3.561936103 | BA54: 3.544321707 | BB54: 3.525643133 | BC54: 3.506101748 | BD54: 3.485901876 | BE54: 3.465248595 | BF54: 3.444345714 | BG54: 3.423393938 | BH54: 3.402589256 | BI54: 3.382121542 | BJ54: 3.362173375 | BK54: 3.342919055 | BL54: 3.324523824 | BM54: 3.307143246 | BN54: 3.290922751 | BO54: 3.27599731 | BP54: 3.262491221 | BQ54: 3.250517985 | BR54: 3.240180264 | BS54: 3.231569887 | BT54: 3.224767895 | BU54: 3.219844609 | BV54: 3.216859712 | BW54: 3.215862322 | BX54: 3.216891059 | BY54: 3.219974085 | BZ54: 3.225129117 | CA54: 3.232363412 | CB54: 3.24167371 | CC54: 3.25304614 | CD54: 3.266456094 | CE54: 3.281868063 | CF54: 3.299235443 | CG54: 3.31850032 | CH54: 3.33959324 | CI54: 3.362432977 | CJ54: 3.386926304 | CK54: 3.412967799 | CL54: 3.440439678 | CM54: 3.4692117 | CN54: 3.499141148 | CO54: 3.530072911 | CP54: 3.561839699 | CQ54: 3.594262414 | CR54: 3.627150697 | CS54: 3.660303684 | CT54: 3.693510988 | CU54: 3.726553941 | CV54: 3.759207091 | CW54: 3.791239985 | CX54: 3.822419215 | CY54: 3.852510737 | CZ54: 3.881282434 | DA54: 3.908506872 | DB54: 3.933964229 | DC54: 3.95744531 | DD54: 3.978754586 | DE54: 3.997713173 | DF54: 4.014161667 | DG54: 4.027962733 | DH54: 4.039003373 | DI54: 4.047196785 | DJ54: 4.052483745 | DK54: 4.054833454 | DL54: 4.054243825 | DM54: 4.050741187 | DN54: 4.044379411 | DO54: 4.035238503 | DP54: 4.023422692 | DQ54: 4.009058099 | DR54: 3.992290054 | DS54: 3.973280162 | DT54: 3.952203202 | DU54: 3.929243957 | DV54: 3.904594069 | DW54: 3.878448995 | DX54: 3.851005136 | DY54: 3.822457203 | DZ54: 3.792995852 | EA54: 3.762805629 | EB54: 3.732063233 | EC54: 3.70093611 | ED54: 3.66958136 | EE54: 3.63814495 | EF54: 3.606761213 | EG54: 3.575552604 | EH54: 3.544629692 | EI54: 3.514091356 | EJ54: 3.484025195 | EK54: 3.454508103 | EL54: 3.425607069 | EM54: 3.39738022 | EN54: 3.369878235 | EO54: 3.343146394 | EP54: 3.317227828 | EQ54: 3.292169321 | ER54: 3.268033149 | ES54: 3.244925267 | ET54: 3.223076446 | EU54: 3.203148261 | EV54: 3.188033685 | EW54: 3.199514267
D55: 2.610977745 | E55: 2.641869033 | F55: 2.673136604 | G55: 2.70462647 | H55: 2.736241579 | I55: 2.767936529 | J55: 2.799700276 | K55: 2.831538682 | L55: 2.863462088 | M55: 2.895478011 | N55: 2.927587414 | O55: 2.959782965 | P55: 2.992048298 | Q55: 3.024357708 | R55: 3.056676015 | S55: 3.08895849 | T55: 3.121150825 | U55: 3.153189134 | V55: 3.185000034 | W55: 3.216500812 | X55: 3.247599718 | Y55: 3.278196405 | Z55: 3.308182549 | AA55: 3.337442654 | AB55: 3.365855069 | AC55: 3.393293222 | AD55: 3.419627059 | AE55: 3.444724704 | AF55: 3.468454301 | AG55: 3.490686022 | AH55: 3.511294201 | AI55: 3.530159558 | AJ55: 3.547171445 | AK55: 3.562230072 | AL55: 3.575248638 | AM55: 3.586155316 | AN55: 3.594895017 | AO55: 3.601430888 | AP55: 3.60574549 | AQ55: 3.607841617 | AR55: 3.607742731 | AS55: 3.605492999 | AT55: 3.601156937 | AU55: 3.59481867 | AV55: 3.586580841 | AW55: 3.576563215 | AX55: 3.564901008 | AY55: 3.551743024 | AZ55: 3.537249626 | BA55: 3.521590633 | BB55: 3.504943176 | BC55: 3.487489576 | BD55: 3.469415289 | BE55: 3.450906956 | BF55: 3.432150592 | BG55: 3.413329925 | BH55: 3.394624919 | BI55: 3.376210469 | BJ55: 3.358255273 | BK55: 3.340920886 | BL55: 3.324360932 | BM55: 3.30872047 | BN55: 3.294135498 | BO55: 3.28073257 | BP55: 3.268628532 | BQ55: 3.257930324 | BR55: 3.248734874 | BS55: 3.241129028 | BT55: 3.235189536 | BU55: 3.230983055 | BV55: 3.228566169 | BW55: 3.227985418 | BX55: 3.22927732 | BY55: 3.232468379 | BZ55: 3.237575077 | CA55: 3.244603844 | CB55: 3.253551002 | CC55: 3.264402684 | CD55: 3.277134726 | CE55: 3.291712535 | CF55: 3.308090944 | CG55: 3.326214048 | CH55: 3.346015037 | CI55: 3.36741604 | CJ55: 3.390327972 | CK55: 3.414650427 | CL55: 3.440271604 | CM55: 3.467068298 | CN55: 3.49490597 | CO55: 3.523638923 | CP55: 3.553110583 | CQ55: 3.58315394 | CR55: 3.613592135 | CS55: 3.644239239 | CT55: 3.674901226 | CU55: 3.705377167 | CV55: 3.735460643 | CW55: 3.764941388 | CX55: 3.79360716 | CY55: 3.821245818 | CZ55: 3.847647601 | DA55: 3.87260755 | DB55: 3.895928058 | DC55: 3.917421474 | DD55: 3.936912712 | DE55: 3.954241792 | DF55: 3.96926624 | DG55: 3.981863278 | DH55: 3.991931726 | DI55: 3.999393559 | DJ55: 4.004195062 | DK55: 4.006307534 | DL55: 4.005727521 | DM55: 4.002476561 | DN55: 3.996600457 | DO55: 3.988168083 | DP55: 3.977269788 | DQ55: 3.964015428 | DR55: 3.948532105 | DS55: 3.93096168 | DT55: 3.911458137 | DU55: 3.890184875 | DV55: 3.867312001 | DW55: 3.843013693 | DX55: 3.81746569 | DY55: 3.790842965 | DZ55: 3.763317608 | EA55: 3.735056956 | EB55: 3.706221984 | EC55: 3.676965958 | ED55: 3.647433342 | EE55: 3.617758967 | EF55: 3.588067412 | EG55: 3.558472602 | EH55: 3.52907757 | EI55: 3.49997437 | EJ55: 3.471244078 | EK55: 3.442956861 | EL55: 3.415172026 | EM55: 3.387937966 | EN55: 3.361291854 | EO55: 3.33525878 | EP55: 3.309849746 | EQ55: 3.28505714 | ER55: 3.260844195 | ES55: 3.2371181 | ET55: 3.213650137 | EU55: 3.189770854 | EV55: 3.162569511 | EW55: 3.11020837
D56: 2.612729351 | E56: 2.642829091 | F56: 2.673313768 | G56: 2.704059667 | H56: 2.734974934 | I56: 2.766000512 | J56: 2.797103257 | K56: 2.828266518 | L56: 2.859481707 | M56: 2.890742112 | N56: 2.922038836 | O56: 2.953358289 | P56: 2.984680676 | Q56: 3.015979075 | R56: 3.047218872 | S56: 3.078357399 | T56: 3.10934373 | U56: 3.140118593 | V56: 3.170614399 | W56: 3.200755398 | X56: 3.230457962 | Y56: 3.259631027 | Z56: 3.28817669 | AA56: 3.315990979 | AB56: 3.342964812 | AC56: 3.368985127 | AD56: 3.393936198 | AE56: 3.417701126 | AF56: 3.440163472 | AG56: 3.461209029 | AH56: 3.480727686 | AI56: 3.498615353 | AJ56: 3.514775901 | AK56: 3.529123069 | AL56: 3.541582284 | AM56: 3.552092349 | AN56: 3.560606942 | AO56: 3.567095883 | AP56: 3.571546133 | AQ56: 3.573962489 | AR56: 3.574367952 | AS56: 3.572803768 | AT56: 3.569329134 | AU56: 3.564020577 | AV56: 3.556971041 | AW56: 3.548288711 | AX56: 3.5380956 | AY56: 3.526525963 | AZ56: 3.513724569 | BA56: 3.499844894 | BB56: 3.485047263 | BC56: 3.469497009 | BD56: 3.45336267 | BE56: 3.436814261 | BF56: 3.420021652 | BG56: 3.403153077 | BH56: 3.386373774 | BI56: 3.369844774 | BJ56: 3.353721844 | BK56: 3.338154572 | BL56: 3.323285595 | BM56: 3.309249959 | BN56: 3.296174597 | BO56: 3.284177922 | BP56: 3.273369505 | BQ56: 3.263849842 | BR56: 3.25571018 | BS56: 3.249032404 | BT56: 3.243888964 | BU56: 3.240342824 | BV56: 3.238447445 | BW56: 3.238246766 | BX56: 3.23977519 | BY56: 3.243057571 | BZ56: 3.248109187 | CA56: 3.254935696 | CB56: 3.263533086 | CC56: 3.273887601 | CD56: 3.28597565 | CE56: 3.299763711 | CF56: 3.315208215 | CG56: 3.332255436 | CH56: 3.350841373 | CI56: 3.370891657 | CJ56: 3.392321467 | CK56: 3.415035489 | CL56: 3.438927919 | CM56: 3.463882522 | CN56: 3.489772781 | CO56: 3.516462126 | CP56: 3.543804279 | CQ56: 3.571643732 | CR56: 3.599816362 | CS56: 3.62815021 | CT56: 3.656466432 | CU56: 3.684580431 | CV56: 3.712303187 | CW56: 3.739442764 | CX56: 3.765806008 | CY56: 3.791200421 | CZ56: 3.81543617 | DA56: 3.83832823 | DB56: 3.859698604 | DC56: 3.879378578 | DD56: 3.89721097 | DE56: 3.913052299 | DF56: 3.926774834 | DG56: 3.938268444 | DH56: 3.94744221 | DI56: 3.954225732 | DJ56: 3.958570097 | DK56: 3.96044847 | DL56: 3.959856285 | DM56: 3.956811027 | DN56: 3.951351617 | DO56: 3.943537409 | DP56: 3.93344684 | DQ56: 3.921175768 | DR56: 3.906835556 | DS56: 3.890550962 | DT56: 3.872457886 | DU56: 3.852701049 | DV56: 3.83143166 | DW56: 3.80880512 | DX56: 3.784978834 | DY56: 3.760110141 | DZ56: 3.734354427 | EA56: 3.707863425 | EB56: 3.680783719 | EC56: 3.65325547 | ED56: 3.625411338 | EE56: 3.597375612 | EF56: 3.569263516 | EG56: 3.541180663 | EH56: 3.513222634 | EI56: 3.485474631 | EJ56: 3.458011137 | EK56: 3.430895518 | EL56: 3.40417942 | EM56: 3.377901766 | EN56: 3.352086985 | EO56: 3.326741779 | EP56: 3.301849043 | EQ56: 3.277355932 | ER56: 3.253149029 | ES56: 3.228998667 | ET56: 3.204422803 | EU56: 3.178332186 | EV56: 3.148262192 | EW56: 3.111597889
D57: 2.613945555 | E57: 2.643377761 | F57: 2.673183881 | G57: 2.703258807 | H57: 2.733516486 | I57: 2.763892448 | J57: 2.79434148 | K57: 2.824832741 | L57: 2.855344385 | M57: 2.88585885 | N57: 2.91635921 | O57: 2.946826523 | P57: 2.977237974 | Q57: 3.007565594 | R57: 3.037775381 | S57: 3.067826714 | T57: 3.097671983 | U57: 3.1272564 | V57: 3.156517958 | W57: 3.185387554 | X57: 3.213789242 | Y57: 3.241640648 | Z57: 3.268853538 | AA57: 3.29533454 | AB57: 3.320986028 | AC57: 3.345707165 | AD57: 3.369395097 | AE57: 3.391946285 | AF57: 3.413257963 | AG57: 3.433229699 | AH57: 3.45176503 | AI57: 3.468773131 | AJ57: 3.484170496 | AK57: 3.497882581 | AL57: 3.509845363 | AM57: 3.520006781 | AN57: 3.528328014 | AO57: 3.534784564 | AP57: 3.539367101 | AQ57: 3.542082054 | AR57: 3.542951933 | AS57: 3.542015362 | AT57: 3.539326838 | AU57: 3.534956209 | AV57: 3.528987908 | AW57: 3.52151995 | AX57: 3.512662739 | AY57: 3.502537713 | AZ57: 3.491275862 | BA57: 3.479016167 | BB57: 3.465904002 | BC57: 3.452089514 | BD57: 3.437726046 | BE57: 3.422968606 | BF57: 3.407972419 | BG57: 3.392891573 | BH57: 3.377877786 | BI57: 3.363079285 | BJ57: 3.348639813 | BK57: 3.334697758 | BL57: 3.321385406 | BM57: 3.308828303 | BN57: 3.29714473 | BO57: 3.286445267 | BP57: 3.276832448 | BQ57: 3.268400485 | BR57: 3.261235062 | BS57: 3.255413173 | BT57: 3.251003008 | BU57: 3.248063865 | BV57: 3.246646093 | BW57: 3.246791038 | BX57: 3.248531009 | BY57: 3.251889233 | BZ57: 3.256879822 | CA57: 3.263507721 | CB57: 3.271768655 | CC57: 3.281649066 | CD57: 3.293126043 | CE57: 3.306167244 | CF57: 3.320730817 | CG57: 3.336765328 | CH57: 3.35420969 | CI57: 3.372993119 | CJ57: 3.393035105 | CK57: 3.414245429 | CL57: 3.436524225 | CM57: 3.459762097 | CN57: 3.483840316 | CO57: 3.508631105 | CP57: 3.533998017 | CQ57: 3.559796436 | CR57: 3.585874206 | CS57: 3.612072395 | CT57: 3.638226213 | CU57: 3.664166084 | CV57: 3.68971888 | CW57: 3.714709303 | CX57: 3.738961432 | CY57: 3.762300393 | CZ57: 3.784554151 | DA57: 3.805555397 | DB57: 3.825143487 | DC57: 3.843166402 | DD57: 3.859482689 | DE57: 3.873963324 | DF57: 3.886493458 | DG57: 3.896974003 | DH57: 3.905322988 | DI57: 3.91147667 | DJ57: 3.91539035 | DK57: 3.917038868 | DL57: 3.916416764 | DM57: 3.91353809 | DN57: 3.908435891 | DO57: 3.901161356 | DP57: 3.891782673 | DQ57: 3.880383621 | DR57: 3.867061945 | DS57: 3.851927549 | DT57: 3.835100572 | DU57: 3.816709393 | DV57: 3.79688861 | DW57: 3.775777047 | DX57: 3.753515825 | DY57: 3.730246539 | DZ57: 3.706109562 | EA57: 3.681242506 | EB57: 3.655778838 | EC57: 3.629846672 | ED57: 3.603567726 | EE57: 3.577056434 | EF57: 3.55041919 | EG57: 3.523753707 | EH57: 3.497148449 | EI57: 3.47068208 | EJ57: 3.444422866 | EK57: 3.418427933 | EL57: 3.392742208 | EM57: 3.367396804 | EN57: 3.342406418 | EO57: 3.317764981 | EP57: 3.293438173 | EQ57: 3.269350177 | ER57: 3.245359682 | ES57: 3.221216331 | ET57: 3.196487091 | EU57: 3.170474516 | EV57: 3.142366348 | EW57: 3.112345726
B58: 2 | D58: 2.614665823 | E58: 2.643524815 | F58: 2.672736785 | G58: 2.702207706 | H58: 2.731855828 | I58: 2.761614435 | J58: 2.791431506 | K58: 2.821267297 | L58: 2.851090975 | M58: 2.880877177 | N58: 2.910602953 | O58: 2.940245267 | P58: 2.969779054 | Q58: 2.999175758 | R58: 3.028402258 | S58: 3.057420114 | T58: 3.08618506 | U58: 3.114646718 | V58: 3.142748489 | W58: 3.170427623 | X58: 3.197615437 | Y58: 3.22423769 | Z58: 3.25021511 | AA58: 3.275464064 | AB58: 3.29989737 | AC58: 3.323425252 | AD58: 3.345956418 | AE58: 3.36739926 | AF58: 3.38766315 | AG58: 3.406659821 | AH58: 3.424304797 | AI58: 3.440518858 | AJ58: 3.455229495 | AK58: 3.468372328 | AL58: 3.479892451 | AM58: 3.48974567 | AN58: 3.497899593 | AO58: 3.504334559 | AP58: 3.509044359 | AQ58: 3.512036743 | AR58: 3.513333696 | AS58: 3.51297147 | AT58: 3.511000384 | AU58: 3.507484383 | AV58: 3.502500388 | AW58: 3.49613745 | AX58: 3.488495722 | AY58: 3.479685308 | AZ58: 3.46982498 | BA58: 3.459040837 | BB58: 3.447464909 | BC58: 3.435233744 | BD58: 3.422487019 | BE58: 3.409366184 | BF58: 3.396013163 | BG58: 3.38256914 | BH58: 3.369173426 | BI58: 3.355962434 | BJ58: 3.343068748 | BK58: 3.330620304 | BL58: 3.318739666 | BM58: 3.307543408 | BN58: 3.297141585 | BO58: 3.28763729 | BP58: 3.279126286 | BQ58: 3.271696714 | BR58: 3.265428845 | BS58: 3.260394898 | BT58: 3.256658886 | BU58: 3.254276502 | BV58: 3.253295027 | BW58: 3.253753255 | BX58: 3.255681436 | BY58: 3.259101213 | BZ58: 3.264025577 | CA58: 3.270458814 | CB58: 3.27839645 | CC58: 3.287825198 | CD58: 3.298722903 | CE58: 3.311058483 | CF58: 3.324791883 | CG58: 3.33987403 | CH58: 3.356246801 | CI58: 3.373843024 | CJ58: 3.392586493 | CK58: 3.412392027 | CL58: 3.433165581 | CM58: 3.454804409 | CN58: 3.477197298 | CO58: 3.500224882 | CP58: 3.523760055 | CQ58: 3.547668475 | CR58: 3.571809192 | CS58: 3.596035392 | CT58: 3.620195277 | CU58: 3.644133065 | CV58: 3.667690137 | CW58: 3.690706304 | CX58: 3.713021205 | CY58: 3.734475802 | CZ58: 3.754913982 | DA58: 3.77418421 | DB58: 3.792141238 | DC58: 3.808647806 | DD58: 3.823576321 | DE58: 3.836810469 | DF58: 3.848246709 | DG58: 3.857795625 | DH58: 3.865383088 | DI58: 3.870951199 | DJ58: 3.874458975 | DK58: 3.875882774 | DL58: 3.875216428 | DM58: 3.872471082 | DN58: 3.867674754 | DO58: 3.860871615 | DP58: 3.852121016 | DQ58: 3.841496292 | DR58: 3.82908337 | DS58: 3.814979228 | DT58: 3.799290246 | DU58: 3.782130478 | DV58: 3.763619904 | DW58: 3.743882693 | DX58: 3.723045507 | DY58: 3.701235885 | DZ58: 3.678580724 | EA58: 3.655204886 | EB58: 3.63122992 | EC58: 3.606772932 | ED58: 3.581945576 | EE58: 3.556853168 | EF58: 3.531593906 | EG58: 3.506258159 | EH58: 3.480927801 | EI58: 3.455675534 | EJ58: 3.430564125 | EK58: 3.405645468 | EL58: 3.38095931 | EM58: 3.35653143 | EN58: 3.332370913 | EO58: 3.308465981 | EP58: 3.284777541 | EQ58: 3.261229306 | ER58: 3.23769334 | ES58: 3.213972061 | ET58: 3.189787975 | EU58: 3.164825698 | EV58: 3.138930191 | EW58: 3.112499614
D59: 2.614927446 | E59: 2.643290749 | F59: 2.67198097 | G59: 2.700910148 | H59: 2.729998976 | I59: 2.759179438 | J59: 2.78839536 | K59: 2.817601313 | L59: 2.846760504 | M59: 2.875842245 | N59: 2.904819435 | O59: 2.933666298 | P59: 2.962356467 | Q59: 2.990861448 | R59: 3.019149431 | S59: 3.047184416 | T59: 3.074925601 | U59: 3.10232701 | V59: 3.129337321 | W59: 3.15589988 | X59: 3.181952882 | Y59: 3.207429701 | Z59: 3.232259375 | AA59: 3.256367218 | AB59: 3.279675569 | AC59: 3.302104661 | AD59: 3.323573596 | AE59: 3.344001425 | AF59: 3.363308304 | AG59: 3.381416717 | AH59: 3.398252737 | AI59: 3.413747308 | AJ59: 3.427837514 | AK59: 3.440467808 | AL59: 3.451591174 | AM59: 3.461170198 | AN59: 3.469178004 | AO59: 3.475599047 | AP59: 3.480429739 | AQ59: 3.483678884 | AR59: 3.48536791 | AS59: 3.485530908 | AT59: 3.484214457 | AU59: 3.481477258 | AV59: 3.477389575 | AW59: 3.472032516 | AX59: 3.465497152 | AY59: 3.457883525 | AZ59: 3.449299545 | BA59: 3.439859822 | BB59: 3.429684453 | BC59: 3.418897784 | BD59: 3.407627183 | BE59: 3.396001832 | BF59: 3.384151576 | BG59: 3.372205818 | BH59: 3.360292492 | BI59: 3.348537121 | BJ59: 3.337061951 | BK59: 3.325985181 | BL59: 3.315420271 | BM59: 3.305475348 | BN59: 3.296252681 | BO59: 3.287848239 | BP59: 3.280351312 | BQ59: 3.2738442 | BR59: 3.268401955 | BS59: 3.264092163 | BT59: 3.260974778 | BU59: 3.259101975 | BV59: 3.258518041 | BW59: 3.25925928 | BX59: 3.261353933 | BY59: 3.264822113 | BZ59: 3.269675742 | CA59: 3.275918498 | CB59: 3.283545764 | CC59: 3.292544583 | CD59: 3.302893609 | CE59: 3.314563077 | CF59: 3.32751477 | CG59: 3.341702006 | CH59: 3.357069641 | CI59: 3.373554093 | CJ59: 3.391083404 | CK59: 3.409577332 | CL59: 3.428947491 | CM59: 3.449097556 | CN59: 3.469923517 | CO59: 3.491314024 | CP59: 3.513150801 | CQ59: 3.535309165 | CR59: 3.557658632 | CS59: 3.580063639 | CT59: 3.602384375 | CU59: 3.62447772 | CV59: 3.646198299 | CW59: 3.667399645 | CX59: 3.687935455 | CY59: 3.707660944 | CZ59: 3.726434257 | DA59: 3.744117938 | DB59: 3.760580427 | DC59: 3.775697547 | DD59: 3.789353959 | DE59: 3.80144456 | DF59: 3.811875765 | DG59: 3.820566671 | DH59: 3.82745005 | DI59: 3.832473151 | DJ59: 3.835598294 | DK59: 3.83680322 | DL59: 3.836081211 | DM59: 3.833440951 | DN59: 3.828906155 | DO59: 3.822514949 | DP59: 3.81431905 | DQ59: 3.804382736 | DR59: 3.792781662 | DS59: 3.779601538 | DT59: 3.764936704 | DU59: 3.748888639 | DV59: 3.731564446 | DW59: 3.71307533 | DX59: 3.693535106 | DY59: 3.67305877 | DZ59: 3.651761139 | EA59: 3.629755584 | EB59: 3.607152869 | EC59: 3.584060087 | ED59: 3.560579704 | EE59: 3.536808695 | EF59: 3.512837752 | EG59: 3.488750555 | EH59: 3.46462305 | EI59: 3.440522714 | EJ59: 3.416507726 | EK59: 3.392625974 | EL59: 3.368913789 | EM59: 3.345394243 | EN59: 3.322074832 | EO59: 3.2989443 | EP59: 3.275968419 | EQ59: 3.253084839 | ER59: 3.230198252 | ES59: 3.207180233 | ET59: 3.183885208 | EU59: 3.16020439 | EV59: 3.136175821 | EW59: 3.112104761
D60: 2.614765576 | E60: 2.642701568 | F60: 2.670935728 | G60: 2.699382616 | H60: 2.72796358 | I60: 2.756609267 | J60: 2.785260602 | K60: 2.8138684 | L60: 2.842391999 | M60: 2.87079733 | N60: 2.899054796 | O60: 2.9271372 | P60: 2.955017896 | Q60: 2.982669212 | R60: 3.010061197 | S60: 3.037160648 | T60: 3.063930426 | U60: 3.090329011 | V60: 3.116310273 | W60: 3.141823438 | X60: 3.166813234 | Y60: 3.191220176 | Z60: 3.21498101 | AA60: 3.238029276 | AB60: 3.260295993 | AC60: 3.281710453 | AD60: 3.302201106 | AE60: 3.321696529 | AF60: 3.340126467 | AG60: 3.357422915 | AH60: 3.373521237 | AI60: 3.388361289 | AJ60: 3.401888531 | AK60: 3.414055101 | AL60: 3.424820822 | AM60: 3.434154125 | AN60: 3.442032865 | AO60: 3.448445001 | AP60: 3.453389138 | AQ60: 3.456874898 | AR60: 3.45892313 | AS60: 3.459565935 | AT60: 3.458846532 | AU60: 3.456818933 | AV60: 3.453547477 | AW60: 3.449106204 | AX60: 3.443578108 | AY60: 3.437054268 | AZ60: 3.429632907 | BA60: 3.421418364 | BB60: 3.412520038 | BC60: 3.403051303 | BD60: 3.393128421 | BE60: 3.382869469 | BF60: 3.372393307 | BG60: 3.361818584 | BH60: 3.351262802 | BI60: 3.340841455 | BJ60: 3.33066722 | BK60: 3.320849242 | BL60: 3.31149248 | BM60: 3.302697128 | BN60: 3.294558111 | BO60: 3.287164647 | BP60: 3.280599865 | BQ60: 3.274940484 | BR60: 3.270256541 | BS60: 3.266611166 | BT60: 3.264060387 | BU60: 3.262652977 | BV60: 3.262430322 | BW60: 3.263426311 | BX60: 3.265667247 | BY60: 3.269171767 | BZ60: 3.273950782 | CA60: 3.280007414 | CB60: 3.28733695 | CC60: 3.295926804 | CD60: 3.305756482 | CE60: 3.316797561 | CF60: 3.329013681 | CG60: 3.342360553 | CH60: 3.356785983 | CI60: 3.372229932 | CJ60: 3.388624593 | CK60: 3.405894523 | CL60: 3.423956806 | CM60: 3.442721276 | CN60: 3.462090798 | CO60: 3.481961619 | CP60: 3.502223789 | CQ60: 3.522761674 | CR60: 3.543454544 | CS60: 3.564177265 | CT60: 3.584801075 | CU60: 3.605194467 | CV60: 3.625224155 | CW60: 3.644756136 | CX60: 3.663656826 | CY60: 3.681794274 | CZ60: 3.69903942 | DA60: 3.715267397 | DB60: 3.730358842 | DC60: 3.744201207 | DD60: 3.756690017 | DE60: 3.767730089 | DF60: 3.777236636 | DG60: 3.785136274 | DH60: 3.791367872 | DI60: 3.795883242 | DJ60: 3.798647646 | DK60: 3.799640097 | DL60: 3.798853463 | DM60: 3.796294348 | DN60: 3.791982774 | DO60: 3.785951656 | DP60: 3.778246099 | DQ60: 3.768922517 | DR60: 3.758047618 | DS60: 3.745697266 | DT60: 3.731955249 | DU60: 3.716911997 | DV60: 3.70066325 | DW60: 3.683308737 | DX60: 3.664950859 | DY60: 3.645693421 | DZ60: 3.625640421 | EA60: 3.604894901 | EB60: 3.58355789 | EC60: 3.56172742 | ED60: 3.539497626 | EE60: 3.516957917 | EF60: 3.494192209 | EG60: 3.471278191 | EH60: 3.448286608 | EI60: 3.425280518 | EJ60: 3.402314481 | EK60: 3.37943362 | EL60: 3.356672503 | EM60: 3.334053768 | EN60: 3.31158645 | EO60: 3.289264028 | EP60: 3.267062422 | EQ60: 3.244938658 | ER60: 3.222831947 | ES60: 3.200670843 | ET60: 3.178392512 | EU60: 3.155980071 | EV60: 3.133513532 | EW60: 3.111203878
D61: 2.614213275 | E61: 2.641786171 | F61: 2.669627011 | G61: 2.697650122 | H61: 2.725775838 | I61: 2.753932985 | J61: 2.782060078 | K61: 2.810105329 | L61: 2.838025686 | M61: 2.865785249 | N61: 2.893353373 | O61: 2.920702713 | P61: 2.94780739 | Q61: 2.974641394 | R61: 3.001177251 | S61: 3.027385 | T61: 3.053231427 | U61: 3.078679574 | V61: 3.103688463 | W61: 3.128213023 | X61: 3.152204205 | Y61: 3.175609233 | Z61: 3.198372012 | AA61: 3.220433647 | AB61: 3.241733073 | AC61: 3.262207782 | AD61: 3.281794628 | AE61: 3.30043071 | AF61: 3.318054299 | AG61: 3.33460581 | AH61: 3.350028792 | AI61: 3.364270923 | AJ61: 3.377284984 | AK61: 3.389029803 | AL61: 3.399471127 | AM61: 3.408582435 | AN61: 3.416345636 | AO61: 3.422751665 | AP61: 3.42780095 | AQ61: 3.431503735 | AR61: 3.43388026 | AS61: 3.434960791 | AT61: 3.434785501 | AU61: 3.433404195 | AV61: 3.43087591 | AW61: 3.427268379 | AX61: 3.422657377 | AY61: 3.417125982 | AZ61: 3.410763743 | BA61: 3.403665796 | BB61: 3.39593193 | BC61: 3.387665632 | BD61: 3.378973129 | BE61: 3.36996243 | BF61: 3.360742402 | BG61: 3.351421872 | BH61: 3.342108779 | BI61: 3.33290938 | BJ61: 3.323927511 | BK61: 3.31526391 | BL61: 3.307015606 | BM61: 3.299275368 | BN61: 3.292131215 | BO61: 3.285665988 | BP61: 3.279956975 | BQ61: 3.275075583 | BR61: 3.271087064 | BS61: 3.268050275 | BT61: 3.266017478 | BU61: 3.265034173 | BV61: 3.26513895 | BW61: 3.266363374 | BX61: 3.268731887 | BY61: 3.272261718 | BZ61: 3.27696282 | CA61: 3.282837807 | CB61: 3.289881914 | CC61: 3.298082958 | CD61: 3.307421318 | CE61: 3.317869926 | CF61: 3.329394273 | CG61: 3.341952435 | CH61: 3.35549512 | CI61: 3.369965744 | CJ61: 3.385300538 | CK61: 3.401428691 | CL61: 3.418272536 | CM61: 3.435747792 | CN61: 3.453763852 | CO61: 3.472224139 | CP61: 3.491026531 | CQ61: 3.510063849 | CR61: 3.529224439 | CS61: 3.548392814 | CT61: 3.567450394 | CU61: 3.586276317 | CV61: 3.604748331 | CW61: 3.622743762 | CX61: 3.640140539 | CY61: 3.656818285 | CZ61: 3.672659438 | DA61: 3.687550408 | DB61: 3.70138273 | DC61: 3.714054211 | DD61: 3.725470039 | DE61: 3.735543834 | DF61: 3.744198611 | DG61: 3.75136765 | DH61: 3.756995227 | DI61: 3.761037215 | DJ61: 3.763461511 | DK61: 3.764248307 | DL61: 3.763390168 | DM61: 3.760891943 | DN61: 3.756770485 | DO61: 3.751054208 | DP61: 3.74378248 | DQ61: 3.735004873 | DR61: 3.724780288 | DS61: 3.713175969 | DT61: 3.700266449 | DU61: 3.686132424 | DV61: 3.670859605 | DW61: 3.654537551 | DX61: 3.637258519 | DY61: 3.619116335 | DZ61: 3.600205312 | EA61: 3.580619225 | EB61: 3.560450343 | EC61: 3.53978853 | ED61: 3.518720411 | EE61: 3.497328592 | EF61: 3.475690929 | EG61: 3.453879833 | EH61: 3.431961577 | EI61: 3.4099956 | EJ61: 3.388033758 | EK61: 3.366119515 | EL61: 3.344287036 | EM61: 3.322560193 | EN61: 3.300951533 | EO61: 3.279461366 | EP61: 3.258077361 | EQ61: 3.236775411 | ER61: 3.215523132 | ES61: 3.194288051 | ET61: 3.173052602 | EU61: 3.151835885 | EV61: 3.130715856 | EW61: 3.109837222
D62: 2.61330157 | E62: 2.640575055 | F62: 2.668085285 | G62: 2.695743955 | H62: 2.723468762 | I62: 2.751185971 | J62: 2.778831779 | K62: 2.806352517 | L62: 2.833703872 | M62: 2.860849429 | N62: 2.887758831 | O62: 2.914405825 | P62: 2.940766391 | Q62: 2.966817064 | R62: 2.992533551 | S62: 3.017889624 | T62: 3.042856317 | U62: 3.067401381 | V62: 3.091488982 | W62: 3.11507961 | X62: 3.138130158 | Y62: 3.160594167 | Z62: 3.182422192 | AA62: 3.203562297 | AB62: 3.223960633 | AC62: 3.243562113 | AD62: 3.262311151 | AE62: 3.28015246 | AF62: 3.297031896 | AG62: 3.312897325 | AH62: 3.327699512 | AI62: 3.341392998 | AJ62: 3.353936966 | AK62: 3.365296065 | AL62: 3.375441183 | AM62: 3.384350145 | AN62: 3.392008336 | AO62: 3.398409209 | AP62: 3.403554698 | AQ62: 3.407455494 | AR62: 3.410131208 | AS62: 3.411610398 | AT62: 3.411930462 | AU62: 3.411137413 | AV62: 3.409285523 | AW62: 3.406436868 | AX62: 3.40266076 | AY62: 3.398033101 | AZ62: 3.39263566 | BA62: 3.3865553 | BB62: 3.379883157 | BC62: 3.372713797 | BD62: 3.365144362 | BE62: 3.357273726 | BF62: 3.349201653 | BG62: 3.341027999 | BH62: 3.332851934 | BI62: 3.324771215 | BJ62: 3.316881511 | BK62: 3.309275764 | BL62: 3.302043622 | BM62: 3.295270915 | BN62: 3.289039185 | BO62: 3.28342527 | BP62: 3.278500938 | BQ62: 3.274332562 | BR62: 3.270980843 | BS62: 3.268500566 | BT62: 3.266940396 | BU62: 3.266342696 | BV62: 3.266743384 | BW62: 3.268171799 | BX62: 3.270650604 | BY62: 3.274195688 | BZ62: 3.278816105 | CA62: 3.284514009 | CB62: 3.291284613 | CC62: 3.299116164 | CD62: 3.307989924 | CE62: 3.317880173 | CF62: 3.32875423 | CG62: 3.34057249 | CH62: 3.353288489 | CI62: 3.366848998 | CJ62: 3.38119414 | CK62: 3.396257553 | CL62: 3.411966587 | CM62: 3.428242557 | CN62: 3.445001031 | CO62: 3.462152193 | CP62: 3.479601252 | CQ62: 3.497248924 | CR62: 3.514991977 | CS62: 3.532723847 | CT62: 3.550335323 | CU62: 3.5677153 | CV62: 3.584751601 | CW62: 3.60133185 | CX62: 3.617344409 | CY62: 3.632679352 | CZ62: 3.647229467 | DA62: 3.660891281 | DB62: 3.673566085 | DC62: 3.685160936 | DD62: 3.695589634 | DE62: 3.704773635 | DF62: 3.712642894 | DG62: 3.719136617 | DH62: 3.724203895 | DI62: 3.727804225 | DJ62: 3.729907882 | DK62: 3.730496147 | DL62: 3.729561385 | DM62: 3.72710696 | DN62: 3.723147008 | DO62: 3.717706047 | DP62: 3.710818463 | DQ62: 3.702527862 | DR62: 3.692886318 | DS62: 3.681953522 | DT62: 3.669795867 | DU62: 3.656485472 | DV62: 3.642099178 | DW62: 3.626717532 | DX62: 3.610423765 | DY62: 3.593302804 | DZ62: 3.575440305 | EA62: 3.556921734 | EB62: 3.537831497 | EC62: 3.51825212 | ED62: 3.498263489 | EE62: 3.477942128 | EF62: 3.457360529 | EG62: 3.4365865 | EH62: 3.415682537 | EI62: 3.394705191 | EJ62: 3.373704423 | EK62: 3.352722935 | EL62: 3.331795485 | EM62: 3.310948233 | EN62: 3.290198198 | EO62: 3.269553044 | EP62: 3.249011545 | EQ62: 3.228565308 | ER62: 3.208202579 | ES62: 3.187914993 | ET62: 3.167707575 | EU62: 3.14761059 | EV62: 3.127688956 | EW62: 3.108042657
B63: 1,5 | D63: 2.612059526 | E63: 2.639099776 | F63: 2.666344615 | G63: 2.693700732 | H63: 2.72108148 | I63: 2.748409658 | J63: 2.775619029 | K63: 2.802654577 | L63: 2.829471727 | M63: 2.856034801 | N63: 2.882315069 | O63: 2.908288657 | P63: 2.933934543 | Q63: 2.95923278 | R63: 2.984163004 | S63: 3.008703276 | T63: 3.032829231 | U63: 3.056513506 | V63: 3.079725434 | W63: 3.102430932 | X63: 3.124592587 | Y63: 3.146169881 | Z63: 3.167119554 | AA63: 3.18739606 | AB63: 3.206952127 | AC63: 3.225739377 | AD63: 3.243709014 | AE63: 3.260812552 | AF63: 3.277002589 | AG63: 3.292233583 | AH63: 3.306462653 | AI63: 3.319650365 | AJ63: 3.331761493 | AK63: 3.342765753 | AL63: 3.352638482 | AM63: 3.361361255 | AN63: 3.368922421 | AO63: 3.375317559 | AP63: 3.38054983 | AQ63: 3.384630226 | AR63: 3.387577707 | AS63: 3.389419229 | AT63: 3.390189655 | AU63: 3.389931557 | AV63: 3.388694912 | AW63: 3.386536703 | AX63: 3.383520431 | AY63: 3.379715545 | AZ63: 3.375196817 | BA63: 3.370043656 | BB63: 3.364339388 | BC63: 3.358170512 | BD63: 3.351625939 | BE63: 3.344796237 | BF63: 3.337772879 | BG63: 3.330647518 | BH63: 3.323511282 | BI63: 3.316454111 | BJ63: 3.30956413 | BK63: 3.302927063 | BL63: 3.296625697 | BM63: 3.290739389 | BN63: 3.285343617 | BO63: 3.280509585 | BP63: 3.27630386 | BQ63: 3.272788061 | BR63: 3.270018576 | BS63: 3.268046327 | BT63: 3.266916553 | BU63: 3.266668635 | BV63: 3.267335938 | BW63: 3.268945685 | BX63: 3.271518844 | BY63: 3.27507004 | BZ63: 3.279607481 | CA63: 3.285132904 | CB63: 3.291641534 | CC63: 3.299122059 | CD63: 3.307556623 | CE63: 3.316920839 | CF63: 3.327183813 | CG63: 3.338308198 | CH63: 3.350250273 | CI63: 3.362960037 | CJ63: 3.376381352 | CK63: 3.390452108 | CL63: 3.405104429 | CM63: 3.420264928 | CN63: 3.435855002 | CO63: 3.451791182 | CP63: 3.467985535 | CQ63: 3.484346126 | CR63: 3.500777536 | CS63: 3.51718144 | CT63: 3.533457248 | CU63: 3.549502796 | CV63: 3.565215103 | CW63: 3.580491169 | CX63: 3.595228813 | CY63: 3.609327557 | CZ63: 3.622689517 | DA63: 3.635220319 | DB63: 3.646830001 | DC63: 3.657433903 | DD63: 3.666953519 | DE63: 3.6753173 | DF63: 3.682461393 | DG63: 3.688330289 | DH63: 3.692877384 | DI63: 3.696065422 | DJ63: 3.697866827 | DK63: 3.698263898 | DL63: 3.697248878 | DM63: 3.694823887 | DN63: 3.69100072 | DO63: 3.685800526 | DP63: 3.679253352 | DQ63: 3.671397597 | DR63: 3.662279354 | DS63: 3.651951683 | DT63: 3.640473807 | DU63: 3.627910275 | DV63: 3.614330077 | DW63: 3.599805758 | DX63: 3.584412523 | DY63: 3.568227359 | DZ63: 3.55132818 | EA63: 3.533793012 | EB63: 3.515699209 | EC63: 3.497122721 | ED63: 3.478137405 | EE63: 3.458814377 | EF63: 3.439221401 | EG63: 3.419422309 | EH63: 3.399476444 | EI63: 3.379438112 | EJ63: 3.359356042 | EK63: 3.339272859 | EL63: 3.319224588 | EM63: 3.299240237 | EN63: 3.279341571 | EO63: 3.259543238 | EP63: 3.239853524 | EQ63: 3.220276106 | ER63: 3.200813202 | ES63: 3.181470369 | ET63: 3.162262665 | EU63: 3.143220911 | EV63: 3.12439562 | EW63: 3.105855723
D64: 2.610514321 | E64: 2.637392913 | F64: 2.664442597 | G64: 2.691562408 | H64: 2.718659426 | I64: 2.745651935 | J64: 2.772471078 | K64: 2.799061047 | L64: 2.825378076 | M64: 2.851388599 | N64: 2.87706698 | O64: 2.902393141 | P64: 2.927350324 | Q64: 2.951923141 | R64: 2.976095982 | S64: 2.999851787 | T64: 3.02317117 | U64: 3.046031848 | V64: 3.068408339 | W64: 3.09027187 | X64: 3.111590472 | Y64: 3.132329216 | Z64: 3.152450575 | AA64: 3.171914869 | AB64: 3.190680801 | AC64: 3.208706048 | AD64: 3.225947898 | AE64: 3.242363936 | AF64: 3.257912735 | AG64: 3.272554581 | AH64: 3.286252185 | AI64: 3.298971387 | AJ64: 3.310681844 | AK64: 3.321357677 | AL64: 3.33097807 | AM64: 3.339527817 | AN64: 3.346997795 | AO64: 3.353385362 | AP64: 3.358694669 | AQ64: 3.362936874 | AR64: 3.366130271 | AS64: 3.368300307 | AT64: 3.369479512 | AU64: 3.369707326 | AV64: 3.369029836 | AW64: 3.367499425 | AX64: 3.365174351 | AY64: 3.362118246 | AZ64: 3.358399567 | BA64: 3.354090992 | BB64: 3.349268787 | BC64: 3.344012141 | BD64: 3.338402496 | BE64: 3.332522861 | BF64: 3.326457147 | BG64: 3.320289504 | BH64: 3.314103685 | BI64: 3.307982439 | BJ64: 3.302006931 | BK64: 3.296256203 | BL64: 3.290806672 | BM64: 3.285731667 | BN64: 3.281101002 | BO64: 3.276980602 | BP64: 3.273432149 | BQ64: 3.270512782 | BR64: 3.268274821 | BS64: 3.266765528 | BT64: 3.2660269 | BU64: 3.266095486 | BV64: 3.267002231 | BW64: 3.268772348 | BX64: 3.271425201 | BY64: 3.274974222 | BZ64: 3.279426832 | CA64: 3.28478439 | CB64: 3.291042154 | CC64: 3.298189266 | CD64: 3.306208743 | CE64: 3.315077499 | CF64: 3.324766379 | CG64: 3.335240224 | CH64: 3.346457946 | CI64: 3.35837265 | CJ64: 3.370931766 | CK64: 3.38407723 | CL64: 3.397745693 | CM64: 3.411868771 | CN64: 3.426373342 | CO64: 3.441181887 | CP64: 3.456212873 | CQ64: 3.471381198 | CR64: 3.486598681 | CS64: 3.501774601 | CT64: 3.516816294 | CU64: 3.531629791 | CV64: 3.546120511 | CW64: 3.560193986 | CX64: 3.573756622 | CY64: 3.586716489 | CZ64: 3.598984127 | DA64: 3.610473353 | DB64: 3.621102068 | DC64: 3.630793041 | DD64: 3.639474658 | DE64: 3.647081633 | DF64: 3.653555649 | DG64: 3.658845929 | DH64: 3.662909724 | DI64: 3.665712702 | DJ64: 3.667229237 | DK64: 3.66744258 | DL64: 3.66634492 | DM64: 3.663937333 | DN64: 3.660229605 | DO64: 3.655239957 | DP64: 3.64899466 | DQ64: 3.641527555 | DR64: 3.632879489 | DS64: 3.623097686 | DT64: 3.61223505 | DU64: 3.600349432 | DV64: 3.587502865 | DW64: 3.573760784 | DX64: 3.559191244 | DY64: 3.543864142 | DZ64: 3.527850471 | EA64: 3.51122159 | EB64: 3.494048534 | EC64: 3.476401363 | ED64: 3.458348548 | EE64: 3.4399564 | EF64: 3.421288533 | EG64: 3.402405358 | EH64: 3.383363607 | EI64: 3.364215876 | EJ64: 3.345010192 | EK64: 3.325789605 | EL64: 3.306591829 | EM64: 3.287448983 | EN64: 3.268387488 | EO64: 3.24942828 | EP64: 3.230587478 | EQ64: 3.21187773 | ER64: 3.193310399 | ES64: 3.1748986 | ET64: 3.156660744 | EU64: 3.138623762 | EV64: 3.120824738 | EW64: 3.103309723
D65: 2.608691329 | E65: 2.635488455 | F65: 2.662421022 | G65: 2.689377164 | H65: 2.71625538 | I65: 2.742968249 | J65: 2.769444193 | K65: 2.795627395 | L65: 2.821476283 | M65: 2.846961096 | N65: 2.872061058 | O65: 2.896761531 | P65: 2.921051448 | Q65: 2.944921142 | R65: 2.968360633 | S65: 2.991358356 | T65: 3.013900287 | U65: 3.035969402 | V65: 3.057545411 | W65: 3.078604715 | X65: 3.099120536 | Y65: 3.119063179 | Z65: 3.138400412 | AA65: 3.157097912 | AB65: 3.175119796 | AC65: 3.192429179 | AD65: 3.208988793 | AE65: 3.224761611 | AF65: 3.239711503 | AG65: 3.253803885 | AH65: 3.267006377 | AI65: 3.279289437 | AJ65: 3.29062697 | AK65: 3.300996918 | AL65: 3.310381782 | AM65: 3.318769114 | AN65: 3.326151935 | AO65: 3.332529079 | AP65: 3.337905477 | AQ65: 3.342292342 | AR65: 3.345707282 | AS65: 3.348174317 | AT65: 3.349723823 | AU65: 3.350392372 | AV65: 3.350222516 | AW65: 3.349262469 | AX65: 3.347565744 | AY65: 3.345190712 | AZ65: 3.342200118 | BA65: 3.338660549 | BB65: 3.334641873 | BC65: 3.330216647 | BD65: 3.325459519 | BE65: 3.320446618 | BF65: 3.315254948 | BG65: 3.309961795 | BH65: 3.304644145 | BI65: 3.299378131 | BJ65: 3.294238501 | BK65: 3.289298115 | BL65: 3.284627482 | BM65: 3.280294323 | BN65: 3.276363175 | BO65: 3.272895022 | BP65: 3.269946969 | BQ65: 3.267571947 | BR65: 3.265818444 | BS65: 3.264730272 | BT65: 3.264346366 | BU65: 3.264700598 | BV65: 3.265821624 | BW65: 3.267732756 | BX65: 3.270451848 | BY65: 3.273991207 | BZ65: 3.278357523 | CA65: 3.283551814 | CB65: 3.289569395 | CC65: 3.29639986 | CD65: 3.304027083 | CE65: 3.312429246 | CF65: 3.321578875 | CG65: 3.331442912 | CH65: 3.341982799 | CI65: 3.3531546 | CJ65: 3.364909146 | CK65: 3.377192207 | CL65: 3.389944712 | CM65: 3.403102991 | CN65: 3.416599065 | CO65: 3.430360975 | CP65: 3.444313156 | CQ65: 3.45837685 | CR65: 3.472470573 | CS65: 3.486510619 | CT65: 3.50041161 | CU65: 3.514087087 | CV65: 3.527450144 | CW65: 3.540414083 | CX65: 3.552893112 | CY65: 3.564803049 | CZ65: 3.576062045 | DA65: 3.586591309 | DB65: 3.596315818 | DC65: 3.60516502 | DD65: 3.613073492 | DE65: 3.619981564 | DF65: 3.625835884 | DG65: 3.630589922 | DH65: 3.634204396 | DI65: 3.636647613 | DJ65: 3.63789572 | DK65: 3.637932862 | DL65: 3.636751232 | DM65: 3.634351031 | DN65: 3.630740318 | DO65: 3.625934774 | DP65: 3.61995737 | DQ65: 3.612837953 | DR65: 3.60461276 | DS65: 3.595323872 | DT65: 3.585018607 | DU65: 3.573748887 | DV65: 3.561570565 | DW65: 3.54854275 | DX65: 3.534727116 | DY65: 3.520187227 | DZ65: 3.504987875 | EA65: 3.48919444 | EB65: 3.47287229 | EC65: 3.456086203 | ED65: 3.438899834 | EE65: 3.421375223 | EF65: 3.403572334 | EG65: 3.385548631 | EH65: 3.367358688 | EI65: 3.349053826 | EJ65: 3.330681776 | EK65: 3.312286376 | EL65: 3.293907308 | EM65: 3.275579905 | EN65: 3.257335075 | EO65: 3.239199401 | EP65: 3.221195521 | EQ65: 3.203342872 | ER65: 3.185658878 | ES65: 3.168160525 | ET65: 3.150866133 | EU65: 3.133796882 | EV65: 3.116977526 | EW65: 3.100435805
D66: 2.606614199 | E66: 2.633422628 | F66: 2.660327314 | G66: 2.687201235 | H66: 2.713931428 | I66: 2.740423482 | J66: 2.766603287 | K66: 2.79241633 | L66: 2.817825229 | M66: 2.842806304 | N66: 2.867345859 | O66: 2.891436689 | P66: 2.91507506 | Q66: 2.9382583 | R66: 2.960982983 | S66: 2.983243654 | T66: 3.005032001 | U66: 3.026336395 | V66: 3.047141705 | W66: 3.067429331 | X66: 3.087177404 | Y66: 3.106361095 | Z66: 3.124953023 | AA66: 3.142923729 | AB66: 3.160242196 | AC66: 3.176876406 | AD66: 3.192793923 | AE66: 3.207962495 | AF66: 3.222350655 | AG66: 3.235928329 | AH66: 3.24866743 | AI66: 3.260542437 | AJ66: 3.271530951 | AK66: 3.281614209 | AL66: 3.290777567 | AM66: 3.299010929 | AN66: 3.306309115 | AO66: 3.312672178 | AP66: 3.318105641 | AQ66: 3.322620673 | AR66: 3.32623418 | AS66: 3.328968828 | AT66: 3.330852989 | AU66: 3.331920607 | AV66: 3.332211003 | AW66: 3.331768603 | AX66: 3.33064261 | AY66: 3.328886627 | AZ66: 3.326558218 | BA66: 3.323718445 | BB66: 3.320431368 | BC66: 3.316763514 | BD66: 3.31278335 | BE66: 3.308560726 | BF66: 3.304166338 | BG66: 3.299671186 | BH66: 3.295146046 | BI66: 3.290660966 | BJ66: 3.286284773 | BK66: 3.282084616 | BL66: 3.278125529 | BM66: 3.274470023 | BN66: 3.271177717 | BO66: 3.268304987 | BP66: 3.265904657 | BQ66: 3.264025711 | BR66: 3.262713039 | BS66: 3.262007212 | BT66: 3.261944276 | BU66: 3.262555582 | BV66: 3.26386763 | BW66: 3.26590194 | BX66: 3.268674944 | BY66: 3.272197898 | BZ66: 3.276476812 | CA66: 3.281512398 | CB66: 3.287300044 | CC66: 3.293829794 | CD66: 3.30108636 | CE66: 3.309049146 | CF66: 3.317692296 | CG66: 3.326984764 | CH66: 3.336890408 | CI66: 3.347368108 | CJ66: 3.358371916 | CK66: 3.369851233 | CL66: 3.381751015 | CM66: 3.394012021 | CN66: 3.406571088 | CO66: 3.41936145 | CP66: 3.432313091 | CQ66: 3.445353141 | CR66: 3.458406309 | CS66: 3.471395353 | CT66: 3.484241594 | CU66: 3.496865455 | CV66: 3.509187044 | CW66: 3.521126749 | CX66: 3.532605868 | CY66: 3.543547248 | CZ66: 3.55387593 | DA66: 3.5635198 | DB66: 3.57241022 | DC66: 3.580482652 | DD66: 3.587677242 | DE66: 3.59393937 | DF66: 3.599220152 | DG66: 3.603476877 | DH66: 3.606673388 | DI66: 3.60878038 | DJ66: 3.609775622 | DK66: 3.609644097 | DL66: 3.608378048 | DM66: 3.605976946 | DN66: 3.602447366 | DO66: 3.597802779 | DP66: 3.592063271 | DQ66: 3.585255182 | DR66: 3.577410691 | DS66: 3.568567333 | DT66: 3.558767484 | DU66: 3.5480578 | DV66: 3.53648864 | DW66: 3.524113468 | DX66: 3.510988258 | DY66: 3.497170897 | DZ66: 3.482720615 | EA66: 3.467697419 | EB66: 3.452161578 | EC66: 3.436173118 | ED66: 3.419791375 | EE66: 3.403074572 | EF66: 3.386079443 | EG66: 3.368860895 | EH66: 3.351471706 | EI66: 3.333962255 | EJ66: 3.316380282 | EK66: 3.298770677 | EL66: 3.281175288 | EM66: 3.263632756 | EN66: 3.246178382 | EO66: 3.228844034 | EP66: 3.211658132 | EQ66: 3.194645718 | ER66: 3.177828659 | ES66: 3.16122597 | ET66: 3.144854247 | EU66: 3.128728108 | EV66: 3.112860546 | EW66: 3.097263063
D67: 2.604304948 | E67: 2.631235312 | F67: 2.658216994 | G67: 2.685101955 | H67: 2.711762093 | I67: 2.738094761 | J67: 2.764024175 | K67: 2.789499427 | L67: 2.81449036 | M67: 2.838982532 | N67: 2.86297223 | O67: 2.886462099 | P67: 2.909457629 | Q67: 2.931964512 | R67: 2.953986806 | S67: 2.975525723 | T67: 2.99657894 | U67: 3.017140274 | V67: 3.03719964 | W67: 3.056743205 | X67: 3.075753672 | Y67: 3.094210677 | Z67: 3.112091236 | AA67: 3.129370251 | AB67: 3.146021042 | AC67: 3.162015903 | AD67: 3.177326666 | AE67: 3.191925272 | AF67: 3.205784342 | AG67: 3.21887774 | AH67: 3.231181117 | AI67: 3.242672445 | AJ67: 3.253332512 | AK67: 3.263145397 | AL67: 3.272098892 | AM67: 3.280184892 | AN67: 3.287399724 | AO67: 3.29374442 | AP67: 3.29922494 | AQ67: 3.303852316 | AR67: 3.307642742 | AS67: 3.31061759 | AT67: 3.312803365 | AU67: 3.314231586 | AV67: 3.314938616 | AW67: 3.314965424 | AX67: 3.314357293 | AY67: 3.313163485 | AZ67: 3.311436859 | BA67: 3.309233455 | BB67: 3.306612047 | BC67: 3.303633677 | BD67: 3.300361171 | BE67: 3.296858652 | BF67: 3.293191045 | BG67: 3.289423589 | BH67: 3.285621363 | BI67: 3.281848812 | BJ67: 3.278169309 | BK67: 3.274644722 | BL67: 3.271335015 | BM67: 3.268297867 | BN67: 3.265588321 | BO67: 3.263258459 | BP67: 3.261357106 | BQ67: 3.259929554 | BR67: 3.259017324 | BS67: 3.258657941 | BT67: 3.258884743 | BU67: 3.259726709 | BV67: 3.261208311 | BW67: 3.263349387 | BX67: 3.266165037 | BY67: 3.269665532 | BZ67: 3.273856254 | CA67: 3.278737642 | CB67: 3.284305166 | CC67: 3.29054932 | CD67: 3.297455623 | CE67: 3.305004659 | CF67: 3.313172118 | CG67: 3.321928877 | CH67: 3.331241086 | CI67: 3.3410703 | CJ67: 3.351373616 | CK67: 3.362103855 | CL67: 3.373209763 | CM67: 3.384636248 | CN67: 3.39632465 | CO67: 3.408213043 | CP67: 3.42023657 | CQ67: 3.432327815 | CR67: 3.444417209 | CS67: 3.45643347 | CT67: 3.468304074 | CU67: 3.479955754 | CV67: 3.491315027 | CW67: 3.502308746 | CX67: 3.512864662 | CY67: 3.522912004 | CZ67: 3.532382058 | DA67: 3.54120875 | DB67: 3.549329213 | DC67: 3.556684334 | DD67: 3.563219281 | DE67: 3.568883984 | DF67: 3.573633585 | DG67: 3.577428819 | DH67: 3.580236354 | DI67: 3.582029051 | DJ67: 3.582786165 | DK67: 3.582493464 | DL67: 3.581143282 | DM67: 3.578734484 | DN67: 3.575272365 | DO67: 3.570768474 | DP67: 3.565240367 | DQ67: 3.558711302 | DR67: 3.551209871 | DS67: 3.542769591 | DT67: 3.533428449 | DU67: 3.523228419 | DV67: 3.512214958 | DW67: 3.500436484 | DX67: 3.487943861 | DY67: 3.474789881 | DZ67: 3.461028761 | EA67: 3.446715664 | EB67: 3.431906251 | EC67: 3.416656253 | ED67: 3.4010211 | EE67: 3.385055574 | EF67: 3.368813517 | EG67: 3.35234758 | EH67: 3.33570901 | EI67: 3.318947481 | EJ67: 3.302110958 | EK67: 3.28524557 | EL67: 3.268395498 | EM67: 3.251602824 | EN67: 3.234907335 | EO67: 3.218346212 | EP67: 3.201953581 | EQ67: 3.185759891 | ER67: 3.169791114 | ES67: 3.154067851 | ET67: 3.138604499 | EU67: 3.123408744 | EV67: 3.108481661 | EW67: 3.093818625
B68: 1 | D68: 2.601784044 | E68: 2.628972337 | F68: 2.656157647 | G68: 2.683162528 | H68: 2.709839033 | I68: 2.736075443 | J68: 2.761796522 | K68: 2.786959015 | L68: 2.811544658 | M68: 2.835552702 | N68: 2.858993181 | O68: 2.881881513 | P68: 2.904234504 | Q68: 2.926067617 | R68: 2.947393233 | S68: 2.968219667 | T68: 2.988550712 | U68: 3.008385553 | V68: 3.027718921 | W68: 3.046541413 | X68: 3.064839907 | Y68: 3.082598048 | Z68: 3.099796762 | AA68: 3.116414805 | AB68: 3.132429308 | AC68: 3.147816339 | AD68: 3.162551453 | AE68: 3.176610248 | AF68: 3.189968896 | AG68: 3.202604676 | AH68: 3.214496472 | AI68: 3.225625267 | AJ68: 3.23597459 | AK68: 3.245530946 | AL68: 3.254284197 | AM68: 3.262227911 | AN68: 3.269359653 | AO68: 3.275681236 | AP68: 3.281198908 | AQ68: 3.28592349 | AR68: 3.289870452 | AS68: 3.293059926 | AT68: 3.295516668 | AU68: 3.297269956 | AV68: 3.298353434 | AW68: 3.298804906 | AX68: 3.298666076 | AY68: 3.297982253 | AZ68: 3.296802006 | BA68: 3.295176801 | BB68: 3.293160597 | BC68: 3.290809432 | BD68: 3.288180986 | BE68: 3.285334145 | BF68: 3.282328553 | BG68: 3.279224169 | BH68: 3.276080834 | BI68: 3.272957845 | BJ68: 3.269913541 | BK68: 3.267004917 | BL68: 3.264287242 | BM68: 3.261813713 | BN68: 3.259635125 | BO68: 3.257799561 | BP68: 3.256352117 | BQ68: 3.255334639 | BR68: 3.254785496 | BS68: 3.254739361 | BT68: 3.255227035 | BU68: 3.256275274 | BV68: 3.257906646 | BW68: 3.260139416 | BX68: 3.262987433 | BY68: 3.266460054 | BZ68: 3.270562079 | CA68: 3.275293704 | CB68: 3.280650493 | CC68: 3.286623376 | CD68: 3.293198657 | CE68: 3.300358045 | CF68: 3.308078708 | CG68: 3.316333348 | CH68: 3.325090293 | CI68: 3.334313621 | CJ68: 3.343963304 | CK68: 3.353995379 | CL68: 3.364362146 | CM68: 3.3750124 | CN68: 3.38589168 | CO68: 3.396942566 | CP68: 3.408104988 | CQ68: 3.419316583 | CR68: 3.430513069 | CS68: 3.441628651 | CT68: 3.452596462 | CU68: 3.463349018 | CV68: 3.473818704 | CW68: 3.483938268 | CX68: 3.49364134 | CY68: 3.50286295 | CZ68: 3.511540052 | DA68: 3.519612046 | DB68: 3.527021283 | DC68: 3.533713558 | DD68: 3.539638572 | DE68: 3.544750367 | DF68: 3.549007718 | DG68: 3.552374478 | DH68: 3.554819872 | DI68: 3.556318733 | DJ68: 3.556851677 | DK68: 3.556405216 | DL68: 3.5549718 | DM68: 3.552549793 | DN68: 3.549143389 | DO68: 3.54476246 | DP68: 3.539422342 | DQ68: 3.533143573 | DR68: 3.525951575 | DS68: 3.517876298 | DT68: 3.508951824 | DU68: 3.499215951 | DV68: 3.48870975 | DW68: 3.477477118 | DX68: 3.465564323 | DY68: 3.453019558 | DZ68: 3.439892513 | EA68: 3.426233956 | EB68: 3.412095357 | EC68: 3.397528534 | ED68: 3.382585347 | EE68: 3.367317435 | EF68: 3.351775997 | EG68: 3.336011634 | EH68: 3.320074233 | EI68: 3.304012901 | EJ68: 3.287875942 | EK68: 3.271710841 | EL68: 3.255564248 | EM68: 3.239481885 | EN68: 3.223508322 | EO68: 3.207686492 | EP68: 3.192056856 | EQ68: 3.176656071 | ER68: 3.161515135 | ES68: 3.146657099 | ET68: 3.132094716 | EU68: 3.117828667 | EV68: 3.103847188 | EW68: 3.090127759
D69: 2.599070492 | E69: 2.626689249 | F69: 2.654235312 | G69: 2.681489445 | H69: 2.708277974 | I69: 2.734480577 | J69: 2.760027497 | K69: 2.784890139 | L69: 2.80906931 | M69: 2.832584147 | N69: 2.855463214 | O69: 2.877738068 | P69: 2.89943902 | Q69: 2.920592576 | R69: 2.941220073 | S69: 2.961337117 | T69: 2.980953517 | U69: 3.000073543 | V69: 3.018696352 | W69: 3.036816512 | X69: 3.054424582 | Y69: 3.0715077 | Z69: 3.08805018 | AA69: 3.104034097 | AB69: 3.119439867 | AC69: 3.134246804 | AD69: 3.148433672 | AE69: 3.161979209 | AF69: 3.174862643 | AG69: 3.187064184 | AH69: 3.198565492 | AI69: 3.209350121 | AJ69: 3.219403938 | AK69: 3.228715504 | AL69: 3.237276424 | AM69: 3.245081651 | AN69: 3.25212976 | AO69: 3.258423158 | AP69: 3.263968259 | AQ69: 3.268775605 | AR69: 3.272859929 | AS69: 3.276240174 | AT69: 3.278939454 | AU69: 3.280984964 | AV69: 3.282407842 | AW69: 3.283242987 | AX69: 3.283528829 | AY69: 3.28330706 | AZ69: 3.282622339 | BA69: 3.281521954 | BB69: 3.280055471 | BC69: 3.278274355 | BD69: 3.276231585 | BE69: 3.273981255 | BF69: 3.27157817 | BG69: 3.269077447 | BH69: 3.266534114 | BI69: 3.264002728 | BJ69: 3.261536992 | BK69: 3.259189395 | BL69: 3.257010869 | BM69: 3.255050457 | BN69: 3.253355006 | BO69: 3.251968886 | BP69: 3.25093372 | BQ69: 3.25028814 | BR69: 3.250067571 | BS69: 3.250304025 | BT69: 3.251025925 | BU69: 3.252257948 | BV69: 3.254020886 | BW69: 3.256331525 | BX69: 3.259202553 | BY69: 3.262642475 | BZ69: 3.266655555 | CA69: 3.271241768 | CB69: 3.276396786 | CC69: 3.282111963 | CD69: 3.288374352 | CE69: 3.29516674 | CF69: 3.302467699 | CG69: 3.310251661 | CH69: 3.318489012 | CI69: 3.327146211 | CJ69: 3.336185934 | CK69: 3.345567237 | CL69: 3.35524575 | CM69: 3.365173893 | CN69: 3.375301124 | CO69: 3.385574209 | CP69: 3.395937523 | CQ69: 3.406333376 | CR69: 3.416702363 | CS69: 3.426983749 | CT69: 3.437115863 | CU69: 3.447036525 | CV69: 3.456683486 | CW69: 3.465994881 | CX69: 3.474909698 | CY69: 3.483368246 | CZ69: 3.491312629 | DA69: 3.498687211 | DB69: 3.505439074 | DC69: 3.511518455 | DD69: 3.516879159 | DE69: 3.521478947 | DF69: 3.525279884 | DG69: 3.528248644 | DH69: 3.530356776 | DI69: 3.531580909 | DJ69: 3.531902914 | DK69: 3.531309999 | DL69: 3.529794754 | DM69: 3.527355133 | DN69: 3.523994379 | DO69: 3.519720898 | DP69: 3.514548075 | DQ69: 3.508494042 | DR69: 3.50158141 | DS69: 3.493836955 | DT69: 3.485291276 | DU69: 3.475978434 | DV69: 3.465935565 | DW69: 3.455202495 | DX69: 3.443821342 | DY69: 3.431836138 | DZ69: 3.419292451 | EA69: 3.40623704 | EB69: 3.392717533 | EC69: 3.378782141 | ED69: 3.364479419 | EE69: 3.349858076 | EF69: 3.334966832 | EG69: 3.319854351 | EH69: 3.304569222 | EI69: 3.28916001 | EJ69: 3.273675361 | EK69: 3.258164131 | EL69: 3.242675517 | EM69: 3.227259093 | EN69: 3.211964666 | EO69: 3.196841749 | EP69: 3.181938446 | EQ69: 3.167299495 | ER69: 3.152963255 | ES69: 3.138957683 | ET69: 3.125295798 | EU69: 3.111971758 | EV69: 3.098959277 | EW69: 3.086213965
D70: 2.596181921 | E70: 2.624457668 | F70: 2.652565019 | G70: 2.680224135 | H70: 2.707228866 | I70: 2.733454173 | J70: 2.758845943 | K70: 2.783402198 | L70: 2.807153604 | M70: 2.830147526 | N70: 2.852436802 | O70: 2.874072712 | P70: 2.895101052 | Q70: 2.915560265 | R70: 2.93548085 | S70: 2.954885497 | T70: 2.973789603 | U70: 2.992201972 | V70: 3.010125588 | W70: 3.027558381 | X70: 3.044493986 | Y70: 3.060922447 | Z70: 3.076830892 | AA70: 3.092204167 | AB70: 3.107025437 | AC70: 3.121276746 | AD70: 3.134939562 | AE70: 3.147995283 | AF70: 3.160425725 | AG70: 3.172213584 | AH70: 3.183342873 | AI70: 3.193799324 | AJ70: 3.203570774 | AK70: 3.21264751 | AL70: 3.221022583 | AM70: 3.228692085 | AN70: 3.235655385 | AO70: 3.241915329 | AP70: 3.247478386 | AQ70: 3.252354756 | AR70: 3.256558431 | AS70: 3.260107208 | AT70: 3.263022652 | AU70: 3.265330017 | AV70: 3.267058126 | AW70: 3.268239204 | AX70: 3.268908676 | AY70: 3.269104924 | AZ70: 3.268869027 | BA70: 3.268244455 | BB70: 3.267276755 | BC70: 3.266013214 | BD70: 3.264502507 | BE70: 3.262794338 | BF70: 3.260939076 | BG70: 3.258987392 | BH70: 3.256989893 | BI70: 3.254996771 | BJ70: 3.253057456 | BK70: 3.251220279 | BL70: 3.249532156 | BM70: 3.248038286 | BN70: 3.246781858 | BO70: 3.245803789 | BP70: 3.245142472 | BQ70: 3.244833549 | BR70: 3.244909699 | BS70: 3.24540045 | BT70: 3.246332008 | BU70: 3.247727108 | BV70: 3.249604879 | BW70: 3.251980733 | BX70: 3.254866273 | BY70: 3.258269214 | BZ70: 3.262193324 | CA70: 3.266638389 | CB70: 3.271600187 | CC70: 3.277070484 | CD70: 3.283037054 | CE70: 3.289483707 | CF70: 3.296390345 | CG70: 3.303733037 | CH70: 3.311484108 | CI70: 3.319612259 | CJ70: 3.328082704 | CK70: 3.336857327 | CL70: 3.34589487 | CM70: 3.355151139 | CN70: 3.364579237 | CO70: 3.37412982 | CP70: 3.38375138 | CQ70: 3.393390549 | CR70: 3.402992427 | CS70: 3.412500933 | CT70: 3.421859175 | CU70: 3.431009836 | CV70: 3.43989558 | CW70: 3.448459466 | CX70: 3.456645366 | CY70: 3.464398401 | CZ70: 3.471665355 | DA70: 3.478395106 | DB70: 3.484539029 | DC70: 3.490051386 | DD70: 3.494889706 | DE70: 3.499015118 | DF70: 3.50239267 | DG70: 3.504991598 | DH70: 3.506785564 | DI70: 3.507752839 | DJ70: 3.507876447 | DK70: 3.507144254 | DL70: 3.505549005 | DM70: 3.503088319 | DN70: 3.499764619 | DO70: 3.495585028 | DP70: 3.490561206 | DQ70: 3.484709159 | DR70: 3.478048994 | DS70: 3.470604656 | DT70: 3.462403627 | DU70: 3.453476612 | DV70: 3.443857204 | DW70: 3.433581548 | DX70: 3.422688002 | DY70: 3.411216802 | DZ70: 3.399209748 | EA70: 3.386709909 | EB70: 3.373761355 | EC70: 3.360408933 | ED70: 3.346698086 | EE70: 3.332674727 | EF70: 3.318385175 | EG70: 3.303876166 | EH70: 3.289194943 | EI70: 3.274389423 | EJ70: 3.259508456 | EK70: 3.244602134 | EL70: 3.229722136 | EM70: 3.214922019 | EN70: 3.200257309 | EO70: 3.185785166 | EP70: 3.171563268 | EQ70: 3.157647435 | ER70: 3.144087478 | ES70: 3.130920986 | ET70: 3.118165441 | EU70: 3.105810354 | EV70: 3.093812655 | EW70: 3.082099072
D71: 2.593134662 | E71: 2.622376569 | F71: 2.651308768 | G71: 2.679561597 | H71: 2.706890641 | I71: 2.733178374 | J71: 2.758406447 | K71: 2.782619379 | L71: 2.805893285 | M71: 2.828314268 | N71: 2.849965685 | O71: 2.870921736 | P71: 2.891244952 | Q71: 2.910985833 | R71: 2.930183553 | S71: 2.948867114 | T71: 2.967056623 | U71: 2.984764542 | V71: 3.001996841 | W71: 3.018754034 | X71: 3.035032109 | Y71: 3.05082335 | Z71: 3.066117086 | AA71: 3.080900361 | AB71: 3.095158545 | AC71: 3.108875906 | AD71: 3.122036132 | AE71: 3.134622821 | AF71: 3.146619943 | AG71: 3.158012271 | AH71: 3.168785779 | AI71: 3.17892802 | AJ71: 3.188428471 | AK71: 3.197278848 | AL71: 3.205473384 | AM71: 3.213009083 | AN71: 3.219885929 | AO71: 3.226107061 | AP71: 3.231678907 | AQ71: 3.236611274 | AR71: 3.240917408 | AS71: 3.244613997 | AT71: 3.247721142 | AU71: 3.250262287 | AV71: 3.252264106 | AW71: 3.253756358 | AX71: 3.254771703 | AY71: 3.255345489 | AZ71: 3.255515508 | BA71: 3.255321738 | BB71: 3.254806044 | BC71: 3.254011886 | BD71: 3.252983996 | BE71: 3.251768054 | BF71: 3.250410359 | BG71: 3.248957497 | BH71: 3.24745601 | BI71: 3.245952072 | BJ71: 3.244491171 | BK71: 3.243117802 | BL71: 3.241875171 | BM71: 3.240804916 | BN71: 3.239946835 | BO71: 3.239338642 | BP71: 3.23901573 | BQ71: 3.239010958 | BR71: 3.23935445 | BS71: 3.240073421 | BT71: 3.241192008 | BU71: 3.242731136 | BV71: 3.244708385 | BW71: 3.247137888 | BX71: 3.250030236 | BY71: 3.253392413 | BZ71: 3.257227734 | CA71: 3.261535813 | CB71: 3.266312541 | CC71: 3.271550084 | CD71: 3.277236898 | CE71: 3.283357767 | CF71: 3.289893851 | CG71: 3.29682276 | CH71: 3.304118647 | CI71: 3.311752316 | CJ71: 3.31969136 | CK71: 3.32790031 | CL71: 3.336340812 | CM71: 3.344971827 | CN71: 3.353749846 | CO71: 3.362629137 | CP71: 3.371562005 | CQ71: 3.380499076 | CR71: 3.389389607 | CS71: 3.398181802 | CT71: 3.40682316 | CU71: 3.415260829 | CV71: 3.42344197 | CW71: 3.431314143 | CX71: 3.438825684 | CY71: 3.445926095 | CZ71: 3.452566426 | DA71: 3.458699658 | DB71: 3.464281066 | DC71: 3.469268573 | DD71: 3.473623082 | DE71: 3.477308784 | DF71: 3.480293434 | DG71: 3.482548601 | DH71: 3.484049869 | DI71: 3.484777014 | DJ71: 3.484714121 | DK71: 3.483849675 | DL71: 3.482176592 | DM71: 3.479692216 | DN71: 3.476398261 | DO71: 3.472300723 | DP71: 3.467409742 | DQ71: 3.461739429 | DR71: 3.45530766 | DS71: 3.448135846 | DT71: 3.440248669 | DU71: 3.431673809 | DV71: 3.422441658 | DW71: 3.41258502 | DX71: 3.40213882 | DY71: 3.39113982 | DZ71: 3.379626347 | EA71: 3.367638042 | EB71: 3.355215649 | EC71: 3.34240083 | ED71: 3.329236043 | EE71: 3.315764468 | EF71: 3.302030014 | EG71: 3.288077404 | EH71: 3.273952361 | EI71: 3.259701904 | EJ71: 3.245374762 | EK71: 3.231021912 | EL71: 3.216697208 | EM71: 3.202458056 | EN71: 3.188365981 | EO71: 3.174486834 | EP71: 3.160890151 | EQ71: 3.147646913 | ER71: 3.134824644 | ES71: 3.122478712 | ET71: 3.110639465 | EU71: 3.099297054 | EV71: 3.088389602 | EW71: 3.077803339
D72: 2.589943836 | E72: 2.620593519 | F72: 2.650707617 | G72: 2.6797807 | H72: 2.707532163 | I72: 2.733883823 | J72: 2.758891663 | K72: 2.782678292 | L72: 2.805386171 | M72: 2.82715184 | N72: 2.848094597 | O72: 2.868313258 | P72: 2.887886825 | Q72: 2.906876681 | R72: 2.925329184 | S72: 2.943278133 | T72: 2.960746941 | U72: 2.977750475 | V72: 2.994296597 | W72: 3.01038745 | X72: 3.026020544 | Y72: 3.041189671 | Z72: 3.055885706 | AA72: 3.070097298 | AB72: 3.083811488 | AC72: 3.097014266 | AD72: 3.109691079 | AE72: 3.121827292 | AF72: 3.133408623 | AG72: 3.144421539 | AH72: 3.154853627 | AI72: 3.164693934 | AJ72: 3.173933278 | AK72: 3.182564535 | AL72: 3.19058289 | AM72: 3.197986058 | AN72: 3.204774473 | AO72: 3.210951444 | AP72: 3.21652327 | AQ72: 3.221499325 | AR72: 3.225892102 | AS72: 3.229717217 | AT72: 3.232993387 | AU72: 3.235742358 | AV72: 3.237988809 | AW72: 3.239760217 | AX72: 3.241086693 | AY72: 3.242000794 | AZ72: 3.2425373 | BA72: 3.242732977 | BB72: 3.24262632 | BC72: 3.242257277 | BD72: 3.241666963 | BE72: 3.240897366 | BF72: 3.239991047 | BG72: 3.238990839 | BH72: 3.237939543 | BI72: 3.236879632 | BJ72: 3.235852962 | BK72: 3.234900487 | BL72: 3.234061982 | BM72: 3.233375792 | BN72: 3.232878575 | BO72: 3.232605074 | BP72: 3.232587898 | BQ72: 3.232857318 | BR72: 3.233441086 | BS72: 3.23436426 | BT72: 3.235649057 | BU72: 3.237314713 | BV72: 3.239377367 | BW72: 3.241849961 | BX72: 3.244742151 | BY72: 3.248060241 | BZ72: 3.251807132 | CA72: 3.255982285 | CB72: 3.260581707 | CC72: 3.265597947 | CD72: 3.271020113 | CE72: 3.276833907 | CF72: 3.283021677 | CG72: 3.289562485 | CH72: 3.296432199 | CI72: 3.303603595 | CJ72: 3.311046493 | CK72: 3.318727894 | CL72: 3.326612155 | CM72: 3.33466117 | CN72: 3.342834581 | CO72: 3.351090003 | CP72: 3.35938327 | CQ72: 3.367668702 | CR72: 3.375899386 | CS72: 3.384027475 | CT72: 3.392004503 | CU72: 3.399781714 | CV72: 3.407310392 | CW72: 3.414542213 | CX72: 3.42142959 | CY72: 3.427926026 | CZ72: 3.433986459 | DA72: 3.439567603 | DB72: 3.444628285 | DC72: 3.449129755 | DD72: 3.453035985 | DE72: 3.456313949 | DF72: 3.458933868 | DG72: 3.460869431 | DH72: 3.462097982 | DI72: 3.46260067 | DJ72: 3.462362565 | DK72: 3.461372732 | DL72: 3.459624266 | DM72: 3.457114286 | DN72: 3.453843898 | DO72: 3.449818104 | DP72: 3.445045694 | DQ72: 3.439539092 | DR72: 3.43331418 | DS72: 3.426390091 | DT72: 3.418788984 | DU72: 3.410535806 | DV72: 3.401658038 | DW72: 3.392185437 | DX72: 3.382149785 | DY72: 3.37158464 | DZ72: 3.360525102 | EA72: 3.349007608 | EB72: 3.337069748 | EC72: 3.324750133 | ED72: 3.312088302 | EE72: 3.299124706 | EF72: 3.285900756 | EG72: 3.27245898 | EH72: 3.258843289 | EI72: 3.245099386 | EJ72: 3.231275347 | EK72: 3.217422391 | EL72: 3.203595858 | EM72: 3.189856396 | EN72: 3.176271254 | EO72: 3.162915487 | EP72: 3.149872552 | EQ72: 3.137233296 | ER72: 3.125091534 | ES72: 3.113533528 | ET72: 3.102618598 | EU72: 3.092350925 | EV72: 3.082650923 | EW72: 3.073345543
B73: 0,5 | D73: 2.586623424 | E73: 2.619347818 | F73: 2.651141828 | G73: 2.68129388 | H73: 2.70951999 | I73: 2.735858202 | J73: 2.760509289 | K73: 2.783720082 | L73: 2.805723431 | M73: 2.826716038 | N73: 2.846855147 | O73: 2.866262669 | P73: 2.885031265 | Q73: 2.903230188 | R73: 2.920910213 | S73: 2.938107564 | T73: 2.954846982 | U73: 2.971144114 | V73: 2.987007382 | W73: 3.002439454 | X73: 3.01743844 | Y73: 3.031998858 | Z73: 3.046112451 | AA73: 3.05976888 | AB73: 3.072956327 | AC73: 3.085662025 | AD73: 3.097872739 | AE73: 3.109575199 | AF73: 3.120756494 | AG73: 3.13140444 | AH73: 3.141507913 | AI73: 3.15105716 | AJ73: 3.160044076 | AK73: 3.168462457 | AL73: 3.17630823 | AM73: 3.183579645 | AN73: 3.190277445 | AO73: 3.196404996 | AP73: 3.201968399 | AQ73: 3.206976552 | AR73: 3.211441196 | AS73: 3.215376912 | AT73: 3.2188011 | AU73: 3.221733914 | AV73: 3.224198174 | AW73: 3.226219242 | AX73: 3.227824879 | AY73: 3.229045066 | AZ73: 3.229911813 | BA73: 3.230458939 | BB73: 3.23072184 | BC73: 3.230737241 | BD73: 3.230542936 | BE73: 3.230177523 | BF73: 3.229680127 | BG73: 3.229090128 | BH73: 3.228446885 | BI73: 3.227789465 | BJ73: 3.227156372 | BK73: 3.226585289 | BL73: 3.226112828 | BM73: 3.225774283 | BN73: 3.225603407 | BO73: 3.22563219 | BP73: 3.225890658 | BQ73: 3.226406682 | BR73: 3.227205807 | BS73: 3.228311089 | BT73: 3.229742958 | BU73: 3.231519082 | BV73: 3.233654261 | BW73: 3.236160329 | BX73: 3.239046075 | BY73: 3.242317176 | BZ73: 3.245976153 | CA73: 3.250022333 | CB73: 3.25445184 | CC73: 3.259257589 | CD73: 3.264429307 | CE73: 3.269953564 | CF73: 3.275813824 | CG73: 3.281990516 | CH73: 3.288461112 | CI73: 3.295200239 | CJ73: 3.302179793 | CK73: 3.309369084 | CL73: 3.316734989 | CM73: 3.324242133 | CN73: 3.331853081 | CO73: 3.33952855 | CP73: 3.347227642 | CQ73: 3.354908084 | CR73: 3.362526499 | CS73: 3.370038675 | CT73: 3.377399856 | CU73: 3.384565043 | CV73: 3.391489303 | CW73: 3.398128078 | CX73: 3.40443751 | CY73: 3.410374755 | CZ73: 3.415898295 | DA73: 3.420968254 | DB73: 3.42554669 | DC73: 3.429597883 | DD73: 3.433088601 | DE73: 3.435988352 | DF73: 3.438269601 | DG73: 3.439907975 | DH73: 3.440882423 | DI73: 3.441175358 | DJ73: 3.440772757 | DK73: 3.439664232 | DL73: 3.437843061 | DM73: 3.435306186 | DN73: 3.432054178 | DO73: 3.42809117 | DP73: 3.423424749 | DQ73: 3.418065834 | DR73: 3.412028512 | DS73: 3.405329868 | DT73: 3.397989778 | DU73: 3.390030708 | DV73: 3.381477485 | DW73: 3.372357077 | DX73: 3.362698367 | DY73: 3.352531942 | DZ73: 3.341889887 | EA73: 3.330805611 | EB73: 3.319313693 | EC73: 3.307449778 | ED73: 3.295250517 | EE73: 3.282753572 | EF73: 3.269997714 | EG73: 3.257023008 | EH73: 3.243871148 | EI73: 3.230585952 | EJ73: 3.217214076 | EK73: 3.203805999 | EL73: 3.190417363 | EM73: 3.177110726 | EN73: 3.163957789 | EO73: 3.151042062 | EP73: 3.138461651 | EQ73: 3.126331234 | ER73: 3.114780899 | ES73: 3.103947042 | ET73: 3.093947362 | EU73: 3.084832169 | EV73: 3.076517905 | EW73: 3.068743069
D74: 2.583186345 | E74: 2.619066901 | F74: 2.653249749 | G74: 2.684726847 | H74: 2.713348485 | I74: 2.739444243 | J74: 2.76347682 | K74: 2.785873098 | L74: 2.806974821 | M74: 2.827039865 | N74: 2.846257982 | O74: 2.864767318 | P74: 2.882667853 | Q74: 2.900031459 | R74: 2.916909169 | S74: 2.9333364 | T74: 2.949336731 | U74: 2.964924658 | V74: 2.980107645 | W74: 2.994887687 | X74: 3.009262519 | Y74: 3.023226584 | Z74: 3.036771821 | AA74: 3.049888325 | AB74: 3.062564906 | AC74: 3.074789592 | AD74: 3.086550058 | AE74: 3.097834021 | AF74: 3.108629604 | AG74: 3.118925654 | AH74: 3.128712052 | AI74: 3.137979978 | AJ74: 3.146722165 | AK74: 3.154933122 | AL74: 3.162609332 | AM74: 3.169749424 | AN74: 3.176354323 | AO74: 3.182427362 | AP74: 3.187974375 | AQ74: 3.193003758 | AR74: 3.197526499 | AS74: 3.201556179 | AT74: 3.205108944 | AU74: 3.208203453 | AV74: 3.210860789 | AW74: 3.213104353 | AX74: 3.214959729 | AY74: 3.216454524 | AZ74: 3.217618195 | BA74: 3.218481848 | BB74: 3.219078033 | BC74: 3.21944051 | BD74: 3.219604023 | BE74: 3.21960405 | BF74: 3.219476558 | BG74: 3.219257751 | BH74: 3.21898382 | BI74: 3.218690688 | BJ74: 3.218413773 | BK74: 3.218187739 | BL74: 3.218046273 | BM74: 3.218021852 | BN74: 3.218145537 | BO74: 3.21844677 | BP74: 3.218953183 | BQ74: 3.219690421 | BR74: 3.220681981 | BS74: 3.221949062 | BT74: 3.223510431 | BU74: 3.225382303 | BV74: 3.227578232 | BW74: 3.230109028 | BX74: 3.232982673 | BY74: 3.23620427 | BZ74: 3.239775988 | CA74: 3.243697039 | CB74: 3.247963663 | CC74: 3.252569127 | CD74: 3.25750374 | CE74: 3.262754892 | CF74: 3.268307098 | CG74: 3.274142064 | CH74: 3.28023877 | CI74: 3.286573567 | CJ74: 3.293120294 | CK74: 3.299850408 | CL74: 3.306733134 | CM74: 3.313735633 | CN74: 3.320823182 | CO74: 3.327959371 | CP74: 3.335106322 | CQ74: 3.342224913 | CR74: 3.349275025 | CS74: 3.356215791 | CT74: 3.363005869 | CU74: 3.369603711 | CV74: 3.375967848 | CW74: 3.382057178 | CX74: 3.38783125 | CY74: 3.393250559 | CZ74: 3.398276828 | DA74: 3.402873287 | DB74: 3.407004944 | DC74: 3.410638841 | DD74: 3.413744296 | DE74: 3.416293125 | DF74: 3.418259845 | DG74: 3.419621848 | DH74: 3.420359557 | DI74: 3.420456545 | DJ74: 3.419899628 | DK74: 3.418678931 | DL74: 3.416787918 | DM74: 3.41422339 | DN74: 3.410985457 | DO74: 3.407077479 | DP74: 3.402505974 | DQ74: 3.397280509 | DR74: 3.391413561 | DS74: 3.384920359 | DT74: 3.377818712 | DU74: 3.370128822 | DV74: 3.361873089 | DW74: 3.353075914 | DX74: 3.3437635 | DY74: 3.333963661 | DZ74: 3.32370565 | EA74: 3.313019995 | EB74: 3.301938376 | EC74: 3.290493532 | ED74: 3.278719216 | EE74: 3.266650222 | EF74: 3.254322483 | EG74: 3.241773285 | EH74: 3.229041616 | EI74: 3.216168704 | EJ74: 3.203198809 | EK74: 3.190180355 | EL74: 3.177167541 | EM74: 3.16422261 | EN74: 3.15141902 | EO74: 3.138845813 | EP74: 3.12661343 | EQ74: 3.114860786 | ER74: 3.103761988 | ES74: 3.093526911 | ET74: 3.084380548 | EU74: 3.076492403 | EV74: 3.069832141 | EW74: 3.064012001
D75: 2.579644528 | E75: 2.620609975 | F75: 2.658173029 | G75: 2.691032598 | H75: 2.719649936 | I75: 2.745007297 | J75: 2.767983297 | K75: 2.789222053 | L75: 2.809167125 | M75: 2.828119496 | N75: 2.846284003 | O75: 2.86380116 | P75: 2.880767978 | Q75: 2.897251488 | R75: 2.913297618 | S75: 2.928937102 | T75: 2.944189522 | U75: 2.959066117 | V75: 2.973571813 | W75: 2.987706704 | X75: 3.001467194 | Y75: 3.014846871 | Z75: 3.02783723 | AA75: 3.040428252 | AB75: 3.052608915 | AC75: 3.06436762 | AD75: 3.075692583 | AE75: 3.086572178 | AF75: 3.096995248 | AG75: 3.106951398 | AH75: 3.116431251 | AI75: 3.125426693 | AJ75: 3.133931083 | AK75: 3.141939456 | AL75: 3.149448693 | AM75: 3.156457667 | AN75: 3.162967375 | AO75: 3.168981035 | AP75: 3.174504164 | AQ75: 3.179544628 | AR75: 3.184112669 | AS75: 3.188220898 | AT75: 3.19188427 | AU75: 3.195120035 | AV75: 3.197947654 | AW75: 3.200388703 | AX75: 3.202466749 | AY75: 3.204207206 | AZ75: 3.205637175 | BA75: 3.206785266 | BB75: 3.207681404 | BC75: 3.208356625 | BD75: 3.208842864 | BE75: 3.209172731 | BF75: 3.209379286 | BG75: 3.20949581 | BH75: 3.209555573 | BI75: 3.209591605 | BJ75: 3.209636474 | BK75: 3.20972206 | BL75: 3.209879346 | BM75: 3.210138207 | BN75: 3.210527215 | BO75: 3.211073451 | BP75: 3.21180233 | BQ75: 3.212737434 | BR75: 3.213900361 | BS75: 3.215310588 | BT75: 3.21698534 | BU75: 3.21893948 | BV75: 3.221185413 | BW75: 3.223732994 | BX75: 3.226589465 | BY75: 3.229759393 | BZ75: 3.233244631 | CA75: 3.237044288 | CB75: 3.24115472 | CC75: 3.245569526 | CD75: 3.250279571 | CE75: 3.255273013 | CF75: 3.260535352 | CG75: 3.266049493 | CH75: 3.271795823 | CI75: 3.277752306 | CJ75: 3.283894588 | CK75: 3.290196129 | CL75: 3.296628336 | CM75: 3.303160724 | CN75: 3.309761081 | CO75: 3.316395662 | CP75: 3.323029379 | CQ75: 3.329626018 | CR75: 3.336148464 | CS75: 3.342558934 | CT75: 3.348819221 | CU75: 3.354890949 | CV75: 3.360735828 | CW75: 3.366315919 | CX75: 3.371593895 | CY75: 3.376533305 | CZ75: 3.381098831 | DA75: 3.385256543 | DB75: 3.388974142 | DC75: 3.392221192 | DD75: 3.394969336 | DE75: 3.3971925 | DF75: 3.398867073 | DG75: 3.399972066 | DH75: 3.40048925 | DI75: 3.400403265 | DJ75: 3.399701705 | DK75: 3.39837518 | DL75: 3.396417335 | DM75: 3.393824864 | DN75: 3.390597475 | DO75: 3.386737844 | DP75: 3.382251533 | DQ75: 3.377146897 | DR75: 3.371434956 | DS75: 3.365129261 | DT75: 3.358245737 | DU75: 3.350802521 | DV75: 3.342819784 | DW75: 3.334319556 | DX75: 3.32532555 | DY75: 3.315862988 | DZ75: 3.305958443 | EA75: 3.295639698 | EB75: 3.284935623 | EC75: 3.273876095 | ED75: 3.262491954 | EE75: 3.25081502 | EF75: 3.238878189 | EG75: 3.226715621 | EH75: 3.214363071 | EI75: 3.201858405 | EJ75: 3.189242376 | EK75: 3.176559772 | EL75: 3.163861127 | EM75: 3.151205251 | EN75: 3.138663043 | EO75: 3.126323278 | EP75: 3.114301453 | EQ75: 3.102753214 | ER75: 3.091893822 | ES75: 3.082022301 | ET75: 3.073535344 | EU75: 3.066872237 | EV75: 3.062254042 | EW75: 3.0591672
D76: 2.576008978 | E76: 2.625991306 | F76: 2.668056068 | G76: 2.701584447 | H76: 2.729115577 | I76: 2.752837343 | J76: 2.774117139 | K76: 2.793762976 | L76: 2.812258043 | M76: 2.829899721 | N76: 2.846876475 | O76: 2.863310625 | P76: 2.879282773 | Q76: 2.894846236 | R76: 2.910035865 | S76: 2.924873619 | T76: 2.93937221 | U76: 2.953537566 | V76: 2.967370558 | W76: 2.980868245 | X76: 2.994024812 | Y76: 3.006832295 | Z76: 3.019281167 | AA76: 3.03136082 | AB76: 3.043059979 | AC76: 3.054367061 | AD76: 3.065270496 | AE76: 3.075759018 | AF76: 3.08582193 | AG76: 3.095449344 | AH76: 3.104632406 | AI76: 3.113363503 | AJ76: 3.121636442 | AK76: 3.129446623 | AL76: 3.136791183 | AM76: 3.143669125 | AN76: 3.150081426 | AO76: 3.15603112 | AP76: 3.161523363 | AQ76: 3.166565476 | AR76: 3.171166958 | AS76: 3.175339484 | AT76: 3.179096876 | AU76: 3.182455055 | AV76: 3.185431965 | AW76: 3.188047483 | AX76: 3.190323304 | AY76: 3.192282813 | AZ76: 3.193950936 | BA76: 3.195353977 | BB76: 3.196519446 | BC76: 3.197475869 | BD76: 3.198252595 | BE76: 3.198879595 | BF76: 3.19938725 | BG76: 3.199806149 | BH76: 3.20016687 | BI76: 3.200499778 | BJ76: 3.200834811 | BK76: 3.201201279 | BL76: 3.201627669 | BM76: 3.20214145 | BN76: 3.202768893 | BO76: 3.203534895 | BP76: 3.204462818 | BQ76: 3.205574333 | BR76: 3.20688928 | BS76: 3.208425537 | BT76: 3.210198901 | BU76: 3.212222985 | BV76: 3.214509124 | BW76: 3.217066295 | BX76: 3.219901051 | BY76: 3.223017469 | BZ76: 3.226417113 | CA76: 3.230099002 | CB76: 3.234059604 | CC76: 3.238292839 | CD76: 3.242790091 | CE76: 3.247540241 | CF76: 3.252529714 | CG76: 3.257742536 | CH76: 3.263160407 | CI76: 3.268762795 | CJ76: 3.274527032 | CK76: 3.280428437 | CL76: 3.286440446 | CM76: 3.292534757 | CN76: 3.298681489 | CO76: 3.304849357 | CP76: 3.311005857 | CQ76: 3.317117457 | CR76: 3.323149813 | CS76: 3.329067979 | CT76: 3.334836635 | CU76: 3.340420318 | CV76: 3.345783656 | CW76: 3.350891611 | CX76: 3.355709718 | CY76: 3.36020432 | CZ76: 3.364342809 | DA76: 3.36809385 | DB76: 3.371427605 | DC76: 3.374315942 | DD76: 3.376732631 | DE76: 3.378653526 | DF76: 3.380056729 | DG76: 3.380922734 | DH76: 3.381234549 | DI76: 3.380977798 | DJ76: 3.380140796 | DK76: 3.378714605 | DL76: 3.376693056 | DM76: 3.374072757 | DN76: 3.370853069 | DO76: 3.367036059 | DP76: 3.362626437 | DQ76: 3.357631462 | DR76: 3.35206084 | DS76: 3.345926597 | DT76: 3.339242941 | DU76: 3.332026116 | DV76: 3.324294242 | DW76: 3.316067157 | DX76: 3.307366254 | DY76: 3.298214323 | DZ76: 3.288635404 | EA76: 3.278654649 | EB76: 3.268298207 | EC76: 3.257593135 | ED76: 3.246567344 | EE76: 3.235249596 | EF76: 3.223669557 | EG76: 3.211857942 | EH76: 3.199846773 | EI76: 3.187669793 | EJ76: 3.175363125 | EK76: 3.162966266 | EL76: 3.150523618 | EM76: 3.138086869 | EN76: 3.125718751 | EO76: 3.11349919 | EP76: 3.101535628 | EQ76: 3.089981002 | ER76: 3.079065898 | ES76: 3.06915649 | ET76: 3.060852002 | EU76: 3.055092543 | EV76: 3.052961408 | EW76: 3.054222391
D77: 2.572289838 | E77: 2.64099254 | F77: 2.686794481 | G77: 2.717937732 | H77: 2.742183496 | I77: 2.76295309 | J77: 2.781763764 | K77: 2.79935345 | L77: 2.816112982 | M77: 2.832263613 | N77: 2.847936827 | O77: 2.863213267 | P77: 2.87814307 | Q77: 2.892757128 | R77: 2.907073638 | S77: 2.921102098 | T77: 2.934845844 | U77: 2.948303733 | V77: 2.961471313 | W77: 2.974341659 | X77: 2.986906013 | Y77: 2.999154281 | Z77: 3.011075445 | AA77: 3.02265791 | AB77: 3.033889807 | AC77: 3.044759265 | AD77: 3.05525466 | AE77: 3.065364839 | AF77: 3.075079337 | AG77: 3.084388569 | AH77: 3.093284016 | AI77: 3.101758393 | AJ77: 3.109805799 | AK77: 3.117421864 | AL77: 3.124603865 | AM77: 3.131350835 | AN77: 3.137663655 | AO77: 3.143545118 | AP77: 3.148999988 | AQ77: 3.154035023 | AR77: 3.158658994 | AS77: 3.162882671 | AT77: 3.166718799 | AU77: 3.170182044 | AV77: 3.17328893 | AW77: 3.176057749 | AX77: 3.178508459 | AY77: 3.180662565 | AZ77: 3.182542981 | BA77: 3.184173885 | BB77: 3.185580558 | BC77: 3.186789211 | BD77: 3.187826812 | BE77: 3.188720898 | BF77: 3.189499385 | BG77: 3.190190379 | BH77: 3.190821981 | BI77: 3.191422092 | BJ77: 3.192018228 | BK77: 3.192637327 | BL77: 3.19330557 | BM77: 3.194048202 | BN77: 3.194889368 | BO77: 3.195851945 | BP77: 3.196957395 | BQ77: 3.198225621 | BR77: 3.199674833 | BS77: 3.20132143 | BT77: 3.203179886 | BU77: 3.205262655 | BV77: 3.207580084 | BW77: 3.210140336 | BX77: 3.212949329 | BY77: 3.216010692 | BZ77: 3.21932572 | CA77: 3.222893356 | CB77: 3.226710182 | CC77: 3.230770418 | CD77: 3.235065937 | CE77: 3.239586301 | CF77: 3.244318799 | CG77: 3.249248502 | CH77: 3.254358341 | CI77: 3.259629181 | CJ77: 3.265039923 | CK77: 3.270567618 | CL77: 3.27618758 | CM77: 3.281873536 | CN77: 3.287597761 | CO77: 3.293331248 | CP77: 3.299043878 | CQ77: 3.304704598 | CR77: 3.310281617 | CS77: 3.315742603 | CT77: 3.321054891 | CU77: 3.326185695 | CV77: 3.331102325 | CW77: 3.335772403 | CX77: 3.340164086 | CY77: 3.344246279 | CZ77: 3.347988854 | DA77: 3.351362852 | DB77: 3.354340686 | DC77: 3.356896332 | DD77: 3.359005506 | DE77: 3.360645827 | DF77: 3.361796967 | DG77: 3.362440777 | DH77: 3.362561405 | DI77: 3.362145382 | DJ77: 3.361181691 | DK77: 3.359661821 | DL77: 3.357579785 | DM77: 3.354932128 | DN77: 3.351717907 | DO77: 3.347938652 | DP77: 3.343598305 | DQ77: 3.338703142 | DR77: 3.333261675 | DS77: 3.327284543 | DT77: 3.320784388 | DU77: 3.313775717 | DV77: 3.30627476 | DW77: 3.298299325 | DX77: 3.289868643 | DY77: 3.281003222 | DZ77: 3.271724702 | EA77: 3.262055725 | EB77: 3.252019805 | EC77: 3.241641236 | ED77: 3.230945007 | EE77: 3.219956766 | EF77: 3.208702815 | EG77: 3.197210173 | EH77: 3.185506718 | EI77: 3.173621438 | EJ77: 3.161584856 | EK77: 3.149429694 | EL77: 3.137191938 | EM77: 3.124912534 | EN77: 3.112640198 | EO77: 3.10043621 | EP77: 3.088383019 | EQ77: 3.076600609 | ER77: 3.065279894 | ES77: 3.054756793 | ET77: 3.045692305 | EU77: 3.039540579 | EV77: 3.03955984 | EW77: 3.049190231
B78: 0 | D78: 2.568496456 | E78: 2.684595816 | F78: 2.718891381 | G78: 2.74043985 | H78: 2.758399068 | I78: 2.774854778 | J78: 2.790516488 | K78: 2.805683152 | L78: 2.820497486 | M78: 2.835032633 | N78: 2.849327109 | O78: 2.863400648 | P78: 2.877262042 | Q78: 2.890913286 | R78: 2.904351908 | S78: 2.917572352 | T78: 2.930566839 | U78: 2.943325946 | V78: 2.955839026 | W78: 2.968094519 | X78: 2.980080218 | Y78: 2.991783494 | Z78: 3.003191499 | AA78: 3.01429136 | AB78: 3.025070357 | AC78: 3.0355161 | AD78: 3.045616698 | AE78: 3.055360917 | AF78: 3.064738342 | AG78: 3.073739524 | AH78: 3.082356123 | AI78: 3.090581039 | AJ78: 3.098408539 | AK78: 3.105834367 | AL78: 3.112855843 | AM78: 3.119471953 | AN78: 3.125683415 | AO78: 3.131492741 | AP78: 3.136904271 | AQ78: 3.1419242 | AR78: 3.146560582 | AS78: 3.150823317 | AT78: 3.154724122 | AU78: 3.158276483 | AV78: 3.16149559 | AW78: 3.164398259 | AX78: 3.167002834 | AY78: 3.169329074 | AZ78: 3.171398033 | BA78: 3.173231925 | BB78: 3.17485397 | BC78: 3.176288248 | BD78: 3.17755953 | BE78: 3.178693109 | BF78: 3.179714628 | BG78: 3.180649906 | BH78: 3.181524757 | BI78: 3.182364814 | BJ78: 3.183195355 | BK78: 3.184041128 | BL78: 3.184926186 | BM78: 3.185873721 | BN78: 3.18690591 | BO78: 3.188043765 | BP78: 3.189306989 | BQ78: 3.190713848 | BR78: 3.192281047 | BS78: 3.194023613 | BT78: 3.195954797 | BU78: 3.198085982 | BV78: 3.200426598 | BW78: 3.202984057 | BX78: 3.205763694 | BY78: 3.208768721 | BZ78: 3.212000193 | CA78: 3.215456988 | CB78: 3.219135794 | CC78: 3.223031117 | CD78: 3.227135294 | CE78: 3.231438522 | CF78: 3.235928896 | CG78: 3.240592468 | CH78: 3.24541331 | CI78: 3.250373591 | CJ78: 3.255453674 | CK78: 3.260632211 | CL78: 3.265886269 | CM78: 3.271191446 | CN78: 3.276522018 | CO78: 3.281851086 | CP78: 3.287150732 | CQ78: 3.292392191 | CR78: 3.297546028 | CS78: 3.302582316 | CT78: 3.307470836 | CU78: 3.312181263 | CV78: 3.316683369 | CW78: 3.32094722 | CX78: 3.324943377 | CY78: 3.328643095 | CZ78: 3.332018517 | DA78: 3.33504286 | DB78: 3.337690601 | DC78: 3.339937645 | DD78: 3.34176149 | DE78: 3.343141374 | DF78: 3.344058405 | DG78: 3.344495686 | DH78: 3.344438411 | DI78: 3.343873949 | DJ78: 3.342791904 | DK78: 3.341184166 | DL78: 3.339044928 | DM78: 3.336370689 | DN78: 3.333160246 | DO78: 3.329414648 | DP78: 3.325137151 | DQ78: 3.32033314 | DR78: 3.31501005 | DS78: 3.309177256 | DT78: 3.302845968 | DU78: 3.296029099 | DV78: 3.28874114 | DW78: 3.280998016 | DX78: 3.272816946 | DY78: 3.264216299 | DZ78: 3.255215453 | EA78: 3.245834656 | EB78: 3.236094896 | EC78: 3.226017775 | ED78: 3.215625409 | EE78: 3.20494033 | EF78: 3.193985419 | EG78: 3.182783862 | EH78: 3.171359146 | EI78: 3.159735097 | EJ78: 3.14793599 | EK78: 3.135986751 | EL78: 3.123913314 | EM78: 3.111743217 | EN78: 3.099506629 | EO78: 3.087238165 | EP78: 3.074980249 | EQ78: 3.062789844 | ER78: 3.050753123 | ES78: 3.039021716 | ET78: 3.027918854 | EU78: 3.018342232 | EV78: 3.014139263 | EW78: 3.044082386
D79: 3.521873834 | E79: 2.867481334 | F79: 2.809005479 | G79: 2.799074972 | H79: 2.801253334 | I79: 2.808167299 | J79: 2.817383108 | K79: 2.827861831 | L79: 2.839081706 | M79: 2.850748935 | N79: 2.862683074 | O79: 2.874765244 | P79: 2.886912332 | Q79: 2.899063094 | R79: 2.911170223 | S79: 2.923195586 | T79: 2.935107262 | U79: 2.946877652 | V79: 2.958482241 | W79: 2.969898791 | X79: 2.981106808 | Y79: 2.992087201 | Z79: 3.002822068 | AA79: 3.013294575 | AB79: 3.023488906 | AC79: 3.033390244 | AD79: 3.042984804 | AE79: 3.052259876 | AF79: 3.061203887 | AG79: 3.069806475 | AH79: 3.078058566 | AI79: 3.085952455 | AJ79: 3.093481881 | AK79: 3.100642102 | AL79: 3.107429963 | AM79: 3.113843951 | AN79: 3.119884246 | AO79: 3.125552753 | AP79: 3.13085313 | AQ79: 3.135790798 | AR79: 3.140372931 | AS79: 3.144608441 | AT79: 3.148507944 | AU79: 3.15208371 | AV79: 3.155349598 | AW79: 3.158320978 | AX79: 3.161014643 | AY79: 3.163448703 | AZ79: 3.165642466 | BA79: 3.167616316 | BB79: 3.169391575 | BC79: 3.17099036 | BD79: 3.172435431 | BE79: 3.173750035 | BF79: 3.174957749 | BG79: 3.176082311 | BH79: 3.177147465 | BI79: 3.178176788 | BJ79: 3.179193536 | BK79: 3.180220477 | BL79: 3.181279743 | BM79: 3.182392672 | BN79: 3.183579666 | BO79: 3.184860052 | BP79: 3.18625195 | BQ79: 3.18777215 | BR79: 3.189435998 | BS79: 3.191257289 | BT79: 3.193248171 | BU79: 3.195419063 | BV79: 3.197778574 | BW79: 3.200333442 | BX79: 3.203088479 | BY79: 3.206046529 | BZ79: 3.209208436 | CA79: 3.212573024 | CB79: 3.216137089 | CC79: 3.219895403 | CD79: 3.223840729 | CE79: 3.227963847 | CF79: 3.232253593 | CG79: 3.236696911 | CH79: 3.241278917 | CI79: 3.245982967 | CJ79: 3.250790751 | CK79: 3.255682385 | CL79: 3.26063652 | CM79: 3.265630461 | CN79: 3.270640299 | CO79: 3.275641046 | CP79: 3.280606786 | CQ79: 3.285510829 | CR79: 3.290325878 | CS79: 3.295024195 | CT79: 3.299577781 | CU79: 3.303958551 | CV79: 3.308138522 | CW79: 3.312089992 | CX79: 3.315785725 | CY79: 3.319199133 | CZ79: 3.322304455 | DA79: 3.325076929 | DB79: 3.327492958 | DC79: 3.329530271 | DD79: 3.331168066 | DE79: 3.332387152 | DF79: 3.333170068 | DG79: 3.333501193 | DH79: 3.333366844 | DI79: 3.332755348 | DJ79: 3.331657105 | DK79: 3.330064635 | DL79: 3.327972598 | DM79: 3.325377806 | DN79: 3.322279216 | DO79: 3.318677899 | DP79: 3.314577007 | DQ79: 3.309981712 | DR79: 3.304899138 | DS79: 3.299338287 | DT79: 3.293309944 | DU79: 3.286826585 | DV79: 3.279902274 | DW79: 3.272552563 | DX79: 3.264794392 | DY79: 3.256645989 | DZ79: 3.248126791 | EA79: 3.239257368 | EB79: 3.230059374 | EC79: 3.220555527 | ED79: 3.210769625 | EE79: 3.200726622 | EF79: 3.190452773 | EG79: 3.179975886 | EH79: 3.169325723 | EI79: 3.158534622 | EJ79: 3.147638453 | EK79: 3.136678099 | EL79: 3.125701791 | EM79: 3.114768898 | EN79: 3.103956296 | EO79: 3.093369619 | EP79: 3.08316431 | EQ79: 3.073588072 | ER79: 3.065075163 | ES79: 3.058484733 | ET79: 3.055824637 | EU79: 3.063175426 | EV79: 3.110593148 | EW79: 3.650145589

Sheet Data
A1: 1 | B1: 2 | C1: 3 | D1: 4 | E1: 5 | F1: 6 | G1: 7 | H1: 8 | I1: 9 | J1: 10 | K1: 11 | L1: 12 | M1: 13 | N1: 14 | O1: 15 | P1: 16 | Q1: 17 | R1: 18 | S1: 19 | T1: 20 | U1: 21 | V1: 22 | W1: 23 | X1: 24 | Y1: 25 | Z1: 26 | AA1: 27 | AB1: 28 | AC1: 29 | AD1: 30 | AE1: 31 | AF1: 32 | AG1: 33 | AH1: 34 | AI1: 35 | AJ1: 36 | AK1: 37 | AL1: 38 | AM1: 39 | AN1: 40 | AO1: 41 | AP1: 42 | AQ1: 43 | AR1: 44 | AS1: 45 | AT1: 46 | AU1: 47 | AV1: 48 | AW1: 49 | AX1: 50 | AY1: 51 | AZ1: 52 | BA1: 53
B2: index | C2: orientace | D2: tp [°C] | E2: S [m2] | F2: αki [W/m2K] | G2: αke [W/m2K] | H2: te' [°C] | I2: tp' [°C] | J2: ε [-] | K2: ti [°C] | L2: ti' [°C] | M2: te [°C] | N2: plocha s/h? | O2: fiktivni plocha/panel? | P2: index navazujici plochy | Q2: Λ [W/m2K] | W2: tp,vz [°C] | X2: =IF(ISBLANK(Konstrukce!P1),Konstrukce!G1,Konstrukce!P1) -> 18 | Z2: ksi' | AK2: Vykreslovani vysledku:
B3: 1 | C3: =IF(Data!$B3<MIN(Panely!$A$9:$A$28),VLOOKUP(Data!$B3,tabulka_kce_def,4,FALSE),VLOOKUP(Data!$B3,tabulka_panely_def,4,FALSE)) -> s1 | D3: =IF(Data!$B3<MIN(Panely!$A$9:$A$28),VLOOKUP(Data!$B3,tabulka_kce_def,23,FALSE),VLOOKUP(Data!$B3,tabulka_panely_def,24,FALSE)) -> 20.88793795 | E3: =IF(Data!$B3<MIN(Panely!$A$9:$A$28),VLOOKUP(Data!$B3,tabulka_kce_def,21,FALSE),VLOOKUP(Data!$B3,tabulka_panely_def,22,FALSE)) -> 33.96 | F3: =IF(Data!$B3<MIN(Panely!$A$9:$A$28),VLOOKUP(Data!$B3,tabulka_kce_def,26,FALSE),VLOOKUP(Data!$B3,tabulka_panely_def,31,FALSE)) -> 2.005902563 | G3: =IF(Data!$B3<MIN(Panely!$A$9:$A$28),VLOOKUP(Data!$B3,tabulka_kce_def,27,FALSE),VLOOKUP(Data!$B3,tabulka_panely_def,32,FALSE)) -> 23 | H3: =IF(VLOOKUP(Data!$B3,tabulka_kce_def,3,FALSE)="",Konstrukce!$G$1,IF(VLOOKUP(Data!$B3,tabulka_kce_def,3,FALSE)="z",Konstrukce!$G$2,VLOOKUP(Data!$B3,tabulka_kce_def,3,FALSE))) -> -12 | I3: =IF(Data!$B3<MIN(Panely!$A$9:$A$28),0,VLOOKUP(Data!$B3,tabulka_panely_def,25,FALSE)) -> 0 | J3: =IF(Data!$B3<MIN(Panely!$A$9:$A$28),VLOOKUP(Data!$B3,tabulka_kce_def,24,FALSE),VLOOKUP(Data!$B3,tabulka_panely_def,33,FALSE)) -> 0.9 | K3: =Konstrukce!$D$1 -> 18.7701754 | L3: =Konstrukce!$D$2 -> 19.93422959 | M3: =Konstrukce!$G$1 -> -12 | N3: =IF(Data!$B3<MIN(Panely!$A$9:$A$28),VLOOKUP(Data!$B3,tabulka_kce_def,59,FALSE),VLOOKUP(Data!$B3,tabulka_panely_def,63,FALSE)) -> s | O3: =IF(Data!$B3<MIN(Panely!$A$9:$A$28),VLOOKUP(Data!$B3,tabulka_kce_def,60,FALSE),VLOOKUP(Data!$B3,tabulka_panely_def,64,FALSE)) ->  | P3: =IF(Data!$B3<MIN(Panely!$A$9:$A$28),VLOOKUP(Data!$B3,tabulka_kce_def,61,FALSE),VLOOKUP(Data!$B3,tabulka_panely_def,65,FALSE)) ->  | Q3: =IF(Data!$B3<MIN(Panely!$A$9:$A$28),VLOOKUP(Data!$B3,tabulka_kce_def,25,FALSE),0) -> 0.3931623932 | R3: =IF(O3="f",VLOOKUP(VALUE(P3),tabulka_data,3,FALSE),D3) -> 20.88793795 | W3: ti [°C] | X3: =K3 -> 18.7701754 | Z3: 12.23495579 | AA3: 30.43026563 | AB3: =(((273.15+Z3)^4)-((273.15+AA3)^4))/((10^8)*(Z3-AA3)) -> 1.022476316 | AK3: intervaly
B4: 2 | C4: =IF(Data!$B4<MIN(Panely!$A$9:$A$28),VLOOKUP(Data!$B4,tabulka_kce_def,4,FALSE),VLOOKUP(Data!$B4,tabulka_panely_def,4,FALSE)) -> s1 | D4: =IF(Data!$B4<MIN(Panely!$A$9:$A$28),VLOOKUP(Data!$B4,tabulka_kce_def,23,FALSE),VLOOKUP(Data!$B4,tabulka_panely_def,24,FALSE)) -> 14.30453104 | E4: =IF(Data!$B4<MIN(Panely!$A$9:$A$28),VLOOKUP(Data!$B4,tabulka_kce_def,21,FALSE),VLOOKUP(Data!$B4,tabulka_panely_def,22,FALSE)) -> 1.8 | F4: =IF(Data!$B4<MIN(Panely!$A$9:$A$28),VLOOKUP(Data!$B4,tabulka_kce_def,26,FALSE),VLOOKUP(Data!$B4,tabulka_panely_def,31,FALSE)) -> 2.589592688 | G4: =IF(Data!$B4<MIN(Panely!$A$9:$A$28),VLOOKUP(Data!$B4,tabulka_kce_def,27,FALSE),VLOOKUP(Data!$B4,tabulka_panely_def,32,FALSE)) -> 23 | H4: =IF(VLOOKUP(Data!$B4,tabulka_kce_def,3,FALSE)="",Konstrukce!$G$1,IF(VLOOKUP(Data!$B4,tabulka_kce_def,3,FALSE)="z",Konstrukce!$G$2,VLOOKUP(Data!$B4,tabulka_kce_def,3,FALSE))) -> -12 | I4: =IF(Data!$B4<MIN(Panely!$A$9:$A$28),0,VLOOKUP(Data!$B4,tabulka_panely_def,25,FALSE)) -> 0 | J4: =IF(Data!$B4<MIN(Panely!$A$9:$A$28),VLOOKUP(Data!$B4,tabulka_kce_def,24,FALSE),VLOOKUP(Data!$B4,tabulka_panely_def,33,FALSE)) -> 0.9 | K4: =Konstrukce!$D$1 -> 18.7701754 | L4: =Konstrukce!$D$2 -> 19.93422959 | M4: =Konstrukce!$G$1 -> -12 | N4: =IF(Data!$B4<MIN(Panely!$A$9:$A$28),VLOOKUP(Data!$B4,tabulka_kce_def,59,FALSE),VLOOKUP(Data!$B4,tabulka_panely_def,63,FALSE)) -> s | O4: =IF(Data!$B4<MIN(Panely!$A$9:$A$28),VLOOKUP(Data!$B4,tabulka_kce_def,60,FALSE),VLOOKUP(Data!$B4,tabulka_panely_def,64,FALSE)) ->  | P4: =IF(Data!$B4<MIN(Panely!$A$9:$A$28),VLOOKUP(Data!$B4,tabulka_kce_def,61,FALSE),VLOOKUP(Data!$B4,tabulka_panely_def,65,FALSE)) ->  | Q4: =IF(Data!$B4<MIN(Panely!$A$9:$A$28),VLOOKUP(Data!$B4,tabulka_kce_def,25,FALSE),0) -> 2.254901961 | R4: 14.30453104 | W4: ti' [°C] | X4: =L3 -> 19.93422959 | AK4: od | AL4: do
B5: 3 | C5: =IF(Data!$B5<MIN(Panely!$A$9:$A$28),VLOOKUP(Data!$B5,tabulka_kce_def,4,FALSE),VLOOKUP(Data!$B5,tabulka_panely_def,4,FALSE)) -> s1 | D5: =IF(Data!$B5<MIN(Panely!$A$9:$A$28),VLOOKUP(Data!$B5,tabulka_kce_def,23,FALSE),VLOOKUP(Data!$B5,tabulka_panely_def,24,FALSE)) -> 21.38432753 | E5: =IF(Data!$B5<MIN(Panely!$A$9:$A$28),VLOOKUP(Data!$B5,tabulka_kce_def,21,FALSE),VLOOKUP(Data!$B5,tabulka_panely_def,22,FALSE)) -> 52.895 | F5: =IF(Data!$B5<MIN(Panely!$A$9:$A$28),VLOOKUP(Data!$B5,tabulka_kce_def,26,FALSE),VLOOKUP(Data!$B5,tabulka_panely_def,31,FALSE)) -> 2.151155375 | G5: =IF(Data!$B5<MIN(Panely!$A$9:$A$28),VLOOKUP(Data!$B5,tabulka_kce_def,27,FALSE),VLOOKUP(Data!$B5,tabulka_panely_def,32,FALSE)) -> 23 | H5: =IF(VLOOKUP(Data!$B5,tabulka_kce_def,3,FALSE)="",Konstrukce!$G$1,IF(VLOOKUP(Data!$B5,tabulka_kce_def,3,FALSE)="z",Konstrukce!$G$2,VLOOKUP(Data!$B5,tabulka_kce_def,3,FALSE))) -> -12 | I5: =IF(Data!$B5<MIN(Panely!$A$9:$A$28),0,VLOOKUP(Data!$B5,tabulka_panely_def,25,FALSE)) -> 0 | J5: =IF(Data!$B5<MIN(Panely!$A$9:$A$28),VLOOKUP(Data!$B5,tabulka_kce_def,24,FALSE),VLOOKUP(Data!$B5,tabulka_panely_def,33,FALSE)) -> 0.9 | K5: =Konstrukce!$D$1 -> 18.7701754 | L5: =Konstrukce!$D$2 -> 19.93422959 | M5: =Konstrukce!$G$1 -> -12 | N5: =IF(Data!$B5<MIN(Panely!$A$9:$A$28),VLOOKUP(Data!$B5,tabulka_kce_def,59,FALSE),VLOOKUP(Data!$B5,tabulka_panely_def,63,FALSE)) -> s | O5: =IF(Data!$B5<MIN(Panely!$A$9:$A$28),VLOOKUP(Data!$B5,tabulka_kce_def,60,FALSE),VLOOKUP(Data!$B5,tabulka_panely_def,64,FALSE)) ->  | P5: =IF(Data!$B5<MIN(Panely!$A$9:$A$28),VLOOKUP(Data!$B5,tabulka_kce_def,61,FALSE),VLOOKUP(Data!$B5,tabulka_panely_def,65,FALSE)) ->  | Q5: =IF(Data!$B5<MIN(Panely!$A$9:$A$28),VLOOKUP(Data!$B5,tabulka_kce_def,25,FALSE),0) -> 0.2904040404 | R5: 21.38432753 | W5: te [°C] | X5: =M3 -> -12 | Z5: index | AA5: tm | AB5: m | AC5: l | AD5: Λ2 [W/m2K] | AE5: αkh [W/m2K] | AF5: tw1 [°C] | AG5: tw2 [°C] | AH5: tp | AI5: tp' | AL5: -12
B6: 4 | C6: =IF(Data!$B6<MIN(Panely!$A$9:$A$28),VLOOKUP(Data!$B6,tabulka_kce_def,4,FALSE),VLOOKUP(Data!$B6,tabulka_panely_def,4,FALSE)) -> s4 | D6: =IF(Data!$B6<MIN(Panely!$A$9:$A$28),VLOOKUP(Data!$B6,tabulka_kce_def,23,FALSE),VLOOKUP(Data!$B6,tabulka_panely_def,24,FALSE)) -> 17.48407539 | E6: =IF(Data!$B6<MIN(Panely!$A$9:$A$28),VLOOKUP(Data!$B6,tabulka_kce_def,21,FALSE),VLOOKUP(Data!$B6,tabulka_panely_def,22,FALSE)) -> 4.176 | F6: =IF(Data!$B6<MIN(Panely!$A$9:$A$28),VLOOKUP(Data!$B6,tabulka_kce_def,26,FALSE),VLOOKUP(Data!$B6,tabulka_panely_def,31,FALSE)) -> 1.70525674 | G6: =IF(Data!$B6<MIN(Panely!$A$9:$A$28),VLOOKUP(Data!$B6,tabulka_kce_def,27,FALSE),VLOOKUP(Data!$B6,tabulka_panely_def,32,FALSE)) -> 23 | H6: =IF(VLOOKUP(Data!$B6,tabulka_kce_def,3,FALSE)="",Konstrukce!$G$1,IF(VLOOKUP(Data!$B6,tabulka_kce_def,3,FALSE)="z",Konstrukce!$G$2,VLOOKUP(Data!$B6,tabulka_kce_def,3,FALSE))) -> -12 | I6: =IF(Data!$B6<MIN(Panely!$A$9:$A$28),0,VLOOKUP(Data!$B6,tabulka_panely_def,25,FALSE)) -> 0 | J6: =IF(Data!$B6<MIN(Panely!$A$9:$A$28),VLOOKUP(Data!$B6,tabulka_kce_def,24,FALSE),VLOOKUP(Data!$B6,tabulka_panely_def,33,FALSE)) -> 0.9 | K6: =Konstrukce!$D$1 -> 18.7701754 | L6: =Konstrukce!$D$2 -> 19.93422959 | M6: =Konstrukce!$G$1 -> -12 | N6: =IF(Data!$B6<MIN(Panely!$A$9:$A$28),VLOOKUP(Data!$B6,tabulka_kce_def,59,FALSE),VLOOKUP(Data!$B6,tabulka_panely_def,63,FALSE)) -> s | O6: =IF(Data!$B6<MIN(Panely!$A$9:$A$28),VLOOKUP(Data!$B6,tabulka_kce_def,60,FALSE),VLOOKUP(Data!$B6,tabulka_panely_def,64,FALSE)) ->  | P6: =IF(Data!$B6<MIN(Panely!$A$9:$A$28),VLOOKUP(Data!$B6,tabulka_kce_def,61,FALSE),VLOOKUP(Data!$B6,tabulka_panely_def,65,FALSE)) ->  | Q6: =IF(Data!$B6<MIN(Panely!$A$9:$A$28),VLOOKUP(Data!$B6,tabulka_kce_def,25,FALSE),0) -> 0.3931623932 | R6: 17.48407539 | W6: Mv [kg/s] | X6: =Konstrukce!J1/3600 -> 9.333333333 | Z6: 31 | AA6: =(AF6+AG6)/2 -> 75 | AB6: =VLOOKUP($Z$6,tabulka_panely_def,26,FALSE) -> 3.902668516 | AC6: =VLOOKUP($Z$6,tabulka_panely_def,23,FALSE) -> 0.15 | AD6: =VLOOKUP($Z$6,tabulka_panely_def,30,FALSE) -> 0.7637778446 | AE6: =VLOOKUP($Z$6,tabulka_panely_def,32,FALSE) -> 3.896362122 | AF6: =VLOOKUP($Z$6,tabulka_panely_def,5,FALSE) -> 80 | AG6: =VLOOKUP($Z$6,tabulka_panely_def,6,FALSE) -> 70 | AH6: =X3+(-X3+AA6)*((TANH(AB6*AC6/2))/(AB6*AC6/2)) -> 73.4473859 | AI6: =X4+(AD6/AE6)*(AA6-X4)*((TANH(AB6*AC6/2))/(AB6*AC6/2)) -> 30.43035677 | AK6: =AL5 -> -12 | AL6: -8
B7: 5 | C7: =IF(Data!$B7<MIN(Panely!$A$9:$A$28),VLOOKUP(Data!$B7,tabulka_kce_def,4,FALSE),VLOOKUP(Data!$B7,tabulka_panely_def,4,FALSE)) -> s4 | D7: =IF(Data!$B7<MIN(Panely!$A$9:$A$28),VLOOKUP(Data!$B7,tabulka_kce_def,23,FALSE),VLOOKUP(Data!$B7,tabulka_panely_def,24,FALSE)) -> 17.74382035 | E7: =IF(Data!$B7<MIN(Panely!$A$9:$A$28),VLOOKUP(Data!$B7,tabulka_kce_def,21,FALSE),VLOOKUP(Data!$B7,tabulka_panely_def,22,FALSE)) -> 6.177 | F7: =IF(Data!$B7<MIN(Panely!$A$9:$A$28),VLOOKUP(Data!$B7,tabulka_kce_def,26,FALSE),VLOOKUP(Data!$B7,tabulka_panely_def,31,FALSE)) -> 1.581489098 | G7: =IF(Data!$B7<MIN(Panely!$A$9:$A$28),VLOOKUP(Data!$B7,tabulka_kce_def,27,FALSE),VLOOKUP(Data!$B7,tabulka_panely_def,32,FALSE)) -> 23 | H7: =IF(VLOOKUP(Data!$B7,tabulka_kce_def,3,FALSE)="",Konstrukce!$G$1,IF(VLOOKUP(Data!$B7,tabulka_kce_def,3,FALSE)="z",Konstrukce!$G$2,VLOOKUP(Data!$B7,tabulka_kce_def,3,FALSE))) -> -12 | I7: =IF(Data!$B7<MIN(Panely!$A$9:$A$28),0,VLOOKUP(Data!$B7,tabulka_panely_def,25,FALSE)) -> 0 | J7: =IF(Data!$B7<MIN(Panely!$A$9:$A$28),VLOOKUP(Data!$B7,tabulka_kce_def,24,FALSE),VLOOKUP(Data!$B7,tabulka_panely_def,33,FALSE)) -> 0.9 | K7: =Konstrukce!$D$1 -> 18.7701754 | L7: =Konstrukce!$D$2 -> 19.93422959 | M7: =Konstrukce!$G$1 -> -12 | N7: =IF(Data!$B7<MIN(Panely!$A$9:$A$28),VLOOKUP(Data!$B7,tabulka_kce_def,59,FALSE),VLOOKUP(Data!$B7,tabulka_panely_def,63,FALSE)) -> s | O7: =IF(Data!$B7<MIN(Panely!$A$9:$A$28),VLOOKUP(Data!$B7,tabulka_kce_def,60,FALSE),VLOOKUP(Data!$B7,tabulka_panely_def,64,FALSE)) ->  | P7: =IF(Data!$B7<MIN(Panely!$A$9:$A$28),VLOOKUP(Data!$B7,tabulka_kce_def,61,FALSE),VLOOKUP(Data!$B7,tabulka_panely_def,65,FALSE)) ->  | Q7: =IF(Data!$B7<MIN(Panely!$A$9:$A$28),VLOOKUP(Data!$B7,tabulka_kce_def,25,FALSE),0) -> 0.2904040404 | R7: 17.74382035 | W7: cv [J/kgK] | X7: =Konstrukce!J2 -> 1010 | AK7: -8 | AL7: -3
B8: 6 | C8: =IF(Data!$B8<MIN(Panely!$A$9:$A$28),VLOOKUP(Data!$B8,tabulka_kce_def,4,FALSE),VLOOKUP(Data!$B8,tabulka_panely_def,4,FALSE)) -> s4 | D8: =IF(Data!$B8<MIN(Panely!$A$9:$A$28),VLOOKUP(Data!$B8,tabulka_kce_def,23,FALSE),VLOOKUP(Data!$B8,tabulka_panely_def,24,FALSE)) -> 22.07867997 | E8: =IF(Data!$B8<MIN(Panely!$A$9:$A$28),VLOOKUP(Data!$B8,tabulka_kce_def,21,FALSE),VLOOKUP(Data!$B8,tabulka_panely_def,22,FALSE)) -> 82.224 | F8: =IF(Data!$B8<MIN(Panely!$A$9:$A$28),VLOOKUP(Data!$B8,tabulka_kce_def,26,FALSE),VLOOKUP(Data!$B8,tabulka_panely_def,31,FALSE)) -> 2.32595215 | G8: =IF(Data!$B8<MIN(Panely!$A$9:$A$28),VLOOKUP(Data!$B8,tabulka_kce_def,27,FALSE),VLOOKUP(Data!$B8,tabulka_panely_def,32,FALSE)) -> 3.613759599 | H8: =IF(VLOOKUP(Data!$B8,tabulka_kce_def,3,FALSE)="",Konstrukce!$G$1,IF(VLOOKUP(Data!$B8,tabulka_kce_def,3,FALSE)="z",Konstrukce!$G$2,VLOOKUP(Data!$B8,tabulka_kce_def,3,FALSE))) -> 10 | I8: =IF(Data!$B8<MIN(Panely!$A$9:$A$28),0,VLOOKUP(Data!$B8,tabulka_panely_def,25,FALSE)) -> 0 | J8: =IF(Data!$B8<MIN(Panely!$A$9:$A$28),VLOOKUP(Data!$B8,tabulka_kce_def,24,FALSE),VLOOKUP(Data!$B8,tabulka_panely_def,33,FALSE)) -> 0.9 | K8: =Konstrukce!$D$1 -> 18.7701754 | L8: =Konstrukce!$D$2 -> 19.93422959 | M8: =Konstrukce!$G$1 -> -12 | N8: =IF(Data!$B8<MIN(Panely!$A$9:$A$28),VLOOKUP(Data!$B8,tabulka_kce_def,59,FALSE),VLOOKUP(Data!$B8,tabulka_panely_def,63,FALSE)) -> s | O8: =IF(Data!$B8<MIN(Panely!$A$9:$A$28),VLOOKUP(Data!$B8,tabulka_kce_def,60,FALSE),VLOOKUP(Data!$B8,tabulka_panely_def,64,FALSE)) ->  | P8: =IF(Data!$B8<MIN(Panely!$A$9:$A$28),VLOOKUP(Data!$B8,tabulka_kce_def,61,FALSE),VLOOKUP(Data!$B8,tabulka_panely_def,65,FALSE)) ->  | Q8: =IF(Data!$B8<MIN(Panely!$A$9:$A$28),VLOOKUP(Data!$B8,tabulka_kce_def,25,FALSE),0) -> 0.3601371243 | R8: 22.07867997 | W8: w [m/s] | X8: =Konstrukce!P2 -> 0.2 | AK8: -3 | AL8: 3
B9: 7 | C9: =IF(Data!$B9<MIN(Panely!$A$9:$A$28),VLOOKUP(Data!$B9,tabulka_kce_def,4,FALSE),VLOOKUP(Data!$B9,tabulka_panely_def,4,FALSE)) -> s4 | D9: =IF(Data!$B9<MIN(Panely!$A$9:$A$28),VLOOKUP(Data!$B9,tabulka_kce_def,23,FALSE),VLOOKUP(Data!$B9,tabulka_panely_def,24,FALSE)) -> 22.44900591 | E9: =IF(Data!$B9<MIN(Panely!$A$9:$A$28),VLOOKUP(Data!$B9,tabulka_kce_def,21,FALSE),VLOOKUP(Data!$B9,tabulka_panely_def,22,FALSE)) -> 121.623 | F9: =IF(Data!$B9<MIN(Panely!$A$9:$A$28),VLOOKUP(Data!$B9,tabulka_kce_def,26,FALSE),VLOOKUP(Data!$B9,tabulka_panely_def,31,FALSE)) -> 2.406904146 | G9: =IF(Data!$B9<MIN(Panely!$A$9:$A$28),VLOOKUP(Data!$B9,tabulka_kce_def,27,FALSE),VLOOKUP(Data!$B9,tabulka_panely_def,32,FALSE)) -> 3.6495417 | H9: =IF(VLOOKUP(Data!$B9,tabulka_kce_def,3,FALSE)="",Konstrukce!$G$1,IF(VLOOKUP(Data!$B9,tabulka_kce_def,3,FALSE)="z",Konstrukce!$G$2,VLOOKUP(Data!$B9,tabulka_kce_def,3,FALSE))) -> 10 | I9: =IF(Data!$B9<MIN(Panely!$A$9:$A$28),0,VLOOKUP(Data!$B9,tabulka_panely_def,25,FALSE)) -> 0 | J9: =IF(Data!$B9<MIN(Panely!$A$9:$A$28),VLOOKUP(Data!$B9,tabulka_kce_def,24,FALSE),VLOOKUP(Data!$B9,tabulka_panely_def,33,FALSE)) -> 0.9 | K9: =Konstrukce!$D$1 -> 18.7701754 | L9: =Konstrukce!$D$2 -> 19.93422959 | M9: =Konstrukce!$G$1 -> -12 | N9: =IF(Data!$B9<MIN(Panely!$A$9:$A$28),VLOOKUP(Data!$B9,tabulka_kce_def,59,FALSE),VLOOKUP(Data!$B9,tabulka_panely_def,63,FALSE)) -> s | O9: =IF(Data!$B9<MIN(Panely!$A$9:$A$28),VLOOKUP(Data!$B9,tabulka_kce_def,60,FALSE),VLOOKUP(Data!$B9,tabulka_panely_def,64,FALSE)) ->  | P9: =IF(Data!$B9<MIN(Panely!$A$9:$A$28),VLOOKUP(Data!$B9,tabulka_kce_def,61,FALSE),VLOOKUP(Data!$B9,tabulka_panely_def,65,FALSE)) ->  | Q9: =IF(Data!$B9<MIN(Panely!$A$9:$A$28),VLOOKUP(Data!$B9,tabulka_kce_def,25,FALSE),0) -> 0.2721823878 | R9: 22.44900591 | W9: A [-] | X9: =IF(X8>1,0.75*X8^0.16,VLOOKUP(ROUND(X8,1),tab_NarVl361_2007_koef_A,2,FALSE)) -> 0.5 | AA9: 0 | AB9: 0 | AC9: 3 | AK9: 3 | AL9: 8
B10: 8 | C10: =IF(Data!$B10<MIN(Panely!$A$9:$A$28),VLOOKUP(Data!$B10,tabulka_kce_def,4,FALSE),VLOOKUP(Data!$B10,tabulka_panely_def,4,FALSE)) -> s2 | D10: =IF(Data!$B10<MIN(Panely!$A$9:$A$28),VLOOKUP(Data!$B10,tabulka_kce_def,23,FALSE),VLOOKUP(Data!$B10,tabulka_panely_def,24,FALSE)) -> 22.05525538 | E10: =IF(Data!$B10<MIN(Panely!$A$9:$A$28),VLOOKUP(Data!$B10,tabulka_kce_def,21,FALSE),VLOOKUP(Data!$B10,tabulka_panely_def,22,FALSE)) -> 32.89 | F10: =IF(Data!$B10<MIN(Panely!$A$9:$A$28),VLOOKUP(Data!$B10,tabulka_kce_def,26,FALSE),VLOOKUP(Data!$B10,tabulka_panely_def,31,FALSE)) -> 2.320480666 | G10: =IF(Data!$B10<MIN(Panely!$A$9:$A$28),VLOOKUP(Data!$B10,tabulka_kce_def,27,FALSE),VLOOKUP(Data!$B10,tabulka_panely_def,32,FALSE)) -> 2.490340501 | H10: =IF(VLOOKUP(Data!$B10,tabulka_kce_def,3,FALSE)="",Konstrukce!$G$1,IF(VLOOKUP(Data!$B10,tabulka_kce_def,3,FALSE)="z",Konstrukce!$G$2,VLOOKUP(Data!$B10,tabulka_kce_def,3,FALSE))) -> 18 | I10: =IF(Data!$B10<MIN(Panely!$A$9:$A$28),0,VLOOKUP(Data!$B10,tabulka_panely_def,25,FALSE)) -> 0 | J10: =IF(Data!$B10<MIN(Panely!$A$9:$A$28),VLOOKUP(Data!$B10,tabulka_kce_def,24,FALSE),VLOOKUP(Data!$B10,tabulka_panely_def,33,FALSE)) -> 0.9 | K10: =Konstrukce!$D$1 -> 18.7701754 | L10: =Konstrukce!$D$2 -> 19.93422959 | M10: =Konstrukce!$G$1 -> -12 | N10: =IF(Data!$B10<MIN(Panely!$A$9:$A$28),VLOOKUP(Data!$B10,tabulka_kce_def,59,FALSE),VLOOKUP(Data!$B10,tabulka_panely_def,63,FALSE)) -> s | O10: =IF(Data!$B10<MIN(Panely!$A$9:$A$28),VLOOKUP(Data!$B10,tabulka_kce_def,60,FALSE),VLOOKUP(Data!$B10,tabulka_panely_def,64,FALSE)) ->  | P10: =IF(Data!$B10<MIN(Panely!$A$9:$A$28),VLOOKUP(Data!$B10,tabulka_kce_def,61,FALSE),VLOOKUP(Data!$B10,tabulka_panely_def,65,FALSE)) ->  | Q10: =IF(Data!$B10<MIN(Panely!$A$9:$A$28),VLOOKUP(Data!$B10,tabulka_kce_def,25,FALSE),0) -> 0.5258863577 | R10: 22.05525538 | AK10: 8 | AL10: 12
B11: 9 | C11: =IF(Data!$B11<MIN(Panely!$A$9:$A$28),VLOOKUP(Data!$B11,tabulka_kce_def,4,FALSE),VLOOKUP(Data!$B11,tabulka_panely_def,4,FALSE)) -> s2 | D11: =IF(Data!$B11<MIN(Panely!$A$9:$A$28),VLOOKUP(Data!$B11,tabulka_kce_def,23,FALSE),VLOOKUP(Data!$B11,tabulka_panely_def,24,FALSE)) -> 19.68525647 | E11: =IF(Data!$B11<MIN(Panely!$A$9:$A$28),VLOOKUP(Data!$B11,tabulka_kce_def,21,FALSE),VLOOKUP(Data!$B11,tabulka_panely_def,22,FALSE)) -> 2 | F11: =IF(Data!$B11<MIN(Panely!$A$9:$A$28),VLOOKUP(Data!$B11,tabulka_kce_def,26,FALSE),VLOOKUP(Data!$B11,tabulka_panely_def,31,FALSE)) -> 1.686653194 | G11: =IF(Data!$B11<MIN(Panely!$A$9:$A$28),VLOOKUP(Data!$B11,tabulka_kce_def,27,FALSE),VLOOKUP(Data!$B11,tabulka_panely_def,32,FALSE)) -> 1.862702194 | H11: =IF(VLOOKUP(Data!$B11,tabulka_kce_def,3,FALSE)="",Konstrukce!$G$1,IF(VLOOKUP(Data!$B11,tabulka_kce_def,3,FALSE)="z",Konstrukce!$G$2,VLOOKUP(Data!$B11,tabulka_kce_def,3,FALSE))) -> 18 | I11: =IF(Data!$B11<MIN(Panely!$A$9:$A$28),0,VLOOKUP(Data!$B11,tabulka_panely_def,25,FALSE)) -> 0 | J11: =IF(Data!$B11<MIN(Panely!$A$9:$A$28),VLOOKUP(Data!$B11,tabulka_kce_def,24,FALSE),VLOOKUP(Data!$B11,tabulka_panely_def,33,FALSE)) -> 0.9 | K11: =Konstrukce!$D$1 -> 18.7701754 | L11: =Konstrukce!$D$2 -> 19.93422959 | M11: =Konstrukce!$G$1 -> -12 | N11: =IF(Data!$B11<MIN(Panely!$A$9:$A$28),VLOOKUP(Data!$B11,tabulka_kce_def,59,FALSE),VLOOKUP(Data!$B11,tabulka_panely_def,63,FALSE)) -> s | O11: =IF(Data!$B11<MIN(Panely!$A$9:$A$28),VLOOKUP(Data!$B11,tabulka_kce_def,60,FALSE),VLOOKUP(Data!$B11,tabulka_panely_def,64,FALSE)) ->  | P11: =IF(Data!$B11<MIN(Panely!$A$9:$A$28),VLOOKUP(Data!$B11,tabulka_kce_def,61,FALSE),VLOOKUP(Data!$B11,tabulka_panely_def,65,FALSE)) ->  | Q11: =IF(Data!$B11<MIN(Panely!$A$9:$A$28),VLOOKUP(Data!$B11,tabulka_kce_def,25,FALSE),0) -> 1.067401642 | R11: 19.68525647 | AK11: 12
B12: 10 | C12: =IF(Data!$B12<MIN(Panely!$A$9:$A$28),VLOOKUP(Data!$B12,tabulka_kce_def,4,FALSE),VLOOKUP(Data!$B12,tabulka_panely_def,4,FALSE)) -> s2 | D12: =IF(Data!$B12<MIN(Panely!$A$9:$A$28),VLOOKUP(Data!$B12,tabulka_kce_def,23,FALSE),VLOOKUP(Data!$B12,tabulka_panely_def,24,FALSE)) -> 19.78116834 | E12: =IF(Data!$B12<MIN(Panely!$A$9:$A$28),VLOOKUP(Data!$B12,tabulka_kce_def,21,FALSE),VLOOKUP(Data!$B12,tabulka_panely_def,22,FALSE)) -> 2 | F12: =IF(Data!$B12<MIN(Panely!$A$9:$A$28),VLOOKUP(Data!$B12,tabulka_kce_def,26,FALSE),VLOOKUP(Data!$B12,tabulka_panely_def,31,FALSE)) -> 1.686653194 | G12: =IF(Data!$B12<MIN(Panely!$A$9:$A$28),VLOOKUP(Data!$B12,tabulka_kce_def,27,FALSE),VLOOKUP(Data!$B12,tabulka_panely_def,32,FALSE)) -> 1.897285292 | H12: =IF(VLOOKUP(Data!$B12,tabulka_kce_def,3,FALSE)="",Konstrukce!$G$1,IF(VLOOKUP(Data!$B12,tabulka_kce_def,3,FALSE)="z",Konstrukce!$G$2,VLOOKUP(Data!$B12,tabulka_kce_def,3,FALSE))) -> 18 | I12: =IF(Data!$B12<MIN(Panely!$A$9:$A$28),0,VLOOKUP(Data!$B12,tabulka_panely_def,25,FALSE)) -> 0 | J12: =IF(Data!$B12<MIN(Panely!$A$9:$A$28),VLOOKUP(Data!$B12,tabulka_kce_def,24,FALSE),VLOOKUP(Data!$B12,tabulka_panely_def,33,FALSE)) -> 0.9 | K12: =Konstrukce!$D$1 -> 18.7701754 | L12: =Konstrukce!$D$2 -> 19.93422959 | M12: =Konstrukce!$G$1 -> -12 | N12: =IF(Data!$B12<MIN(Panely!$A$9:$A$28),VLOOKUP(Data!$B12,tabulka_kce_def,59,FALSE),VLOOKUP(Data!$B12,tabulka_panely_def,63,FALSE)) -> s | O12: =IF(Data!$B12<MIN(Panely!$A$9:$A$28),VLOOKUP(Data!$B12,tabulka_kce_def,60,FALSE),VLOOKUP(Data!$B12,tabulka_panely_def,64,FALSE)) ->  | P12: =IF(Data!$B12<MIN(Panely!$A$9:$A$28),VLOOKUP(Data!$B12,tabulka_kce_def,61,FALSE),VLOOKUP(Data!$B12,tabulka_panely_def,65,FALSE)) ->  | Q12: =IF(Data!$B12<MIN(Panely!$A$9:$A$28),VLOOKUP(Data!$B12,tabulka_kce_def,25,FALSE),0) -> 1.078668523 | R12: 19.78116834
B13: 11 | C13: =IF(Data!$B13<MIN(Panely!$A$9:$A$28),VLOOKUP(Data!$B13,tabulka_kce_def,4,FALSE),VLOOKUP(Data!$B13,tabulka_panely_def,4,FALSE)) -> s2 | D13: =IF(Data!$B13<MIN(Panely!$A$9:$A$28),VLOOKUP(Data!$B13,tabulka_kce_def,23,FALSE),VLOOKUP(Data!$B13,tabulka_panely_def,24,FALSE)) -> 22.47818164 | E13: =IF(Data!$B13<MIN(Panely!$A$9:$A$28),VLOOKUP(Data!$B13,tabulka_kce_def,21,FALSE),VLOOKUP(Data!$B13,tabulka_panely_def,22,FALSE)) -> 40.765 | F13: =IF(Data!$B13<MIN(Panely!$A$9:$A$28),VLOOKUP(Data!$B13,tabulka_kce_def,26,FALSE),VLOOKUP(Data!$B13,tabulka_panely_def,31,FALSE)) -> 2.413210273 | G13: =IF(Data!$B13<MIN(Panely!$A$9:$A$28),VLOOKUP(Data!$B13,tabulka_kce_def,27,FALSE),VLOOKUP(Data!$B13,tabulka_panely_def,32,FALSE)) -> 2.57344872 | H13: =IF(VLOOKUP(Data!$B13,tabulka_kce_def,3,FALSE)="",Konstrukce!$G$1,IF(VLOOKUP(Data!$B13,tabulka_kce_def,3,FALSE)="z",Konstrukce!$G$2,VLOOKUP(Data!$B13,tabulka_kce_def,3,FALSE))) -> 18 | I13: =IF(Data!$B13<MIN(Panely!$A$9:$A$28),0,VLOOKUP(Data!$B13,tabulka_panely_def,25,FALSE)) -> 0 | J13: =IF(Data!$B13<MIN(Panely!$A$9:$A$28),VLOOKUP(Data!$B13,tabulka_kce_def,24,FALSE),VLOOKUP(Data!$B13,tabulka_panely_def,33,FALSE)) -> 0.9 | K13: =Konstrukce!$D$1 -> 18.7701754 | L13: =Konstrukce!$D$2 -> 19.93422959 | M13: =Konstrukce!$G$1 -> -12 | N13: =IF(Data!$B13<MIN(Panely!$A$9:$A$28),VLOOKUP(Data!$B13,tabulka_kce_def,59,FALSE),VLOOKUP(Data!$B13,tabulka_panely_def,63,FALSE)) -> s | O13: =IF(Data!$B13<MIN(Panely!$A$9:$A$28),VLOOKUP(Data!$B13,tabulka_kce_def,60,FALSE),VLOOKUP(Data!$B13,tabulka_panely_def,64,FALSE)) ->  | P13: =IF(Data!$B13<MIN(Panely!$A$9:$A$28),VLOOKUP(Data!$B13,tabulka_kce_def,61,FALSE),VLOOKUP(Data!$B13,tabulka_panely_def,65,FALSE)) ->  | Q13: =IF(Data!$B13<MIN(Panely!$A$9:$A$28),VLOOKUP(Data!$B13,tabulka_kce_def,25,FALSE),0) -> 0.5294973405 | R13: 22.47818164 | Y13: rozměry
